Workbook

Sheet Overview
B2: Tax & the Family
B3: Tax Benefit Model Table 2021/22
B5: Detailed explanations and instructions have been provided to ensure that the model is easy to use. However, if you have any questions or quieries please contact William Spencer at williamspencer004@gmail.com.
B9: These tables have been produced to enable the effect of the tax and benefit system on family incomes to be modelled. They enable users to look at both single parent households and couple households, as well as families who are renting and owner occupiers. The tables take account of the marriage allowance and the High-Income Child Benefit Charge. Figures are available for the legacy system -tax credits and housing benefit - as well as for universal credit system. The tables show the effective marginal rates households face which allows the amount households gain from additional income to be calculated and also the marginal rates for second earners - this enables the amount gained from having a second earner to be calculated. Income tax is different in Scotland. Separate tables have been designed to model households in Scotland.
B17: To use the Tables go to the "Model Setup" worksheet (see below) and enter details of the household type you wish to model. You need to say whether the household is a couple household, how many children there are, and in the case of couple households whether they are etitled to to the marriage allowance. You also need to say whehther they are renting and if so the rent they are paying and the local housing allowance.
B22: Index:
B24: Model Setup | E24: Gives details on the process and output of the model, displays the assumptions used in the formulas and provides the user with the ability to manipulate the variables used in the model.
B27: Automated Results | E27: Produces analysis of the family specified in the "Model Setup" sheet, using the equivalised after housing cost income deciles that are calculated in the "Rates" sheet.
B30: Concepts and Definitions | E30: Explains the terminology and components used in the tax benefit model.
B32: Rates | E32: This table of data displays the values of the elements that make up Tax Credits and Universal Credits, and which the different components relate to.
B35: Universal Credit (UC) Table | E35: This table gives detailed calculations for the weekly financial circumstances of families under Universal Credit, at incremental incomes.
B38: Legacy System (LS) Table | E38: This table gives detailed calculations for the weekly financial circumstances of families under the Legacy System, at incremental incomes.
B41: Single Earner Table (Hidden) | E41: This table gives the calculations for when only one member of the household is in work. It allows the model to calculate the financial gain of having a second earner in the family. This table should not need to be used independently as a single earner senario can be set up in the Model Setup to show on both the Universal Credit and Legacy System Tables.

Sheet Model Setup
H2: Model Setup | Q2: Married
Q3: Not Married
B4: The Tax & the Family Tax Benefit Model illustrates the weekly financial circumstances of a range of hypothetical families. By manipulating the variables, users can see the Income Tax, National Insurance, Tax and Benefits for families of varying characteristics, at increasing, incremental steps of income. The model shows the financial circumstances for the family if only one member of a couple is in work and for if the family is dependent entirely on benefits, allowing for easy comparison of different scenarios.
Q5: Local Authority
Q6: Private
B8: Users should note that the scenarios generated by this model are hypothetical and are governed by some broad assumptions (detailed below). Consequently, this model should be taken as an illustration of tax/ benefit interaction for various family types rather than an authoritative statement of entitlement. | Q8: Single
Q9: Couple
B12: In work assumptions:
B13: 1. The family consists of either a single person or a couple.
B14: 2. The family head is employed for a minimum of 16 hours per week. Similarly, the second earner is only considered if employed for a minimum of 16 hours per week.
B15: 3. The family lives in local authority or privately rented property appropriate to its size and pays average amounts of rent and council tax for their area in the 2021/2022 financial year.
B17: 4. All earners in the family are aged 25 to 49.
B18: 5. The weekly childcare costs are eligible for help under Tax Credit and Housing Benefit rules.
B19: 6. The model does not include time-limited incentives to encourage people to move into work.
B20: 7. The model calculates Tax Credit entitlement in real time, rather than based on previous years’ earnings, which can underestimate the gains to work in the first year.
B23: Hypothetical Family Type:
B24: Set-up the required hypothetical family type by selecting the parameters below, according to the key assumptions outlined above.
B25: Changes to these parameters reflect a different hypothetical family type and consequently reflect different weekly financial circumstances in the "Legacy System Table" and "Universal Credit Table".
B28: Note: DO NOT CHANGE "Children born after 6 April 2017" and "Second earner" parameter as this is automatically calculated based upon other selections.
B30: Number of adults (please select): | F30: Couple | H30: Marital status (please select): | K30: Married
B31: Please enter the % of the total household income that the head earner brings to the household. If a specific value of second income is required, enter '100' into "Head earner", before specifying the desired income in "Second income override".
B33: Wage Split (%): | D33: Head earner (A): | F33: 1 | H33: Second earner (B): | J33: =IF(F30=1,0,1-F33) -> 0 | L33: Second income override (weekly):
B35: Total number of children: | F35: 2
B36: Children born before 6 April 2017: | F36: 2 | H36: Children born after 6 April 2017: | L36: =F35-F36 -> 0
B37: Weekly Childcare Costs:
B39: Please enter valid data for housing costs, council tax and LHA allowance for the desired region. Links to data averages have been provided:
B40: If no rent or mortgage interest, enter '0':
B41: Under local authority tenancy, housing cost support will equal the value of your rent. Under private tennacy, housing cost support will equal the LHA value.
B42: Tenancy type (please select): | F42: Private
B43: Weekly Rent: | H43: see "4. Local authority analysis" for regional rent averages
B44: Weekly Mortgage Interest: | F44: 160
B45: £32 represents the average weekly council tax for a 3 bedroom property. A discounting rate of 25% is applied every time the number of bedroom reduces by 1. Similarly, the addition of 1 bedroom increased council tax by 25%.
B47: Weekly Council Tax Actual: | F47: 34 | H47: see "2020 council tax calculator" for regional council tax band averages
B49: Local Housing Allowance
B50: Your local housing allowance is dependent on your location and the number of bedrooms required by your family (max. 4, no matter how big the family).
B51: You are allowed one bedroom for each category shown below:
B52: Each adult couple
B53: Each person over 16
B54: Two children of the same sex under 16
B55: Two children under 10, regardless of their sex
B56: Any other child
B58: Local Authority (please select): | F58: Leeds
B59: Number of Bedrooms (please select): | F59: Three Bedrooms
B61: LHA: | F61: =INDEX('LHA data'!B3:E154,MATCH(F58,'LHA data'!A3:A154,0),MATCH(F59,'LHA data'!B2:E2,0)) -> 161.1
B63: The hypothetical family type selected is as follows: | H63: =IF(AND(F30="Couple",K30="Married"),"Married couple",IF(AND(F30="Couple",K30="Not Married"),"Unmarried couple",IF(AND(F30="Single",F35>0),"Single parent",IF(AND(F30="Single",F35=0),"Single adult"))))&" with"&IF(F35=0," no children",IF(F35=1," 1 child"," "&F35&" children"))&IF(F35=0,"",IF(F37=0," but no childcare costs"," and £"&F37&" childcare costs "))&"." -> Married couple with 2 children but no childcare costs.
H64: =IF(F30="Single","Single eaner household ",IF(F33=1,"Single earner household ","Duel earner household "))&"with "&IF(F43>0,"weekly rent of "&"£"&F43,IF(F44>0,"weekly mortgage interest payments of "&"£"&F44,"no housing costs")&".") -> Single earner household with weekly mortgage interest payments of £160.

Sheet LHA data (hidden)
B1: LHA April 2020
A2: BRMA | B2: One Bedroom | C2: Two Bedrooms | D2: Three Bedrooms | E2: Four Bedrooms
A3: Ashford | B3: 143.84 | C3: 168 | D3: 207.12 | E3: 260.05
A4: Aylesbury | B4: 155.34 | C4: 184.11 | D4: 241.64 | E4: 322.19
A5: Barnsley | B5: 84 | C5: 92.05 | D5: 109.32 | E5: 148.44
A6: Barrow-in-Furness | B6: 86.54 | C6: 102.41 | D6: 126.58 | E6: 166.85
A7: Basingstoke | B7: 159.95 | C7: 189.86 | D7: 218.63 | E7: 287.67
A8: Bath | B8: 166.85 | C8: 195.62 | D8: 228.99 | E8: 402.74
A9: Bedford | B9: 132.33 | C9: 166.85 | D9: 201.37 | E9: 264.66
A10: Birmingham | B10: 120.82 | C10: 143.84 | D10: 155.34 | E10: 195.62
A11: Black Country | B11: 91.82 | C11: 117.37 | D11: 136.93 | E11: 172.6
A12: Blackwater Valley | B12: 161.1 | C12: 201.37 | D12: 253.15 | E12: 333.7
A13: Bolton and Bury | B13: 90.9 | C13: 110.47 | D13: 136.93 | E13: 184.11
A14: Bournemouth | B14: 137.74 | C14: 174.9 | D14: 218.63 | E14: 287.67
A15: Bradford & South Dales | B15: 80.55 | C15: 103.56 | D15: 120.82 | E15: 141.53
A16: Brighton and Hove | B16: 184.11 | C16: 230.14 | D16: 276.16 | E16: 390.08
A17: Bristol | B17: 159.95 | C17: 189.86 | D17: 218.63 | E17: 304.93
A18: Bury St Edmunds | B18: 120.82 | C18: 149.59 | D18: 184.11 | E18: 276.16
A19: Cambridge | B19: 178.36 | C19: 195.62 | D19: 218.63 | E19: 299.18
A20: Canterbury | B20: 136.93 | C20: 182.96 | D20: 224.38 | E20: 287.67
A21: Central Greater Manchester | B21: 138.08 | C21: 149.59 | D21: 166.85 | E21: 218.63
A22: Central Lancs | B22: 90.9 | C22: 115.07 | D22: 132.33 | E22: 182.96
A23: Central London | B23: 295.49 | C23: 365.92 | D23: 441.86 | E23: 593.75
A24: Central Norfolk & Norwich | B24: 113.92 | C24: 138.08 | D24: 163.4 | E24: 218.63
A25: Chelmsford | B25: 149.59 | C25: 182.96 | D25: 226.68 | E25: 298.03
A26: Cheltenham | B26: 126.58 | C26: 159.95 | D26: 195.62 | E26: 275.01
A27: Cherwell Valley | B27: 149.59 | C27: 178.36 | D27: 207.12 | E27: 298.61
A28: Chesterfield | B28: 89.75 | C28: 103.56 | D28: 126.58 | E28: 166.85
A29: Chichester | B29: 149.59 | C29: 189.86 | D29: 228.99 | E29: 310.68
A30: Chilterns | B30: 172.6 | C30: 224.38 | D30: 287.67 | E30: 379.73
A31: Colchester | B31: 120.82 | C31: 158.79 | D31: 195.62 | E31: 253.15
A32: Coventry | B32: 112.77 | C32: 132.33 | D32: 155.34 | E32: 201.37
A33: Crawley & Reigate | B33: 172.6 | C33: 218.63 | D33: 276.16 | E33: 356.71
A34: Darlington | B34: 76.15 | C34: 92.05 | D34: 113.92 | E34: 151.89
A35: Derby | B35: 90.9 | C35: 115.07 | D35: 136.93 | E35: 182.96
A36: Doncaster | B36: 86.3 | C36: 101.26 | D36: 111.62 | E36: 150.74
A37: Dover-Shepway | B37: 100.11 | C37: 132.33 | D37: 172.6 | E37: 207.12
A38: Durham | B38: 74.79 | C38: 87.45 | D38: 103.56 | E38: 140.38
A39: East Cheshire | B39: 113.92 | C39: 138.08 | D39: 189.86 | E39: 299.18
A40: East Lancs | B40: 85 | C40: 97.81 | D40: 115 | E40: 159.95
A41: East Thames Valley | B41: 184.11 | C41: 230.14 | D41: 293.42 | E41: 368.22
A42: Eastbourne | B42: 138.08 | C42: 176.05 | D42: 207.12 | E42: 276.16
A43: Eastern Staffordshire | B43: 97.81 | C43: 120.82 | D43: 143.84 | E43: 182.96
A44: Exeter | B44: 131.18 | C44: 156.49 | D44: 189.86 | E44: 253.15
A45: Fylde Coast | B45: 85 | C45: 114.61 | D45: 132.33 | E45: 150
A46: Gloucester | B46: 103.56 | C46: 138.08 | D46: 172.6 | E46: 218.63
A47: Grantham & Newark | B47: 86.3 | C47: 111.62 | D47: 132.33 | E47: 182.96
A48: Greater Liverpool | B48: 92.05 | C48: 108.16 | D48: 120.82 | E48: 156
A49: Grimsby | B49: 77 | C49: 98.96 | D49: 103.56 | E49: 142.68
A50: Guildford | B50: 195.62 | C50: 253.15 | D50: 316.44 | E50: 414.25
A51: Halifax | B51: 86.3 | C51: 103.56 | D51: 120.82 | E51: 149.59
A52: Harlow & Stortford | B52: 165.7 | C52: 207.12 | D52: 258.9 | E52: 299.18
A53: Harrogate | B53: 120.82 | C53: 153.04 | D53: 182.96 | E53: 246.25
A54: Herefordshire | B54: 97.81 | C54: 126.58 | D54: 156.49 | E54: 205.97
A55: High Weald | B55: 159.95 | C55: 207.12 | D55: 260.05 | E55: 345.21
A56: Hull & East Riding | B56: 80 | C56: 92.05 | D56: 109.32 | E56: 138.08
A57: Huntingdon | B57: 130.03 | C57: 161.1 | D57: 189.86 | E57: 253.15
A58: Inner East London | B58: 295.49 | C58: 365.92 | D58: 441.86 | E58: 585.7
A59: Inner North London | B59: 295.49 | C59: 365.92 | D59: 441.86 | E59: 593.75
A60: Inner South East London | B60: 264.66 | C60: 310.68 | D60: 385.48 | E60: 506.3
A61: Inner South West London | B61: 295.49 | C61: 356.71 | D61: 441.86 | E61: 593.75
A62: Inner West London | B62: 278.01 | C62: 339.45 | D62: 441.86 | E62: 533.92
A63: Ipswich | B63: 112.77 | C63: 140.38 | D63: 164.55 | E63: 205.97
A64: Isle of Wight | B64: 103.56 | C64: 132.33 | D64: 166.85 | E64: 205.97
A65: Kendal | B65: 113.92 | C65: 138.08 | D65: 166.85 | E65: 195.62
A66: Kernow West | B66: 113.92 | C66: 143.84 | D66: 169.15 | E66: 212.88
A67: Kings Lynn | B67: 103.56 | C67: 132.33 | D67: 155.34 | E67: 195.62
A68: Kirklees | B68: 85 | C68: 103.56 | D68: 126.58 | E68: 162.25
A69: Lancaster | B69: 96.66 | C69: 120.82 | D69: 138.08 | E69: 161.1
A70: Leeds | B70: 120.82 | C70: 136.93 | D70: 161.1 | E70: 207.12
A71: Leicester | B71: 103.56 | C71: 130.03 | D71: 155.34 | E71: 205.97
A72: Lincoln | B72: 97.81 | C72: 117.37 | D72: 132.33 | E72: 172.6
A73: Lincolnshire Fens | B73: 100.11 | C73: 132.33 | D73: 149.59 | E73: 172.6
A74: Lowestoft & Great Yarmouth | B74: 92 | C74: 116.22 | D74: 126.58 | E74: 166.85
A75: Luton | B75: 143.84 | C75: 178.36 | D75: 224.38 | E75: 264.66
A76: Maidstone | B76: 149.59 | C76: 187.56 | D76: 224.38 | E76: 287.67
A77: Medway & Swale | B77: 136.93 | C77: 172.6 | D77: 195.62 | E77: 276.16
A78: Mendip | B78: 111.62 | C78: 143.84 | D78: 179.51 | E78: 230.14
A79: Mid & East Devon | B79: 103.56 | C79: 136.93 | D79: 166.85 | E79: 207.12
A80: Mid & West Dorset | B80: 119.67 | C80: 149.59 | D80: 182.96 | E80: 241.64
A81: Mid Staffs | B81: 97.81 | C81: 126.58 | D81: 149.59 | E81: 195.62
A82: Milton Keynes | B82: 149.59 | C82: 189.86 | D82: 224.38 | E82: 299.18
A83: Newbury | B83: 155.34 | C83: 192.74 | D83: 241.64 | E83: 322.19
A84: North Cheshire | B84: 97.81 | C84: 115.07 | D84: 136.93 | E84: 201.37
A85: North Cornwall & Devon Borders | B85: 97.81 | C85: 123.12 | D85: 149.59 | E85: 184.11
A86: North Cumbria | B86: 80.55 | C86: 97.81 | D86: 120.82 | E86: 155.34
A87: North Devon | B87: 97.81 | C87: 126.58 | D87: 149.59 | E87: 182.96
A88: North Nottingham | B88: 80.55 | C88: 103.56 | D88: 109.32 | E88: 155.34
A89: North West Kent | B89: 155.34 | C89: 195.62 | D89: 241.64 | E89: 299.18
A90: North West London | B90: 230.14 | C90: 287.67 | D90: 356.71 | E90: 425.75
A91: Northampton | B91: 126.58 | C91: 159.95 | D91: 184.11 | E91: 234.74
A92: Northants Central | B92: 109.32 | C92: 138.08 | D92: 159.95 | E92: 205.97
A93: Northumberland | B93: 78.25 | C93: 90.9 | D93: 109.32 | E93: 161.1
A94: Nottingham | B94: 108.16 | C94: 126.58 | D94: 143.84 | E94: 184.11
A95: Oldham & Rochdale | B95: 90.9 | C95: 103.85 | D95: 126.58 | E95: 159.95
A96: Outer East London | B96: 241.64 | C96: 299.18 | D96: 356.71 | E96: 414.25
A97: Outer North East London | B97: 207.12 | C97: 264.66 | D97: 316.44 | E97: 398.14
A98: Outer North London | B98: 246.24 | C98: 299.18 | D98: 368.22 | E98: 437.26
A99: Outer South East London | B99: 205.97 | C99: 253.15 | D99: 299.18 | E99: 368.22
A100: Outer South London | B100: 201.37 | C100: 253.15 | D100: 316.44 | E100: 399.29
A101: Outer South West London | B101: 241.64 | C101: 304.93 | D101: 368.22 | E101: 494.79
A102: Outer West London | B102: 212.88 | C102: 270.41 | D102: 322.19 | E102: 379.73
A103: Oxford | B103: 178.36 | C103: 210 | D103: 253.15 | E103: 364.77
A104: Peaks & Dales | B104: 97.7 | C104: 120.82 | D104: 143.84 | E104: 172.6
A105: Peterborough | B105: 110.47 | C105: 136.93 | D105: 159.95 | E105: 207.12
A106: Plymouth | B106: 103.56 | C106: 134.63 | D106: 159.95 | E106: 195.62
A107: Portsmouth | B107: 134.63 | C107: 166.85 | D107: 201.37 | E107: 276.16
A108: Reading | B108: 182.96 | C108: 218.63 | D108: 264.66 | E108: 356.71
A109: Richmond & Hambleton | B109: 92.05 | C109: 115.07 | D109: 136.93 | E109: 172.6
A110: Rotherham | B110: 86.3 | C110: 97.81 | D110: 110.47 | E110: 157.64
A111: Rugby & East | B111: 120.82 | C111: 147.29 | D111: 172.6 | E111: 228.99
A112: Salisbury | B112: 132.33 | C112: 166.85 | D112: 195.62 | E112: 253.15
A113: Scarborough | B113: 86.3 | C113: 111.62 | D113: 128.88 | E113: 149.59
A114: Scunthorpe | B114: 74.79 | C114: 103.56 | D114: 111.62 | E114: 136.93
A115: Sheffield | B115: 109.32 | C115: 120.82 | D115: 132.33 | E115: 187.56
A116: Shropshire | B116: 92.05 | C116: 120.82 | D116: 143.84 | E116: 182.96
A117: Solihull | B117: 132.33 | C117: 166.85 | D117: 201.37 | E117: 276.16
A118: South Cheshire | B118: 90.9 | C118: 113.92 | D118: 136.93 | E118: 189.86
A119: South Devon | B119: 103.56 | C119: 138.08 | D119: 168 | E119: 207.12
A120: South East Herts | B120: 172.6 | C120: 212.88 | D120: 276.16 | E120: 322.19
A121: South West Essex | B121: 161.1 | C121: 201.37 | D121: 247.4 | E121: 306.66
A122: South West Herts | B122: 184.11 | C122: 230.14 | D122: 299.18 | E122: 391.23
A123: Southampton | B123: 136.93 | C123: 178.36 | D123: 212.88 | E123: 276.16
A124: Southend | B124: 138.08 | C124: 182.96 | D124: 230.14 | E124: 299.18
A125: Southern Greater Manchester | B125: 120.82 | C125: 149.59 | D125: 172.6 | E125: 253.15
A126: Southport | B126: 94 | C126: 124.27 | D126: 153.04 | E126: 189.86
A127: St Helens | B127: 86.3 | C127: 101.26 | D127: 126.58 | E127: 171.45
A128: Staffordshire North | B128: 86.3 | C128: 97.81 | D128: 126.58 | E128: 171.45
A129: Stevenage & North Herts | B129: 155.34 | C129: 195.62 | D129: 241.64 | E129: 299.18
A130: Sunderland | B130: 89.75 | C130: 100 | D130: 113.92 | E130: 148.18
A131: Sussex East | B131: 115.07 | C131: 149.59 | D131: 195.62 | E131: 230.14
A132: Swindon | B132: 126.58 | C132: 151.89 | D132: 182.96 | E132: 230.14
A133: Tameside & Glossop | B133: 92.05 | C133: 113.92 | D133: 136.93 | E133: 172.6
A134: Taunton & West Somerset | B134: 103.56 | C134: 136.93 | D134: 164.55 | E134: 207.12
A135: Teesside | B135: 86.3 | C135: 99.65 | D135: 115 | E135: 155.34
A136: Thanet | B136: 109.32 | C136: 149.59 | D136: 184.11 | E136: 218.63
A137: Tyneside | B137: 97.81 | C137: 109.32 | D137: 126.58 | E137: 182.96
A138: Wakefield | B138: 90.9 | C138: 109.32 | D138: 120.82 | E138: 172.6
A139: Walton | B139: 195.62 | C139: 253.15 | D139: 310.68 | E139: 407.34
A140: Warwickshire South | B140: 143.84 | C140: 172.6 | D140: 207.12 | E140: 276.16
A141: West Cheshire | B141: 103.56 | C141: 126.58 | D141: 149.59 | E141: 205.97
A142: West Cumbria | B142: 80.55 | C142: 96.66 | D142: 113.92 | E142: 138.08
A143: West Pennine | B143: 80.55 | C143: 89.75 | D143: 103.56 | E143: 149.59
A144: West Wiltshire | B144: 119.67 | C144: 149.59 | D144: 182.96 | E144: 230.14
A145: Weston-S-Mare | B145: 109.32 | C145: 138.08 | D145: 172.6 | E145: 212.88
A146: Wigan | B146: 80.55 | C146: 103.56 | D146: 114.84 | E146: 155.34
A147: Winchester | B147: 166.85 | C147: 197.92 | D147: 253.15 | E147: 368.22
A148: Wirral | B148: 86.3 | C148: 103.56 | D148: 126.58 | E148: 166.85
A149: Wolds and Coast | B149: 82.85 | C149: 104.14 | D149: 121.97 | E149: 138.08
A150: Worcester North | B150: 101.26 | C150: 126.72 | D150: 149.59 | E150: 195.62
A151: Worcester South | B151: 115.07 | C151: 143.84 | D151: 172.6 | E151: 218.63
A152: Worthing | B152: 143.84 | C152: 184.11 | D152: 223.23 | E152: 287.67
A153: Yeovil | B153: 101.26 | C153: 132.33 | D153: 166.85 | E153: 212.88
A154: York | B154: 125.42 | C154: 149.59 | D154: 166.85 | E154: 241.64

Sheet Automated Results - AHC Incomes
B2: Automatic Analysis of After Housing Cost Household Income
B4: This worksheet produces automatic analysis of the data calculated in the "Universal Credit Table". The column entitled "AHC Income @ decile boundary", shows the upper bound of each decile. Therefore if the family specified in the "Model Setup" sheet were to earn above this level, they would move up to the next decile of the income distribution.
B7: The annual income that the family would be earning to have this level of after housing costs, as well as the income tax that they would pay on this annual income are shown in the adjacent two columns. The Universal Credit that they would be entitled to at this standard of living is also calculated.
B10: Additionally, the marginal deduction rate (the amount of an aditional £1 gross income earnt that is taken by the government) is shown in column I.
B11: The same analysis for 60% median (regarded as the income required to live above the poverty live) and 70% median are displayed below.
B12: The second section (Income Analysis) takes a given annual income as calculates the annual income tax, UC entitlement, and displays the AHC income and AHC decile of the specified household.
C15: ='Model Setup'!$H$63 -> Married couple with 2 children but no childcare costs.
C16: ='Legacy System Table'!$G$13 -> Single earner household with weekly mortgage interest payments of £160.
B18: Decile Analysis
D20: AHC Income @ | E20: Closest | F20: Annual | G20: Annual | H20: Annual | I20: Annual | J20: Marginal
C21: Decile | D21: decile boundary | E21: data point | F21: income | G21: income tax | H21: national insurance | I21: universal credit | J21: deduction rate
C22: 1 | D22: =Rates!$N$105 -> 267.4 | E22: =INDEX('Universal Credit Table'!$W$40:$W$3013,MATCH(MIN(ABS('Universal Credit Table'!$W$40:$W$3013-$D22)),ABS('Universal Credit Table'!$W$40:$W$3013-$D22),0)) -> 267.3592308 | F22: =INDEX('Universal Credit Table'!$A$40:$A$3013,MATCH(MIN(ABS('Universal Credit Table'!$W$40:$W$3013-$D22)),ABS('Universal Credit Table'!$W$40:$W$3013-$D22),0)) -> 1407.857143 | G22: =INDEX('Universal Credit Table'!$N$40:$N$3013,MATCH(MIN(ABS('Universal Credit Table'!$W$40:$W$3013-$D22)),ABS('Universal Credit Table'!$W$40:$W$3013-$D22),0)) -> 0 | H22: =INDEX('Universal Credit Table'!$M$40:$M$3013,MATCH(MIN(ABS('Universal Credit Table'!$W$40:$W$3013-$D22)),ABS('Universal Credit Table'!$W$40:$W$3013-$D22),0)) -> 0 | I22: =IF(INDEX('Universal Credit Table'!$S$40:$S$3013,MATCH(MIN(ABS('Universal Credit Table'!$W$40:$W$3013-$D22)),ABS('Universal Credit Table'!$W$40:$W$3013-$D22),0))>0,((INDEX('Universal Credit Table'!$S$40:$S$3013,MATCH(MIN(ABS('Universal Credit Table'!$W$40:$W$3013-$D22)),ABS('Universal Credit Table'!$W$40:$W$3013-$D22),0))))/7*365,0) -> 18404.30275 | J22: =INDEX('Universal Credit Table'!$Y$40:$Y$3013,MATCH(MIN(ABS('Universal Credit Table'!$W$40:$W$3013-'Automated Results - AHC Incomes'!$D22)),ABS('Universal Credit Table'!$W$40:$W$3013-'Automated Results - AHC Incomes'!$D22),0)) -> 0
C23: 2 | D23: =Rates!N106 -> 379.4 | E23: =INDEX('Universal Credit Table'!$W$40:$W$3013,MATCH(MIN(ABS('Universal Credit Table'!$W$40:$W$3013-$D23)),ABS('Universal Credit Table'!$W$40:$W$3013-$D23),0)) -> 379.5179682 | F23: =INDEX('Universal Credit Table'!$A$40:$A$3013,MATCH(MIN(ABS('Universal Credit Table'!$W$40:$W$3013-$D23)),ABS('Universal Credit Table'!$W$40:$W$3013-$D23),0)) -> 10585 | G23: =INDEX('Universal Credit Table'!$N$40:$N$3013,MATCH(MIN(ABS('Universal Credit Table'!$W$40:$W$3013-$D23)),ABS('Universal Credit Table'!$W$40:$W$3013-$D23),0)) -> 0 | H23: =INDEX('Universal Credit Table'!$M$40:$M$3013,MATCH(MIN(ABS('Universal Credit Table'!$W$40:$W$3013-$D23)),ABS('Universal Credit Table'!$W$40:$W$3013-$D23),0)) -> 2.340493151 | I23: =IF(INDEX('Universal Credit Table'!$S$40:$S$3013,MATCH(MIN(ABS('Universal Credit Table'!$W$40:$W$3013-$D23)),ABS('Universal Credit Table'!$W$40:$W$3013-$D23),0))>0,((INDEX('Universal Credit Table'!$S$40:$S$3013,MATCH(MIN(ABS('Universal Credit Table'!$W$40:$W$3013-$D23)),ABS('Universal Credit Table'!$W$40:$W$3013-$D23),0))))/7*365,0) -> 16335.9742 | J23: =INDEX('Universal Credit Table'!$Y$40:$Y$3013,MATCH(MIN(ABS('Universal Credit Table'!$W$40:$W$3013-'Automated Results - AHC Incomes'!$D23)),ABS('Universal Credit Table'!$W$40:$W$3013-'Automated Results - AHC Incomes'!$D23),0)) -> 0.703
C24: 3 | D24: =Rates!N107 -> 474.6 | E24: =INDEX('Universal Credit Table'!$W$40:$W$3013,MATCH(MIN(ABS('Universal Credit Table'!$W$40:$W$3013-$D24)),ABS('Universal Credit Table'!$W$40:$W$3013-$D24),0)) -> 474.6058613 | F24: =INDEX('Universal Credit Table'!$A$40:$A$3013,MATCH(MIN(ABS('Universal Credit Table'!$W$40:$W$3013-$D24)),ABS('Universal Credit Table'!$W$40:$W$3013-$D24),0)) -> 28574.28571 | G24: =INDEX('Universal Credit Table'!$N$40:$N$3013,MATCH(MIN(ABS('Universal Credit Table'!$W$40:$W$3013-$D24)),ABS('Universal Credit Table'!$W$40:$W$3013-$D24),0)) -> 2950.857143 | H24: =INDEX('Universal Credit Table'!$M$40:$M$3013,MATCH(MIN(ABS('Universal Credit Table'!$W$40:$W$3013-$D24)),ABS('Universal Credit Table'!$W$40:$W$3013-$D24),0)) -> 43.74049315 | I24: =IF(INDEX('Universal Credit Table'!$S$40:$S$3013,MATCH(MIN(ABS('Universal Credit Table'!$W$40:$W$3013-$D24)),ABS('Universal Credit Table'!$W$40:$W$3013-$D24),0))>0,((INDEX('Universal Credit Table'!$S$40:$S$3013,MATCH(MIN(ABS('Universal Credit Table'!$W$40:$W$3013-$D24)),ABS('Universal Credit Table'!$W$40:$W$3013-$D24),0))))/7*365,0) -> 9252.131341 | J24: =INDEX('Universal Credit Table'!$Y$40:$Y$3013,MATCH(MIN(ABS('Universal Credit Table'!$W$40:$W$3013-'Automated Results - AHC Incomes'!$D24)),ABS('Universal Credit Table'!$W$40:$W$3013-'Automated Results - AHC Incomes'!$D24),0)) -> 0.694
C25: 4 | D25: =Rates!N108 -> 569.8 | E25: =INDEX('Universal Credit Table'!$W$40:$W$3013,MATCH(MIN(ABS('Universal Credit Table'!$W$40:$W$3013-$D25)),ABS('Universal Credit Table'!$W$40:$W$3013-$D25),0)) -> 569.7718613 | F25: =INDEX('Universal Credit Table'!$A$40:$A$3013,MATCH(MIN(ABS('Universal Credit Table'!$W$40:$W$3013-$D25)),ABS('Universal Credit Table'!$W$40:$W$3013-$D25),0)) -> 44790.71429 | G25: =INDEX('Universal Credit Table'!$N$40:$N$3013,MATCH(MIN(ABS('Universal Credit Table'!$W$40:$W$3013-$D25)),ABS('Universal Credit Table'!$W$40:$W$3013-$D25),0)) -> 6194.142857 | H25: =INDEX('Universal Credit Table'!$M$40:$M$3013,MATCH(MIN(ABS('Universal Credit Table'!$W$40:$W$3013-$D25)),ABS('Universal Credit Table'!$W$40:$W$3013-$D25),0)) -> 81.06049315 | I25: =IF(INDEX('Universal Credit Table'!$S$40:$S$3013,MATCH(MIN(ABS('Universal Credit Table'!$W$40:$W$3013-$D25)),ABS('Universal Credit Table'!$W$40:$W$3013-$D25),0))>0,((INDEX('Universal Credit Table'!$S$40:$S$3013,MATCH(MIN(ABS('Universal Credit Table'!$W$40:$W$3013-$D25)),ABS('Universal Credit Table'!$W$40:$W$3013-$D25),0))))/7*365,0) -> 3187.187055 | J25: =INDEX('Universal Credit Table'!$Y$40:$Y$3013,MATCH(MIN(ABS('Universal Credit Table'!$W$40:$W$3013-'Automated Results - AHC Incomes'!$D25)),ABS('Universal Credit Table'!$W$40:$W$3013-'Automated Results - AHC Incomes'!$D25),0)) -> 0.694
C26: 5 (median) | D26: =Rates!N109 -> 641.2 | E26: =INDEX('Universal Credit Table'!$W$40:$W$3013,MATCH(MIN(ABS('Universal Credit Table'!$W$40:$W$3013-$D26)),ABS('Universal Credit Table'!$W$40:$W$3013-$D26),0)) -> 641.1114247 | F26: =INDEX('Universal Credit Table'!$A$40:$A$3013,MATCH(MIN(ABS('Universal Credit Table'!$W$40:$W$3013-$D26)),ABS('Universal Credit Table'!$W$40:$W$3013-$D26),0)) -> 59025.71429 | G26: =INDEX('Universal Credit Table'!$N$40:$N$3013,MATCH(MIN(ABS('Universal Credit Table'!$W$40:$W$3013-$D26)),ABS('Universal Credit Table'!$W$40:$W$3013-$D26),0)) -> 11042.28571 | H26: =INDEX('Universal Credit Table'!$M$40:$M$3013,MATCH(MIN(ABS('Universal Credit Table'!$W$40:$W$3013-$D26)),ABS('Universal Credit Table'!$W$40:$W$3013-$D26),0)) -> 97.02871233 | I26: =IF(INDEX('Universal Credit Table'!$S$40:$S$3013,MATCH(MIN(ABS('Universal Credit Table'!$W$40:$W$3013-$D26)),ABS('Universal Credit Table'!$W$40:$W$3013-$D26),0))>0,((INDEX('Universal Credit Table'!$S$40:$S$3013,MATCH(MIN(ABS('Universal Credit Table'!$W$40:$W$3013-$D26)),ABS('Universal Credit Table'!$W$40:$W$3013-$D26),0))))/7*365,0) -> 0 | J26: =INDEX('Universal Credit Table'!$Y$40:$Y$3013,MATCH(MIN(ABS('Universal Credit Table'!$W$40:$W$3013-'Automated Results - AHC Incomes'!$D26)),ABS('Universal Credit Table'!$W$40:$W$3013-'Automated Results - AHC Incomes'!$D26),0)) -> 0.6025
C27: 6 | D27: =Rates!N110 -> 770 | E27: =INDEX('Universal Credit Table'!$W$40:$W$3013,MATCH(MIN(ABS('Universal Credit Table'!$W$40:$W$3013-$D27)),ABS('Universal Credit Table'!$W$40:$W$3013-$D27),0)) -> 769.9414247 | F27: =INDEX('Universal Credit Table'!$A$40:$A$3013,MATCH(MIN(ABS('Universal Credit Table'!$W$40:$W$3013-$D27)),ABS('Universal Credit Table'!$W$40:$W$3013-$D27),0)) -> 70914.28571 | G27: =INDEX('Universal Credit Table'!$N$40:$N$3013,MATCH(MIN(ABS('Universal Credit Table'!$W$40:$W$3013-$D27)),ABS('Universal Credit Table'!$W$40:$W$3013-$D27),0)) -> 15797.71429 | H27: =INDEX('Universal Credit Table'!$M$40:$M$3013,MATCH(MIN(ABS('Universal Credit Table'!$W$40:$W$3013-$D27)),ABS('Universal Credit Table'!$W$40:$W$3013-$D27),0)) -> 101.5887123 | I27: =IF(INDEX('Universal Credit Table'!$S$40:$S$3013,MATCH(MIN(ABS('Universal Credit Table'!$W$40:$W$3013-$D27)),ABS('Universal Credit Table'!$W$40:$W$3013-$D27),0))>0,((INDEX('Universal Credit Table'!$S$40:$S$3013,MATCH(MIN(ABS('Universal Credit Table'!$W$40:$W$3013-$D27)),ABS('Universal Credit Table'!$W$40:$W$3013-$D27),0))))/7*365,0) -> 0 | J27: =INDEX('Universal Credit Table'!$Y$40:$Y$3013,MATCH(MIN(ABS('Universal Credit Table'!$W$40:$W$3013-'Automated Results - AHC Incomes'!$D27)),ABS('Universal Credit Table'!$W$40:$W$3013-'Automated Results - AHC Incomes'!$D27),0)) -> 0.42
C28: 7 | D28: =Rates!N111 -> 886.2 | E28: =INDEX('Universal Credit Table'!$W$40:$W$3013,MATCH(MIN(ABS('Universal Credit Table'!$W$40:$W$3013-$D28)),ABS('Universal Credit Table'!$W$40:$W$3013-$D28),0)) -> 885.9414247 | F28: =INDEX('Universal Credit Table'!$A$40:$A$3013,MATCH(MIN(ABS('Universal Credit Table'!$W$40:$W$3013-$D28)),ABS('Universal Credit Table'!$W$40:$W$3013-$D28),0)) -> 81342.85714 | G28: =INDEX('Universal Credit Table'!$N$40:$N$3013,MATCH(MIN(ABS('Universal Credit Table'!$W$40:$W$3013-$D28)),ABS('Universal Credit Table'!$W$40:$W$3013-$D28),0)) -> 19969.14286 | H28: =INDEX('Universal Credit Table'!$M$40:$M$3013,MATCH(MIN(ABS('Universal Credit Table'!$W$40:$W$3013-$D28)),ABS('Universal Credit Table'!$W$40:$W$3013-$D28),0)) -> 105.5887123 | I28: =IF(INDEX('Universal Credit Table'!$S$40:$S$3013,MATCH(MIN(ABS('Universal Credit Table'!$W$40:$W$3013-$D28)),ABS('Universal Credit Table'!$W$40:$W$3013-$D28),0))>0,((INDEX('Universal Credit Table'!$S$40:$S$3013,MATCH(MIN(ABS('Universal Credit Table'!$W$40:$W$3013-$D28)),ABS('Universal Credit Table'!$W$40:$W$3013-$D28),0))))/7*365,0) -> 0 | J28: =INDEX('Universal Credit Table'!$Y$40:$Y$3013,MATCH(MIN(ABS('Universal Credit Table'!$W$40:$W$3013-'Automated Results - AHC Incomes'!$D28)),ABS('Universal Credit Table'!$W$40:$W$3013-'Automated Results - AHC Incomes'!$D28),0)) -> 0.42
C29: 8 | D29: =Rates!N112 -> 1061.2 | E29: =INDEX('Universal Credit Table'!$W$40:$W$3013,MATCH(MIN(ABS('Universal Credit Table'!$W$40:$W$3013-$D29)),ABS('Universal Credit Table'!$W$40:$W$3013-$D29),0)) -> 1061.101425 | F29: =INDEX('Universal Credit Table'!$A$40:$A$3013,MATCH(MIN(ABS('Universal Credit Table'!$W$40:$W$3013-$D29)),ABS('Universal Credit Table'!$W$40:$W$3013-$D29),0)) -> 97090 | G29: =INDEX('Universal Credit Table'!$N$40:$N$3013,MATCH(MIN(ABS('Universal Credit Table'!$W$40:$W$3013-$D29)),ABS('Universal Credit Table'!$W$40:$W$3013-$D29),0)) -> 26268 | H29: =INDEX('Universal Credit Table'!$M$40:$M$3013,MATCH(MIN(ABS('Universal Credit Table'!$W$40:$W$3013-$D29)),ABS('Universal Credit Table'!$W$40:$W$3013-$D29),0)) -> 111.6287123 | I29: =IF(INDEX('Universal Credit Table'!$S$40:$S$3013,MATCH(MIN(ABS('Universal Credit Table'!$W$40:$W$3013-$D29)),ABS('Universal Credit Table'!$W$40:$W$3013-$D29),0))>0,((INDEX('Universal Credit Table'!$S$40:$S$3013,MATCH(MIN(ABS('Universal Credit Table'!$W$40:$W$3013-$D29)),ABS('Universal Credit Table'!$W$40:$W$3013-$D29),0))))/7*365,0) -> 0 | J29: =INDEX('Universal Credit Table'!$Y$40:$Y$3013,MATCH(MIN(ABS('Universal Credit Table'!$W$40:$W$3013-'Automated Results - AHC Incomes'!$D29)),ABS('Universal Credit Table'!$W$40:$W$3013-'Automated Results - AHC Incomes'!$D29),0)) -> 0.42
C30: 9 | D30: =Rates!N113 -> 1377.6 | E30: =INDEX('Universal Credit Table'!$W$40:$W$3013,MATCH(MIN(ABS('Universal Credit Table'!$W$40:$W$3013-$D30)),ABS('Universal Credit Table'!$W$40:$W$3013-$D30),0)) -> 1377.707726 | F30: =INDEX('Universal Credit Table'!$A$40:$A$3013,MATCH(MIN(ABS('Universal Credit Table'!$W$40:$W$3013-$D30)),ABS('Universal Credit Table'!$W$40:$W$3013-$D30),0)) -> 129887.8571 | G30: =INDEX('Universal Credit Table'!$N$40:$N$3013,MATCH(MIN(ABS('Universal Credit Table'!$W$40:$W$3013-$D30)),ABS('Universal Credit Table'!$W$40:$W$3013-$D30),0)) -> 41901.14286 | H30: =INDEX('Universal Credit Table'!$M$40:$M$3013,MATCH(MIN(ABS('Universal Credit Table'!$W$40:$W$3013-$D30)),ABS('Universal Credit Table'!$W$40:$W$3013-$D30),0)) -> 124.2087123 | I30: =IF(INDEX('Universal Credit Table'!$S$40:$S$3013,MATCH(MIN(ABS('Universal Credit Table'!$W$40:$W$3013-$D30)),ABS('Universal Credit Table'!$W$40:$W$3013-$D30),0))>0,((INDEX('Universal Credit Table'!$S$40:$S$3013,MATCH(MIN(ABS('Universal Credit Table'!$W$40:$W$3013-$D30)),ABS('Universal Credit Table'!$W$40:$W$3013-$D30),0))))/7*365,0) -> 0 | J30: =INDEX('Universal Credit Table'!$Y$40:$Y$3013,MATCH(MIN(ABS('Universal Credit Table'!$W$40:$W$3013-'Automated Results - AHC Incomes'!$D30)),ABS('Universal Credit Table'!$W$40:$W$3013-'Automated Results - AHC Incomes'!$D30),0)) -> 0.42
C32: 60% median | D32: =D26*0.6 -> 384.72 | E32: =INDEX('Universal Credit Table'!$W$40:$W$3013,MATCH(MIN(ABS('Universal Credit Table'!$W$40:$W$3013-$D32)),ABS('Universal Credit Table'!$W$40:$W$3013-$D32),0)) -> 384.8639682 | F32: =INDEX('Universal Credit Table'!$A$40:$A$3013,MATCH(MIN(ABS('Universal Credit Table'!$W$40:$W$3013-$D32)),ABS('Universal Credit Table'!$W$40:$W$3013-$D32),0)) -> 11523.57143 | G32: =INDEX('Universal Credit Table'!$N$40:$N$3013,MATCH(MIN(ABS('Universal Credit Table'!$W$40:$W$3013-$D32)),ABS('Universal Credit Table'!$W$40:$W$3013-$D32),0)) -> 0 | H32: =INDEX('Universal Credit Table'!$M$40:$M$3013,MATCH(MIN(ABS('Universal Credit Table'!$W$40:$W$3013-$D32)),ABS('Universal Credit Table'!$W$40:$W$3013-$D32),0)) -> 4.500493151 | I32: =IF(INDEX('Universal Credit Table'!$S$40:$S$3013,MATCH(MIN(ABS('Universal Credit Table'!$W$40:$W$3013-$D32)),ABS('Universal Credit Table'!$W$40:$W$3013-$D32),0))>0,((INDEX('Universal Credit Table'!$S$40:$S$3013,MATCH(MIN(ABS('Universal Credit Table'!$W$40:$W$3013-$D32)),ABS('Universal Credit Table'!$W$40:$W$3013-$D32),0))))/7*365,0) -> 15881.70563 | J32: =INDEX('Universal Credit Table'!$Y$40:$Y$3013,MATCH(MIN(ABS('Universal Credit Table'!$W$40:$W$3013-'Automated Results - AHC Incomes'!$D32)),ABS('Universal Credit Table'!$W$40:$W$3013-'Automated Results - AHC Incomes'!$D32),0)) -> 0.703
C33: 70% median | D33: =D26*0.7 -> 448.84 | E33: =INDEX('Universal Credit Table'!$W$40:$W$3013,MATCH(MIN(ABS('Universal Credit Table'!$W$40:$W$3013-$D33)),ABS('Universal Credit Table'!$W$40:$W$3013-$D33),0)) -> 448.9018613 | F33: =INDEX('Universal Credit Table'!$A$40:$A$3013,MATCH(MIN(ABS('Universal Credit Table'!$W$40:$W$3013-$D33)),ABS('Universal Credit Table'!$W$40:$W$3013-$D33),0)) -> 24194.28571 | G33: =INDEX('Universal Credit Table'!$N$40:$N$3013,MATCH(MIN(ABS('Universal Credit Table'!$W$40:$W$3013-$D33)),ABS('Universal Credit Table'!$W$40:$W$3013-$D33),0)) -> 2074.857143 | H33: =INDEX('Universal Credit Table'!$M$40:$M$3013,MATCH(MIN(ABS('Universal Credit Table'!$W$40:$W$3013-$D33)),ABS('Universal Credit Table'!$W$40:$W$3013-$D33),0)) -> 33.66049315 | I33: =IF(INDEX('Universal Credit Table'!$S$40:$S$3013,MATCH(MIN(ABS('Universal Credit Table'!$W$40:$W$3013-$D33)),ABS('Universal Credit Table'!$W$40:$W$3013-$D33),0))>0,((INDEX('Universal Credit Table'!$S$40:$S$3013,MATCH(MIN(ABS('Universal Credit Table'!$W$40:$W$3013-$D33)),ABS('Universal Credit Table'!$W$40:$W$3013-$D33),0))))/7*365,0) -> 10890.25134 | J33: =INDEX('Universal Credit Table'!$Y$40:$Y$3013,MATCH(MIN(ABS('Universal Credit Table'!$W$40:$W$3013-'Automated Results - AHC Incomes'!$D33)),ABS('Universal Credit Table'!$W$40:$W$3013-'Automated Results - AHC Incomes'!$D33),0)) -> 0.694
B35: Income Analysis
C37: Annual | D37: Weekly | E37: Annual | F37: After | G37: AHC | H37: Annual | I37: Annual | J37: Marginal
C38: income | D38: income | E38: income tax | F38: housing costs | G38: income decile | H38: national insurance | I38: universal credit | J38: deduction rate
C39: 30000 | D39: =C39/365*7 -> 575.3424658 | E39: =INDEX('Universal Credit Table'!$N$40:$N$3013,MATCH(MIN(ABS('Universal Credit Table'!$O$40:$O$3013-$D39)),ABS('Universal Credit Table'!$O$40:$O$3013-$D39),0)) -> 3232.428571 | F39: =INDEX('Universal Credit Table'!$W$40:$W$3013,MATCH(MIN(ABS('Universal Credit Table'!$O$40:$O$3013-$D39)),ABS('Universal Credit Table'!$O$40:$O$3013-$D39),0)) -> 482.8678613 | G39: =INDEX('Universal Credit Table'!$X$40:$X$3013,MATCH(MIN(ABS('Universal Credit Table'!$O$40:$O$3013-$D39)),ABS('Universal Credit Table'!$O$40:$O$3013-$D39),0)) -> 4th | H39: =INDEX('Universal Credit Table'!$M$40:$M$3013,MATCH(MIN(ABS('Universal Credit Table'!$O$40:$O$3013-$D39)),ABS('Universal Credit Table'!$O$40:$O$3013-$D39),0)) -> 46.98049315 | I39: =IF(INDEX('Universal Credit Table'!$S$40:$S$3013,MATCH(MIN(ABS('Universal Credit Table'!$O$40:$O$3013-$D39)),ABS('Universal Credit Table'!$O$40:$O$3013-$D39),0))>0,INDEX('Universal Credit Table'!$S$40:$S$3013,MATCH(MIN(ABS('Universal Credit Table'!$O$40:$O$3013-$D39)),ABS('Universal Credit Table'!$O$40:$O$3013-$D39),0)),0) -> 167.3401353 | J39: =INDEX('Universal Credit Table'!$Y$40:$Y$3013,MATCH(MIN(ABS('Universal Credit Table'!$O$40:$O$3013-'Automated Results - AHC Incomes'!$D39)),ABS('Universal Credit Table'!$O$40:$O$3013-'Automated Results - AHC Incomes'!$D39),0)) -> 0.694
C40: 40000 | D40: =C40/365*7 -> 767.1232877 | E40: =INDEX('Universal Credit Table'!$N$40:$N$3013,MATCH(MIN(ABS('Universal Credit Table'!$O$40:$O$3013-$D40)),ABS('Universal Credit Table'!$O$40:$O$3013-$D40),0)) -> 5234.714286 | F40: =INDEX('Universal Credit Table'!$W$40:$W$3013,MATCH(MIN(ABS('Universal Credit Table'!$O$40:$O$3013-$D40)),ABS('Universal Credit Table'!$O$40:$O$3013-$D40),0)) -> 541.6198613 | G40: =INDEX('Universal Credit Table'!$X$40:$X$3013,MATCH(MIN(ABS('Universal Credit Table'!$O$40:$O$3013-$D40)),ABS('Universal Credit Table'!$O$40:$O$3013-$D40),0)) -> 4th | H40: =INDEX('Universal Credit Table'!$M$40:$M$3013,MATCH(MIN(ABS('Universal Credit Table'!$O$40:$O$3013-$D40)),ABS('Universal Credit Table'!$O$40:$O$3013-$D40),0)) -> 70.02049315 | I40: =IF(INDEX('Universal Credit Table'!$S$40:$S$3013,MATCH(MIN(ABS('Universal Credit Table'!$O$40:$O$3013-$D40)),ABS('Universal Credit Table'!$O$40:$O$3013-$D40),0))>0,INDEX('Universal Credit Table'!$S$40:$S$3013,MATCH(MIN(ABS('Universal Credit Table'!$O$40:$O$3013-$D40)),ABS('Universal Credit Table'!$O$40:$O$3013-$D40),0)),0) -> 95.5321353 | J40: =INDEX('Universal Credit Table'!$Y$40:$Y$3013,MATCH(MIN(ABS('Universal Credit Table'!$O$40:$O$3013-'Automated Results - AHC Incomes'!$D40)),ABS('Universal Credit Table'!$O$40:$O$3013-'Automated Results - AHC Incomes'!$D40),0)) -> 0.694
C41: 50000 | D41: =C41/365*7 -> 958.9041096 | E41: =INDEX('Universal Credit Table'!$N$40:$N$3013,MATCH(MIN(ABS('Universal Credit Table'!$O$40:$O$3013-$D41)),ABS('Universal Credit Table'!$O$40:$O$3013-$D41),0)) -> 7487 | F41: =INDEX('Universal Credit Table'!$W$40:$W$3013,MATCH(MIN(ABS('Universal Credit Table'!$O$40:$O$3013-$D41)),ABS('Universal Credit Table'!$O$40:$O$3013-$D41),0)) -> 598.1968271 | G41: =INDEX('Universal Credit Table'!$X$40:$X$3013,MATCH(MIN(ABS('Universal Credit Table'!$O$40:$O$3013-$D41)),ABS('Universal Credit Table'!$O$40:$O$3013-$D41),0)) -> 5th | H41: =INDEX('Universal Credit Table'!$M$40:$M$3013,MATCH(MIN(ABS('Universal Credit Table'!$O$40:$O$3013-$D41)),ABS('Universal Credit Table'!$O$40:$O$3013-$D41),0)) -> 93.06049315 | I41: =IF(INDEX('Universal Credit Table'!$S$40:$S$3013,MATCH(MIN(ABS('Universal Credit Table'!$O$40:$O$3013-$D41)),ABS('Universal Credit Table'!$O$40:$O$3013-$D41),0))>0,INDEX('Universal Credit Table'!$S$40:$S$3013,MATCH(MIN(ABS('Universal Credit Table'!$O$40:$O$3013-$D41)),ABS('Universal Credit Table'!$O$40:$O$3013-$D41),0)),0) -> 26.3611216 | J41: =INDEX('Universal Credit Table'!$Y$40:$Y$3013,MATCH(MIN(ABS('Universal Credit Table'!$O$40:$O$3013-'Automated Results - AHC Incomes'!$D41)),ABS('Universal Credit Table'!$O$40:$O$3013-'Automated Results - AHC Incomes'!$D41),0)) -> 0.8765
B42: For calculation at a specific value of annual income, enter desired amount into the blue cell.
C43: 40000 | D43: =C43/365*7 -> 767.1232877 | E43: =INDEX('Universal Credit Table'!$N$40:$N$3013,MATCH(MIN(ABS('Universal Credit Table'!$O$40:$O$3013-$D43)),ABS('Universal Credit Table'!$O$40:$O$3013-$D43),0)) -> 5234.714286 | F43: =INDEX('Universal Credit Table'!$W$40:$W$3013,MATCH(MIN(ABS('Universal Credit Table'!$O$40:$O$3013-$D43)),ABS('Universal Credit Table'!$O$40:$O$3013-$D43),0)) -> 541.6198613 | G43: =INDEX('Universal Credit Table'!$X$40:$X$3013,MATCH(MIN(ABS('Universal Credit Table'!$O$40:$O$3013-$D43)),ABS('Universal Credit Table'!$O$40:$O$3013-$D43),0)) -> 4th | H43: =INDEX('Universal Credit Table'!$M$40:$M$3013,MATCH(MIN(ABS('Universal Credit Table'!$O$40:$O$3013-$D43)),ABS('Universal Credit Table'!$O$40:$O$3013-$D43),0)) -> 70.02049315 | I43: =IF(INDEX('Universal Credit Table'!$S$40:$S$3013,MATCH(MIN(ABS('Universal Credit Table'!$O$40:$O$3013-$D43)),ABS('Universal Credit Table'!$O$40:$O$3013-$D43),0))>0,INDEX('Universal Credit Table'!$S$40:$S$3013,MATCH(MIN(ABS('Universal Credit Table'!$O$40:$O$3013-$D43)),ABS('Universal Credit Table'!$O$40:$O$3013-$D43),0)),0) -> 95.5321353 | J43: =INDEX('Universal Credit Table'!$Y$40:$Y$3013,MATCH(MIN(ABS('Universal Credit Table'!$O$40:$O$3013-'Automated Results - AHC Incomes'!$D43)),ABS('Universal Credit Table'!$O$40:$O$3013-'Automated Results - AHC Incomes'!$D43),0)) -> 0.694

Sheet Concepts and Definitions
E2: Concepts and Definitions
B4: This worksheet presents all of the various components of the Tax Benefit Model. A brief description of each component is given as well as links to official government web pages describing the latest rules, rates, and regulations in detail. All of the corresponding rates as of April 2021, which feed into the model, are presented in the "Rates" worksheet. All components described here interact with each other and are featured in the "Universal Credit Table" and "Legacy System Table". Note that the components below are subject to assumptions and simplifications and do not necessarily reflect the complete picture.
B9: Personal Allowance
B10: The Personal Allowance is the amount of income each individual is entitled to receive free of tax each year. The personal allowance in the rates table includes the £20 per week boost given to those claiming universal credit over the COVID-19 pandemic.
B13: "Out of Work"
B14: This refers to a scenario whereby the family head is unemployed and entirely reliant upon benefits. In this situation it assumed that the claimant receives Jobseekers Allowance (Income-based) or Income Support. When the claimant has children it is assumed that the claimant receives support for the children through Child Tax Credits rather than the child elements of Income Support. The claimant will receive their maximum housing benefit and council tax benefit entitlements. When there are children in the family the claimant also receives child benefit, healthy start vouchers, and free school meals.
B19: Rates: | C19: "Rates" - Income Support/Jobseekers Allowance
C20: "Rates" - Healthy Start Vouchers/Free School Meals
B22: Gross Earnings
B23: This refers to the gross income per week received through working (16 hours per week or 30 hours per week) before withdrawals for tax and National Insurance. The National Minimum Wage defines the lower limit for gross earnings.
B26: Tax
B27: Everyone under the age of 65 receives a Personal Allowance of £12,570 per annum. Gross earnings up to the personal allowance are not taxed. Gross earnings in excess of the personal allowance are taxable income. Once taxable income exceeds the personal allowance income tax is paid at a rate of 20% on the first £37,700 of taxable earnings. Taxable income between £37,701 and £150,000 is taxed at a rate of 40% and taxable income in excess of £150,000 is taxed at a rate of 50%. When gross earnings exceed £100,000 the personal allowance is decreased by £1 for every £2 extra earned.
B32: Link: | C32: HM Revenue & Customs: Income Tax - the basics
B33: Rates: | C33: "Rates" - Tax
B35: National Insurance Contributions
B36: Employees pay National Insurance Contributions when gross earnings exceed the Primary Threshold of £183.50 per week. When gross earnings exceed the Primary Threshold the employee pays contributions at a rate of 12%. This applies up to the Upper Earnings Limit of £964.08 per week. Once gross earnings exceed the Upper Earnings Limit contributions are paid at a rate of 2%.
B40: Link: | C40: HM Revenue & Customs: National Insurance - the basics
B41: Rates: | C41: "Rates" - National Insurance Contributions
B43: Marriage Allowance
B44: Maried couples and civil partners can transfer £1,250 of their Personal Allowance to their partner if they earn below the Personal Allowance.The recipien must pay Income Tax at the basic rate. If the head earner earns more than £50,000 per year, Marriage Allowance cannot be claimed. Couples who living together but not married or in a civil partnership cannot claim Marriage Allowance.
B48: High Income Child Benefit Charge
B49: The High Income Child Benefit Charge (HICBC) was introduced in January 2013, it is a tax charge that applies to anyone with an income over £50,000 who claims Child Benefit, or whose partner claims it. The charge is equal to one per cent of a family’s Child Benefit for every extra £100 of income that is over £50,000 each year. If an individual’s income is over £60,000, the charge will equal the total amount of the Child Benefit.
B53: Take Home Pay
B54: Take home pay is defined as gross earnings minus income tax and National Insurance Contributions.
B56: Working Tax Credit (WTC)
B57: Working tax credit is for people who work for 16 hours or more each week. There are two types of entitlement: when the claimant is aged 16 or over and is responsible for at least one child; and when the claimant is aged 25 or over and works at least 30 hours per week.
B60: Eligible claimants have a maximum working tax credit entitlement calculated by a basic family element; plus an additional couple's and lone parent element (if appropriate); plus a 30 hour element for those who work 30 hours or more per week; plus 80% of eligible childcare costs (up to 80% of maximum levels). If gross income is less than the first WTC income threshold of £6,420 per annum then maximum working tax credit is payable. If gross income is more than the first income threshold, 39p of every excess £1 of gross income is deducted from the maximum working tax credit. When gross income exceeds the second income threshold of £50,000 per annum, the maximum working tax credit is further tapered at a rate of 1 in every 15 pounds.
B66: Link: | C66: HM Revenue & Customs: Tax credits
B67: Rates: | C67: "Rates" - Working Tax Credit
B69: Child Tax Credit (CTC)
B70: Child Tax Credit is designed to help families with at least one child. It is made up of two main elements, the family element and the child element. Any family responsible for a child is eligible for the family element. They are also eligible for the family element at a higher rate if they have at least one child under the age of one. This is known as the baby element. You are eligible for one child element for each child you are responsible for. The family element is worth £545 per annum; the child element is worth £2,300 per annum for each child; and the baby addition is worth £545 per annum.
B75: If Child Tax Credit is claimed without Working Tax Credit then Child Tax Credit is reduced by 39p for every £1 of gross income in excess of the first income threshold of £16,190pa (£310.49pw). However, if both Working Tax Credit and Child Tax Credit are being claimed, then Child Tax Credit is first reduced at the rate of 39p for every £1 of gross income in excess of the Zero Working Tax Credit point. Whilst earnings are below £50,000pa, Child Tax Credit will only be reduced to the family element amount of the Child Tax Credit. Child Tax Credit is reduced by 1 in every 15 pounds of gross income in excess of the second income threshold, of £50,000pa (£958.90pw).
B81: Link: | C81: HM Revenue & Customs: Tax credits
B82: Rates: | C82: "Rates" - Child Tax Credit
B84: Housing Benefit (HB)
B85: Housing Benefit (HB) is a scheme operated by local authorities to provide help with rent. It can be claimed by tenants of local authorities, registered social landlords or private landlords. Couples are treated as a single benefit unit.
B88: The amount of HB depends on eligible rent, net income and the applicable amount. Net income is take-home pay plus most other forms of income. Earnings are disregarded in part. Some benefits are disregarded in full or in part. Working Tax Credit and Child Tax Credit are not disregarded but are treated as part of the claimant's net income. At net incomes up to the HB applicable amount, claimants normally receive 100% of their eligible rent. Once income exceeds this level, the amount of benefit is reduced by 65p for each additional £1 of net income. The applicable amount consists of a personal allowance, child allowance, and premiums depending upon the size of the family.
B94: Links: | C94: DWP: Guide to Housing Benefit and Council Tax Benefit
B95: Rates: | C95: "Rates" - Housing Benefit and Council Tax Benefit
B97: Council Tax Benefit (CTB)
B98: Council Tax Benefit is a rebate scheme operated by local authorities to provide help with Council Tax and is based closely on the rules for Housing Benefit. For claimants who have net income above the HB applicable amount, CTB is reduced by 15p for each additional £1.00 of net income. Claimants can receive 75% Council Tax charge and will have to pay the remaining 25%.
B102: Link: | C102: DWP: Guide to Housing Benefit and Council Tax Benefit
B103: Rates: | C103: "Rates" - Housing Benefit and Council Tax Benefit
B105: Child Benefit
B106: Child Benefit is a non-taxable benefit paid for children up to the age of 16, or up to 19 for those continuing in full-time non-advanced education. It can also be paid for up to 12 weeks for 16 and 17 year olds who have just left school and who are registered for work or on Youth Training Schemes. There is a higher rate of benefit for the first child for both couples and lone parents. Couples receive £20.00pw for the first child. The rate for each subsequent child is £13.20pw.
B109: You may have to pay a tax charge, known as the ‘High Income Child Benefit Charge’, if you have an individual income over £50,000. In this case you will be required to pay back 1% (one per cent) of your family’s Child Benefit for every extra £100 you earn over £50,000 each year.
B112: Link: | C112: HM Revenue & Customs: What is Child Benefit?
B113: Rates: | C113: "Rates" - Child Benefit
B115: Universal Credit
B116: Universal Credit has replaced the following benefits: Child Tax Credit, Housing Benefit, Income Support, income-based Jobseeker’s Allowance (JSA),income-related Employment and Support Allowance (ESA) and Working Tax Credit. Most people can no longer make brand new claims for tax credits and other benefits that UC replaces, however there are some exceptions to this. Existing tax credit claimants are currently unaffected by the roll-out of UC unless they choose to make a UC claim, have a change of circumstances that ends their tax credit claim, or they need to make a new claim for another benefit that UC has replaced (such as housing benefit).
B122: Universal Credit Entitlement
B123: Universal Credit Entitlement is the sum of the elements of Universal credit. It's value is dependent on the characteristics of the family.
B125: Universal Credit Actual
B126: Universal Credit Actual is Universal Credit Entitlement adjusted for the income of the family.
B127: For every £1 earnt by the family, 63p of Universal Credit Entitlement is lost.
B129: Income Before Housing Costs
B130: Net income before housing costs is defined as take home pay; plus any working tax credits; plus any child tax credits; plus any housing benefit; plus any council tax benefit; plus any child benefit in receipt each week.
B133: Income After Housing Costs
B134: Net income after housing costs is defined as net income before housing costs minus eligible rent, council tax bills, and childcare costs.
B136: Marginal Deduction Rate
B137: The relationship between net income after housing (and child care) costs and changes in gross income are represented by the Marginal Deduction Rates (MDRs). The MDR is the percentage of each additional £1 of gross earnings which is lost because of increased tax and National Insurance Contributions, and changes in entitlement to income-related benefits and tax credits.
B141: Additional Contribution of Second Earner
B142: The relationship between the after housing costs for families with one eaner compared to those with two, of the same characteristics. The Additional Contribution of Second Earner shows the financial gain of having a second earner in the household, displayed as a percentage.
B144: Unemployment Ratio
B145: Unemployment Ratio's are the net income after housing costs if out of work and reliant upon benefits, as a percentage of net income after housing costs when the family receives a household income. A replacement ratio of less than 100 per cent indicates that the family has a higher net income employed than if unemployed and in receipt of benefits.

Sheet Rates
L2: Revised: | M2: =NOW() -> 2022-02-15T12:43:33.150 | Q2: Rates | R2: 2021/22
B4: This worksheet contains all of the data used in the "Universal Credit Table" and "Legacy System Table" worksheets. These are the rates which represent the conditions which hypothetical family types would be subject to. "Rates" is a generic term used to describe a collection of things: there are amounts of benefit; there are income thresholds; there are taper rates; and there are amounts to be disregarded in calculations. All are sufficient to illustrate the weekly financial circumstances of different hypothetical family types, subject to the assumptions and simplifications of the model.
B8: Tax and National Insurance
B9: All amounts are per week unless otherwise specified: | L9: Annual: | N9: Weekly:
B10: National Minimum Wage (NMW) | N10: 8.91
B11: Tax | P11: HM Revenue & Customs: Rates and Allowances - Income Tax
B13: PERSONAL ALLOWANCE | L13: 12570 | N13: =L13/365*7 -> 241.0684932 | P13: This is the amount of income one can receive without paying any income tax.
B14: MARRIAGE ALLOWANCE | L14: 1250 | N14: =L14/365*7 -> 23.97260274 | P14: This amount is transfered to the personal allowance of the head earner when the second earner is receiving an income below their personal allowance. This can lower the combined value of tax paid by the couple.
B16: Personal Allowance withdrawal point | L16: 100000 | N16: =(L16*7/365) -> 1917.808219 | P16: The weekly amount the family head earns before the personal allowance is tapered.
B17: Marriage Allowance loss point | L17: 50000 | N17: =(L17*7/365) -> 958.9041096
B19: 20% basic rate threshold | L19: 12570 | N19: =L19/365*7 -> 241.0684932 | P19: No tax is paid on the first £124.18 of earnings, basic rate is paid on the next £717.29 of earnings, higher rate is paid on the next £2,159.50 of earnings, and the additional rate is paid on any earnings beyond this.
B20: 40% higher rate income threshold | L20: 50270 | N20: =L20/365*7 -> 964.0821918
B21: 45% additional rate threshold | L21: 150000 | N21: =L21/365*7 -> 2876.712329
B22: Maximum income taxed at 20% rate (when personal allowance is applied) | L22: 37700 | N22: =L22/365*7 -> 723.0136986
B23: Maximum income taxed at 40% rate | L23: =L21-L20 -> 99730 | N23: =L23*7/365 -> 1912.630137
B24: Basic Tax Rate | N24: 0.2
B25: Higher Tax Rate | N25: 0.4
B26: Additional Tax Rate | N26: 0.45
B27: Personal Allowance Withdrawal Rate | N27: 0.5
B28: 16 hrs NMW | L28: =(N28/7)*365 -> 7433.485714 | N28: =N10*16 -> 142.56
B29: 30 hrs NMW | L29: =(N29/7)*365 -> 13937.78571 | N29: =N10*30 -> 267.3
AD30: .
B31: National Insurance Contributions | P31: HM Revenue & Customs: Rates and Allowances - National Insurance Contributions
B32: Primary Threshold | L32: 9568 | N32: =L32*7/365 -> 183.4958904 | P32: The weekly amount beyond which National Insurance Contributions become payable.
B33: Upper Earnings Limit | L33: 50270 | N33: =L33*7/365 -> 964.0821918 | P33: The weekly amount beyond which a lower rate becomes payable.
B34: Class 1 Rate between PT and UEL | N34: 0.12
B35: Class 1 Rate above UEL | N35: 0.02
B37: Universal Credit | Q37: Tax credit and "Legacy" Benefits
B39: Standard Allowance | J39: Monthly: | K39: Weekly: | Q39: Working Tax Credit | W39: HM Revenue & Customs: Rates and Allowances - Tax Credits/Child Benefit
B41: COVID-19 UC boost | E41: Please select if required: | H41: NO | J41: =K41/12*52 -> 0 | K41: =IF(H41="YES",20,0) -> 0 | Q41: Basic element | U41: =3040/365*7 -> 58.30136986 | W41: This is the basic entitled amount of WTC for a family
B42: Single claimant under 25 | J42: =757.33+J41 -> 757.33 | K42: =J42/52*12 -> 174.7684615 | M42: Standard allowance takes into account the £20 per week additional payment to households claiming Universal Credit. | Q42: Additional Couples/Lone Parent element | U42: =2045/365*7 -> 39.21917808 | W42: Couples and lone parents receive an enhanced entitlement
B43: Single claimant 25 and over | J43: =824.84+J41 -> 824.84 | K43: =J43/52*12 -> 190.3476923 | Q43: 30 hour element | U43: =825/365*7 -> 15.82191781 | W43: This is an additional entitlement if you work 30 hours or more
Q44: Childcare (one child) | U44: 175 | W44: A family with children is entitled to 80% of their childcare costs. This depends upon the number of children in the family.
B45: Joint claimants, both under 25 | J45: =903.93+J41 -> 903.93 | K45: 208.5992308 | M45: Subtract £86.67 from monthly figure for Standard Allowance excluding boost. | Q45: Childcare (two or more children) | U45: 300
B46: Joint claimants, either/both 25 and over | J46: =1009.91+J41 -> 1009.91 | K46: 233.0561538 | Q46: Childcare (per cent covered) | U46: 0.7
Q47: First income threshold | U47: 125.23 | W47: Earnings in excess of this begin the tapering of WTC
B48: Child Element | Q48: First taper | U48: 0.41
B49: First child (born prior to 6 April 2017) | J49: 282.5 | K49: 65.19230769
B50: First child (born on or after 6 April 2017) or second child and subsequent child | J50: 237.08 | K50: 54.71076923 | Q50: Minimum payment | U50: =(7*26/365) -> 0.498630137 | W50: This is the minimum amount of WTC which can be paid
Q52: Child Tax Credit | W52: HM Revenue & Customs: Rates and Allowances - Tax Credits/Child Benefit
B53: Additional amount for disabled child or qualifying young person | Q53: Family element | U53: 10.45 | W53: This is the basic entitled amount of CTC for a family
B54: Lower rate | J54: 128.89 | K54: 29.74384615
B55: Higher rate | J55: 402.41 | K55: 92.86384615 | Q55: Child element | U55: 53.32 | W55: This is entitlement paid for each child in the family
Q56: First income threshold (CTC only) | U56: 314.23 | W56: Earnings in excess of this begin to be tapered if CTC is claimed without WTC
B57: Limited capability for work | J57: 128.89 | K57: =J57/52*12 -> 29.74384615 | M57: Only for claims started before April 2017 | Q57: First taper | U57: 0.41
Q59: Housing Benefit and Council Tax Benefit | W59: Housing Benefit and Council Tax Benefit Rates
B60: Limited capability for work & work related activity | J60: 343.63 | K60: 79.29923077 | Q60: Adult personal allowance | U60: 74.7
Q61: Lone parent personal allowance | U61: 74.7 | W61: One of these contributes to the applicable amount depending upon the family type
B62: Carer element | J62: 163.73 | K62: =J62/52*12 -> 37.78384615 | Q62: Couples personal allowance | U62: 117.4
Q63: Dependent children | U63: 68.6 | W63: This is the contribution to the applicable amount of each dependent child in the family
B64: Childcare costs element | Q64: Family premium | U64: 17.65 | W64: This contributes to the applicable amount if there are dependent children in the family,
B65: Maximum amount of childcare costs for one child | J65: 646.35 | K65: =J65/52*12 -> 149.1576923 | M65: UC pays up to 85% or maximum whichever is lower | Q65: Baby premium | U65: 0 | W65: but is only counted once per family
B66: Maximum amount for 2 or more children | J66: 1108.04 | K66: =J66/52*12 -> 255.7015385 | Q66: Family premium lone parent rate | U66: 22.2 | W66: nb tables do not pick up this rate automatically
Q67: Single person earnings disregard | U67: 5 | W67: One of these is disregarded from the families income in assessment of housing benefit entitlement
B68: Capital limits | Q68: Couples earnings disregard | U68: 10
B69: Amount disregarded | J69: 6000 | K69: =J69/52*12 -> 1384.615385 | Q69: Lone parent earnings disregard | U69: 25
B70: Upper limit | J70: 16000 | K70: =J70/52*12 -> 3692.307692 | Q70: Additional disregard | U70: 17.1 | W70: This amount is disregarded from income if you work 16 hours or more per week
B71: Assumed income from capital | J71: 4.35 | K71: per £250 of income | M71: between the amount disregarded and upper limit | Q71: HB Taper | U71: 0.65 | W71: Net income above the applicable amount is tapered at this rate for Housing Benefit
B73: Higher work allowance (where the UC award does not contain any housing costs element) | Q73: CTB Taper | U73: 0.15 | W73: Net income above the applicable amount is tapered at this rate for Council Tax Benefit
Q74: Childcare (one child) | U74: 175 | W74: A family with children can have childcare costs disregarded from income in assessment of housing benefit entitlement.
B75: No responsibility for a child or qualifying young person | J75: 0 | K75: =J75/52*12 -> 0 | Q75: Childcare (two or more children) | U75: 300
B76: Responsible for one or more children or qualifying young people | J76: 557 | K76: =J76/52*12 -> 128.5384615 | Q76: HB minimum payment | U76: 0.5 | W76: This is the minimum amount of HB which can be paid
B77: Limited capability for work | J77: 557 | K77: =J77/52*12 -> 128.5384615 | Q77: CTB minimum payment | U77: 0.01 | W77: This is the minimum amount of CTB which can be paid
Q79: Child Benefit | W79: HM Revenue & Customs: Rates and Allowances - Tax Credits/Child Benefit
B80: Lower work allowance (where the UC award does contain housing costs element) | Q80: Only or eldest child | U80: 21.05 | W80: This is the amount received for the first child in the family
Q81: Any other children | U81: 13.95 | W81: This is the amount received for any additional children in the family
B82: No responsibility for a child or qualifying young person | J82: 0 | K82: =J82/52*12 -> 0 | Q82: Child benefit withdrawal threshold | U82: =50000/365*7 -> 958.9041096 | W82: Past the CB withdrawal threshold (£50,000 per annum) you will be required to pay 1% for every £100 above the threshold. Families loose child benefit completely when one earner in the household earns above £60,000.
B83: Responsible for one or more children or qualifying young people | J83: 336 | K83: =J83/52*12 -> 77.53846154
B84: Limited capability for work | J84: 336 | K84: =J84/52*12 -> 77.53846154 | Q84: "Out of Work" | S84: Employment allowance | W84: Income Support/Jobseekers Allowance Rates
Q85: Income Support/Jobseekers Allowance:
Q86: Adult personal allowance | U86: 74.7
B87: Universal Credit Taper | J87: 0.55 | M87: For every £1 earnt above the applicable ammount, 63p is lost from UC. | Q87: Lone parent personal allowance | U87: 74.7
Q88: Couples personal allowance | U88: 117.4
B89: Applicable Amount
B90: Single person | K90: 74.35 | M90: Aged between 25 and state pension credit age | Q90: Healthy Start vouchers (pregnant) | U90: 3.1
B91: Lone parent | K91: 74.35 | M91: Aged between 18 and state pension credit age | Q91: Healthy Start vouchers (aged 1-5) | U91: 3.1 | W91: This is the value of a healthy start voucher for a child aged 1-5
B92: Couple | K92: 116.8 | M92: One or both aged between 18 and state pension credit age | Q92: Healthy Start vouchers (under 1) | U92: 6.2 | W92: This is the value of a healthy start voucher for a child aged under 1
Q93: Free school meals | U93: =5.52*105.2/100 -> 5.80704 | W93: This is the value of free school meals for a child aged over 5
B94: Family premium | K94: 17.6 | M94: Families with dependent children if claimed before 01.05.2016 | Q94: Free school meals (primary) | U94: 2.3
B95: Family premium (lone parent) | K95: 22.2 | M95: Lone parents who claimed before 05.04.98 | Q95: Free school meals (secondary) | U95: 2.35
Q96: Free school meals cut of point | U96: =7400/365*7 -> 141.9178082 | W96: This is the combined weekly net income a family can earn whilst still receiving free school meals.
Q98: Rent and Council Tax Bills
Q99: Links in the "Model Setup" worksheet provide resources to the relevent regional averages for rent and council tax bills. By inserting specific values, the model can more accuratly calculate the values of housing benefits and council tax benefit, for the area of interest.
B101: Equivalised Household Income Deciles
B103: Before Housing Costs | J103: After Housing Costs
B104: Decile | D104: Base Decile Bounds | F104: Equivalised Decile Bounds | J104: Decile | L104: Base Decile Bounds | N104: Equivalised Decile Bounds | Q104: Decile shows the position in the income distribution.
B105: 1 | D105: 264 | F105: =IF('Model Setup'!$F$30="Single",(Rates!$D105*(0.58+'Model Setup'!$F$35*0.2)),Rates!$D105*(1+'Model Setup'!$F$35*0.2)) -> 369.6 | J105: 1 | L105: 191 | N105: =IF('Model Setup'!$F$30="Single",(Rates!$L105*(0.58+'Model Setup'!$F$35*0.2)),Rates!$L105*(1+'Model Setup'!$F$35*0.2)) -> 267.4 | Q105: Base Decile Bounds shows the decile breakdown for a couple with no children.
B106: 2 | D106: 343 | F106: =IF('Model Setup'!$F$30="Single",(Rates!$D106*(0.58+'Model Setup'!$F$35*0.2)),Rates!$D106*(1+'Model Setup'!$F$35*0.2)) -> 480.2 | J106: 2 | L106: 271 | N106: =IF('Model Setup'!$F$30="Single",(Rates!$L106*(0.58+'Model Setup'!$F$35*0.2)),Rates!$L106*(1+'Model Setup'!$F$35*0.2)) -> 379.4 | Q106: Equivalised Decile Bounds considers the family characteristics selected in the model setup, an manipulates the decile bounds accordingly.
B107: 3 | D107: 409 | F107: =IF('Model Setup'!$F$30="Single",(Rates!$D107*(0.58+'Model Setup'!$F$35*0.2)),Rates!$D107*(1+'Model Setup'!$F$35*0.2)) -> 572.6 | J107: 3 | L107: 339 | N107: =IF('Model Setup'!$F$30="Single",(Rates!$L107*(0.58+'Model Setup'!$F$35*0.2)),Rates!$L107*(1+'Model Setup'!$F$35*0.2)) -> 474.6
B108: 4 | D108: 476 | F108: =IF('Model Setup'!$F$30="Single",(Rates!$D108*(0.58+'Model Setup'!$F$35*0.2)),Rates!$D108*(1+'Model Setup'!$F$35*0.2)) -> 666.4 | J108: 4 | L108: 407 | N108: =IF('Model Setup'!$F$30="Single",(Rates!$L108*(0.58+'Model Setup'!$F$35*0.2)),Rates!$L108*(1+'Model Setup'!$F$35*0.2)) -> 569.8
B109: 5 | D109: 547 | F109: =IF('Model Setup'!$F$30="Single",(Rates!$D109*(0.58+'Model Setup'!$F$35*0.2)),Rates!$D109*(1+'Model Setup'!$F$35*0.2)) -> 765.8 | J109: 5 | L109: 458 | N109: =IF('Model Setup'!$F$30="Single",(Rates!$L109*(0.58+'Model Setup'!$F$35*0.2)),Rates!$L109*(1+'Model Setup'!$F$35*0.2)) -> 641.2
B110: 6 | D110: 624 | F110: =IF('Model Setup'!$F$30="Single",(Rates!$D110*(0.58+'Model Setup'!$F$35*0.2)),Rates!$D110*(1+'Model Setup'!$F$35*0.2)) -> 873.6 | J110: 6 | L110: 550 | N110: =IF('Model Setup'!$F$30="Single",(Rates!$L110*(0.58+'Model Setup'!$F$35*0.2)),Rates!$L110*(1+'Model Setup'!$F$35*0.2)) -> 770
B111: 7 | D111: 716 | F111: =IF('Model Setup'!$F$30="Single",(Rates!$D111*(0.58+'Model Setup'!$F$35*0.2)),Rates!$D111*(1+'Model Setup'!$F$35*0.2)) -> 1002.4 | J111: 7 | L111: 633 | N111: =IF('Model Setup'!$F$30="Single",(Rates!$L111*(0.58+'Model Setup'!$F$35*0.2)),Rates!$L111*(1+'Model Setup'!$F$35*0.2)) -> 886.2
B112: 8 | D112: 841 | F112: =IF('Model Setup'!$F$30="Single",(Rates!$D112*(0.58+'Model Setup'!$F$35*0.2)),Rates!$D112*(1+'Model Setup'!$F$35*0.2)) -> 1177.4 | J112: 8 | L112: 758 | N112: =IF('Model Setup'!$F$30="Single",(Rates!$L112*(0.58+'Model Setup'!$F$35*0.2)),Rates!$L112*(1+'Model Setup'!$F$35*0.2)) -> 1061.2
B113: 9 | D113: 1070 | F113: =IF('Model Setup'!$F$30="Single",(Rates!$D113*(0.58+'Model Setup'!$F$35*0.2)),Rates!$D113*(1+'Model Setup'!$F$35*0.2)) -> 1498 | J113: 9 | L113: 984 | N113: =IF('Model Setup'!$F$30="Single",(Rates!$L113*(0.58+'Model Setup'!$F$35*0.2)),Rates!$L113*(1+'Model Setup'!$F$35*0.2)) -> 1377.6
B128: YES
B129: NO

Sheet Universal Credit Table
A1: Gross | C1: Annunal | D1: Gross | E1: Income | F1: National | G1: Take | H1: Annunal | I1: Gross | J1: Income | K1: National | L1: Take | M1: Combined | N1: Combined | O1: Gross | P1: Net | R1: Council | S1: Universal | T1: Net | U1: Before | V1: BHC | W1: After | X1: AHC | Y1: Marginal | AA1: Additional | AB1: Actual | AC1: Income loss | AE1: Personal | AG1: Taxable | AK1: Personal | AL1: Taxable
A2: Combined | C2: earnings | D2: earnings | E2: tax | F2: Insurance | G2: home pay | H2: earnings | I2: earnings | J2: tax | K2: Insurance | L2: home pay | M2: Annual | N2: Annual | O2: Combined | P2: Combined | Q2: Child | R2: Tax | S2: Credit | T2: Household | U2: housing | V2: Income | W2: housing | X2: Income | Y2: Deduction | AA2: Contribution of | AB2: Contribution of | AC2: due to | AE2: Allowance | AF2: Marriage | AG2: Income | AK2: Allowance | AL2: Income
A3: Annual earnings | C3: of A | D3: of A | E3: of A | F3: of A | G3: of A | H3: of B | I3: of B | J3: of B | K3: of B | L3: of B | M3: NI | N3: Income tax | O3: earnings | P3: earnings | Q3: Benefit | R3: Benefit | S3: actual | T3: Income | U3: costs | V3: decile | W3: costs | X3: decile | Y3: Rate | AA3: Second Earner | AB3: Second Earner | AC3: Unemployment | AE3: of A | AF3: Allowance | AG3: of A | AH3: 20% Tax | AI3: 40% Tax | AJ3: 45% Tax | AK3: of B | AL3: of B | AM3: 20% Tax | AN3: 40% Tax | AO3: 45% Tax
K5: Universal Credit Table
C7: This worksheet illustrates the weekly financial circumstances for the hypothetical family set-up in "Model Setup" for a range of gross income levels. Both earners of the family works a minimum of 16 hours per week for a certain gross income level. The table below shows all of the components of Universal Credit, described in "Concepts and Definitions", which interact with each other to give the final net income after housing costs for the hypothetical family. There is an additional table below which shows the position for the hypothetical family if the head of the family was unemployed and entirely reliant upon benefits as opposed to working a minimum of 16 hours per week.
D13: Hypothetical Family Type: | G13: ='Model Setup'!$H$63 -> Married couple with 2 children but no childcare costs.
G14: ='Model Setup'!$H$64 -> Single earner household with weekly mortgage interest payments of £160.
D16: For the given hypothetical family type, working a minimum of 30 hours per week, the following entitlements and costs apply:
D18: Local Housing Allowance: | G18: ='Model Setup'!$F$61 -> 161.1 | I18: Council Tax: | K18: ='Model Setup'!$F$47 -> 34 | N18: Applicable Amount: | P18: =IF('Model Setup'!F30="Couple",Rates!K92,IF('Model Setup'!F35=0,Rates!K90,Rates!K91)) -> 116.8
D20: The following table shows the weekly financial circumstances when the family head is unemployed and entirely reliant upon benefits:
V21: £ per week
F23: Council | K23: Housing | O23: Universal | P23: Universal | T23: Meals and | U23: Before | V23: After
E24: Child | F24: Tax | G24: Standard | H24: Child | I24: Childcare | J24: Carers | K24: Cost | N24: Limited capability | O24: Credit | P24: Credit | Q24: Mortgage | S24: Council | T24: Welfare | U24: housing | V24: housing
E25: Benefit | F25: Benefit | G25: allowance | H25: element | I25: element | J25: element | K25: Support | N25: for work element | O25: entitlement | P25: actual | Q25: Interest | R25: Rent | S25: Tax | T25: Foods | U25: costs | V25: costs
E27: =IF('Model Setup'!$F$35>0,Rates!$U$80+('Model Setup'!$F$35-1)*Rates!$U$81,0) -> 35 | F27: =0.75*IF(C27<$P$18,$K$18,$K$18-($P27-$P$18)*0.2) -> 25.5 | G27: =IF('Model Setup'!$F$30="Single",Rates!$K$43,IF('Model Setup'!$F$30="Couple",Rates!$K$46,0)) -> 233.0561538 | H27: =IF('Model Setup'!$F$35=0,0,IF(AND('Model Setup'!$F$36=1,'Model Setup'!$F$35>1),Rates!$K$49+Rates!$K$50,IF(AND('Model Setup'!$F$36>0,'Model Setup'!$F$35>1),Rates!$K$49+(('Model Setup'!F36-1)*Rates!$K$50),IF(AND('Model Setup'!$F$36>0,'Model Setup'!$F$35=1),Rates!$K$49,IF(AND('Model Setup'!$F$36=0,'Model Setup'!$F$35=1),Rates!$K$50,2*Rates!$K$50))))) -> 119.9030769 | I27: =IF('Model Setup'!$F$35=0,0,IF(AND('Model Setup'!$F$35=1,0.85*'Model Setup'!$F$37<Rates!$K$65),0.85*'Model Setup'!$F$37,IF(AND('Model Setup'!$F$35=1,0.85*'Model Setup'!$F$37>=Rates!$K$65),Rates!$K$65,IF(AND('Model Setup'!$F$35>1,0.85*'Model Setup'!$F$37<Rates!$K$66),0.85*'Model Setup'!$F$37,Rates!$K$66)))) -> 0 | J27: 0 | K27: =IF('Model Setup'!F43=0,0,IF('Model Setup'!$F$42="Private", IF('Model Setup'!F43<='Model Setup'!F61,'Model Setup'!F43,'Model Setup'!F61),IF('Model Setup'!$F$42="Local Authority",'Model Setup'!$F$43,0))) -> 0 | N27: 0 | O27: =SUM($G$27:$N$27) -> 352.9592308 | P27: =IF('Model Setup'!$F$35=0,$O$27-(L27*0.63),IF(AND($K$27>0,L27>Rates!$K$83),$O$27-((L27-Rates!$K$83)*0.63),IF(AND($K$27>0,L27<Rates!$K$83),$O$27,IF(AND($K$27=0,L27>Rates!$K$77),$O$27-((L27-Rates!$K$77)*0.63),$O$27)))) -> 352.9592308 | Q27: ='Model Setup'!$F$44 -> 160 | R27: ='Model Setup'!$F$43 -> 0 | S27: =0.75*'Model Setup'!$F$47 -> 25.5 | T27: ='Model Setup'!$F$36*Rates!$U$92+'Model Setup'!$L$36*Rates!$U$91+'Model Setup'!$M$35*Rates!$U$93 -> 12.4 | U27: =P27+T27+F27+E27 -> 425.8592308 | V27: =U27-$R$27-$S$27-Q27-'Model Setup'!$F$37 -> 240.3592308
D30: Where A is the head earner and B is the second earner.
U32: =SUMIF($P32:$S32,">0")-$S$27+IF(P32<Rates!$U$96,$T$27,0) -> -13.1
A33: Gross | C33: Annunal | D33: Gross | E33: Income | F33: National | G33: Take | H33: Annunal | I33: Gross | J33: Income | K33: National | L33: Take | M33: Combined | N33: Combined | O33: Gross | P33: Net | R33: Council | S33: Universal | T33: Net | U33: Before | V33: BHC | W33: After | X33: AHC | Y33: Marginal | AA33: Additional | AB33: Actual | AC33: Income loss | AE33: Personal | AG33: Taxable | AK33: Personal | AL33: Taxable
A34: Combined | C34: earnings | D34: earnings | E34: tax | F34: Insurance | G34: home pay | H34: earnings | I34: earnings | J34: tax | K34: Insurance | L34: home pay | M34: Annual | N34: Annual | O34: Combined | P34: Combined | Q34: Child | R34: Tax | S34: Credit | T34: Household | U34: housing | V34: Income | W34: housing | X34: Income | Y34: Deduction | AA34: Contribution of | AB34: Contribution of | AC34: due to | AE34: Allowance | AF34: Marriage | AG34: Income | AK34: Allowance | AL34: Income
A35: Annual earnings | C35: of A | D35: of A | E35: of A | F35: of A | G35: of A | H35: of B | I35: of B | J35: of B | K35: of B | L35: of B | M35: NI | N35: Income tax | O35: earnings | P35: earnings | Q35: Benefit | R35: Benefit | S35: actual | T35: Income | U35: costs | V35: decile | W35: costs | X35: decile | Y35: Rate | AA35: Second Earner | AB35: Second Earner | AC35: Unemployment | AE35: of A | AF35: Allowance | AG35: of A | AH35: 20% Tax | AI35: 40% Tax | AJ35: 45% Tax | AK35: of B | AL35: of B | AM35: 20% Tax | AN35: 40% Tax | AO35: 45% Tax
A36: For calculation at a specific value of income, enter desired amount into "Annual earning of A", in blue below.
A37: =(O37)/7*365 -> 40000 | C37: 40000 | D37: =C37/365*7 -> 767.1232877 | E37: =(IF($AG37<=0,0,IF($AG37<=Rates!$N$22,$AG37,Rates!$N$20-IF($AE37>=0,$AE37,0))))*Rates!$N$24+(IF($AG37<=Rates!$N$22,0,IF(($AG37-$AH37)<=Rates!$N$23,('Universal Credit Table'!$AG37-$AH37),Rates!$N$23)))*Rates!$N$25+(IF(($AG37-($AH37+$AI37))>0,($AG37-($AH37+$AI37)),0))*Rates!$N$26 -> 100.4164384 | F37: =IF($D37<Rates!$N$32,0,Rates!$N$34*(MIN($D37,Rates!$N$33)-Rates!$N$32)+Rates!$N$35*(MAX($D37,Rates!$N$33)-Rates!$N$33)) -> 70.03528767 | G37: =SUM(D37-E37-F37) -> 596.6715616 | H37: =(I37/7)*365 -> 0 | I37: =IF('Model Setup'!$J$33=0,'Model Setup'!$O$33,IF(((D37/'Model Setup'!$F$33)*'Model Setup'!$J$33)>=0,((D37/'Model Setup'!$F$33)*'Model Setup'!$J$33),0)) -> 0 | J37: =(IF($AL37<=0,0,IF($AL37<=Rates!$N$22,$AL37,Rates!$N$20-IF($AK37>=0,$AK37,0))))*Rates!$N$24+(IF($AL37<=Rates!$N$22,0,IF(($AL37-$AM37)<=Rates!$N$23,('Universal Credit Table'!$AL37-$AM37),Rates!$N$23)))*Rates!$N$25+(IF(($AL37-($AM37+$AN37))>0,($AL37-($AM37+$AN37)),0))*Rates!$N$26 -> 0 | K37: =IF($I37<Rates!$N$32,0,Rates!$N$34*(MIN($I37,Rates!$N$33)-Rates!$N$32)+Rates!$N$35*(MAX($I37,Rates!$N$33)-Rates!$N$33)) -> 0 | L37: =SUM(I37-J37-K37) -> 0 | M37: =K37+F37 -> 70.03528767 | N37: =(E37+J37)/7*365 -> 5236 | O37: =D37+I37 -> 767.1232877 | P37: =SUM(G37+L37) -> 596.6715616 | Q37: =IF(D37<Rates!$U$82,$E$27,($E$27-(D37-Rates!$U$82)/(100/365*7)/100*$E$27)) -> 35 | R37: =0.75*IF(P37<$P$18,$K$18,$K$18-($P37-$P$18)*Rates!$U$73) -> -28.48555068 | S37: =IF('Model Setup'!$F$35=0,$O$27-(P37*Rates!$J$87),IF(AND($K$27>0,P37>Rates!$K$83),$O$27-((P37-Rates!$K$83)*Rates!$J$87),IF(AND($K$27>0,P37<Rates!$K$83),$O$27,IF(AND($K$27=0,P37>Rates!$K$77),$O$27-((P37-Rates!$K$77)*Rates!$J$87),$O$27)))) -> 95.48602571 | T37: =SUMIF($P37:$S37,">0")-$S$27+IF($P37<Rates!$U$96,$T$27,0) -> 701.6575874 | U37: =SUMIF($P37:$S37,">0")-$S$27+IF($P37<Rates!$U$96,$T$27,0) -> 701.6575874 | V37: =IF(U37<Rates!$F$105,"1st",IF(AND(Rates!$F$105<='Universal Credit Table'!U37,'Universal Credit Table'!U37<Rates!$F$106),"2nd",IF(AND(Rates!$F$106<='Universal Credit Table'!U37,'Universal Credit Table'!U37<Rates!$F$107),"3rd",IF(AND(Rates!$F$107<='Universal Credit Table'!U37,'Universal Credit Table'!U37<Rates!$F$108),"4th",IF(AND(Rates!$F$108<='Universal Credit Table'!U37,'Universal Credit Table'!U37<Rates!$F$109),"5th",IF(AND(Rates!$F$109<='Universal Credit Table'!U37,'Universal Credit Table'!U37<Rates!$F$110),"6th",IF(AND(Rates!$F$110<='Universal Credit Table'!U37,'Universal Credit Table'!U37<Rates!$F$111),"7th",IF(AND(Rates!$F$111<='Universal Credit Table'!U37,'Universal Credit Table'!U37<Rates!$F$112),"8th",IF(AND(Rates!$F$112<='Universal Credit Table'!U37,'Universal Credit Table'!U37<Rates!$F$113),"9th",">9th"))))))))) -> 5th | W37: =U37-$R$27-$Q$27-'Model Setup'!$F$37 -> 541.6575874 | X37: =IF(W37<Rates!$N$105,"1st",IF(AND(Rates!$N$105<='Universal Credit Table'!W37,'Universal Credit Table'!W37<Rates!$N$106),"2nd",IF(AND(Rates!$N$106<='Universal Credit Table'!W37,'Universal Credit Table'!W37<Rates!$N$107),"3rd",IF(AND(Rates!$N$107<='Universal Credit Table'!W37,'Universal Credit Table'!W37<Rates!$N$108),"4th",IF(AND(Rates!$N$108<='Universal Credit Table'!W37,'Universal Credit Table'!W37<Rates!$N$109),"5th",IF(AND(Rates!$N$109<='Universal Credit Table'!W37,'Universal Credit Table'!W37<Rates!$N$110),"6th",IF(AND(Rates!$N$110<='Universal Credit Table'!W37,'Universal Credit Table'!W37<Rates!$N$111),"7th",IF(AND(Rates!$N$111<='Universal Credit Table'!W37,'Universal Credit Table'!W37<Rates!$N$112),"8th",IF(AND(Rates!$N$112<='Universal Credit Table'!W37,'Universal Credit Table'!W37<Rates!$N$113),"9th",">9th"))))))))) -> 4th | Y37: =((($D38+$I38)-($D37+$I37))-$T38+$T37)/(($D38+$I38)-($D37+$I37)) -> 38.19904801 | AA37: =IF(AND('Model Setup'!$J$33=0,'Model Setup'!$O$33=0),"-",(W37-'Single Earner Tables'!AG38)/'Single Earner Tables'!AG38) -> - | AB37: =IF(AA37<>"-",AA37*'Single Earner Tables'!AG38,"-") -> - | AC37: =$V$27/W37 -> 0.4437475564 | AE37: =IF($D37<Rates!$N$16,Rates!$N$13,(Rates!$N$13-(0.5*($D37-Rates!$N$16)))) -> 241.0684932 | AF37: =IF('Model Setup'!$F$30="Single",0,IF('Model Setup'!$K$30="Not Married",0,IF(D37>=Rates!$N$17,0,IF(I37<(Rates!$N$13-Rates!$N$14),Rates!$N$14,Rates!$N$13-I37)))) -> 23.97260274 | AG37: =D37-SUMIF(AE37:AF37,">=0") -> 502.0821918 | AH37: =IF($AG37<=0,0,IF($AG37<=Rates!$N$22,$AG37,Rates!$N$20-IF($AE37>=0,$AE37,0))) -> 502.0821918 | AI37: =IF($AG37<=Rates!$N$22,0,IF(($AG37-$AH37)<=Rates!$N$23,('Universal Credit Table'!$AG37-$AH37),Rates!$N$23)) -> 0 | AJ37: =IF((AG37-(AH37+AI37))>0,(AG37-(AH37+AI37)),0) -> 0 | AK37: =IF($I37>Rates!$N$16,(Rates!$N$13-(0.5*($I37-Rates!$N$16))),IF((AF37>0),Rates!$N$13-AF37,Rates!$N$13)) -> 217.0958904 | AL37: =I37-SUMIF(AK37,">=0") -> -217.0958904 | AM37: =IF($AL37<=0,0,IF($AL37<=Rates!$N$22,$AL37,Rates!$N$20-IF($AK37>=0,$AK37,0))) -> 0 | AN37: =IF($AL37<=Rates!$N$22,0,IF(($AL37-$AM37)<=Rates!$N$23,('Universal Credit Table'!$AL37-$AM37),Rates!$N$23)) -> 0 | AO37: =IF((AL37-(AM37+AN37))>0,(AL37-(AM37+AN37)),0) -> 0
C38: =D38/7*365 -> 40052.14286 | D38: =D37+1 -> 768.1232877 | E38: =(IF($AG38<=0,0,IF($AG38<=Rates!$N$22,$AG38,Rates!$N$20-IF($AE38>=0,$AE38,0))))*Rates!$N$24+(IF($AG38<=Rates!$N$22,0,IF(($AG38-$AH38)<=Rates!$N$23,('Universal Credit Table'!$AG38-$AH38),Rates!$N$23)))*Rates!$N$25+(IF(($AG38-($AH38+$AI38))>0,($AG38-($AH38+$AI38)),0))*Rates!$N$26 -> 100.6164384 | F38: =IF($D38<Rates!$N$32,0,Rates!$N$34*(MIN($D38,Rates!$N$33)-Rates!$N$32)+Rates!$N$35*(MAX($D38,Rates!$N$33)-Rates!$N$33)) -> 70.15528767 | G38: =SUM(D38-E38-F38) -> 597.3515616 | H38: =(I38/7)*365 -> 0 | I38: =IF('Model Setup'!$J$33=0,'Model Setup'!$O$33,IF(((D38/'Model Setup'!$F$33)*'Model Setup'!$J$33)>=0,((D38/'Model Setup'!$F$33)*'Model Setup'!$J$33),0)) -> 0 | J38: =(IF($AL38<=0,0,IF($AL38<=Rates!$N$22,$AL38,Rates!$N$20-IF($AK38>=0,$AK38,0))))*Rates!$N$24+(IF($AL38<=Rates!$N$22,0,IF(($AL38-$AM38)<=Rates!$N$23,('Universal Credit Table'!$AL38-$AM38),Rates!$N$23)))*Rates!$N$25+(IF(($AL38-($AM38+$AN38))>0,($AL38-($AM38+$AN38)),0))*Rates!$N$26 -> 0 | K38: =IF($I38<Rates!$N$32,0,Rates!$N$34*(MIN($I38,Rates!$N$33)-Rates!$N$32)+Rates!$N$35*(MAX($I38,Rates!$N$33)-Rates!$N$33)) -> 0 | L38: =SUM(I38-J38-K38) -> 0 | N38: =(E38+J38)/7*365 -> 5246.428571 | O38: =D38+I38 -> 768.1232877 | P38: =SUM(G38+L38) -> 597.3515616 | Q38: =IF(D38<Rates!$U$82,$E$27,($E$27-(D38-Rates!$U$82)/(100/365*7)/100*$E$27)) -> 35 | R38: =0.75*IF(P38<$P$18,$K$18,$K$18-($P38-$P$18)*Rates!$U$73) -> -28.56205068 | S38: =IF('Model Setup'!$F$35=0,$O$27-(P38*0.63),IF(AND($K$27>0,P38>Rates!$K$83),$O$27-((P38-Rates!$K$83)*0.63),IF(AND($K$27>0,P38<Rates!$K$83),$O$27,IF(AND($K$27=0,P38>Rates!$K$77),$O$27-((P38-Rates!$K$77)*0.63),$O$27)))) -> 57.6069777 | T38: =SUMIF($P38:$S38,">0")-$S$27 -> 664.4585393 | U38: =SUMIF($P38:$S38,">0")-$S$27 -> 664.4585393 | W38: =U38-$R$27-$S$27-$Q$27-'Model Setup'!$F$37 -> 478.9585393 | AC38: =$V$27/W38 -> 0.5018372386 | AE38: =IF($D38<Rates!$N$16,Rates!$N$13,(Rates!$N$13-(0.5*($D38-Rates!$N$16)))) -> 241.0684932 | AF38: =IF('Model Setup'!$F$30="Single",0,IF('Model Setup'!$K$30="Not Married",0,IF(D38>=Rates!$N$17,0,IF(I38<(Rates!$N$13-Rates!$N$14),Rates!$N$14,Rates!$N$13-I38)))) -> 23.97260274 | AG38: =D38-SUMIF(AE38:AF38,">=0") -> 503.0821918 | AH38: =IF($AG38<=0,0,IF($AG38<=Rates!$N$22,$AG38,Rates!$N$20-IF($AE38>=0,$AE38,0))) -> 503.0821918 | AI38: =IF($AG38<=Rates!$N$22,0,IF(($AG38-$AH38)<=Rates!$N$23,('Universal Credit Table'!$AG38-$AH38),Rates!$N$23)) -> 0 | AJ38: =IF((AG38-(AH38+AI38))>0,(AG38-(AH38+AI38)),0) -> 0 | AK38: =IF($I38>Rates!$N$16,(Rates!$N$13-(0.5*($I38-Rates!$N$16))),IF((AF38>0),Rates!$N$13-AF38,Rates!$N$13)) -> 217.0958904 | AL38: =I38-SUMIF(AK38,">=0") -> -217.0958904 | AM38: =IF($AL38<=0,0,IF($AL38<=Rates!$N$22,$AL38,Rates!$N$20-IF($AK38>=0,$AK38,0))) -> 0 | AN38: =IF($AL38<=Rates!$N$22,0,IF(($AL38-$AM38)<=Rates!$N$23,('Universal Credit Table'!$AL38-$AM38),Rates!$N$23)) -> 0 | AO38: =AL38-(AM38+AN38) -> -217.0958904
A40: =(O40)/7*365 -> 52.14285714 | C40: =(D40/7)*365 -> 52.14285714 | D40: 1 | E40: =(IF($AG40<=0,0,IF($AG40<=Rates!$N$22,$AG40,Rates!$N$20-IF($AE40>=0,$AE40,0))))*Rates!$N$24+(IF($AG40<=Rates!$N$22,0,IF(($AG40-$AH40)<=Rates!$N$23,($AG40-$AH40),Rates!$N$23)))*Rates!$N$25+(IF(($AG40-($AH40+$AI40))>0,($AG40-($AH40+$AI40)),0))*Rates!$N$26 -> 0 | F40: =IF($D40<Rates!$N$32,0,Rates!$N$34*(MIN($D40,Rates!$N$33)-Rates!$N$32)+Rates!$N$35*(MAX($D40,Rates!$N$33)-Rates!$N$33)) -> 0 | G40: =SUM(D40-E40-F40) -> 1 | H40: =(I40/7)*365 -> 0 | I40: =IF('Model Setup'!$J$33=0,'Model Setup'!$O$33,IF(((D40/'Model Setup'!$F$33)*'Model Setup'!$J$33)>=0,((D40/'Model Setup'!$F$33)*'Model Setup'!$J$33),0)) -> 0 | J40: =(IF($AL40<=0,0,IF($AL40<=Rates!$N$22,$AL40,Rates!$N$20-IF($AK40>=0,$AK40,0))))*Rates!$N$24+(IF($AL40<=Rates!$N$22,0,IF(($AL40-$AM40)<=Rates!$N$23,('Universal Credit Table'!$AL40-$AM40),Rates!$N$23)))*Rates!$N$25+(IF(($AL40-($AM40+$AN40))>0,($AL40-($AM40+$AN40)),0))*Rates!$N$26 -> 0 | K40: =IF($I40<Rates!$N$32,0,Rates!$N$34*(MIN($I40,Rates!$N$33)-Rates!$N$32)+Rates!$N$35*(MAX($I40,Rates!$N$33)-Rates!$N$33)) -> 0 | L40: =SUM(I40-J40-K40) -> 0 | M40: =K40+F40 -> 0 | N40: =(E40+J40)/7*365 -> 0 | O40: =D40+I40 -> 1 | P40: =SUM(G40+L40) -> 1 | Q40: =IF(D40<Rates!$U$82,$E$27,($E$27-(D40-Rates!$U$82)/(100/365*7)/100*$E$27)) -> 35 | R40: =0.75*IF(P40<$P$18,$K$18,$K$18-($P40-$P$18)*Rates!$U$73) -> 25.5 | S40: =IF('Model Setup'!$F$35=0,$O$27-(P40*Rates!$J$87),IF(AND($K$27>0,P40>Rates!$K$83),$O$27-((P40-Rates!$K$83)*Rates!$J$87),IF(AND($K$27>0,P40<Rates!$K$83),$O$27,IF(AND($K$27=0,P40>Rates!$K$77),$O$27-((P40-Rates!$K$77)*Rates!$J$87),$O$27)))) -> 352.9592308 | T40: =SUMIF($P40:$S40,">0")-$S$27+IF(O40<Rates!$U$96,$T$27,0) -> 401.3592308 | U40: =SUMIF($P40:$S40,">0")-$S$27+IF(P40<Rates!$U$96,$T$27,0) -> 401.3592308 | V40: =IF(U40<Rates!$F$105,"1st",IF(AND(Rates!$F$105<='Universal Credit Table'!U40,'Universal Credit Table'!U40<Rates!$F$106),"2nd",IF(AND(Rates!$F$106<='Universal Credit Table'!U40,'Universal Credit Table'!U40<Rates!$F$107),"3rd",IF(AND(Rates!$F$107<='Universal Credit Table'!U40,'Universal Credit Table'!U40<Rates!$F$108),"4th",IF(AND(Rates!$F$108<='Universal Credit Table'!U40,'Universal Credit Table'!U40<Rates!$F$109),"5th",IF(AND(Rates!$F$109<='Universal Credit Table'!U40,'Universal Credit Table'!U40<Rates!$F$110),"6th",IF(AND(Rates!$F$110<='Universal Credit Table'!U40,'Universal Credit Table'!U40<Rates!$F$111),"7th",IF(AND(Rates!$F$111<='Universal Credit Table'!U40,'Universal Credit Table'!U40<Rates!$F$112),"8th",IF(AND(Rates!$F$112<='Universal Credit Table'!U40,'Universal Credit Table'!U40<Rates!$F$113),"9th",">9th"))))))))) -> 2nd | W40: =U40-$R$27-$Q$27-'Model Setup'!$F$37 -> 241.3592308 | X40: =IF(W40<Rates!$N$105,"1st",IF(AND(Rates!$N$105<='Universal Credit Table'!W40,'Universal Credit Table'!W40<Rates!$N$106),"2nd",IF(AND(Rates!$N$106<='Universal Credit Table'!W40,'Universal Credit Table'!W40<Rates!$N$107),"3rd",IF(AND(Rates!$N$107<='Universal Credit Table'!W40,'Universal Credit Table'!W40<Rates!$N$108),"4th",IF(AND(Rates!$N$108<='Universal Credit Table'!W40,'Universal Credit Table'!W40<Rates!$N$109),"5th",IF(AND(Rates!$N$109<='Universal Credit Table'!W40,'Universal Credit Table'!W40<Rates!$N$110),"6th",IF(AND(Rates!$N$110<='Universal Credit Table'!W40,'Universal Credit Table'!W40<Rates!$N$111),"7th",IF(AND(Rates!$N$111<='Universal Credit Table'!W40,'Universal Credit Table'!W40<Rates!$N$112),"8th",IF(AND(Rates!$N$112<='Universal Credit Table'!W40,'Universal Credit Table'!W40<Rates!$N$113),"9th",">9th"))))))))) -> 1st | Y40: =((($D41+$I41)-($D40+$I40))-$T41+$T40)/(($D41+$I41)-($D40+$I40)) -> 0 | AA40: =IF(AND('Model Setup'!$J$33=0,'Model Setup'!$O$33=0),"-",(W40-'Single Earner Tables'!AG40)/'Single Earner Tables'!AG40) -> - | AB40: =IF(AA40<>"-",AA40*'Single Earner Tables'!AG40,"-") -> - | AC40: =$V$27/W40 -> 0.9958567982 | AE40: =IF($D40<Rates!$N$16,Rates!$N$13,(Rates!$N$13-(0.5*($D40-Rates!$N$16)))) -> 241.0684932 | AF40: =IF('Model Setup'!$F$30="Single",0,IF('Model Setup'!$K$30="Not Married",0,IF(D40>=Rates!$N$17,0,IF(I40<(Rates!$N$13-Rates!$N$14),Rates!$N$14,Rates!$N$13-I40)))) -> 23.97260274 | AG40: =D40-SUMIF(AE40:AF40,">=0") -> -264.0410959 | AK40: =IF($I40>Rates!$N$16,(Rates!$N$13-(0.5*($I40-Rates!$N$16))),IF((AF40>0),Rates!$N$13-AF40,Rates!$N$13)) -> 217.0958904 | AL40: =SUM(I40-AK40) -> -217.0958904 | AM40: =IF($AL40<=0,0,IF($AL40<=Rates!$N$22,$AL40,Rates!$N$20-IF($AK40>=0,$AK40,0))) -> 0 | AN40: =IF($AL40<=Rates!$N$22,0,IF(($AL40-$AM40)<=Rates!$N$23,('Universal Credit Table'!$AL40-$AM40),Rates!$N$23)) -> 0 | AO40: =IF((AL40-(AM40+AN40))>0,(AL40-(AM40+AN40)),0) -> 0
A41: 104.2857143 | C41: =(D41/7)*365 -> 104.2857143 | D41: 2 | E41: =(IF($AG41<=0,0,IF($AG41<=Rates!$N$22,$AG41,Rates!$N$20-IF($AE41>=0,$AE41,0))))*Rates!$N$24+(IF($AG41<=Rates!$N$22,0,IF(($AG41-$AH41)<=Rates!$N$23,('Universal Credit Table'!$AG41-$AH41),Rates!$N$23)))*Rates!$N$25+(IF(($AG41-($AH41+$AI41))>0,($AG41-($AH41+$AI41)),0))*Rates!$N$26 -> 0 | F41: =IF($D41<Rates!$N$32,0,Rates!$N$34*(MIN($D41,Rates!$N$33)-Rates!$N$32)+Rates!$N$35*(MAX($D41,Rates!$N$33)-Rates!$N$33)) -> 0 | G41: 2 | H41: =(I41/7)*365 -> 0 | I41: =IF('Model Setup'!$J$33=0,'Model Setup'!$O$33,IF(((D41/'Model Setup'!$F$33)*'Model Setup'!$J$33)>=0,((D41/'Model Setup'!$F$33)*'Model Setup'!$J$33),0)) -> 0 | J41: =(IF($AL41<=0,0,IF($AL41<=Rates!$N$22,$AL41,Rates!$N$20-IF($AK41>=0,$AK41,0))))*Rates!$N$24+(IF($AL41<=Rates!$N$22,0,IF(($AL41-$AM41)<=Rates!$N$23,('Universal Credit Table'!$AL41-$AM41),Rates!$N$23)))*Rates!$N$25+(IF(($AL41-($AM41+$AN41))>0,($AL41-($AM41+$AN41)),0))*Rates!$N$26 -> 0 | K41: =IF($I41<Rates!$N$32,0,Rates!$N$34*(MIN($I41,Rates!$N$33)-Rates!$N$32)+Rates!$N$35*(MAX($I41,Rates!$N$33)-Rates!$N$33)) -> 0 | L41: 0 | M41: =K41+F41 -> 0 | N41: 0 | O41: 2 | P41: 2 | Q41: =IF(D41<Rates!$U$82,$E$27,($E$27-(D41-Rates!$U$82)/(100/365*7)/100*$E$27)) -> 35 | R41: =0.75*IF(P41<$P$18,$K$18,$K$18-($P41-$P$18)*Rates!$U$73) -> 25.5 | S41: =IF('Model Setup'!$F$35=0,$O$27-(P41*Rates!$J$87),IF(AND($K$27>0,P41>Rates!$K$83),$O$27-((P41-Rates!$K$83)*Rates!$J$87),IF(AND($K$27>0,P41<Rates!$K$83),$O$27,IF(AND($K$27=0,P41>Rates!$K$77),$O$27-((P41-Rates!$K$77)*Rates!$J$87),$O$27)))) -> 352.9592308 | T41: =SUMIF($P41:$S41,">0")-$S$27+IF(O41<Rates!$U$96,$T$27,0) -> 402.3592308 | U41: =SUMIF($P41:$S41,">0")-$S$27+IF(P41<Rates!$U$96,$T$27,0) -> 402.3592308 | V41: =IF(U41<Rates!$F$105,"1st",IF(AND(Rates!$F$105<='Universal Credit Table'!U41,'Universal Credit Table'!U41<Rates!$F$106),"2nd",IF(AND(Rates!$F$106<='Universal Credit Table'!U41,'Universal Credit Table'!U41<Rates!$F$107),"3rd",IF(AND(Rates!$F$107<='Universal Credit Table'!U41,'Universal Credit Table'!U41<Rates!$F$108),"4th",IF(AND(Rates!$F$108<='Universal Credit Table'!U41,'Universal Credit Table'!U41<Rates!$F$109),"5th",IF(AND(Rates!$F$109<='Universal Credit Table'!U41,'Universal Credit Table'!U41<Rates!$F$110),"6th",IF(AND(Rates!$F$110<='Universal Credit Table'!U41,'Universal Credit Table'!U41<Rates!$F$111),"7th",IF(AND(Rates!$F$111<='Universal Credit Table'!U41,'Universal Credit Table'!U41<Rates!$F$112),"8th",IF(AND(Rates!$F$112<='Universal Credit Table'!U41,'Universal Credit Table'!U41<Rates!$F$113),"9th",">9th"))))))))) -> 2nd | W41: =U41-$R$27-$Q$27-'Model Setup'!$F$37 -> 242.3592308 | X41: =IF(W41<Rates!$N$105,"1st",IF(AND(Rates!$N$105<='Universal Credit Table'!W41,'Universal Credit Table'!W41<Rates!$N$106),"2nd",IF(AND(Rates!$N$106<='Universal Credit Table'!W41,'Universal Credit Table'!W41<Rates!$N$107),"3rd",IF(AND(Rates!$N$107<='Universal Credit Table'!W41,'Universal Credit Table'!W41<Rates!$N$108),"4th",IF(AND(Rates!$N$108<='Universal Credit Table'!W41,'Universal Credit Table'!W41<Rates!$N$109),"5th",IF(AND(Rates!$N$109<='Universal Credit Table'!W41,'Universal Credit Table'!W41<Rates!$N$110),"6th",IF(AND(Rates!$N$110<='Universal Credit Table'!W41,'Universal Credit Table'!W41<Rates!$N$111),"7th",IF(AND(Rates!$N$111<='Universal Credit Table'!W41,'Universal Credit Table'!W41<Rates!$N$112),"8th",IF(AND(Rates!$N$112<='Universal Credit Table'!W41,'Universal Credit Table'!W41<Rates!$N$113),"9th",">9th"))))))))) -> 1st | Y41: 0 | AA41: =IF(AND('Model Setup'!$J$33=0,'Model Setup'!$O$33=0),"-",(W41-'Single Earner Tables'!AG41)/'Single Earner Tables'!AG41) -> - | AB41: =IF(AA41<>"-",AA41*'Single Earner Tables'!AG41,"-") -> - | AC41: =$V$27/W41 -> 0.991747787 | AE41: =IF($D41<Rates!$N$16,Rates!$N$13,(Rates!$N$13-(0.5*($D41-Rates!$N$16)))) -> 241.0684932 | AF41: =IF('Model Setup'!$F$30="Single",0,IF('Model Setup'!$K$30="Not Married",0,IF(D41>=Rates!$N$17,0,IF(I41<(Rates!$N$13-Rates!$N$14),Rates!$N$14,Rates!$N$13-I41)))) -> 23.97260274 | AG41: -263.0410959 | AK41: =IF($I41>Rates!$N$16,(Rates!$N$13-(0.5*($I41-Rates!$N$16))),IF((AF41>0),Rates!$N$13-AF41,Rates!$N$13)) -> 217.0958904 | AL41: -217.0958904 | AM41: =IF($AL41<=0,0,IF($AL41<=Rates!$N$22,$AL41,Rates!$N$20-IF($AK41>=0,$AK41,0))) -> 0 | AN41: =IF($AL41<=Rates!$N$22,0,IF(($AL41-$AM41)<=Rates!$N$23,('Universal Credit Table'!$AL41-$AM41),Rates!$N$23)) -> 0 | AO41: =IF((AL41-(AM41+AN41))>0,(AL41-(AM41+AN41)),0) -> 0
A42: 156.4285714 | C42: 156.4285714 | D42: 3 | E42: =(IF($AG42<=0,0,IF($AG42<=Rates!$N$22,$AG42,Rates!$N$20-IF($AE42>=0,$AE42,0))))*Rates!$N$24+(IF($AG42<=Rates!$N$22,0,IF(($AG42-$AH42)<=Rates!$N$23,('Universal Credit Table'!$AG42-$AH42),Rates!$N$23)))*Rates!$N$25+(IF(($AG42-($AH42+$AI42))>0,($AG42-($AH42+$AI42)),0))*Rates!$N$26 -> 0 | F42: =IF($D42<Rates!$N$32,0,Rates!$N$34*(MIN($D42,Rates!$N$33)-Rates!$N$32)+Rates!$N$35*(MAX($D42,Rates!$N$33)-Rates!$N$33)) -> 0 | G42: 3 | H42: 0 | I42: =IF('Model Setup'!$J$33=0,'Model Setup'!$O$33,IF(((D42/'Model Setup'!$F$33)*'Model Setup'!$J$33)>=0,((D42/'Model Setup'!$F$33)*'Model Setup'!$J$33),0)) -> 0 | J42: =(IF($AL42<=0,0,IF($AL42<=Rates!$N$22,$AL42,Rates!$N$20-IF($AK42>=0,$AK42,0))))*Rates!$N$24+(IF($AL42<=Rates!$N$22,0,IF(($AL42-$AM42)<=Rates!$N$23,('Universal Credit Table'!$AL42-$AM42),Rates!$N$23)))*Rates!$N$25+(IF(($AL42-($AM42+$AN42))>0,($AL42-($AM42+$AN42)),0))*Rates!$N$26 -> 0 | K42: =IF($I42<Rates!$N$32,0,Rates!$N$34*(MIN($I42,Rates!$N$33)-Rates!$N$32)+Rates!$N$35*(MAX($I42,Rates!$N$33)-Rates!$N$33)) -> 0 | L42: 0 | M42: 0 | N42: 0 | O42: 3 | P42: 3 | Q42: =IF(D42<Rates!$U$82,$E$27,($E$27-(D42-Rates!$U$82)/(100/365*7)/100*$E$27)) -> 35 | R42: =0.75*IF(P42<$P$18,$K$18,$K$18-($P42-$P$18)*Rates!$U$73) -> 25.5 | S42: =IF('Model Setup'!$F$35=0,$O$27-(P42*Rates!$J$87),IF(AND($K$27>0,P42>Rates!$K$83),$O$27-((P42-Rates!$K$83)*Rates!$J$87),IF(AND($K$27>0,P42<Rates!$K$83),$O$27,IF(AND($K$27=0,P42>Rates!$K$77),$O$27-((P42-Rates!$K$77)*Rates!$J$87),$O$27)))) -> 352.9592308 | T42: =SUMIF($P42:$S42,">0")-$S$27+IF(O42<Rates!$U$96,$T$27,0) -> 403.3592308 | U42: =SUMIF($P42:$S42,">0")-$S$27+IF(P42<Rates!$U$96,$T$27,0) -> 403.3592308 | V42: =IF(U42<Rates!$F$105,"1st",IF(AND(Rates!$F$105<='Universal Credit Table'!U42,'Universal Credit Table'!U42<Rates!$F$106),"2nd",IF(AND(Rates!$F$106<='Universal Credit Table'!U42,'Universal Credit Table'!U42<Rates!$F$107),"3rd",IF(AND(Rates!$F$107<='Universal Credit Table'!U42,'Universal Credit Table'!U42<Rates!$F$108),"4th",IF(AND(Rates!$F$108<='Universal Credit Table'!U42,'Universal Credit Table'!U42<Rates!$F$109),"5th",IF(AND(Rates!$F$109<='Universal Credit Table'!U42,'Universal Credit Table'!U42<Rates!$F$110),"6th",IF(AND(Rates!$F$110<='Universal Credit Table'!U42,'Universal Credit Table'!U42<Rates!$F$111),"7th",IF(AND(Rates!$F$111<='Universal Credit Table'!U42,'Universal Credit Table'!U42<Rates!$F$112),"8th",IF(AND(Rates!$F$112<='Universal Credit Table'!U42,'Universal Credit Table'!U42<Rates!$F$113),"9th",">9th"))))))))) -> 2nd | W42: =U42-$R$27-$Q$27-'Model Setup'!$F$37 -> 243.3592308 | X42: =IF(W42<Rates!$N$105,"1st",IF(AND(Rates!$N$105<='Universal Credit Table'!W42,'Universal Credit Table'!W42<Rates!$N$106),"2nd",IF(AND(Rates!$N$106<='Universal Credit Table'!W42,'Universal Credit Table'!W42<Rates!$N$107),"3rd",IF(AND(Rates!$N$107<='Universal Credit Table'!W42,'Universal Credit Table'!W42<Rates!$N$108),"4th",IF(AND(Rates!$N$108<='Universal Credit Table'!W42,'Universal Credit Table'!W42<Rates!$N$109),"5th",IF(AND(Rates!$N$109<='Universal Credit Table'!W42,'Universal Credit Table'!W42<Rates!$N$110),"6th",IF(AND(Rates!$N$110<='Universal Credit Table'!W42,'Universal Credit Table'!W42<Rates!$N$111),"7th",IF(AND(Rates!$N$111<='Universal Credit Table'!W42,'Universal Credit Table'!W42<Rates!$N$112),"8th",IF(AND(Rates!$N$112<='Universal Credit Table'!W42,'Universal Credit Table'!W42<Rates!$N$113),"9th",">9th"))))))))) -> 1st | Y42: 0 | AA42: =IF(AND('Model Setup'!$J$33=0,'Model Setup'!$O$33=0),"-",(W42-'Single Earner Tables'!AG42)/'Single Earner Tables'!AG42) -> - | AB42: =IF(AA42<>"-",AA42*'Single Earner Tables'!AG42,"-") -> - | AC42: 0.9876725449 | AE42: =IF($D42<Rates!$N$16,Rates!$N$13,(Rates!$N$13-(0.5*($D42-Rates!$N$16)))) -> 241.0684932 | AF42: =IF('Model Setup'!$F$30="Single",0,IF('Model Setup'!$K$30="Not Married",0,IF(D42>=Rates!$N$17,0,IF(I42<(Rates!$N$13-Rates!$N$14),Rates!$N$14,Rates!$N$13-I42)))) -> 23.97260274 | AG42: -262.0410959 | AK42: =IF($I42>Rates!$N$16,(Rates!$N$13-(0.5*($I42-Rates!$N$16))),IF((AF42>0),Rates!$N$13-AF42,Rates!$N$13)) -> 217.0958904 | AL42: -217.0958904 | AM42: =IF($AL42<=0,0,IF($AL42<=Rates!$N$22,$AL42,Rates!$N$20-IF($AK42>=0,$AK42,0))) -> 0 | AN42: =IF($AL42<=Rates!$N$22,0,IF(($AL42-$AM42)<=Rates!$N$23,('Universal Credit Table'!$AL42-$AM42),Rates!$N$23)) -> 0 | AO42: 0
A43: 208.5714286 | C43: 208.5714286 | D43: 4 | E43: =(IF($AG43<=0,0,IF($AG43<=Rates!$N$22,$AG43,Rates!$N$20-IF($AE43>=0,$AE43,0))))*Rates!$N$24+(IF($AG43<=Rates!$N$22,0,IF(($AG43-$AH43)<=Rates!$N$23,('Universal Credit Table'!$AG43-$AH43),Rates!$N$23)))*Rates!$N$25+(IF(($AG43-($AH43+$AI43))>0,($AG43-($AH43+$AI43)),0))*Rates!$N$26 -> 0 | F43: =IF($D43<Rates!$N$32,0,Rates!$N$34*(MIN($D43,Rates!$N$33)-Rates!$N$32)+Rates!$N$35*(MAX($D43,Rates!$N$33)-Rates!$N$33)) -> 0 | G43: 4 | H43: 0 | I43: =IF('Model Setup'!$J$33=0,'Model Setup'!$O$33,IF(((D43/'Model Setup'!$F$33)*'Model Setup'!$J$33)>=0,((D43/'Model Setup'!$F$33)*'Model Setup'!$J$33),0)) -> 0 | J43: =(IF($AL43<=0,0,IF($AL43<=Rates!$N$22,$AL43,Rates!$N$20-IF($AK43>=0,$AK43,0))))*Rates!$N$24+(IF($AL43<=Rates!$N$22,0,IF(($AL43-$AM43)<=Rates!$N$23,('Universal Credit Table'!$AL43-$AM43),Rates!$N$23)))*Rates!$N$25+(IF(($AL43-($AM43+$AN43))>0,($AL43-($AM43+$AN43)),0))*Rates!$N$26 -> 0 | K43: =IF($I43<Rates!$N$32,0,Rates!$N$34*(MIN($I43,Rates!$N$33)-Rates!$N$32)+Rates!$N$35*(MAX($I43,Rates!$N$33)-Rates!$N$33)) -> 0 | L43: 0 | M43: 0 | N43: 0 | O43: 4 | P43: 4 | Q43: =IF(D43<Rates!$U$82,$E$27,($E$27-(D43-Rates!$U$82)/(100/365*7)/100*$E$27)) -> 35 | R43: =0.75*IF(P43<$P$18,$K$18,$K$18-($P43-$P$18)*Rates!$U$73) -> 25.5 | S43: =IF('Model Setup'!$F$35=0,$O$27-(P43*Rates!$J$87),IF(AND($K$27>0,P43>Rates!$K$83),$O$27-((P43-Rates!$K$83)*Rates!$J$87),IF(AND($K$27>0,P43<Rates!$K$83),$O$27,IF(AND($K$27=0,P43>Rates!$K$77),$O$27-((P43-Rates!$K$77)*Rates!$J$87),$O$27)))) -> 352.9592308 | T43: =SUMIF($P43:$S43,">0")-$S$27+IF(O43<Rates!$U$96,$T$27,0) -> 404.3592308 | U43: =SUMIF($P43:$S43,">0")-$S$27+IF(P43<Rates!$U$96,$T$27,0) -> 404.3592308 | V43: =IF(U43<Rates!$F$105,"1st",IF(AND(Rates!$F$105<='Universal Credit Table'!U43,'Universal Credit Table'!U43<Rates!$F$106),"2nd",IF(AND(Rates!$F$106<='Universal Credit Table'!U43,'Universal Credit Table'!U43<Rates!$F$107),"3rd",IF(AND(Rates!$F$107<='Universal Credit Table'!U43,'Universal Credit Table'!U43<Rates!$F$108),"4th",IF(AND(Rates!$F$108<='Universal Credit Table'!U43,'Universal Credit Table'!U43<Rates!$F$109),"5th",IF(AND(Rates!$F$109<='Universal Credit Table'!U43,'Universal Credit Table'!U43<Rates!$F$110),"6th",IF(AND(Rates!$F$110<='Universal Credit Table'!U43,'Universal Credit Table'!U43<Rates!$F$111),"7th",IF(AND(Rates!$F$111<='Universal Credit Table'!U43,'Universal Credit Table'!U43<Rates!$F$112),"8th",IF(AND(Rates!$F$112<='Universal Credit Table'!U43,'Universal Credit Table'!U43<Rates!$F$113),"9th",">9th"))))))))) -> 2nd | W43: =U43-$R$27-$Q$27-'Model Setup'!$F$37 -> 244.3592308 | X43: =IF(W43<Rates!$N$105,"1st",IF(AND(Rates!$N$105<='Universal Credit Table'!W43,'Universal Credit Table'!W43<Rates!$N$106),"2nd",IF(AND(Rates!$N$106<='Universal Credit Table'!W43,'Universal Credit Table'!W43<Rates!$N$107),"3rd",IF(AND(Rates!$N$107<='Universal Credit Table'!W43,'Universal Credit Table'!W43<Rates!$N$108),"4th",IF(AND(Rates!$N$108<='Universal Credit Table'!W43,'Universal Credit Table'!W43<Rates!$N$109),"5th",IF(AND(Rates!$N$109<='Universal Credit Table'!W43,'Universal Credit Table'!W43<Rates!$N$110),"6th",IF(AND(Rates!$N$110<='Universal Credit Table'!W43,'Universal Credit Table'!W43<Rates!$N$111),"7th",IF(AND(Rates!$N$111<='Universal Credit Table'!W43,'Universal Credit Table'!W43<Rates!$N$112),"8th",IF(AND(Rates!$N$112<='Universal Credit Table'!W43,'Universal Credit Table'!W43<Rates!$N$113),"9th",">9th"))))))))) -> 1st | Y43: 0 | AA43: =IF(AND('Model Setup'!$J$33=0,'Model Setup'!$O$33=0),"-",(W43-'Single Earner Tables'!AG43)/'Single Earner Tables'!AG43) -> - | AB43: =IF(AA43<>"-",AA43*'Single Earner Tables'!AG43,"-") -> - | AC43: 0.9836306573 | AE43: =IF($D43<Rates!$N$16,Rates!$N$13,(Rates!$N$13-(0.5*($D43-Rates!$N$16)))) -> 241.0684932 | AF43: =IF('Model Setup'!$F$30="Single",0,IF('Model Setup'!$K$30="Not Married",0,IF(D43>=Rates!$N$17,0,IF(I43<(Rates!$N$13-Rates!$N$14),Rates!$N$14,Rates!$N$13-I43)))) -> 23.97260274 | AG43: -261.0410959 | AK43: =IF($I43>Rates!$N$16,(Rates!$N$13-(0.5*($I43-Rates!$N$16))),IF((AF43>0),Rates!$N$13-AF43,Rates!$N$13)) -> 217.0958904 | AL43: -217.0958904 | AM43: =IF($AL43<=0,0,IF($AL43<=Rates!$N$22,$AL43,Rates!$N$20-IF($AK43>=0,$AK43,0))) -> 0 | AN43: =IF($AL43<=Rates!$N$22,0,IF(($AL43-$AM43)<=Rates!$N$23,('Universal Credit Table'!$AL43-$AM43),Rates!$N$23)) -> 0 | AO43: 0
A44: 260.7142857 | C44: 260.7142857 | D44: 5 | E44: =(IF($AG44<=0,0,IF($AG44<=Rates!$N$22,$AG44,Rates!$N$20-IF($AE44>=0,$AE44,0))))*Rates!$N$24+(IF($AG44<=Rates!$N$22,0,IF(($AG44-$AH44)<=Rates!$N$23,('Universal Credit Table'!$AG44-$AH44),Rates!$N$23)))*Rates!$N$25+(IF(($AG44-($AH44+$AI44))>0,($AG44-($AH44+$AI44)),0))*Rates!$N$26 -> 0 | F44: =IF($D44<Rates!$N$32,0,Rates!$N$34*(MIN($D44,Rates!$N$33)-Rates!$N$32)+Rates!$N$35*(MAX($D44,Rates!$N$33)-Rates!$N$33)) -> 0 | G44: 5 | H44: 0 | I44: =IF('Model Setup'!$J$33=0,'Model Setup'!$O$33,IF(((D44/'Model Setup'!$F$33)*'Model Setup'!$J$33)>=0,((D44/'Model Setup'!$F$33)*'Model Setup'!$J$33),0)) -> 0 | J44: =(IF($AL44<=0,0,IF($AL44<=Rates!$N$22,$AL44,Rates!$N$20-IF($AK44>=0,$AK44,0))))*Rates!$N$24+(IF($AL44<=Rates!$N$22,0,IF(($AL44-$AM44)<=Rates!$N$23,('Universal Credit Table'!$AL44-$AM44),Rates!$N$23)))*Rates!$N$25+(IF(($AL44-($AM44+$AN44))>0,($AL44-($AM44+$AN44)),0))*Rates!$N$26 -> 0 | K44: =IF($I44<Rates!$N$32,0,Rates!$N$34*(MIN($I44,Rates!$N$33)-Rates!$N$32)+Rates!$N$35*(MAX($I44,Rates!$N$33)-Rates!$N$33)) -> 0 | L44: 0 | M44: 0 | N44: 0 | O44: 5 | P44: 5 | Q44: =IF(D44<Rates!$U$82,$E$27,($E$27-(D44-Rates!$U$82)/(100/365*7)/100*$E$27)) -> 35 | R44: =0.75*IF(P44<$P$18,$K$18,$K$18-($P44-$P$18)*Rates!$U$73) -> 25.5 | S44: =IF('Model Setup'!$F$35=0,$O$27-(P44*Rates!$J$87),IF(AND($K$27>0,P44>Rates!$K$83),$O$27-((P44-Rates!$K$83)*Rates!$J$87),IF(AND($K$27>0,P44<Rates!$K$83),$O$27,IF(AND($K$27=0,P44>Rates!$K$77),$O$27-((P44-Rates!$K$77)*Rates!$J$87),$O$27)))) -> 352.9592308 | T44: =SUMIF($P44:$S44,">0")-$S$27+IF(O44<Rates!$U$96,$T$27,0) -> 405.3592308 | U44: =SUMIF($P44:$S44,">0")-$S$27+IF(P44<Rates!$U$96,$T$27,0) -> 405.3592308 | V44: =IF(U44<Rates!$F$105,"1st",IF(AND(Rates!$F$105<='Universal Credit Table'!U44,'Universal Credit Table'!U44<Rates!$F$106),"2nd",IF(AND(Rates!$F$106<='Universal Credit Table'!U44,'Universal Credit Table'!U44<Rates!$F$107),"3rd",IF(AND(Rates!$F$107<='Universal Credit Table'!U44,'Universal Credit Table'!U44<Rates!$F$108),"4th",IF(AND(Rates!$F$108<='Universal Credit Table'!U44,'Universal Credit Table'!U44<Rates!$F$109),"5th",IF(AND(Rates!$F$109<='Universal Credit Table'!U44,'Universal Credit Table'!U44<Rates!$F$110),"6th",IF(AND(Rates!$F$110<='Universal Credit Table'!U44,'Universal Credit Table'!U44<Rates!$F$111),"7th",IF(AND(Rates!$F$111<='Universal Credit Table'!U44,'Universal Credit Table'!U44<Rates!$F$112),"8th",IF(AND(Rates!$F$112<='Universal Credit Table'!U44,'Universal Credit Table'!U44<Rates!$F$113),"9th",">9th"))))))))) -> 2nd | W44: =U44-$R$27-$Q$27-'Model Setup'!$F$37 -> 245.3592308 | X44: =IF(W44<Rates!$N$105,"1st",IF(AND(Rates!$N$105<='Universal Credit Table'!W44,'Universal Credit Table'!W44<Rates!$N$106),"2nd",IF(AND(Rates!$N$106<='Universal Credit Table'!W44,'Universal Credit Table'!W44<Rates!$N$107),"3rd",IF(AND(Rates!$N$107<='Universal Credit Table'!W44,'Universal Credit Table'!W44<Rates!$N$108),"4th",IF(AND(Rates!$N$108<='Universal Credit Table'!W44,'Universal Credit Table'!W44<Rates!$N$109),"5th",IF(AND(Rates!$N$109<='Universal Credit Table'!W44,'Universal Credit Table'!W44<Rates!$N$110),"6th",IF(AND(Rates!$N$110<='Universal Credit Table'!W44,'Universal Credit Table'!W44<Rates!$N$111),"7th",IF(AND(Rates!$N$111<='Universal Credit Table'!W44,'Universal Credit Table'!W44<Rates!$N$112),"8th",IF(AND(Rates!$N$112<='Universal Credit Table'!W44,'Universal Credit Table'!W44<Rates!$N$113),"9th",">9th"))))))))) -> 1st | Y44: 0 | AA44: =IF(AND('Model Setup'!$J$33=0,'Model Setup'!$O$33=0),"-",(W44-'Single Earner Tables'!AG44)/'Single Earner Tables'!AG44) -> - | AB44: =IF(AA44<>"-",AA44*'Single Earner Tables'!AG44,"-") -> - | AC44: 0.9796217164 | AE44: =IF($D44<Rates!$N$16,Rates!$N$13,(Rates!$N$13-(0.5*($D44-Rates!$N$16)))) -> 241.0684932 | AF44: =IF('Model Setup'!$F$30="Single",0,IF('Model Setup'!$K$30="Not Married",0,IF(D44>=Rates!$N$17,0,IF(I44<(Rates!$N$13-Rates!$N$14),Rates!$N$14,Rates!$N$13-I44)))) -> 23.97260274 | AG44: -260.0410959 | AK44: =IF($I44>Rates!$N$16,(Rates!$N$13-(0.5*($I44-Rates!$N$16))),IF((AF44>0),Rates!$N$13-AF44,Rates!$N$13)) -> 217.0958904 | AL44: -217.0958904 | AM44: =IF($AL44<=0,0,IF($AL44<=Rates!$N$22,$AL44,Rates!$N$20-IF($AK44>=0,$AK44,0))) -> 0 | AN44: =IF($AL44<=Rates!$N$22,0,IF(($AL44-$AM44)<=Rates!$N$23,('Universal Credit Table'!$AL44-$AM44),Rates!$N$23)) -> 0 | AO44: 0
A45: 312.8571429 | C45: 312.8571429 | D45: 6 | E45: =(IF($AG45<=0,0,IF($AG45<=Rates!$N$22,$AG45,Rates!$N$20-IF($AE45>=0,$AE45,0))))*Rates!$N$24+(IF($AG45<=Rates!$N$22,0,IF(($AG45-$AH45)<=Rates!$N$23,('Universal Credit Table'!$AG45-$AH45),Rates!$N$23)))*Rates!$N$25+(IF(($AG45-($AH45+$AI45))>0,($AG45-($AH45+$AI45)),0))*Rates!$N$26 -> 0 | F45: =IF($D45<Rates!$N$32,0,Rates!$N$34*(MIN($D45,Rates!$N$33)-Rates!$N$32)+Rates!$N$35*(MAX($D45,Rates!$N$33)-Rates!$N$33)) -> 0 | G45: 6 | H45: 0 | I45: =IF('Model Setup'!$J$33=0,'Model Setup'!$O$33,IF(((D45/'Model Setup'!$F$33)*'Model Setup'!$J$33)>=0,((D45/'Model Setup'!$F$33)*'Model Setup'!$J$33),0)) -> 0 | J45: =(IF($AL45<=0,0,IF($AL45<=Rates!$N$22,$AL45,Rates!$N$20-IF($AK45>=0,$AK45,0))))*Rates!$N$24+(IF($AL45<=Rates!$N$22,0,IF(($AL45-$AM45)<=Rates!$N$23,('Universal Credit Table'!$AL45-$AM45),Rates!$N$23)))*Rates!$N$25+(IF(($AL45-($AM45+$AN45))>0,($AL45-($AM45+$AN45)),0))*Rates!$N$26 -> 0 | K45: =IF($I45<Rates!$N$32,0,Rates!$N$34*(MIN($I45,Rates!$N$33)-Rates!$N$32)+Rates!$N$35*(MAX($I45,Rates!$N$33)-Rates!$N$33)) -> 0 | L45: 0 | M45: 0 | N45: 0 | O45: 6 | P45: 6 | Q45: =IF(D45<Rates!$U$82,$E$27,($E$27-(D45-Rates!$U$82)/(100/365*7)/100*$E$27)) -> 35 | R45: =0.75*IF(P45<$P$18,$K$18,$K$18-($P45-$P$18)*Rates!$U$73) -> 25.5 | S45: =IF('Model Setup'!$F$35=0,$O$27-(P45*Rates!$J$87),IF(AND($K$27>0,P45>Rates!$K$83),$O$27-((P45-Rates!$K$83)*Rates!$J$87),IF(AND($K$27>0,P45<Rates!$K$83),$O$27,IF(AND($K$27=0,P45>Rates!$K$77),$O$27-((P45-Rates!$K$77)*Rates!$J$87),$O$27)))) -> 352.9592308 | T45: =SUMIF($P45:$S45,">0")-$S$27+IF(O45<Rates!$U$96,$T$27,0) -> 406.3592308 | U45: =SUMIF($P45:$S45,">0")-$S$27+IF(P45<Rates!$U$96,$T$27,0) -> 406.3592308 | V45: =IF(U45<Rates!$F$105,"1st",IF(AND(Rates!$F$105<='Universal Credit Table'!U45,'Universal Credit Table'!U45<Rates!$F$106),"2nd",IF(AND(Rates!$F$106<='Universal Credit Table'!U45,'Universal Credit Table'!U45<Rates!$F$107),"3rd",IF(AND(Rates!$F$107<='Universal Credit Table'!U45,'Universal Credit Table'!U45<Rates!$F$108),"4th",IF(AND(Rates!$F$108<='Universal Credit Table'!U45,'Universal Credit Table'!U45<Rates!$F$109),"5th",IF(AND(Rates!$F$109<='Universal Credit Table'!U45,'Universal Credit Table'!U45<Rates!$F$110),"6th",IF(AND(Rates!$F$110<='Universal Credit Table'!U45,'Universal Credit Table'!U45<Rates!$F$111),"7th",IF(AND(Rates!$F$111<='Universal Credit Table'!U45,'Universal Credit Table'!U45<Rates!$F$112),"8th",IF(AND(Rates!$F$112<='Universal Credit Table'!U45,'Universal Credit Table'!U45<Rates!$F$113),"9th",">9th"))))))))) -> 2nd | W45: =U45-$R$27-$Q$27-'Model Setup'!$F$37 -> 246.3592308 | X45: =IF(W45<Rates!$N$105,"1st",IF(AND(Rates!$N$105<='Universal Credit Table'!W45,'Universal Credit Table'!W45<Rates!$N$106),"2nd",IF(AND(Rates!$N$106<='Universal Credit Table'!W45,'Universal Credit Table'!W45<Rates!$N$107),"3rd",IF(AND(Rates!$N$107<='Universal Credit Table'!W45,'Universal Credit Table'!W45<Rates!$N$108),"4th",IF(AND(Rates!$N$108<='Universal Credit Table'!W45,'Universal Credit Table'!W45<Rates!$N$109),"5th",IF(AND(Rates!$N$109<='Universal Credit Table'!W45,'Universal Credit Table'!W45<Rates!$N$110),"6th",IF(AND(Rates!$N$110<='Universal Credit Table'!W45,'Universal Credit Table'!W45<Rates!$N$111),"7th",IF(AND(Rates!$N$111<='Universal Credit Table'!W45,'Universal Credit Table'!W45<Rates!$N$112),"8th",IF(AND(Rates!$N$112<='Universal Credit Table'!W45,'Universal Credit Table'!W45<Rates!$N$113),"9th",">9th"))))))))) -> 1st | Y45: 0 | AA45: =IF(AND('Model Setup'!$J$33=0,'Model Setup'!$O$33=0),"-",(W45-'Single Earner Tables'!AG45)/'Single Earner Tables'!AG45) -> - | AB45: =IF(AA45<>"-",AA45*'Single Earner Tables'!AG45,"-") -> - | AC45: 0.9756453209 | AE45: =IF($D45<Rates!$N$16,Rates!$N$13,(Rates!$N$13-(0.5*($D45-Rates!$N$16)))) -> 241.0684932 | AF45: =IF('Model Setup'!$F$30="Single",0,IF('Model Setup'!$K$30="Not Married",0,IF(D45>=Rates!$N$17,0,IF(I45<(Rates!$N$13-Rates!$N$14),Rates!$N$14,Rates!$N$13-I45)))) -> 23.97260274 | AG45: -259.0410959 | AK45: =IF($I45>Rates!$N$16,(Rates!$N$13-(0.5*($I45-Rates!$N$16))),IF((AF45>0),Rates!$N$13-AF45,Rates!$N$13)) -> 217.0958904 | AL45: -217.0958904 | AM45: =IF($AL45<=0,0,IF($AL45<=Rates!$N$22,$AL45,Rates!$N$20-IF($AK45>=0,$AK45,0))) -> 0 | AN45: =IF($AL45<=Rates!$N$22,0,IF(($AL45-$AM45)<=Rates!$N$23,('Universal Credit Table'!$AL45-$AM45),Rates!$N$23)) -> 0 | AO45: 0
A46: 365 | C46: 365 | D46: 7 | E46: =(IF($AG46<=0,0,IF($AG46<=Rates!$N$22,$AG46,Rates!$N$20-IF($AE46>=0,$AE46,0))))*Rates!$N$24+(IF($AG46<=Rates!$N$22,0,IF(($AG46-$AH46)<=Rates!$N$23,('Universal Credit Table'!$AG46-$AH46),Rates!$N$23)))*Rates!$N$25+(IF(($AG46-($AH46+$AI46))>0,($AG46-($AH46+$AI46)),0))*Rates!$N$26 -> 0 | F46: =IF($D46<Rates!$N$32,0,Rates!$N$34*(MIN($D46,Rates!$N$33)-Rates!$N$32)+Rates!$N$35*(MAX($D46,Rates!$N$33)-Rates!$N$33)) -> 0 | G46: 7 | H46: 0 | I46: =IF('Model Setup'!$J$33=0,'Model Setup'!$O$33,IF(((D46/'Model Setup'!$F$33)*'Model Setup'!$J$33)>=0,((D46/'Model Setup'!$F$33)*'Model Setup'!$J$33),0)) -> 0 | J46: =(IF($AL46<=0,0,IF($AL46<=Rates!$N$22,$AL46,Rates!$N$20-IF($AK46>=0,$AK46,0))))*Rates!$N$24+(IF($AL46<=Rates!$N$22,0,IF(($AL46-$AM46)<=Rates!$N$23,('Universal Credit Table'!$AL46-$AM46),Rates!$N$23)))*Rates!$N$25+(IF(($AL46-($AM46+$AN46))>0,($AL46-($AM46+$AN46)),0))*Rates!$N$26 -> 0 | K46: =IF($I46<Rates!$N$32,0,Rates!$N$34*(MIN($I46,Rates!$N$33)-Rates!$N$32)+Rates!$N$35*(MAX($I46,Rates!$N$33)-Rates!$N$33)) -> 0 | L46: 0 | M46: 0 | N46: 0 | O46: 7 | P46: 7 | Q46: =IF(D46<Rates!$U$82,$E$27,($E$27-(D46-Rates!$U$82)/(100/365*7)/100*$E$27)) -> 35 | R46: =0.75*IF(P46<$P$18,$K$18,$K$18-($P46-$P$18)*Rates!$U$73) -> 25.5 | S46: =IF('Model Setup'!$F$35=0,$O$27-(P46*Rates!$J$87),IF(AND($K$27>0,P46>Rates!$K$83),$O$27-((P46-Rates!$K$83)*Rates!$J$87),IF(AND($K$27>0,P46<Rates!$K$83),$O$27,IF(AND($K$27=0,P46>Rates!$K$77),$O$27-((P46-Rates!$K$77)*Rates!$J$87),$O$27)))) -> 352.9592308 | T46: =SUMIF($P46:$S46,">0")-$S$27+IF(O46<Rates!$U$96,$T$27,0) -> 407.3592308 | U46: =SUMIF($P46:$S46,">0")-$S$27+IF(P46<Rates!$U$96,$T$27,0) -> 407.3592308 | V46: =IF(U46<Rates!$F$105,"1st",IF(AND(Rates!$F$105<='Universal Credit Table'!U46,'Universal Credit Table'!U46<Rates!$F$106),"2nd",IF(AND(Rates!$F$106<='Universal Credit Table'!U46,'Universal Credit Table'!U46<Rates!$F$107),"3rd",IF(AND(Rates!$F$107<='Universal Credit Table'!U46,'Universal Credit Table'!U46<Rates!$F$108),"4th",IF(AND(Rates!$F$108<='Universal Credit Table'!U46,'Universal Credit Table'!U46<Rates!$F$109),"5th",IF(AND(Rates!$F$109<='Universal Credit Table'!U46,'Universal Credit Table'!U46<Rates!$F$110),"6th",IF(AND(Rates!$F$110<='Universal Credit Table'!U46,'Universal Credit Table'!U46<Rates!$F$111),"7th",IF(AND(Rates!$F$111<='Universal Credit Table'!U46,'Universal Credit Table'!U46<Rates!$F$112),"8th",IF(AND(Rates!$F$112<='Universal Credit Table'!U46,'Universal Credit Table'!U46<Rates!$F$113),"9th",">9th"))))))))) -> 2nd | W46: =U46-$R$27-$Q$27-'Model Setup'!$F$37 -> 247.3592308 | X46: =IF(W46<Rates!$N$105,"1st",IF(AND(Rates!$N$105<='Universal Credit Table'!W46,'Universal Credit Table'!W46<Rates!$N$106),"2nd",IF(AND(Rates!$N$106<='Universal Credit Table'!W46,'Universal Credit Table'!W46<Rates!$N$107),"3rd",IF(AND(Rates!$N$107<='Universal Credit Table'!W46,'Universal Credit Table'!W46<Rates!$N$108),"4th",IF(AND(Rates!$N$108<='Universal Credit Table'!W46,'Universal Credit Table'!W46<Rates!$N$109),"5th",IF(AND(Rates!$N$109<='Universal Credit Table'!W46,'Universal Credit Table'!W46<Rates!$N$110),"6th",IF(AND(Rates!$N$110<='Universal Credit Table'!W46,'Universal Credit Table'!W46<Rates!$N$111),"7th",IF(AND(Rates!$N$111<='Universal Credit Table'!W46,'Universal Credit Table'!W46<Rates!$N$112),"8th",IF(AND(Rates!$N$112<='Universal Credit Table'!W46,'Universal Credit Table'!W46<Rates!$N$113),"9th",">9th"))))))))) -> 1st | Y46: 0 | AA46: =IF(AND('Model Setup'!$J$33=0,'Model Setup'!$O$33=0),"-",(W46-'Single Earner Tables'!AG46)/'Single Earner Tables'!AG46) -> - | AB46: =IF(AA46<>"-",AA46*'Single Earner Tables'!AG46,"-") -> - | AC46: 0.9717010763 | AE46: =IF($D46<Rates!$N$16,Rates!$N$13,(Rates!$N$13-(0.5*($D46-Rates!$N$16)))) -> 241.0684932 | AF46: =IF('Model Setup'!$F$30="Single",0,IF('Model Setup'!$K$30="Not Married",0,IF(D46>=Rates!$N$17,0,IF(I46<(Rates!$N$13-Rates!$N$14),Rates!$N$14,Rates!$N$13-I46)))) -> 23.97260274 | AG46: -258.0410959 | AK46: =IF($I46>Rates!$N$16,(Rates!$N$13-(0.5*($I46-Rates!$N$16))),IF((AF46>0),Rates!$N$13-AF46,Rates!$N$13)) -> 217.0958904 | AL46: -217.0958904 | AM46: =IF($AL46<=0,0,IF($AL46<=Rates!$N$22,$AL46,Rates!$N$20-IF($AK46>=0,$AK46,0))) -> 0 | AN46: =IF($AL46<=Rates!$N$22,0,IF(($AL46-$AM46)<=Rates!$N$23,('Universal Credit Table'!$AL46-$AM46),Rates!$N$23)) -> 0 | AO46: 0
A47: 417.1428571 | C47: 417.1428571 | D47: 8 | E47: =(IF($AG47<=0,0,IF($AG47<=Rates!$N$22,$AG47,Rates!$N$20-IF($AE47>=0,$AE47,0))))*Rates!$N$24+(IF($AG47<=Rates!$N$22,0,IF(($AG47-$AH47)<=Rates!$N$23,('Universal Credit Table'!$AG47-$AH47),Rates!$N$23)))*Rates!$N$25+(IF(($AG47-($AH47+$AI47))>0,($AG47-($AH47+$AI47)),0))*Rates!$N$26 -> 0 | F47: =IF($D47<Rates!$N$32,0,Rates!$N$34*(MIN($D47,Rates!$N$33)-Rates!$N$32)+Rates!$N$35*(MAX($D47,Rates!$N$33)-Rates!$N$33)) -> 0 | G47: 8 | H47: 0 | I47: =IF('Model Setup'!$J$33=0,'Model Setup'!$O$33,IF(((D47/'Model Setup'!$F$33)*'Model Setup'!$J$33)>=0,((D47/'Model Setup'!$F$33)*'Model Setup'!$J$33),0)) -> 0 | J47: =(IF($AL47<=0,0,IF($AL47<=Rates!$N$22,$AL47,Rates!$N$20-IF($AK47>=0,$AK47,0))))*Rates!$N$24+(IF($AL47<=Rates!$N$22,0,IF(($AL47-$AM47)<=Rates!$N$23,('Universal Credit Table'!$AL47-$AM47),Rates!$N$23)))*Rates!$N$25+(IF(($AL47-($AM47+$AN47))>0,($AL47-($AM47+$AN47)),0))*Rates!$N$26 -> 0 | K47: =IF($I47<Rates!$N$32,0,Rates!$N$34*(MIN($I47,Rates!$N$33)-Rates!$N$32)+Rates!$N$35*(MAX($I47,Rates!$N$33)-Rates!$N$33)) -> 0 | L47: 0 | M47: 0 | N47: 0 | O47: 8 | P47: 8 | Q47: =IF(D47<Rates!$U$82,$E$27,($E$27-(D47-Rates!$U$82)/(100/365*7)/100*$E$27)) -> 35 | R47: =0.75*IF(P47<$P$18,$K$18,$K$18-($P47-$P$18)*Rates!$U$73) -> 25.5 | S47: =IF('Model Setup'!$F$35=0,$O$27-(P47*Rates!$J$87),IF(AND($K$27>0,P47>Rates!$K$83),$O$27-((P47-Rates!$K$83)*Rates!$J$87),IF(AND($K$27>0,P47<Rates!$K$83),$O$27,IF(AND($K$27=0,P47>Rates!$K$77),$O$27-((P47-Rates!$K$77)*Rates!$J$87),$O$27)))) -> 352.9592308 | T47: =SUMIF($P47:$S47,">0")-$S$27+IF(O47<Rates!$U$96,$T$27,0) -> 408.3592308 | U47: =SUMIF($P47:$S47,">0")-$S$27+IF(P47<Rates!$U$96,$T$27,0) -> 408.3592308 | V47: =IF(U47<Rates!$F$105,"1st",IF(AND(Rates!$F$105<='Universal Credit Table'!U47,'Universal Credit Table'!U47<Rates!$F$106),"2nd",IF(AND(Rates!$F$106<='Universal Credit Table'!U47,'Universal Credit Table'!U47<Rates!$F$107),"3rd",IF(AND(Rates!$F$107<='Universal Credit Table'!U47,'Universal Credit Table'!U47<Rates!$F$108),"4th",IF(AND(Rates!$F$108<='Universal Credit Table'!U47,'Universal Credit Table'!U47<Rates!$F$109),"5th",IF(AND(Rates!$F$109<='Universal Credit Table'!U47,'Universal Credit Table'!U47<Rates!$F$110),"6th",IF(AND(Rates!$F$110<='Universal Credit Table'!U47,'Universal Credit Table'!U47<Rates!$F$111),"7th",IF(AND(Rates!$F$111<='Universal Credit Table'!U47,'Universal Credit Table'!U47<Rates!$F$112),"8th",IF(AND(Rates!$F$112<='Universal Credit Table'!U47,'Universal Credit Table'!U47<Rates!$F$113),"9th",">9th"))))))))) -> 2nd | W47: =U47-$R$27-$Q$27-'Model Setup'!$F$37 -> 248.3592308 | X47: =IF(W47<Rates!$N$105,"1st",IF(AND(Rates!$N$105<='Universal Credit Table'!W47,'Universal Credit Table'!W47<Rates!$N$106),"2nd",IF(AND(Rates!$N$106<='Universal Credit Table'!W47,'Universal Credit Table'!W47<Rates!$N$107),"3rd",IF(AND(Rates!$N$107<='Universal Credit Table'!W47,'Universal Credit Table'!W47<Rates!$N$108),"4th",IF(AND(Rates!$N$108<='Universal Credit Table'!W47,'Universal Credit Table'!W47<Rates!$N$109),"5th",IF(AND(Rates!$N$109<='Universal Credit Table'!W47,'Universal Credit Table'!W47<Rates!$N$110),"6th",IF(AND(Rates!$N$110<='Universal Credit Table'!W47,'Universal Credit Table'!W47<Rates!$N$111),"7th",IF(AND(Rates!$N$111<='Universal Credit Table'!W47,'Universal Credit Table'!W47<Rates!$N$112),"8th",IF(AND(Rates!$N$112<='Universal Credit Table'!W47,'Universal Credit Table'!W47<Rates!$N$113),"9th",">9th"))))))))) -> 1st | Y47: 0 | AA47: =IF(AND('Model Setup'!$J$33=0,'Model Setup'!$O$33=0),"-",(W47-'Single Earner Tables'!AG47)/'Single Earner Tables'!AG47) -> - | AB47: =IF(AA47<>"-",AA47*'Single Earner Tables'!AG47,"-") -> - | AC47: 0.9677885941 | AE47: =IF($D47<Rates!$N$16,Rates!$N$13,(Rates!$N$13-(0.5*($D47-Rates!$N$16)))) -> 241.0684932 | AF47: =IF('Model Setup'!$F$30="Single",0,IF('Model Setup'!$K$30="Not Married",0,IF(D47>=Rates!$N$17,0,IF(I47<(Rates!$N$13-Rates!$N$14),Rates!$N$14,Rates!$N$13-I47)))) -> 23.97260274 | AG47: -257.0410959 | AK47: =IF($I47>Rates!$N$16,(Rates!$N$13-(0.5*($I47-Rates!$N$16))),IF((AF47>0),Rates!$N$13-AF47,Rates!$N$13)) -> 217.0958904 | AL47: -217.0958904 | AM47: =IF($AL47<=0,0,IF($AL47<=Rates!$N$22,$AL47,Rates!$N$20-IF($AK47>=0,$AK47,0))) -> 0 | AN47: =IF($AL47<=Rates!$N$22,0,IF(($AL47-$AM47)<=Rates!$N$23,('Universal Credit Table'!$AL47-$AM47),Rates!$N$23)) -> 0 | AO47: 0
A48: 469.2857143 | C48: 469.2857143 | D48: 9 | E48: =(IF($AG48<=0,0,IF($AG48<=Rates!$N$22,$AG48,Rates!$N$20-IF($AE48>=0,$AE48,0))))*Rates!$N$24+(IF($AG48<=Rates!$N$22,0,IF(($AG48-$AH48)<=Rates!$N$23,('Universal Credit Table'!$AG48-$AH48),Rates!$N$23)))*Rates!$N$25+(IF(($AG48-($AH48+$AI48))>0,($AG48-($AH48+$AI48)),0))*Rates!$N$26 -> 0 | F48: =IF($D48<Rates!$N$32,0,Rates!$N$34*(MIN($D48,Rates!$N$33)-Rates!$N$32)+Rates!$N$35*(MAX($D48,Rates!$N$33)-Rates!$N$33)) -> 0 | G48: 9 | H48: 0 | I48: =IF('Model Setup'!$J$33=0,'Model Setup'!$O$33,IF(((D48/'Model Setup'!$F$33)*'Model Setup'!$J$33)>=0,((D48/'Model Setup'!$F$33)*'Model Setup'!$J$33),0)) -> 0 | J48: =(IF($AL48<=0,0,IF($AL48<=Rates!$N$22,$AL48,Rates!$N$20-IF($AK48>=0,$AK48,0))))*Rates!$N$24+(IF($AL48<=Rates!$N$22,0,IF(($AL48-$AM48)<=Rates!$N$23,('Universal Credit Table'!$AL48-$AM48),Rates!$N$23)))*Rates!$N$25+(IF(($AL48-($AM48+$AN48))>0,($AL48-($AM48+$AN48)),0))*Rates!$N$26 -> 0 | K48: =IF($I48<Rates!$N$32,0,Rates!$N$34*(MIN($I48,Rates!$N$33)-Rates!$N$32)+Rates!$N$35*(MAX($I48,Rates!$N$33)-Rates!$N$33)) -> 0 | L48: 0 | M48: 0 | N48: 0 | O48: 9 | P48: 9 | Q48: =IF(D48<Rates!$U$82,$E$27,($E$27-(D48-Rates!$U$82)/(100/365*7)/100*$E$27)) -> 35 | R48: =0.75*IF(P48<$P$18,$K$18,$K$18-($P48-$P$18)*Rates!$U$73) -> 25.5 | S48: =IF('Model Setup'!$F$35=0,$O$27-(P48*Rates!$J$87),IF(AND($K$27>0,P48>Rates!$K$83),$O$27-((P48-Rates!$K$83)*Rates!$J$87),IF(AND($K$27>0,P48<Rates!$K$83),$O$27,IF(AND($K$27=0,P48>Rates!$K$77),$O$27-((P48-Rates!$K$77)*Rates!$J$87),$O$27)))) -> 352.9592308 | T48: =SUMIF($P48:$S48,">0")-$S$27+IF(O48<Rates!$U$96,$T$27,0) -> 409.3592308 | U48: =SUMIF($P48:$S48,">0")-$S$27+IF(P48<Rates!$U$96,$T$27,0) -> 409.3592308 | V48: =IF(U48<Rates!$F$105,"1st",IF(AND(Rates!$F$105<='Universal Credit Table'!U48,'Universal Credit Table'!U48<Rates!$F$106),"2nd",IF(AND(Rates!$F$106<='Universal Credit Table'!U48,'Universal Credit Table'!U48<Rates!$F$107),"3rd",IF(AND(Rates!$F$107<='Universal Credit Table'!U48,'Universal Credit Table'!U48<Rates!$F$108),"4th",IF(AND(Rates!$F$108<='Universal Credit Table'!U48,'Universal Credit Table'!U48<Rates!$F$109),"5th",IF(AND(Rates!$F$109<='Universal Credit Table'!U48,'Universal Credit Table'!U48<Rates!$F$110),"6th",IF(AND(Rates!$F$110<='Universal Credit Table'!U48,'Universal Credit Table'!U48<Rates!$F$111),"7th",IF(AND(Rates!$F$111<='Universal Credit Table'!U48,'Universal Credit Table'!U48<Rates!$F$112),"8th",IF(AND(Rates!$F$112<='Universal Credit Table'!U48,'Universal Credit Table'!U48<Rates!$F$113),"9th",">9th"))))))))) -> 2nd | W48: =U48-$R$27-$Q$27-'Model Setup'!$F$37 -> 249.3592308 | X48: =IF(W48<Rates!$N$105,"1st",IF(AND(Rates!$N$105<='Universal Credit Table'!W48,'Universal Credit Table'!W48<Rates!$N$106),"2nd",IF(AND(Rates!$N$106<='Universal Credit Table'!W48,'Universal Credit Table'!W48<Rates!$N$107),"3rd",IF(AND(Rates!$N$107<='Universal Credit Table'!W48,'Universal Credit Table'!W48<Rates!$N$108),"4th",IF(AND(Rates!$N$108<='Universal Credit Table'!W48,'Universal Credit Table'!W48<Rates!$N$109),"5th",IF(AND(Rates!$N$109<='Universal Credit Table'!W48,'Universal Credit Table'!W48<Rates!$N$110),"6th",IF(AND(Rates!$N$110<='Universal Credit Table'!W48,'Universal Credit Table'!W48<Rates!$N$111),"7th",IF(AND(Rates!$N$111<='Universal Credit Table'!W48,'Universal Credit Table'!W48<Rates!$N$112),"8th",IF(AND(Rates!$N$112<='Universal Credit Table'!W48,'Universal Credit Table'!W48<Rates!$N$113),"9th",">9th"))))))))) -> 1st | Y48: 0 | AA48: =IF(AND('Model Setup'!$J$33=0,'Model Setup'!$O$33=0),"-",(W48-'Single Earner Tables'!AG48)/'Single Earner Tables'!AG48) -> - | AB48: =IF(AA48<>"-",AA48*'Single Earner Tables'!AG48,"-") -> - | AC48: 0.9639074921 | AE48: =IF($D48<Rates!$N$16,Rates!$N$13,(Rates!$N$13-(0.5*($D48-Rates!$N$16)))) -> 241.0684932 | AF48: =IF('Model Setup'!$F$30="Single",0,IF('Model Setup'!$K$30="Not Married",0,IF(D48>=Rates!$N$17,0,IF(I48<(Rates!$N$13-Rates!$N$14),Rates!$N$14,Rates!$N$13-I48)))) -> 23.97260274 | AG48: -256.0410959 | AK48: =IF($I48>Rates!$N$16,(Rates!$N$13-(0.5*($I48-Rates!$N$16))),IF((AF48>0),Rates!$N$13-AF48,Rates!$N$13)) -> 217.0958904 | AL48: -217.0958904 | AM48: =IF($AL48<=0,0,IF($AL48<=Rates!$N$22,$AL48,Rates!$N$20-IF($AK48>=0,$AK48,0))) -> 0 | AN48: =IF($AL48<=Rates!$N$22,0,IF(($AL48-$AM48)<=Rates!$N$23,('Universal Credit Table'!$AL48-$AM48),Rates!$N$23)) -> 0 | AO48: 0
A49: 521.4285714 | C49: 521.4285714 | D49: 10 | E49: =(IF($AG49<=0,0,IF($AG49<=Rates!$N$22,$AG49,Rates!$N$20-IF($AE49>=0,$AE49,0))))*Rates!$N$24+(IF($AG49<=Rates!$N$22,0,IF(($AG49-$AH49)<=Rates!$N$23,('Universal Credit Table'!$AG49-$AH49),Rates!$N$23)))*Rates!$N$25+(IF(($AG49-($AH49+$AI49))>0,($AG49-($AH49+$AI49)),0))*Rates!$N$26 -> 0 | F49: =IF($D49<Rates!$N$32,0,Rates!$N$34*(MIN($D49,Rates!$N$33)-Rates!$N$32)+Rates!$N$35*(MAX($D49,Rates!$N$33)-Rates!$N$33)) -> 0 | G49: 10 | H49: 0 | I49: =IF('Model Setup'!$J$33=0,'Model Setup'!$O$33,IF(((D49/'Model Setup'!$F$33)*'Model Setup'!$J$33)>=0,((D49/'Model Setup'!$F$33)*'Model Setup'!$J$33),0)) -> 0 | J49: =(IF($AL49<=0,0,IF($AL49<=Rates!$N$22,$AL49,Rates!$N$20-IF($AK49>=0,$AK49,0))))*Rates!$N$24+(IF($AL49<=Rates!$N$22,0,IF(($AL49-$AM49)<=Rates!$N$23,('Universal Credit Table'!$AL49-$AM49),Rates!$N$23)))*Rates!$N$25+(IF(($AL49-($AM49+$AN49))>0,($AL49-($AM49+$AN49)),0))*Rates!$N$26 -> 0 | K49: =IF($I49<Rates!$N$32,0,Rates!$N$34*(MIN($I49,Rates!$N$33)-Rates!$N$32)+Rates!$N$35*(MAX($I49,Rates!$N$33)-Rates!$N$33)) -> 0 | L49: 0 | M49: 0 | N49: 0 | O49: 10 | P49: 10 | Q49: =IF(D49<Rates!$U$82,$E$27,($E$27-(D49-Rates!$U$82)/(100/365*7)/100*$E$27)) -> 35 | R49: =0.75*IF(P49<$P$18,$K$18,$K$18-($P49-$P$18)*Rates!$U$73) -> 25.5 | S49: =IF('Model Setup'!$F$35=0,$O$27-(P49*Rates!$J$87),IF(AND($K$27>0,P49>Rates!$K$83),$O$27-((P49-Rates!$K$83)*Rates!$J$87),IF(AND($K$27>0,P49<Rates!$K$83),$O$27,IF(AND($K$27=0,P49>Rates!$K$77),$O$27-((P49-Rates!$K$77)*Rates!$J$87),$O$27)))) -> 352.9592308 | T49: =SUMIF($P49:$S49,">0")-$S$27+IF(O49<Rates!$U$96,$T$27,0) -> 410.3592308 | U49: =SUMIF($P49:$S49,">0")-$S$27+IF(P49<Rates!$U$96,$T$27,0) -> 410.3592308 | V49: =IF(U49<Rates!$F$105,"1st",IF(AND(Rates!$F$105<='Universal Credit Table'!U49,'Universal Credit Table'!U49<Rates!$F$106),"2nd",IF(AND(Rates!$F$106<='Universal Credit Table'!U49,'Universal Credit Table'!U49<Rates!$F$107),"3rd",IF(AND(Rates!$F$107<='Universal Credit Table'!U49,'Universal Credit Table'!U49<Rates!$F$108),"4th",IF(AND(Rates!$F$108<='Universal Credit Table'!U49,'Universal Credit Table'!U49<Rates!$F$109),"5th",IF(AND(Rates!$F$109<='Universal Credit Table'!U49,'Universal Credit Table'!U49<Rates!$F$110),"6th",IF(AND(Rates!$F$110<='Universal Credit Table'!U49,'Universal Credit Table'!U49<Rates!$F$111),"7th",IF(AND(Rates!$F$111<='Universal Credit Table'!U49,'Universal Credit Table'!U49<Rates!$F$112),"8th",IF(AND(Rates!$F$112<='Universal Credit Table'!U49,'Universal Credit Table'!U49<Rates!$F$113),"9th",">9th"))))))))) -> 2nd | W49: =U49-$R$27-$Q$27-'Model Setup'!$F$37 -> 250.3592308 | X49: =IF(W49<Rates!$N$105,"1st",IF(AND(Rates!$N$105<='Universal Credit Table'!W49,'Universal Credit Table'!W49<Rates!$N$106),"2nd",IF(AND(Rates!$N$106<='Universal Credit Table'!W49,'Universal Credit Table'!W49<Rates!$N$107),"3rd",IF(AND(Rates!$N$107<='Universal Credit Table'!W49,'Universal Credit Table'!W49<Rates!$N$108),"4th",IF(AND(Rates!$N$108<='Universal Credit Table'!W49,'Universal Credit Table'!W49<Rates!$N$109),"5th",IF(AND(Rates!$N$109<='Universal Credit Table'!W49,'Universal Credit Table'!W49<Rates!$N$110),"6th",IF(AND(Rates!$N$110<='Universal Credit Table'!W49,'Universal Credit Table'!W49<Rates!$N$111),"7th",IF(AND(Rates!$N$111<='Universal Credit Table'!W49,'Universal Credit Table'!W49<Rates!$N$112),"8th",IF(AND(Rates!$N$112<='Universal Credit Table'!W49,'Universal Credit Table'!W49<Rates!$N$113),"9th",">9th"))))))))) -> 1st | Y49: 0 | AA49: =IF(AND('Model Setup'!$J$33=0,'Model Setup'!$O$33=0),"-",(W49-'Single Earner Tables'!AG49)/'Single Earner Tables'!AG49) -> - | AB49: =IF(AA49<>"-",AA49*'Single Earner Tables'!AG49,"-") -> - | AC49: 0.9600573945 | AE49: =IF($D49<Rates!$N$16,Rates!$N$13,(Rates!$N$13-(0.5*($D49-Rates!$N$16)))) -> 241.0684932 | AF49: =IF('Model Setup'!$F$30="Single",0,IF('Model Setup'!$K$30="Not Married",0,IF(D49>=Rates!$N$17,0,IF(I49<(Rates!$N$13-Rates!$N$14),Rates!$N$14,Rates!$N$13-I49)))) -> 23.97260274 | AG49: -255.0410959 | AK49: =IF($I49>Rates!$N$16,(Rates!$N$13-(0.5*($I49-Rates!$N$16))),IF((AF49>0),Rates!$N$13-AF49,Rates!$N$13)) -> 217.0958904 | AL49: -217.0958904 | AM49: =IF($AL49<=0,0,IF($AL49<=Rates!$N$22,$AL49,Rates!$N$20-IF($AK49>=0,$AK49,0))) -> 0 | AN49: =IF($AL49<=Rates!$N$22,0,IF(($AL49-$AM49)<=Rates!$N$23,('Universal Credit Table'!$AL49-$AM49),Rates!$N$23)) -> 0 | AO49: 0
A50: 573.5714286 | C50: 573.5714286 | D50: 11 | E50: =(IF($AG50<=0,0,IF($AG50<=Rates!$N$22,$AG50,Rates!$N$20-IF($AE50>=0,$AE50,0))))*Rates!$N$24+(IF($AG50<=Rates!$N$22,0,IF(($AG50-$AH50)<=Rates!$N$23,('Universal Credit Table'!$AG50-$AH50),Rates!$N$23)))*Rates!$N$25+(IF(($AG50-($AH50+$AI50))>0,($AG50-($AH50+$AI50)),0))*Rates!$N$26 -> 0 | F50: =IF($D50<Rates!$N$32,0,Rates!$N$34*(MIN($D50,Rates!$N$33)-Rates!$N$32)+Rates!$N$35*(MAX($D50,Rates!$N$33)-Rates!$N$33)) -> 0 | G50: 11 | H50: 0 | I50: =IF('Model Setup'!$J$33=0,'Model Setup'!$O$33,IF(((D50/'Model Setup'!$F$33)*'Model Setup'!$J$33)>=0,((D50/'Model Setup'!$F$33)*'Model Setup'!$J$33),0)) -> 0 | J50: =(IF($AL50<=0,0,IF($AL50<=Rates!$N$22,$AL50,Rates!$N$20-IF($AK50>=0,$AK50,0))))*Rates!$N$24+(IF($AL50<=Rates!$N$22,0,IF(($AL50-$AM50)<=Rates!$N$23,('Universal Credit Table'!$AL50-$AM50),Rates!$N$23)))*Rates!$N$25+(IF(($AL50-($AM50+$AN50))>0,($AL50-($AM50+$AN50)),0))*Rates!$N$26 -> 0 | K50: =IF($I50<Rates!$N$32,0,Rates!$N$34*(MIN($I50,Rates!$N$33)-Rates!$N$32)+Rates!$N$35*(MAX($I50,Rates!$N$33)-Rates!$N$33)) -> 0 | L50: 0 | M50: 0 | N50: 0 | O50: 11 | P50: 11 | Q50: =IF(D50<Rates!$U$82,$E$27,($E$27-(D50-Rates!$U$82)/(100/365*7)/100*$E$27)) -> 35 | R50: =0.75*IF(P50<$P$18,$K$18,$K$18-($P50-$P$18)*Rates!$U$73) -> 25.5 | S50: =IF('Model Setup'!$F$35=0,$O$27-(P50*Rates!$J$87),IF(AND($K$27>0,P50>Rates!$K$83),$O$27-((P50-Rates!$K$83)*Rates!$J$87),IF(AND($K$27>0,P50<Rates!$K$83),$O$27,IF(AND($K$27=0,P50>Rates!$K$77),$O$27-((P50-Rates!$K$77)*Rates!$J$87),$O$27)))) -> 352.9592308 | T50: =SUMIF($P50:$S50,">0")-$S$27+IF(O50<Rates!$U$96,$T$27,0) -> 411.3592308 | U50: =SUMIF($P50:$S50,">0")-$S$27+IF(P50<Rates!$U$96,$T$27,0) -> 411.3592308 | V50: =IF(U50<Rates!$F$105,"1st",IF(AND(Rates!$F$105<='Universal Credit Table'!U50,'Universal Credit Table'!U50<Rates!$F$106),"2nd",IF(AND(Rates!$F$106<='Universal Credit Table'!U50,'Universal Credit Table'!U50<Rates!$F$107),"3rd",IF(AND(Rates!$F$107<='Universal Credit Table'!U50,'Universal Credit Table'!U50<Rates!$F$108),"4th",IF(AND(Rates!$F$108<='Universal Credit Table'!U50,'Universal Credit Table'!U50<Rates!$F$109),"5th",IF(AND(Rates!$F$109<='Universal Credit Table'!U50,'Universal Credit Table'!U50<Rates!$F$110),"6th",IF(AND(Rates!$F$110<='Universal Credit Table'!U50,'Universal Credit Table'!U50<Rates!$F$111),"7th",IF(AND(Rates!$F$111<='Universal Credit Table'!U50,'Universal Credit Table'!U50<Rates!$F$112),"8th",IF(AND(Rates!$F$112<='Universal Credit Table'!U50,'Universal Credit Table'!U50<Rates!$F$113),"9th",">9th"))))))))) -> 2nd | W50: =U50-$R$27-$Q$27-'Model Setup'!$F$37 -> 251.3592308 | X50: =IF(W50<Rates!$N$105,"1st",IF(AND(Rates!$N$105<='Universal Credit Table'!W50,'Universal Credit Table'!W50<Rates!$N$106),"2nd",IF(AND(Rates!$N$106<='Universal Credit Table'!W50,'Universal Credit Table'!W50<Rates!$N$107),"3rd",IF(AND(Rates!$N$107<='Universal Credit Table'!W50,'Universal Credit Table'!W50<Rates!$N$108),"4th",IF(AND(Rates!$N$108<='Universal Credit Table'!W50,'Universal Credit Table'!W50<Rates!$N$109),"5th",IF(AND(Rates!$N$109<='Universal Credit Table'!W50,'Universal Credit Table'!W50<Rates!$N$110),"6th",IF(AND(Rates!$N$110<='Universal Credit Table'!W50,'Universal Credit Table'!W50<Rates!$N$111),"7th",IF(AND(Rates!$N$111<='Universal Credit Table'!W50,'Universal Credit Table'!W50<Rates!$N$112),"8th",IF(AND(Rates!$N$112<='Universal Credit Table'!W50,'Universal Credit Table'!W50<Rates!$N$113),"9th",">9th"))))))))) -> 1st | Y50: 0 | AA50: =IF(AND('Model Setup'!$J$33=0,'Model Setup'!$O$33=0),"-",(W50-'Single Earner Tables'!AG50)/'Single Earner Tables'!AG50) -> - | AB50: =IF(AA50<>"-",AA50*'Single Earner Tables'!AG50,"-") -> - | AC50: 0.956237931 | AE50: =IF($D50<Rates!$N$16,Rates!$N$13,(Rates!$N$13-(0.5*($D50-Rates!$N$16)))) -> 241.0684932 | AF50: =IF('Model Setup'!$F$30="Single",0,IF('Model Setup'!$K$30="Not Married",0,IF(D50>=Rates!$N$17,0,IF(I50<(Rates!$N$13-Rates!$N$14),Rates!$N$14,Rates!$N$13-I50)))) -> 23.97260274 | AG50: -254.0410959 | AK50: =IF($I50>Rates!$N$16,(Rates!$N$13-(0.5*($I50-Rates!$N$16))),IF((AF50>0),Rates!$N$13-AF50,Rates!$N$13)) -> 217.0958904 | AL50: -217.0958904 | AM50: =IF($AL50<=0,0,IF($AL50<=Rates!$N$22,$AL50,Rates!$N$20-IF($AK50>=0,$AK50,0))) -> 0 | AN50: =IF($AL50<=Rates!$N$22,0,IF(($AL50-$AM50)<=Rates!$N$23,('Universal Credit Table'!$AL50-$AM50),Rates!$N$23)) -> 0 | AO50: 0
A51: 625.7142857 | C51: 625.7142857 | D51: 12 | E51: =(IF($AG51<=0,0,IF($AG51<=Rates!$N$22,$AG51,Rates!$N$20-IF($AE51>=0,$AE51,0))))*Rates!$N$24+(IF($AG51<=Rates!$N$22,0,IF(($AG51-$AH51)<=Rates!$N$23,('Universal Credit Table'!$AG51-$AH51),Rates!$N$23)))*Rates!$N$25+(IF(($AG51-($AH51+$AI51))>0,($AG51-($AH51+$AI51)),0))*Rates!$N$26 -> 0 | F51: =IF($D51<Rates!$N$32,0,Rates!$N$34*(MIN($D51,Rates!$N$33)-Rates!$N$32)+Rates!$N$35*(MAX($D51,Rates!$N$33)-Rates!$N$33)) -> 0 | G51: 12 | H51: 0 | I51: =IF('Model Setup'!$J$33=0,'Model Setup'!$O$33,IF(((D51/'Model Setup'!$F$33)*'Model Setup'!$J$33)>=0,((D51/'Model Setup'!$F$33)*'Model Setup'!$J$33),0)) -> 0 | J51: =(IF($AL51<=0,0,IF($AL51<=Rates!$N$22,$AL51,Rates!$N$20-IF($AK51>=0,$AK51,0))))*Rates!$N$24+(IF($AL51<=Rates!$N$22,0,IF(($AL51-$AM51)<=Rates!$N$23,('Universal Credit Table'!$AL51-$AM51),Rates!$N$23)))*Rates!$N$25+(IF(($AL51-($AM51+$AN51))>0,($AL51-($AM51+$AN51)),0))*Rates!$N$26 -> 0 | K51: =IF($I51<Rates!$N$32,0,Rates!$N$34*(MIN($I51,Rates!$N$33)-Rates!$N$32)+Rates!$N$35*(MAX($I51,Rates!$N$33)-Rates!$N$33)) -> 0 | L51: 0 | M51: 0 | N51: 0 | O51: 12 | P51: 12 | Q51: =IF(D51<Rates!$U$82,$E$27,($E$27-(D51-Rates!$U$82)/(100/365*7)/100*$E$27)) -> 35 | R51: =0.75*IF(P51<$P$18,$K$18,$K$18-($P51-$P$18)*Rates!$U$73) -> 25.5 | S51: =IF('Model Setup'!$F$35=0,$O$27-(P51*Rates!$J$87),IF(AND($K$27>0,P51>Rates!$K$83),$O$27-((P51-Rates!$K$83)*Rates!$J$87),IF(AND($K$27>0,P51<Rates!$K$83),$O$27,IF(AND($K$27=0,P51>Rates!$K$77),$O$27-((P51-Rates!$K$77)*Rates!$J$87),$O$27)))) -> 352.9592308 | T51: =SUMIF($P51:$S51,">0")-$S$27+IF(O51<Rates!$U$96,$T$27,0) -> 412.3592308 | U51: =SUMIF($P51:$S51,">0")-$S$27+IF(P51<Rates!$U$96,$T$27,0) -> 412.3592308 | V51: =IF(U51<Rates!$F$105,"1st",IF(AND(Rates!$F$105<='Universal Credit Table'!U51,'Universal Credit Table'!U51<Rates!$F$106),"2nd",IF(AND(Rates!$F$106<='Universal Credit Table'!U51,'Universal Credit Table'!U51<Rates!$F$107),"3rd",IF(AND(Rates!$F$107<='Universal Credit Table'!U51,'Universal Credit Table'!U51<Rates!$F$108),"4th",IF(AND(Rates!$F$108<='Universal Credit Table'!U51,'Universal Credit Table'!U51<Rates!$F$109),"5th",IF(AND(Rates!$F$109<='Universal Credit Table'!U51,'Universal Credit Table'!U51<Rates!$F$110),"6th",IF(AND(Rates!$F$110<='Universal Credit Table'!U51,'Universal Credit Table'!U51<Rates!$F$111),"7th",IF(AND(Rates!$F$111<='Universal Credit Table'!U51,'Universal Credit Table'!U51<Rates!$F$112),"8th",IF(AND(Rates!$F$112<='Universal Credit Table'!U51,'Universal Credit Table'!U51<Rates!$F$113),"9th",">9th"))))))))) -> 2nd | W51: =U51-$R$27-$Q$27-'Model Setup'!$F$37 -> 252.3592308 | X51: =IF(W51<Rates!$N$105,"1st",IF(AND(Rates!$N$105<='Universal Credit Table'!W51,'Universal Credit Table'!W51<Rates!$N$106),"2nd",IF(AND(Rates!$N$106<='Universal Credit Table'!W51,'Universal Credit Table'!W51<Rates!$N$107),"3rd",IF(AND(Rates!$N$107<='Universal Credit Table'!W51,'Universal Credit Table'!W51<Rates!$N$108),"4th",IF(AND(Rates!$N$108<='Universal Credit Table'!W51,'Universal Credit Table'!W51<Rates!$N$109),"5th",IF(AND(Rates!$N$109<='Universal Credit Table'!W51,'Universal Credit Table'!W51<Rates!$N$110),"6th",IF(AND(Rates!$N$110<='Universal Credit Table'!W51,'Universal Credit Table'!W51<Rates!$N$111),"7th",IF(AND(Rates!$N$111<='Universal Credit Table'!W51,'Universal Credit Table'!W51<Rates!$N$112),"8th",IF(AND(Rates!$N$112<='Universal Credit Table'!W51,'Universal Credit Table'!W51<Rates!$N$113),"9th",">9th"))))))))) -> 1st | Y51: 0 | AA51: =IF(AND('Model Setup'!$J$33=0,'Model Setup'!$O$33=0),"-",(W51-'Single Earner Tables'!AG51)/'Single Earner Tables'!AG51) -> - | AB51: =IF(AA51<>"-",AA51*'Single Earner Tables'!AG51,"-") -> - | AC51: 0.9524487376 | AE51: =IF($D51<Rates!$N$16,Rates!$N$13,(Rates!$N$13-(0.5*($D51-Rates!$N$16)))) -> 241.0684932 | AF51: =IF('Model Setup'!$F$30="Single",0,IF('Model Setup'!$K$30="Not Married",0,IF(D51>=Rates!$N$17,0,IF(I51<(Rates!$N$13-Rates!$N$14),Rates!$N$14,Rates!$N$13-I51)))) -> 23.97260274 | AG51: -253.0410959 | AK51: =IF($I51>Rates!$N$16,(Rates!$N$13-(0.5*($I51-Rates!$N$16))),IF((AF51>0),Rates!$N$13-AF51,Rates!$N$13)) -> 217.0958904 | AL51: -217.0958904 | AM51: =IF($AL51<=0,0,IF($AL51<=Rates!$N$22,$AL51,Rates!$N$20-IF($AK51>=0,$AK51,0))) -> 0 | AN51: =IF($AL51<=Rates!$N$22,0,IF(($AL51-$AM51)<=Rates!$N$23,('Universal Credit Table'!$AL51-$AM51),Rates!$N$23)) -> 0 | AO51: 0
A52: 677.8571429 | C52: 677.8571429 | D52: 13 | E52: =(IF($AG52<=0,0,IF($AG52<=Rates!$N$22,$AG52,Rates!$N$20-IF($AE52>=0,$AE52,0))))*Rates!$N$24+(IF($AG52<=Rates!$N$22,0,IF(($AG52-$AH52)<=Rates!$N$23,('Universal Credit Table'!$AG52-$AH52),Rates!$N$23)))*Rates!$N$25+(IF(($AG52-($AH52+$AI52))>0,($AG52-($AH52+$AI52)),0))*Rates!$N$26 -> 0 | F52: =IF($D52<Rates!$N$32,0,Rates!$N$34*(MIN($D52,Rates!$N$33)-Rates!$N$32)+Rates!$N$35*(MAX($D52,Rates!$N$33)-Rates!$N$33)) -> 0 | G52: 13 | H52: 0 | I52: =IF('Model Setup'!$J$33=0,'Model Setup'!$O$33,IF(((D52/'Model Setup'!$F$33)*'Model Setup'!$J$33)>=0,((D52/'Model Setup'!$F$33)*'Model Setup'!$J$33),0)) -> 0 | J52: =(IF($AL52<=0,0,IF($AL52<=Rates!$N$22,$AL52,Rates!$N$20-IF($AK52>=0,$AK52,0))))*Rates!$N$24+(IF($AL52<=Rates!$N$22,0,IF(($AL52-$AM52)<=Rates!$N$23,('Universal Credit Table'!$AL52-$AM52),Rates!$N$23)))*Rates!$N$25+(IF(($AL52-($AM52+$AN52))>0,($AL52-($AM52+$AN52)),0))*Rates!$N$26 -> 0 | K52: =IF($I52<Rates!$N$32,0,Rates!$N$34*(MIN($I52,Rates!$N$33)-Rates!$N$32)+Rates!$N$35*(MAX($I52,Rates!$N$33)-Rates!$N$33)) -> 0 | L52: 0 | M52: 0 | N52: 0 | O52: 13 | P52: 13 | Q52: =IF(D52<Rates!$U$82,$E$27,($E$27-(D52-Rates!$U$82)/(100/365*7)/100*$E$27)) -> 35 | R52: =0.75*IF(P52<$P$18,$K$18,$K$18-($P52-$P$18)*Rates!$U$73) -> 25.5 | S52: =IF('Model Setup'!$F$35=0,$O$27-(P52*Rates!$J$87),IF(AND($K$27>0,P52>Rates!$K$83),$O$27-((P52-Rates!$K$83)*Rates!$J$87),IF(AND($K$27>0,P52<Rates!$K$83),$O$27,IF(AND($K$27=0,P52>Rates!$K$77),$O$27-((P52-Rates!$K$77)*Rates!$J$87),$O$27)))) -> 352.9592308 | T52: =SUMIF($P52:$S52,">0")-$S$27+IF(O52<Rates!$U$96,$T$27,0) -> 413.3592308 | U52: =SUMIF($P52:$S52,">0")-$S$27+IF(P52<Rates!$U$96,$T$27,0) -> 413.3592308 | V52: =IF(U52<Rates!$F$105,"1st",IF(AND(Rates!$F$105<='Universal Credit Table'!U52,'Universal Credit Table'!U52<Rates!$F$106),"2nd",IF(AND(Rates!$F$106<='Universal Credit Table'!U52,'Universal Credit Table'!U52<Rates!$F$107),"3rd",IF(AND(Rates!$F$107<='Universal Credit Table'!U52,'Universal Credit Table'!U52<Rates!$F$108),"4th",IF(AND(Rates!$F$108<='Universal Credit Table'!U52,'Universal Credit Table'!U52<Rates!$F$109),"5th",IF(AND(Rates!$F$109<='Universal Credit Table'!U52,'Universal Credit Table'!U52<Rates!$F$110),"6th",IF(AND(Rates!$F$110<='Universal Credit Table'!U52,'Universal Credit Table'!U52<Rates!$F$111),"7th",IF(AND(Rates!$F$111<='Universal Credit Table'!U52,'Universal Credit Table'!U52<Rates!$F$112),"8th",IF(AND(Rates!$F$112<='Universal Credit Table'!U52,'Universal Credit Table'!U52<Rates!$F$113),"9th",">9th"))))))))) -> 2nd | W52: =U52-$R$27-$Q$27-'Model Setup'!$F$37 -> 253.3592308 | X52: =IF(W52<Rates!$N$105,"1st",IF(AND(Rates!$N$105<='Universal Credit Table'!W52,'Universal Credit Table'!W52<Rates!$N$106),"2nd",IF(AND(Rates!$N$106<='Universal Credit Table'!W52,'Universal Credit Table'!W52<Rates!$N$107),"3rd",IF(AND(Rates!$N$107<='Universal Credit Table'!W52,'Universal Credit Table'!W52<Rates!$N$108),"4th",IF(AND(Rates!$N$108<='Universal Credit Table'!W52,'Universal Credit Table'!W52<Rates!$N$109),"5th",IF(AND(Rates!$N$109<='Universal Credit Table'!W52,'Universal Credit Table'!W52<Rates!$N$110),"6th",IF(AND(Rates!$N$110<='Universal Credit Table'!W52,'Universal Credit Table'!W52<Rates!$N$111),"7th",IF(AND(Rates!$N$111<='Universal Credit Table'!W52,'Universal Credit Table'!W52<Rates!$N$112),"8th",IF(AND(Rates!$N$112<='Universal Credit Table'!W52,'Universal Credit Table'!W52<Rates!$N$113),"9th",">9th"))))))))) -> 1st | Y52: 0 | AA52: =IF(AND('Model Setup'!$J$33=0,'Model Setup'!$O$33=0),"-",(W52-'Single Earner Tables'!AG52)/'Single Earner Tables'!AG52) -> - | AB52: =IF(AA52<>"-",AA52*'Single Earner Tables'!AG52,"-") -> - | AC52: 0.9486894558 | AE52: =IF($D52<Rates!$N$16,Rates!$N$13,(Rates!$N$13-(0.5*($D52-Rates!$N$16)))) -> 241.0684932 | AF52: =IF('Model Setup'!$F$30="Single",0,IF('Model Setup'!$K$30="Not Married",0,IF(D52>=Rates!$N$17,0,IF(I52<(Rates!$N$13-Rates!$N$14),Rates!$N$14,Rates!$N$13-I52)))) -> 23.97260274 | AG52: -252.0410959 | AK52: =IF($I52>Rates!$N$16,(Rates!$N$13-(0.5*($I52-Rates!$N$16))),IF((AF52>0),Rates!$N$13-AF52,Rates!$N$13)) -> 217.0958904 | AL52: -217.0958904 | AM52: =IF($AL52<=0,0,IF($AL52<=Rates!$N$22,$AL52,Rates!$N$20-IF($AK52>=0,$AK52,0))) -> 0 | AN52: =IF($AL52<=Rates!$N$22,0,IF(($AL52-$AM52)<=Rates!$N$23,('Universal Credit Table'!$AL52-$AM52),Rates!$N$23)) -> 0 | AO52: 0
A53: 730 | C53: 730 | D53: 14 | E53: =(IF($AG53<=0,0,IF($AG53<=Rates!$N$22,$AG53,Rates!$N$20-IF($AE53>=0,$AE53,0))))*Rates!$N$24+(IF($AG53<=Rates!$N$22,0,IF(($AG53-$AH53)<=Rates!$N$23,('Universal Credit Table'!$AG53-$AH53),Rates!$N$23)))*Rates!$N$25+(IF(($AG53-($AH53+$AI53))>0,($AG53-($AH53+$AI53)),0))*Rates!$N$26 -> 0 | F53: =IF($D53<Rates!$N$32,0,Rates!$N$34*(MIN($D53,Rates!$N$33)-Rates!$N$32)+Rates!$N$35*(MAX($D53,Rates!$N$33)-Rates!$N$33)) -> 0 | G53: 14 | H53: 0 | I53: =IF('Model Setup'!$J$33=0,'Model Setup'!$O$33,IF(((D53/'Model Setup'!$F$33)*'Model Setup'!$J$33)>=0,((D53/'Model Setup'!$F$33)*'Model Setup'!$J$33),0)) -> 0 | J53: =(IF($AL53<=0,0,IF($AL53<=Rates!$N$22,$AL53,Rates!$N$20-IF($AK53>=0,$AK53,0))))*Rates!$N$24+(IF($AL53<=Rates!$N$22,0,IF(($AL53-$AM53)<=Rates!$N$23,('Universal Credit Table'!$AL53-$AM53),Rates!$N$23)))*Rates!$N$25+(IF(($AL53-($AM53+$AN53))>0,($AL53-($AM53+$AN53)),0))*Rates!$N$26 -> 0 | K53: =IF($I53<Rates!$N$32,0,Rates!$N$34*(MIN($I53,Rates!$N$33)-Rates!$N$32)+Rates!$N$35*(MAX($I53,Rates!$N$33)-Rates!$N$33)) -> 0 | L53: 0 | M53: 0 | N53: 0 | O53: 14 | P53: 14 | Q53: =IF(D53<Rates!$U$82,$E$27,($E$27-(D53-Rates!$U$82)/(100/365*7)/100*$E$27)) -> 35 | R53: =0.75*IF(P53<$P$18,$K$18,$K$18-($P53-$P$18)*Rates!$U$73) -> 25.5 | S53: =IF('Model Setup'!$F$35=0,$O$27-(P53*Rates!$J$87),IF(AND($K$27>0,P53>Rates!$K$83),$O$27-((P53-Rates!$K$83)*Rates!$J$87),IF(AND($K$27>0,P53<Rates!$K$83),$O$27,IF(AND($K$27=0,P53>Rates!$K$77),$O$27-((P53-Rates!$K$77)*Rates!$J$87),$O$27)))) -> 352.9592308 | T53: =SUMIF($P53:$S53,">0")-$S$27+IF(O53<Rates!$U$96,$T$27,0) -> 414.3592308 | U53: =SUMIF($P53:$S53,">0")-$S$27+IF(P53<Rates!$U$96,$T$27,0) -> 414.3592308 | V53: =IF(U53<Rates!$F$105,"1st",IF(AND(Rates!$F$105<='Universal Credit Table'!U53,'Universal Credit Table'!U53<Rates!$F$106),"2nd",IF(AND(Rates!$F$106<='Universal Credit Table'!U53,'Universal Credit Table'!U53<Rates!$F$107),"3rd",IF(AND(Rates!$F$107<='Universal Credit Table'!U53,'Universal Credit Table'!U53<Rates!$F$108),"4th",IF(AND(Rates!$F$108<='Universal Credit Table'!U53,'Universal Credit Table'!U53<Rates!$F$109),"5th",IF(AND(Rates!$F$109<='Universal Credit Table'!U53,'Universal Credit Table'!U53<Rates!$F$110),"6th",IF(AND(Rates!$F$110<='Universal Credit Table'!U53,'Universal Credit Table'!U53<Rates!$F$111),"7th",IF(AND(Rates!$F$111<='Universal Credit Table'!U53,'Universal Credit Table'!U53<Rates!$F$112),"8th",IF(AND(Rates!$F$112<='Universal Credit Table'!U53,'Universal Credit Table'!U53<Rates!$F$113),"9th",">9th"))))))))) -> 2nd | W53: =U53-$R$27-$Q$27-'Model Setup'!$F$37 -> 254.3592308 | X53: =IF(W53<Rates!$N$105,"1st",IF(AND(Rates!$N$105<='Universal Credit Table'!W53,'Universal Credit Table'!W53<Rates!$N$106),"2nd",IF(AND(Rates!$N$106<='Universal Credit Table'!W53,'Universal Credit Table'!W53<Rates!$N$107),"3rd",IF(AND(Rates!$N$107<='Universal Credit Table'!W53,'Universal Credit Table'!W53<Rates!$N$108),"4th",IF(AND(Rates!$N$108<='Universal Credit Table'!W53,'Universal Credit Table'!W53<Rates!$N$109),"5th",IF(AND(Rates!$N$109<='Universal Credit Table'!W53,'Universal Credit Table'!W53<Rates!$N$110),"6th",IF(AND(Rates!$N$110<='Universal Credit Table'!W53,'Universal Credit Table'!W53<Rates!$N$111),"7th",IF(AND(Rates!$N$111<='Universal Credit Table'!W53,'Universal Credit Table'!W53<Rates!$N$112),"8th",IF(AND(Rates!$N$112<='Universal Credit Table'!W53,'Universal Credit Table'!W53<Rates!$N$113),"9th",">9th"))))))))) -> 1st | Y53: 0 | AA53: =IF(AND('Model Setup'!$J$33=0,'Model Setup'!$O$33=0),"-",(W53-'Single Earner Tables'!AG53)/'Single Earner Tables'!AG53) -> - | AB53: =IF(AA53<>"-",AA53*'Single Earner Tables'!AG53,"-") -> - | AC53: 0.9449597329 | AE53: =IF($D53<Rates!$N$16,Rates!$N$13,(Rates!$N$13-(0.5*($D53-Rates!$N$16)))) -> 241.0684932 | AF53: =IF('Model Setup'!$F$30="Single",0,IF('Model Setup'!$K$30="Not Married",0,IF(D53>=Rates!$N$17,0,IF(I53<(Rates!$N$13-Rates!$N$14),Rates!$N$14,Rates!$N$13-I53)))) -> 23.97260274 | AG53: -251.0410959 | AK53: =IF($I53>Rates!$N$16,(Rates!$N$13-(0.5*($I53-Rates!$N$16))),IF((AF53>0),Rates!$N$13-AF53,Rates!$N$13)) -> 217.0958904 | AL53: -217.0958904 | AM53: =IF($AL53<=0,0,IF($AL53<=Rates!$N$22,$AL53,Rates!$N$20-IF($AK53>=0,$AK53,0))) -> 0 | AN53: =IF($AL53<=Rates!$N$22,0,IF(($AL53-$AM53)<=Rates!$N$23,('Universal Credit Table'!$AL53-$AM53),Rates!$N$23)) -> 0 | AO53: 0
A54: 782.1428571 | C54: 782.1428571 | D54: 15 | E54: =(IF($AG54<=0,0,IF($AG54<=Rates!$N$22,$AG54,Rates!$N$20-IF($AE54>=0,$AE54,0))))*Rates!$N$24+(IF($AG54<=Rates!$N$22,0,IF(($AG54-$AH54)<=Rates!$N$23,('Universal Credit Table'!$AG54-$AH54),Rates!$N$23)))*Rates!$N$25+(IF(($AG54-($AH54+$AI54))>0,($AG54-($AH54+$AI54)),0))*Rates!$N$26 -> 0 | F54: =IF($D54<Rates!$N$32,0,Rates!$N$34*(MIN($D54,Rates!$N$33)-Rates!$N$32)+Rates!$N$35*(MAX($D54,Rates!$N$33)-Rates!$N$33)) -> 0 | G54: 15 | H54: 0 | I54: =IF('Model Setup'!$J$33=0,'Model Setup'!$O$33,IF(((D54/'Model Setup'!$F$33)*'Model Setup'!$J$33)>=0,((D54/'Model Setup'!$F$33)*'Model Setup'!$J$33),0)) -> 0 | J54: =(IF($AL54<=0,0,IF($AL54<=Rates!$N$22,$AL54,Rates!$N$20-IF($AK54>=0,$AK54,0))))*Rates!$N$24+(IF($AL54<=Rates!$N$22,0,IF(($AL54-$AM54)<=Rates!$N$23,('Universal Credit Table'!$AL54-$AM54),Rates!$N$23)))*Rates!$N$25+(IF(($AL54-($AM54+$AN54))>0,($AL54-($AM54+$AN54)),0))*Rates!$N$26 -> 0 | K54: =IF($I54<Rates!$N$32,0,Rates!$N$34*(MIN($I54,Rates!$N$33)-Rates!$N$32)+Rates!$N$35*(MAX($I54,Rates!$N$33)-Rates!$N$33)) -> 0 | L54: 0 | M54: 0 | N54: 0 | O54: 15 | P54: 15 | Q54: =IF(D54<Rates!$U$82,$E$27,($E$27-(D54-Rates!$U$82)/(100/365*7)/100*$E$27)) -> 35 | R54: =0.75*IF(P54<$P$18,$K$18,$K$18-($P54-$P$18)*Rates!$U$73) -> 25.5 | S54: =IF('Model Setup'!$F$35=0,$O$27-(P54*Rates!$J$87),IF(AND($K$27>0,P54>Rates!$K$83),$O$27-((P54-Rates!$K$83)*Rates!$J$87),IF(AND($K$27>0,P54<Rates!$K$83),$O$27,IF(AND($K$27=0,P54>Rates!$K$77),$O$27-((P54-Rates!$K$77)*Rates!$J$87),$O$27)))) -> 352.9592308 | T54: =SUMIF($P54:$S54,">0")-$S$27+IF(O54<Rates!$U$96,$T$27,0) -> 415.3592308 | U54: =SUMIF($P54:$S54,">0")-$S$27+IF(P54<Rates!$U$96,$T$27,0) -> 415.3592308 | V54: =IF(U54<Rates!$F$105,"1st",IF(AND(Rates!$F$105<='Universal Credit Table'!U54,'Universal Credit Table'!U54<Rates!$F$106),"2nd",IF(AND(Rates!$F$106<='Universal Credit Table'!U54,'Universal Credit Table'!U54<Rates!$F$107),"3rd",IF(AND(Rates!$F$107<='Universal Credit Table'!U54,'Universal Credit Table'!U54<Rates!$F$108),"4th",IF(AND(Rates!$F$108<='Universal Credit Table'!U54,'Universal Credit Table'!U54<Rates!$F$109),"5th",IF(AND(Rates!$F$109<='Universal Credit Table'!U54,'Universal Credit Table'!U54<Rates!$F$110),"6th",IF(AND(Rates!$F$110<='Universal Credit Table'!U54,'Universal Credit Table'!U54<Rates!$F$111),"7th",IF(AND(Rates!$F$111<='Universal Credit Table'!U54,'Universal Credit Table'!U54<Rates!$F$112),"8th",IF(AND(Rates!$F$112<='Universal Credit Table'!U54,'Universal Credit Table'!U54<Rates!$F$113),"9th",">9th"))))))))) -> 2nd | W54: =U54-$R$27-$Q$27-'Model Setup'!$F$37 -> 255.3592308 | X54: =IF(W54<Rates!$N$105,"1st",IF(AND(Rates!$N$105<='Universal Credit Table'!W54,'Universal Credit Table'!W54<Rates!$N$106),"2nd",IF(AND(Rates!$N$106<='Universal Credit Table'!W54,'Universal Credit Table'!W54<Rates!$N$107),"3rd",IF(AND(Rates!$N$107<='Universal Credit Table'!W54,'Universal Credit Table'!W54<Rates!$N$108),"4th",IF(AND(Rates!$N$108<='Universal Credit Table'!W54,'Universal Credit Table'!W54<Rates!$N$109),"5th",IF(AND(Rates!$N$109<='Universal Credit Table'!W54,'Universal Credit Table'!W54<Rates!$N$110),"6th",IF(AND(Rates!$N$110<='Universal Credit Table'!W54,'Universal Credit Table'!W54<Rates!$N$111),"7th",IF(AND(Rates!$N$111<='Universal Credit Table'!W54,'Universal Credit Table'!W54<Rates!$N$112),"8th",IF(AND(Rates!$N$112<='Universal Credit Table'!W54,'Universal Credit Table'!W54<Rates!$N$113),"9th",">9th"))))))))) -> 1st | Y54: 0 | AA54: =IF(AND('Model Setup'!$J$33=0,'Model Setup'!$O$33=0),"-",(W54-'Single Earner Tables'!AG54)/'Single Earner Tables'!AG54) -> - | AB54: =IF(AA54<>"-",AA54*'Single Earner Tables'!AG54,"-") -> - | AC54: 0.9412592215 | AE54: =IF($D54<Rates!$N$16,Rates!$N$13,(Rates!$N$13-(0.5*($D54-Rates!$N$16)))) -> 241.0684932 | AF54: =IF('Model Setup'!$F$30="Single",0,IF('Model Setup'!$K$30="Not Married",0,IF(D54>=Rates!$N$17,0,IF(I54<(Rates!$N$13-Rates!$N$14),Rates!$N$14,Rates!$N$13-I54)))) -> 23.97260274 | AG54: -250.0410959 | AK54: =IF($I54>Rates!$N$16,(Rates!$N$13-(0.5*($I54-Rates!$N$16))),IF((AF54>0),Rates!$N$13-AF54,Rates!$N$13)) -> 217.0958904 | AL54: -217.0958904 | AM54: =IF($AL54<=0,0,IF($AL54<=Rates!$N$22,$AL54,Rates!$N$20-IF($AK54>=0,$AK54,0))) -> 0 | AN54: =IF($AL54<=Rates!$N$22,0,IF(($AL54-$AM54)<=Rates!$N$23,('Universal Credit Table'!$AL54-$AM54),Rates!$N$23)) -> 0 | AO54: 0
A55: 834.2857143 | C55: 834.2857143 | D55: 16 | E55: =(IF($AG55<=0,0,IF($AG55<=Rates!$N$22,$AG55,Rates!$N$20-IF($AE55>=0,$AE55,0))))*Rates!$N$24+(IF($AG55<=Rates!$N$22,0,IF(($AG55-$AH55)<=Rates!$N$23,('Universal Credit Table'!$AG55-$AH55),Rates!$N$23)))*Rates!$N$25+(IF(($AG55-($AH55+$AI55))>0,($AG55-($AH55+$AI55)),0))*Rates!$N$26 -> 0 | F55: =IF($D55<Rates!$N$32,0,Rates!$N$34*(MIN($D55,Rates!$N$33)-Rates!$N$32)+Rates!$N$35*(MAX($D55,Rates!$N$33)-Rates!$N$33)) -> 0 | G55: 16 | H55: 0 | I55: =IF('Model Setup'!$J$33=0,'Model Setup'!$O$33,IF(((D55/'Model Setup'!$F$33)*'Model Setup'!$J$33)>=0,((D55/'Model Setup'!$F$33)*'Model Setup'!$J$33),0)) -> 0 | J55: =(IF($AL55<=0,0,IF($AL55<=Rates!$N$22,$AL55,Rates!$N$20-IF($AK55>=0,$AK55,0))))*Rates!$N$24+(IF($AL55<=Rates!$N$22,0,IF(($AL55-$AM55)<=Rates!$N$23,('Universal Credit Table'!$AL55-$AM55),Rates!$N$23)))*Rates!$N$25+(IF(($AL55-($AM55+$AN55))>0,($AL55-($AM55+$AN55)),0))*Rates!$N$26 -> 0 | K55: =IF($I55<Rates!$N$32,0,Rates!$N$34*(MIN($I55,Rates!$N$33)-Rates!$N$32)+Rates!$N$35*(MAX($I55,Rates!$N$33)-Rates!$N$33)) -> 0 | L55: 0 | M55: 0 | N55: 0 | O55: 16 | P55: 16 | Q55: =IF(D55<Rates!$U$82,$E$27,($E$27-(D55-Rates!$U$82)/(100/365*7)/100*$E$27)) -> 35 | R55: =0.75*IF(P55<$P$18,$K$18,$K$18-($P55-$P$18)*Rates!$U$73) -> 25.5 | S55: =IF('Model Setup'!$F$35=0,$O$27-(P55*Rates!$J$87),IF(AND($K$27>0,P55>Rates!$K$83),$O$27-((P55-Rates!$K$83)*Rates!$J$87),IF(AND($K$27>0,P55<Rates!$K$83),$O$27,IF(AND($K$27=0,P55>Rates!$K$77),$O$27-((P55-Rates!$K$77)*Rates!$J$87),$O$27)))) -> 352.9592308 | T55: =SUMIF($P55:$S55,">0")-$S$27+IF(O55<Rates!$U$96,$T$27,0) -> 416.3592308 | U55: =SUMIF($P55:$S55,">0")-$S$27+IF(P55<Rates!$U$96,$T$27,0) -> 416.3592308 | V55: =IF(U55<Rates!$F$105,"1st",IF(AND(Rates!$F$105<='Universal Credit Table'!U55,'Universal Credit Table'!U55<Rates!$F$106),"2nd",IF(AND(Rates!$F$106<='Universal Credit Table'!U55,'Universal Credit Table'!U55<Rates!$F$107),"3rd",IF(AND(Rates!$F$107<='Universal Credit Table'!U55,'Universal Credit Table'!U55<Rates!$F$108),"4th",IF(AND(Rates!$F$108<='Universal Credit Table'!U55,'Universal Credit Table'!U55<Rates!$F$109),"5th",IF(AND(Rates!$F$109<='Universal Credit Table'!U55,'Universal Credit Table'!U55<Rates!$F$110),"6th",IF(AND(Rates!$F$110<='Universal Credit Table'!U55,'Universal Credit Table'!U55<Rates!$F$111),"7th",IF(AND(Rates!$F$111<='Universal Credit Table'!U55,'Universal Credit Table'!U55<Rates!$F$112),"8th",IF(AND(Rates!$F$112<='Universal Credit Table'!U55,'Universal Credit Table'!U55<Rates!$F$113),"9th",">9th"))))))))) -> 2nd | W55: =U55-$R$27-$Q$27-'Model Setup'!$F$37 -> 256.3592308 | X55: =IF(W55<Rates!$N$105,"1st",IF(AND(Rates!$N$105<='Universal Credit Table'!W55,'Universal Credit Table'!W55<Rates!$N$106),"2nd",IF(AND(Rates!$N$106<='Universal Credit Table'!W55,'Universal Credit Table'!W55<Rates!$N$107),"3rd",IF(AND(Rates!$N$107<='Universal Credit Table'!W55,'Universal Credit Table'!W55<Rates!$N$108),"4th",IF(AND(Rates!$N$108<='Universal Credit Table'!W55,'Universal Credit Table'!W55<Rates!$N$109),"5th",IF(AND(Rates!$N$109<='Universal Credit Table'!W55,'Universal Credit Table'!W55<Rates!$N$110),"6th",IF(AND(Rates!$N$110<='Universal Credit Table'!W55,'Universal Credit Table'!W55<Rates!$N$111),"7th",IF(AND(Rates!$N$111<='Universal Credit Table'!W55,'Universal Credit Table'!W55<Rates!$N$112),"8th",IF(AND(Rates!$N$112<='Universal Credit Table'!W55,'Universal Credit Table'!W55<Rates!$N$113),"9th",">9th"))))))))) -> 1st | Y55: 0 | AA55: =IF(AND('Model Setup'!$J$33=0,'Model Setup'!$O$33=0),"-",(W55-'Single Earner Tables'!AG55)/'Single Earner Tables'!AG55) -> - | AB55: =IF(AA55<>"-",AA55*'Single Earner Tables'!AG55,"-") -> - | AC55: 0.9375875799 | AE55: =IF($D55<Rates!$N$16,Rates!$N$13,(Rates!$N$13-(0.5*($D55-Rates!$N$16)))) -> 241.0684932 | AF55: =IF('Model Setup'!$F$30="Single",0,IF('Model Setup'!$K$30="Not Married",0,IF(D55>=Rates!$N$17,0,IF(I55<(Rates!$N$13-Rates!$N$14),Rates!$N$14,Rates!$N$13-I55)))) -> 23.97260274 | AG55: -249.0410959 | AK55: =IF($I55>Rates!$N$16,(Rates!$N$13-(0.5*($I55-Rates!$N$16))),IF((AF55>0),Rates!$N$13-AF55,Rates!$N$13)) -> 217.0958904 | AL55: -217.0958904 | AM55: =IF($AL55<=0,0,IF($AL55<=Rates!$N$22,$AL55,Rates!$N$20-IF($AK55>=0,$AK55,0))) -> 0 | AN55: =IF($AL55<=Rates!$N$22,0,IF(($AL55-$AM55)<=Rates!$N$23,('Universal Credit Table'!$AL55-$AM55),Rates!$N$23)) -> 0 | AO55: 0
A56: 886.4285714 | C56: 886.4285714 | D56: 17 | E56: =(IF($AG56<=0,0,IF($AG56<=Rates!$N$22,$AG56,Rates!$N$20-IF($AE56>=0,$AE56,0))))*Rates!$N$24+(IF($AG56<=Rates!$N$22,0,IF(($AG56-$AH56)<=Rates!$N$23,('Universal Credit Table'!$AG56-$AH56),Rates!$N$23)))*Rates!$N$25+(IF(($AG56-($AH56+$AI56))>0,($AG56-($AH56+$AI56)),0))*Rates!$N$26 -> 0 | F56: =IF($D56<Rates!$N$32,0,Rates!$N$34*(MIN($D56,Rates!$N$33)-Rates!$N$32)+Rates!$N$35*(MAX($D56,Rates!$N$33)-Rates!$N$33)) -> 0 | G56: 17 | H56: 0 | I56: =IF('Model Setup'!$J$33=0,'Model Setup'!$O$33,IF(((D56/'Model Setup'!$F$33)*'Model Setup'!$J$33)>=0,((D56/'Model Setup'!$F$33)*'Model Setup'!$J$33),0)) -> 0 | J56: =(IF($AL56<=0,0,IF($AL56<=Rates!$N$22,$AL56,Rates!$N$20-IF($AK56>=0,$AK56,0))))*Rates!$N$24+(IF($AL56<=Rates!$N$22,0,IF(($AL56-$AM56)<=Rates!$N$23,('Universal Credit Table'!$AL56-$AM56),Rates!$N$23)))*Rates!$N$25+(IF(($AL56-($AM56+$AN56))>0,($AL56-($AM56+$AN56)),0))*Rates!$N$26 -> 0 | K56: =IF($I56<Rates!$N$32,0,Rates!$N$34*(MIN($I56,Rates!$N$33)-Rates!$N$32)+Rates!$N$35*(MAX($I56,Rates!$N$33)-Rates!$N$33)) -> 0 | L56: 0 | M56: 0 | N56: 0 | O56: 17 | P56: 17 | Q56: =IF(D56<Rates!$U$82,$E$27,($E$27-(D56-Rates!$U$82)/(100/365*7)/100*$E$27)) -> 35 | R56: =0.75*IF(P56<$P$18,$K$18,$K$18-($P56-$P$18)*Rates!$U$73) -> 25.5 | S56: =IF('Model Setup'!$F$35=0,$O$27-(P56*Rates!$J$87),IF(AND($K$27>0,P56>Rates!$K$83),$O$27-((P56-Rates!$K$83)*Rates!$J$87),IF(AND($K$27>0,P56<Rates!$K$83),$O$27,IF(AND($K$27=0,P56>Rates!$K$77),$O$27-((P56-Rates!$K$77)*Rates!$J$87),$O$27)))) -> 352.9592308 | T56: =SUMIF($P56:$S56,">0")-$S$27+IF(O56<Rates!$U$96,$T$27,0) -> 417.3592308 | U56: =SUMIF($P56:$S56,">0")-$S$27+IF(P56<Rates!$U$96,$T$27,0) -> 417.3592308 | V56: =IF(U56<Rates!$F$105,"1st",IF(AND(Rates!$F$105<='Universal Credit Table'!U56,'Universal Credit Table'!U56<Rates!$F$106),"2nd",IF(AND(Rates!$F$106<='Universal Credit Table'!U56,'Universal Credit Table'!U56<Rates!$F$107),"3rd",IF(AND(Rates!$F$107<='Universal Credit Table'!U56,'Universal Credit Table'!U56<Rates!$F$108),"4th",IF(AND(Rates!$F$108<='Universal Credit Table'!U56,'Universal Credit Table'!U56<Rates!$F$109),"5th",IF(AND(Rates!$F$109<='Universal Credit Table'!U56,'Universal Credit Table'!U56<Rates!$F$110),"6th",IF(AND(Rates!$F$110<='Universal Credit Table'!U56,'Universal Credit Table'!U56<Rates!$F$111),"7th",IF(AND(Rates!$F$111<='Universal Credit Table'!U56,'Universal Credit Table'!U56<Rates!$F$112),"8th",IF(AND(Rates!$F$112<='Universal Credit Table'!U56,'Universal Credit Table'!U56<Rates!$F$113),"9th",">9th"))))))))) -> 2nd | W56: =U56-$R$27-$Q$27-'Model Setup'!$F$37 -> 257.3592308 | X56: =IF(W56<Rates!$N$105,"1st",IF(AND(Rates!$N$105<='Universal Credit Table'!W56,'Universal Credit Table'!W56<Rates!$N$106),"2nd",IF(AND(Rates!$N$106<='Universal Credit Table'!W56,'Universal Credit Table'!W56<Rates!$N$107),"3rd",IF(AND(Rates!$N$107<='Universal Credit Table'!W56,'Universal Credit Table'!W56<Rates!$N$108),"4th",IF(AND(Rates!$N$108<='Universal Credit Table'!W56,'Universal Credit Table'!W56<Rates!$N$109),"5th",IF(AND(Rates!$N$109<='Universal Credit Table'!W56,'Universal Credit Table'!W56<Rates!$N$110),"6th",IF(AND(Rates!$N$110<='Universal Credit Table'!W56,'Universal Credit Table'!W56<Rates!$N$111),"7th",IF(AND(Rates!$N$111<='Universal Credit Table'!W56,'Universal Credit Table'!W56<Rates!$N$112),"8th",IF(AND(Rates!$N$112<='Universal Credit Table'!W56,'Universal Credit Table'!W56<Rates!$N$113),"9th",">9th"))))))))) -> 1st | Y56: 0 | AA56: =IF(AND('Model Setup'!$J$33=0,'Model Setup'!$O$33=0),"-",(W56-'Single Earner Tables'!AG56)/'Single Earner Tables'!AG56) -> - | AB56: =IF(AA56<>"-",AA56*'Single Earner Tables'!AG56,"-") -> - | AC56: 0.9339444715 | AE56: =IF($D56<Rates!$N$16,Rates!$N$13,(Rates!$N$13-(0.5*($D56-Rates!$N$16)))) -> 241.0684932 | AF56: =IF('Model Setup'!$F$30="Single",0,IF('Model Setup'!$K$30="Not Married",0,IF(D56>=Rates!$N$17,0,IF(I56<(Rates!$N$13-Rates!$N$14),Rates!$N$14,Rates!$N$13-I56)))) -> 23.97260274 | AG56: -248.0410959 | AK56: =IF($I56>Rates!$N$16,(Rates!$N$13-(0.5*($I56-Rates!$N$16))),IF((AF56>0),Rates!$N$13-AF56,Rates!$N$13)) -> 217.0958904 | AL56: -217.0958904 | AM56: =IF($AL56<=0,0,IF($AL56<=Rates!$N$22,$AL56,Rates!$N$20-IF($AK56>=0,$AK56,0))) -> 0 | AN56: =IF($AL56<=Rates!$N$22,0,IF(($AL56-$AM56)<=Rates!$N$23,('Universal Credit Table'!$AL56-$AM56),Rates!$N$23)) -> 0 | AO56: 0
A57: 938.5714286 | C57: 938.5714286 | D57: 18 | E57: =(IF($AG57<=0,0,IF($AG57<=Rates!$N$22,$AG57,Rates!$N$20-IF($AE57>=0,$AE57,0))))*Rates!$N$24+(IF($AG57<=Rates!$N$22,0,IF(($AG57-$AH57)<=Rates!$N$23,('Universal Credit Table'!$AG57-$AH57),Rates!$N$23)))*Rates!$N$25+(IF(($AG57-($AH57+$AI57))>0,($AG57-($AH57+$AI57)),0))*Rates!$N$26 -> 0 | F57: =IF($D57<Rates!$N$32,0,Rates!$N$34*(MIN($D57,Rates!$N$33)-Rates!$N$32)+Rates!$N$35*(MAX($D57,Rates!$N$33)-Rates!$N$33)) -> 0 | G57: 18 | H57: 0 | I57: =IF('Model Setup'!$J$33=0,'Model Setup'!$O$33,IF(((D57/'Model Setup'!$F$33)*'Model Setup'!$J$33)>=0,((D57/'Model Setup'!$F$33)*'Model Setup'!$J$33),0)) -> 0 | J57: =(IF($AL57<=0,0,IF($AL57<=Rates!$N$22,$AL57,Rates!$N$20-IF($AK57>=0,$AK57,0))))*Rates!$N$24+(IF($AL57<=Rates!$N$22,0,IF(($AL57-$AM57)<=Rates!$N$23,('Universal Credit Table'!$AL57-$AM57),Rates!$N$23)))*Rates!$N$25+(IF(($AL57-($AM57+$AN57))>0,($AL57-($AM57+$AN57)),0))*Rates!$N$26 -> 0 | K57: =IF($I57<Rates!$N$32,0,Rates!$N$34*(MIN($I57,Rates!$N$33)-Rates!$N$32)+Rates!$N$35*(MAX($I57,Rates!$N$33)-Rates!$N$33)) -> 0 | L57: 0 | M57: 0 | N57: 0 | O57: 18 | P57: 18 | Q57: =IF(D57<Rates!$U$82,$E$27,($E$27-(D57-Rates!$U$82)/(100/365*7)/100*$E$27)) -> 35 | R57: =0.75*IF(P57<$P$18,$K$18,$K$18-($P57-$P$18)*Rates!$U$73) -> 25.5 | S57: =IF('Model Setup'!$F$35=0,$O$27-(P57*Rates!$J$87),IF(AND($K$27>0,P57>Rates!$K$83),$O$27-((P57-Rates!$K$83)*Rates!$J$87),IF(AND($K$27>0,P57<Rates!$K$83),$O$27,IF(AND($K$27=0,P57>Rates!$K$77),$O$27-((P57-Rates!$K$77)*Rates!$J$87),$O$27)))) -> 352.9592308 | T57: =SUMIF($P57:$S57,">0")-$S$27+IF(O57<Rates!$U$96,$T$27,0) -> 418.3592308 | U57: =SUMIF($P57:$S57,">0")-$S$27+IF(P57<Rates!$U$96,$T$27,0) -> 418.3592308 | V57: =IF(U57<Rates!$F$105,"1st",IF(AND(Rates!$F$105<='Universal Credit Table'!U57,'Universal Credit Table'!U57<Rates!$F$106),"2nd",IF(AND(Rates!$F$106<='Universal Credit Table'!U57,'Universal Credit Table'!U57<Rates!$F$107),"3rd",IF(AND(Rates!$F$107<='Universal Credit Table'!U57,'Universal Credit Table'!U57<Rates!$F$108),"4th",IF(AND(Rates!$F$108<='Universal Credit Table'!U57,'Universal Credit Table'!U57<Rates!$F$109),"5th",IF(AND(Rates!$F$109<='Universal Credit Table'!U57,'Universal Credit Table'!U57<Rates!$F$110),"6th",IF(AND(Rates!$F$110<='Universal Credit Table'!U57,'Universal Credit Table'!U57<Rates!$F$111),"7th",IF(AND(Rates!$F$111<='Universal Credit Table'!U57,'Universal Credit Table'!U57<Rates!$F$112),"8th",IF(AND(Rates!$F$112<='Universal Credit Table'!U57,'Universal Credit Table'!U57<Rates!$F$113),"9th",">9th"))))))))) -> 2nd | W57: =U57-$R$27-$Q$27-'Model Setup'!$F$37 -> 258.3592308 | X57: =IF(W57<Rates!$N$105,"1st",IF(AND(Rates!$N$105<='Universal Credit Table'!W57,'Universal Credit Table'!W57<Rates!$N$106),"2nd",IF(AND(Rates!$N$106<='Universal Credit Table'!W57,'Universal Credit Table'!W57<Rates!$N$107),"3rd",IF(AND(Rates!$N$107<='Universal Credit Table'!W57,'Universal Credit Table'!W57<Rates!$N$108),"4th",IF(AND(Rates!$N$108<='Universal Credit Table'!W57,'Universal Credit Table'!W57<Rates!$N$109),"5th",IF(AND(Rates!$N$109<='Universal Credit Table'!W57,'Universal Credit Table'!W57<Rates!$N$110),"6th",IF(AND(Rates!$N$110<='Universal Credit Table'!W57,'Universal Credit Table'!W57<Rates!$N$111),"7th",IF(AND(Rates!$N$111<='Universal Credit Table'!W57,'Universal Credit Table'!W57<Rates!$N$112),"8th",IF(AND(Rates!$N$112<='Universal Credit Table'!W57,'Universal Credit Table'!W57<Rates!$N$113),"9th",">9th"))))))))) -> 1st | Y57: 0 | AA57: =IF(AND('Model Setup'!$J$33=0,'Model Setup'!$O$33=0),"-",(W57-'Single Earner Tables'!AG57)/'Single Earner Tables'!AG57) -> - | AB57: =IF(AA57<>"-",AA57*'Single Earner Tables'!AG57,"-") -> - | AC57: 0.930329565 | AE57: =IF($D57<Rates!$N$16,Rates!$N$13,(Rates!$N$13-(0.5*($D57-Rates!$N$16)))) -> 241.0684932 | AF57: =IF('Model Setup'!$F$30="Single",0,IF('Model Setup'!$K$30="Not Married",0,IF(D57>=Rates!$N$17,0,IF(I57<(Rates!$N$13-Rates!$N$14),Rates!$N$14,Rates!$N$13-I57)))) -> 23.97260274 | AG57: -247.0410959 | AK57: =IF($I57>Rates!$N$16,(Rates!$N$13-(0.5*($I57-Rates!$N$16))),IF((AF57>0),Rates!$N$13-AF57,Rates!$N$13)) -> 217.0958904 | AL57: -217.0958904 | AM57: =IF($AL57<=0,0,IF($AL57<=Rates!$N$22,$AL57,Rates!$N$20-IF($AK57>=0,$AK57,0))) -> 0 | AN57: =IF($AL57<=Rates!$N$22,0,IF(($AL57-$AM57)<=Rates!$N$23,('Universal Credit Table'!$AL57-$AM57),Rates!$N$23)) -> 0 | AO57: 0
A58: 990.7142857 | C58: 990.7142857 | D58: 19 | E58: =(IF($AG58<=0,0,IF($AG58<=Rates!$N$22,$AG58,Rates!$N$20-IF($AE58>=0,$AE58,0))))*Rates!$N$24+(IF($AG58<=Rates!$N$22,0,IF(($AG58-$AH58)<=Rates!$N$23,('Universal Credit Table'!$AG58-$AH58),Rates!$N$23)))*Rates!$N$25+(IF(($AG58-($AH58+$AI58))>0,($AG58-($AH58+$AI58)),0))*Rates!$N$26 -> 0 | F58: =IF($D58<Rates!$N$32,0,Rates!$N$34*(MIN($D58,Rates!$N$33)-Rates!$N$32)+Rates!$N$35*(MAX($D58,Rates!$N$33)-Rates!$N$33)) -> 0 | G58: 19 | H58: 0 | I58: =IF('Model Setup'!$J$33=0,'Model Setup'!$O$33,IF(((D58/'Model Setup'!$F$33)*'Model Setup'!$J$33)>=0,((D58/'Model Setup'!$F$33)*'Model Setup'!$J$33),0)) -> 0 | J58: =(IF($AL58<=0,0,IF($AL58<=Rates!$N$22,$AL58,Rates!$N$20-IF($AK58>=0,$AK58,0))))*Rates!$N$24+(IF($AL58<=Rates!$N$22,0,IF(($AL58-$AM58)<=Rates!$N$23,('Universal Credit Table'!$AL58-$AM58),Rates!$N$23)))*Rates!$N$25+(IF(($AL58-($AM58+$AN58))>0,($AL58-($AM58+$AN58)),0))*Rates!$N$26 -> 0 | K58: =IF($I58<Rates!$N$32,0,Rates!$N$34*(MIN($I58,Rates!$N$33)-Rates!$N$32)+Rates!$N$35*(MAX($I58,Rates!$N$33)-Rates!$N$33)) -> 0 | L58: 0 | M58: 0 | N58: 0 | O58: 19 | P58: 19 | Q58: =IF(D58<Rates!$U$82,$E$27,($E$27-(D58-Rates!$U$82)/(100/365*7)/100*$E$27)) -> 35 | R58: =0.75*IF(P58<$P$18,$K$18,$K$18-($P58-$P$18)*Rates!$U$73) -> 25.5 | S58: =IF('Model Setup'!$F$35=0,$O$27-(P58*Rates!$J$87),IF(AND($K$27>0,P58>Rates!$K$83),$O$27-((P58-Rates!$K$83)*Rates!$J$87),IF(AND($K$27>0,P58<Rates!$K$83),$O$27,IF(AND($K$27=0,P58>Rates!$K$77),$O$27-((P58-Rates!$K$77)*Rates!$J$87),$O$27)))) -> 352.9592308 | T58: =SUMIF($P58:$S58,">0")-$S$27+IF(O58<Rates!$U$96,$T$27,0) -> 419.3592308 | U58: =SUMIF($P58:$S58,">0")-$S$27+IF(P58<Rates!$U$96,$T$27,0) -> 419.3592308 | V58: =IF(U58<Rates!$F$105,"1st",IF(AND(Rates!$F$105<='Universal Credit Table'!U58,'Universal Credit Table'!U58<Rates!$F$106),"2nd",IF(AND(Rates!$F$106<='Universal Credit Table'!U58,'Universal Credit Table'!U58<Rates!$F$107),"3rd",IF(AND(Rates!$F$107<='Universal Credit Table'!U58,'Universal Credit Table'!U58<Rates!$F$108),"4th",IF(AND(Rates!$F$108<='Universal Credit Table'!U58,'Universal Credit Table'!U58<Rates!$F$109),"5th",IF(AND(Rates!$F$109<='Universal Credit Table'!U58,'Universal Credit Table'!U58<Rates!$F$110),"6th",IF(AND(Rates!$F$110<='Universal Credit Table'!U58,'Universal Credit Table'!U58<Rates!$F$111),"7th",IF(AND(Rates!$F$111<='Universal Credit Table'!U58,'Universal Credit Table'!U58<Rates!$F$112),"8th",IF(AND(Rates!$F$112<='Universal Credit Table'!U58,'Universal Credit Table'!U58<Rates!$F$113),"9th",">9th"))))))))) -> 2nd | W58: =U58-$R$27-$Q$27-'Model Setup'!$F$37 -> 259.3592308 | X58: =IF(W58<Rates!$N$105,"1st",IF(AND(Rates!$N$105<='Universal Credit Table'!W58,'Universal Credit Table'!W58<Rates!$N$106),"2nd",IF(AND(Rates!$N$106<='Universal Credit Table'!W58,'Universal Credit Table'!W58<Rates!$N$107),"3rd",IF(AND(Rates!$N$107<='Universal Credit Table'!W58,'Universal Credit Table'!W58<Rates!$N$108),"4th",IF(AND(Rates!$N$108<='Universal Credit Table'!W58,'Universal Credit Table'!W58<Rates!$N$109),"5th",IF(AND(Rates!$N$109<='Universal Credit Table'!W58,'Universal Credit Table'!W58<Rates!$N$110),"6th",IF(AND(Rates!$N$110<='Universal Credit Table'!W58,'Universal Credit Table'!W58<Rates!$N$111),"7th",IF(AND(Rates!$N$111<='Universal Credit Table'!W58,'Universal Credit Table'!W58<Rates!$N$112),"8th",IF(AND(Rates!$N$112<='Universal Credit Table'!W58,'Universal Credit Table'!W58<Rates!$N$113),"9th",">9th"))))))))) -> 1st | Y58: 0 | AA58: =IF(AND('Model Setup'!$J$33=0,'Model Setup'!$O$33=0),"-",(W58-'Single Earner Tables'!AG58)/'Single Earner Tables'!AG58) -> - | AB58: =IF(AA58<>"-",AA58*'Single Earner Tables'!AG58,"-") -> - | AC58: 0.9267425341 | AE58: =IF($D58<Rates!$N$16,Rates!$N$13,(Rates!$N$13-(0.5*($D58-Rates!$N$16)))) -> 241.0684932 | AF58: =IF('Model Setup'!$F$30="Single",0,IF('Model Setup'!$K$30="Not Married",0,IF(D58>=Rates!$N$17,0,IF(I58<(Rates!$N$13-Rates!$N$14),Rates!$N$14,Rates!$N$13-I58)))) -> 23.97260274 | AG58: -246.0410959 | AK58: =IF($I58>Rates!$N$16,(Rates!$N$13-(0.5*($I58-Rates!$N$16))),IF((AF58>0),Rates!$N$13-AF58,Rates!$N$13)) -> 217.0958904 | AL58: -217.0958904 | AM58: =IF($AL58<=0,0,IF($AL58<=Rates!$N$22,$AL58,Rates!$N$20-IF($AK58>=0,$AK58,0))) -> 0 | AN58: =IF($AL58<=Rates!$N$22,0,IF(($AL58-$AM58)<=Rates!$N$23,('Universal Credit Table'!$AL58-$AM58),Rates!$N$23)) -> 0 | AO58: 0
A59: 1042.857143 | C59: 1042.857143 | D59: 20 | E59: =(IF($AG59<=0,0,IF($AG59<=Rates!$N$22,$AG59,Rates!$N$20-IF($AE59>=0,$AE59,0))))*Rates!$N$24+(IF($AG59<=Rates!$N$22,0,IF(($AG59-$AH59)<=Rates!$N$23,('Universal Credit Table'!$AG59-$AH59),Rates!$N$23)))*Rates!$N$25+(IF(($AG59-($AH59+$AI59))>0,($AG59-($AH59+$AI59)),0))*Rates!$N$26 -> 0 | F59: =IF($D59<Rates!$N$32,0,Rates!$N$34*(MIN($D59,Rates!$N$33)-Rates!$N$32)+Rates!$N$35*(MAX($D59,Rates!$N$33)-Rates!$N$33)) -> 0 | G59: 20 | H59: 0 | I59: =IF('Model Setup'!$J$33=0,'Model Setup'!$O$33,IF(((D59/'Model Setup'!$F$33)*'Model Setup'!$J$33)>=0,((D59/'Model Setup'!$F$33)*'Model Setup'!$J$33),0)) -> 0 | J59: =(IF($AL59<=0,0,IF($AL59<=Rates!$N$22,$AL59,Rates!$N$20-IF($AK59>=0,$AK59,0))))*Rates!$N$24+(IF($AL59<=Rates!$N$22,0,IF(($AL59-$AM59)<=Rates!$N$23,('Universal Credit Table'!$AL59-$AM59),Rates!$N$23)))*Rates!$N$25+(IF(($AL59-($AM59+$AN59))>0,($AL59-($AM59+$AN59)),0))*Rates!$N$26 -> 0 | K59: =IF($I59<Rates!$N$32,0,Rates!$N$34*(MIN($I59,Rates!$N$33)-Rates!$N$32)+Rates!$N$35*(MAX($I59,Rates!$N$33)-Rates!$N$33)) -> 0 | L59: 0 | M59: 0 | N59: 0 | O59: 20 | P59: 20 | Q59: =IF(D59<Rates!$U$82,$E$27,($E$27-(D59-Rates!$U$82)/(100/365*7)/100*$E$27)) -> 35 | R59: =0.75*IF(P59<$P$18,$K$18,$K$18-($P59-$P$18)*Rates!$U$73) -> 25.5 | S59: =IF('Model Setup'!$F$35=0,$O$27-(P59*Rates!$J$87),IF(AND($K$27>0,P59>Rates!$K$83),$O$27-((P59-Rates!$K$83)*Rates!$J$87),IF(AND($K$27>0,P59<Rates!$K$83),$O$27,IF(AND($K$27=0,P59>Rates!$K$77),$O$27-((P59-Rates!$K$77)*Rates!$J$87),$O$27)))) -> 352.9592308 | T59: =SUMIF($P59:$S59,">0")-$S$27+IF(O59<Rates!$U$96,$T$27,0) -> 420.3592308 | U59: =SUMIF($P59:$S59,">0")-$S$27+IF(P59<Rates!$U$96,$T$27,0) -> 420.3592308 | V59: =IF(U59<Rates!$F$105,"1st",IF(AND(Rates!$F$105<='Universal Credit Table'!U59,'Universal Credit Table'!U59<Rates!$F$106),"2nd",IF(AND(Rates!$F$106<='Universal Credit Table'!U59,'Universal Credit Table'!U59<Rates!$F$107),"3rd",IF(AND(Rates!$F$107<='Universal Credit Table'!U59,'Universal Credit Table'!U59<Rates!$F$108),"4th",IF(AND(Rates!$F$108<='Universal Credit Table'!U59,'Universal Credit Table'!U59<Rates!$F$109),"5th",IF(AND(Rates!$F$109<='Universal Credit Table'!U59,'Universal Credit Table'!U59<Rates!$F$110),"6th",IF(AND(Rates!$F$110<='Universal Credit Table'!U59,'Universal Credit Table'!U59<Rates!$F$111),"7th",IF(AND(Rates!$F$111<='Universal Credit Table'!U59,'Universal Credit Table'!U59<Rates!$F$112),"8th",IF(AND(Rates!$F$112<='Universal Credit Table'!U59,'Universal Credit Table'!U59<Rates!$F$113),"9th",">9th"))))))))) -> 2nd | W59: =U59-$R$27-$Q$27-'Model Setup'!$F$37 -> 260.3592308 | X59: =IF(W59<Rates!$N$105,"1st",IF(AND(Rates!$N$105<='Universal Credit Table'!W59,'Universal Credit Table'!W59<Rates!$N$106),"2nd",IF(AND(Rates!$N$106<='Universal Credit Table'!W59,'Universal Credit Table'!W59<Rates!$N$107),"3rd",IF(AND(Rates!$N$107<='Universal Credit Table'!W59,'Universal Credit Table'!W59<Rates!$N$108),"4th",IF(AND(Rates!$N$108<='Universal Credit Table'!W59,'Universal Credit Table'!W59<Rates!$N$109),"5th",IF(AND(Rates!$N$109<='Universal Credit Table'!W59,'Universal Credit Table'!W59<Rates!$N$110),"6th",IF(AND(Rates!$N$110<='Universal Credit Table'!W59,'Universal Credit Table'!W59<Rates!$N$111),"7th",IF(AND(Rates!$N$111<='Universal Credit Table'!W59,'Universal Credit Table'!W59<Rates!$N$112),"8th",IF(AND(Rates!$N$112<='Universal Credit Table'!W59,'Universal Credit Table'!W59<Rates!$N$113),"9th",">9th"))))))))) -> 1st | Y59: 0 | AA59: =IF(AND('Model Setup'!$J$33=0,'Model Setup'!$O$33=0),"-",(W59-'Single Earner Tables'!AG59)/'Single Earner Tables'!AG59) -> - | AB59: =IF(AA59<>"-",AA59*'Single Earner Tables'!AG59,"-") -> - | AC59: 0.9231830577 | AE59: =IF($D59<Rates!$N$16,Rates!$N$13,(Rates!$N$13-(0.5*($D59-Rates!$N$16)))) -> 241.0684932 | AF59: =IF('Model Setup'!$F$30="Single",0,IF('Model Setup'!$K$30="Not Married",0,IF(D59>=Rates!$N$17,0,IF(I59<(Rates!$N$13-Rates!$N$14),Rates!$N$14,Rates!$N$13-I59)))) -> 23.97260274 | AG59: -245.0410959 | AK59: =IF($I59>Rates!$N$16,(Rates!$N$13-(0.5*($I59-Rates!$N$16))),IF((AF59>0),Rates!$N$13-AF59,Rates!$N$13)) -> 217.0958904 | AL59: -217.0958904 | AM59: =IF($AL59<=0,0,IF($AL59<=Rates!$N$22,$AL59,Rates!$N$20-IF($AK59>=0,$AK59,0))) -> 0 | AN59: =IF($AL59<=Rates!$N$22,0,IF(($AL59-$AM59)<=Rates!$N$23,('Universal Credit Table'!$AL59-$AM59),Rates!$N$23)) -> 0 | AO59: 0
A60: 1095 | C60: 1095 | D60: 21 | E60: =(IF($AG60<=0,0,IF($AG60<=Rates!$N$22,$AG60,Rates!$N$20-IF($AE60>=0,$AE60,0))))*Rates!$N$24+(IF($AG60<=Rates!$N$22,0,IF(($AG60-$AH60)<=Rates!$N$23,('Universal Credit Table'!$AG60-$AH60),Rates!$N$23)))*Rates!$N$25+(IF(($AG60-($AH60+$AI60))>0,($AG60-($AH60+$AI60)),0))*Rates!$N$26 -> 0 | F60: =IF($D60<Rates!$N$32,0,Rates!$N$34*(MIN($D60,Rates!$N$33)-Rates!$N$32)+Rates!$N$35*(MAX($D60,Rates!$N$33)-Rates!$N$33)) -> 0 | G60: 21 | H60: 0 | I60: =IF('Model Setup'!$J$33=0,'Model Setup'!$O$33,IF(((D60/'Model Setup'!$F$33)*'Model Setup'!$J$33)>=0,((D60/'Model Setup'!$F$33)*'Model Setup'!$J$33),0)) -> 0 | J60: =(IF($AL60<=0,0,IF($AL60<=Rates!$N$22,$AL60,Rates!$N$20-IF($AK60>=0,$AK60,0))))*Rates!$N$24+(IF($AL60<=Rates!$N$22,0,IF(($AL60-$AM60)<=Rates!$N$23,('Universal Credit Table'!$AL60-$AM60),Rates!$N$23)))*Rates!$N$25+(IF(($AL60-($AM60+$AN60))>0,($AL60-($AM60+$AN60)),0))*Rates!$N$26 -> 0 | K60: =IF($I60<Rates!$N$32,0,Rates!$N$34*(MIN($I60,Rates!$N$33)-Rates!$N$32)+Rates!$N$35*(MAX($I60,Rates!$N$33)-Rates!$N$33)) -> 0 | L60: 0 | M60: 0 | N60: 0 | O60: 21 | P60: 21 | Q60: =IF(D60<Rates!$U$82,$E$27,($E$27-(D60-Rates!$U$82)/(100/365*7)/100*$E$27)) -> 35 | R60: =0.75*IF(P60<$P$18,$K$18,$K$18-($P60-$P$18)*Rates!$U$73) -> 25.5 | S60: =IF('Model Setup'!$F$35=0,$O$27-(P60*Rates!$J$87),IF(AND($K$27>0,P60>Rates!$K$83),$O$27-((P60-Rates!$K$83)*Rates!$J$87),IF(AND($K$27>0,P60<Rates!$K$83),$O$27,IF(AND($K$27=0,P60>Rates!$K$77),$O$27-((P60-Rates!$K$77)*Rates!$J$87),$O$27)))) -> 352.9592308 | T60: =SUMIF($P60:$S60,">0")-$S$27+IF(O60<Rates!$U$96,$T$27,0) -> 421.3592308 | U60: =SUMIF($P60:$S60,">0")-$S$27+IF(P60<Rates!$U$96,$T$27,0) -> 421.3592308 | V60: =IF(U60<Rates!$F$105,"1st",IF(AND(Rates!$F$105<='Universal Credit Table'!U60,'Universal Credit Table'!U60<Rates!$F$106),"2nd",IF(AND(Rates!$F$106<='Universal Credit Table'!U60,'Universal Credit Table'!U60<Rates!$F$107),"3rd",IF(AND(Rates!$F$107<='Universal Credit Table'!U60,'Universal Credit Table'!U60<Rates!$F$108),"4th",IF(AND(Rates!$F$108<='Universal Credit Table'!U60,'Universal Credit Table'!U60<Rates!$F$109),"5th",IF(AND(Rates!$F$109<='Universal Credit Table'!U60,'Universal Credit Table'!U60<Rates!$F$110),"6th",IF(AND(Rates!$F$110<='Universal Credit Table'!U60,'Universal Credit Table'!U60<Rates!$F$111),"7th",IF(AND(Rates!$F$111<='Universal Credit Table'!U60,'Universal Credit Table'!U60<Rates!$F$112),"8th",IF(AND(Rates!$F$112<='Universal Credit Table'!U60,'Universal Credit Table'!U60<Rates!$F$113),"9th",">9th"))))))))) -> 2nd | W60: =U60-$R$27-$Q$27-'Model Setup'!$F$37 -> 261.3592308 | X60: =IF(W60<Rates!$N$105,"1st",IF(AND(Rates!$N$105<='Universal Credit Table'!W60,'Universal Credit Table'!W60<Rates!$N$106),"2nd",IF(AND(Rates!$N$106<='Universal Credit Table'!W60,'Universal Credit Table'!W60<Rates!$N$107),"3rd",IF(AND(Rates!$N$107<='Universal Credit Table'!W60,'Universal Credit Table'!W60<Rates!$N$108),"4th",IF(AND(Rates!$N$108<='Universal Credit Table'!W60,'Universal Credit Table'!W60<Rates!$N$109),"5th",IF(AND(Rates!$N$109<='Universal Credit Table'!W60,'Universal Credit Table'!W60<Rates!$N$110),"6th",IF(AND(Rates!$N$110<='Universal Credit Table'!W60,'Universal Credit Table'!W60<Rates!$N$111),"7th",IF(AND(Rates!$N$111<='Universal Credit Table'!W60,'Universal Credit Table'!W60<Rates!$N$112),"8th",IF(AND(Rates!$N$112<='Universal Credit Table'!W60,'Universal Credit Table'!W60<Rates!$N$113),"9th",">9th"))))))))) -> 1st | Y60: 0 | AA60: =IF(AND('Model Setup'!$J$33=0,'Model Setup'!$O$33=0),"-",(W60-'Single Earner Tables'!AG60)/'Single Earner Tables'!AG60) -> - | AB60: =IF(AA60<>"-",AA60*'Single Earner Tables'!AG60,"-") -> - | AC60: 0.9196508195 | AE60: =IF($D60<Rates!$N$16,Rates!$N$13,(Rates!$N$13-(0.5*($D60-Rates!$N$16)))) -> 241.0684932 | AF60: =IF('Model Setup'!$F$30="Single",0,IF('Model Setup'!$K$30="Not Married",0,IF(D60>=Rates!$N$17,0,IF(I60<(Rates!$N$13-Rates!$N$14),Rates!$N$14,Rates!$N$13-I60)))) -> 23.97260274 | AG60: -244.0410959 | AK60: =IF($I60>Rates!$N$16,(Rates!$N$13-(0.5*($I60-Rates!$N$16))),IF((AF60>0),Rates!$N$13-AF60,Rates!$N$13)) -> 217.0958904 | AL60: -217.0958904 | AM60: =IF($AL60<=0,0,IF($AL60<=Rates!$N$22,$AL60,Rates!$N$20-IF($AK60>=0,$AK60,0))) -> 0 | AN60: =IF($AL60<=Rates!$N$22,0,IF(($AL60-$AM60)<=Rates!$N$23,('Universal Credit Table'!$AL60-$AM60),Rates!$N$23)) -> 0 | AO60: 0
A61: 1147.142857 | C61: 1147.142857 | D61: 22 | E61: =(IF($AG61<=0,0,IF($AG61<=Rates!$N$22,$AG61,Rates!$N$20-IF($AE61>=0,$AE61,0))))*Rates!$N$24+(IF($AG61<=Rates!$N$22,0,IF(($AG61-$AH61)<=Rates!$N$23,('Universal Credit Table'!$AG61-$AH61),Rates!$N$23)))*Rates!$N$25+(IF(($AG61-($AH61+$AI61))>0,($AG61-($AH61+$AI61)),0))*Rates!$N$26 -> 0 | F61: =IF($D61<Rates!$N$32,0,Rates!$N$34*(MIN($D61,Rates!$N$33)-Rates!$N$32)+Rates!$N$35*(MAX($D61,Rates!$N$33)-Rates!$N$33)) -> 0 | G61: 22 | H61: 0 | I61: =IF('Model Setup'!$J$33=0,'Model Setup'!$O$33,IF(((D61/'Model Setup'!$F$33)*'Model Setup'!$J$33)>=0,((D61/'Model Setup'!$F$33)*'Model Setup'!$J$33),0)) -> 0 | J61: =(IF($AL61<=0,0,IF($AL61<=Rates!$N$22,$AL61,Rates!$N$20-IF($AK61>=0,$AK61,0))))*Rates!$N$24+(IF($AL61<=Rates!$N$22,0,IF(($AL61-$AM61)<=Rates!$N$23,('Universal Credit Table'!$AL61-$AM61),Rates!$N$23)))*Rates!$N$25+(IF(($AL61-($AM61+$AN61))>0,($AL61-($AM61+$AN61)),0))*Rates!$N$26 -> 0 | K61: =IF($I61<Rates!$N$32,0,Rates!$N$34*(MIN($I61,Rates!$N$33)-Rates!$N$32)+Rates!$N$35*(MAX($I61,Rates!$N$33)-Rates!$N$33)) -> 0 | L61: 0 | M61: 0 | N61: 0 | O61: 22 | P61: 22 | Q61: =IF(D61<Rates!$U$82,$E$27,($E$27-(D61-Rates!$U$82)/(100/365*7)/100*$E$27)) -> 35 | R61: =0.75*IF(P61<$P$18,$K$18,$K$18-($P61-$P$18)*Rates!$U$73) -> 25.5 | S61: =IF('Model Setup'!$F$35=0,$O$27-(P61*Rates!$J$87),IF(AND($K$27>0,P61>Rates!$K$83),$O$27-((P61-Rates!$K$83)*Rates!$J$87),IF(AND($K$27>0,P61<Rates!$K$83),$O$27,IF(AND($K$27=0,P61>Rates!$K$77),$O$27-((P61-Rates!$K$77)*Rates!$J$87),$O$27)))) -> 352.9592308 | T61: =SUMIF($P61:$S61,">0")-$S$27+IF(O61<Rates!$U$96,$T$27,0) -> 422.3592308 | U61: =SUMIF($P61:$S61,">0")-$S$27+IF(P61<Rates!$U$96,$T$27,0) -> 422.3592308 | V61: =IF(U61<Rates!$F$105,"1st",IF(AND(Rates!$F$105<='Universal Credit Table'!U61,'Universal Credit Table'!U61<Rates!$F$106),"2nd",IF(AND(Rates!$F$106<='Universal Credit Table'!U61,'Universal Credit Table'!U61<Rates!$F$107),"3rd",IF(AND(Rates!$F$107<='Universal Credit Table'!U61,'Universal Credit Table'!U61<Rates!$F$108),"4th",IF(AND(Rates!$F$108<='Universal Credit Table'!U61,'Universal Credit Table'!U61<Rates!$F$109),"5th",IF(AND(Rates!$F$109<='Universal Credit Table'!U61,'Universal Credit Table'!U61<Rates!$F$110),"6th",IF(AND(Rates!$F$110<='Universal Credit Table'!U61,'Universal Credit Table'!U61<Rates!$F$111),"7th",IF(AND(Rates!$F$111<='Universal Credit Table'!U61,'Universal Credit Table'!U61<Rates!$F$112),"8th",IF(AND(Rates!$F$112<='Universal Credit Table'!U61,'Universal Credit Table'!U61<Rates!$F$113),"9th",">9th"))))))))) -> 2nd | W61: =U61-$R$27-$Q$27-'Model Setup'!$F$37 -> 262.3592308 | X61: =IF(W61<Rates!$N$105,"1st",IF(AND(Rates!$N$105<='Universal Credit Table'!W61,'Universal Credit Table'!W61<Rates!$N$106),"2nd",IF(AND(Rates!$N$106<='Universal Credit Table'!W61,'Universal Credit Table'!W61<Rates!$N$107),"3rd",IF(AND(Rates!$N$107<='Universal Credit Table'!W61,'Universal Credit Table'!W61<Rates!$N$108),"4th",IF(AND(Rates!$N$108<='Universal Credit Table'!W61,'Universal Credit Table'!W61<Rates!$N$109),"5th",IF(AND(Rates!$N$109<='Universal Credit Table'!W61,'Universal Credit Table'!W61<Rates!$N$110),"6th",IF(AND(Rates!$N$110<='Universal Credit Table'!W61,'Universal Credit Table'!W61<Rates!$N$111),"7th",IF(AND(Rates!$N$111<='Universal Credit Table'!W61,'Universal Credit Table'!W61<Rates!$N$112),"8th",IF(AND(Rates!$N$112<='Universal Credit Table'!W61,'Universal Credit Table'!W61<Rates!$N$113),"9th",">9th"))))))))) -> 1st | Y61: 0 | AA61: =IF(AND('Model Setup'!$J$33=0,'Model Setup'!$O$33=0),"-",(W61-'Single Earner Tables'!AG61)/'Single Earner Tables'!AG61) -> - | AB61: =IF(AA61<>"-",AA61*'Single Earner Tables'!AG61,"-") -> - | AC61: 0.9161455081 | AE61: =IF($D61<Rates!$N$16,Rates!$N$13,(Rates!$N$13-(0.5*($D61-Rates!$N$16)))) -> 241.0684932 | AF61: =IF('Model Setup'!$F$30="Single",0,IF('Model Setup'!$K$30="Not Married",0,IF(D61>=Rates!$N$17,0,IF(I61<(Rates!$N$13-Rates!$N$14),Rates!$N$14,Rates!$N$13-I61)))) -> 23.97260274 | AG61: -243.0410959 | AK61: =IF($I61>Rates!$N$16,(Rates!$N$13-(0.5*($I61-Rates!$N$16))),IF((AF61>0),Rates!$N$13-AF61,Rates!$N$13)) -> 217.0958904 | AL61: -217.0958904 | AM61: =IF($AL61<=0,0,IF($AL61<=Rates!$N$22,$AL61,Rates!$N$20-IF($AK61>=0,$AK61,0))) -> 0 | AN61: =IF($AL61<=Rates!$N$22,0,IF(($AL61-$AM61)<=Rates!$N$23,('Universal Credit Table'!$AL61-$AM61),Rates!$N$23)) -> 0 | AO61: 0
A62: 1199.285714 | C62: 1199.285714 | D62: 23 | E62: =(IF($AG62<=0,0,IF($AG62<=Rates!$N$22,$AG62,Rates!$N$20-IF($AE62>=0,$AE62,0))))*Rates!$N$24+(IF($AG62<=Rates!$N$22,0,IF(($AG62-$AH62)<=Rates!$N$23,('Universal Credit Table'!$AG62-$AH62),Rates!$N$23)))*Rates!$N$25+(IF(($AG62-($AH62+$AI62))>0,($AG62-($AH62+$AI62)),0))*Rates!$N$26 -> 0 | F62: =IF($D62<Rates!$N$32,0,Rates!$N$34*(MIN($D62,Rates!$N$33)-Rates!$N$32)+Rates!$N$35*(MAX($D62,Rates!$N$33)-Rates!$N$33)) -> 0 | G62: 23 | H62: 0 | I62: =IF('Model Setup'!$J$33=0,'Model Setup'!$O$33,IF(((D62/'Model Setup'!$F$33)*'Model Setup'!$J$33)>=0,((D62/'Model Setup'!$F$33)*'Model Setup'!$J$33),0)) -> 0 | J62: =(IF($AL62<=0,0,IF($AL62<=Rates!$N$22,$AL62,Rates!$N$20-IF($AK62>=0,$AK62,0))))*Rates!$N$24+(IF($AL62<=Rates!$N$22,0,IF(($AL62-$AM62)<=Rates!$N$23,('Universal Credit Table'!$AL62-$AM62),Rates!$N$23)))*Rates!$N$25+(IF(($AL62-($AM62+$AN62))>0,($AL62-($AM62+$AN62)),0))*Rates!$N$26 -> 0 | K62: =IF($I62<Rates!$N$32,0,Rates!$N$34*(MIN($I62,Rates!$N$33)-Rates!$N$32)+Rates!$N$35*(MAX($I62,Rates!$N$33)-Rates!$N$33)) -> 0 | L62: 0 | M62: 0 | N62: 0 | O62: 23 | P62: 23 | Q62: =IF(D62<Rates!$U$82,$E$27,($E$27-(D62-Rates!$U$82)/(100/365*7)/100*$E$27)) -> 35 | R62: =0.75*IF(P62<$P$18,$K$18,$K$18-($P62-$P$18)*Rates!$U$73) -> 25.5 | S62: =IF('Model Setup'!$F$35=0,$O$27-(P62*Rates!$J$87),IF(AND($K$27>0,P62>Rates!$K$83),$O$27-((P62-Rates!$K$83)*Rates!$J$87),IF(AND($K$27>0,P62<Rates!$K$83),$O$27,IF(AND($K$27=0,P62>Rates!$K$77),$O$27-((P62-Rates!$K$77)*Rates!$J$87),$O$27)))) -> 352.9592308 | T62: =SUMIF($P62:$S62,">0")-$S$27+IF(O62<Rates!$U$96,$T$27,0) -> 423.3592308 | U62: =SUMIF($P62:$S62,">0")-$S$27+IF(P62<Rates!$U$96,$T$27,0) -> 423.3592308 | V62: =IF(U62<Rates!$F$105,"1st",IF(AND(Rates!$F$105<='Universal Credit Table'!U62,'Universal Credit Table'!U62<Rates!$F$106),"2nd",IF(AND(Rates!$F$106<='Universal Credit Table'!U62,'Universal Credit Table'!U62<Rates!$F$107),"3rd",IF(AND(Rates!$F$107<='Universal Credit Table'!U62,'Universal Credit Table'!U62<Rates!$F$108),"4th",IF(AND(Rates!$F$108<='Universal Credit Table'!U62,'Universal Credit Table'!U62<Rates!$F$109),"5th",IF(AND(Rates!$F$109<='Universal Credit Table'!U62,'Universal Credit Table'!U62<Rates!$F$110),"6th",IF(AND(Rates!$F$110<='Universal Credit Table'!U62,'Universal Credit Table'!U62<Rates!$F$111),"7th",IF(AND(Rates!$F$111<='Universal Credit Table'!U62,'Universal Credit Table'!U62<Rates!$F$112),"8th",IF(AND(Rates!$F$112<='Universal Credit Table'!U62,'Universal Credit Table'!U62<Rates!$F$113),"9th",">9th"))))))))) -> 2nd | W62: =U62-$R$27-$Q$27-'Model Setup'!$F$37 -> 263.3592308 | X62: =IF(W62<Rates!$N$105,"1st",IF(AND(Rates!$N$105<='Universal Credit Table'!W62,'Universal Credit Table'!W62<Rates!$N$106),"2nd",IF(AND(Rates!$N$106<='Universal Credit Table'!W62,'Universal Credit Table'!W62<Rates!$N$107),"3rd",IF(AND(Rates!$N$107<='Universal Credit Table'!W62,'Universal Credit Table'!W62<Rates!$N$108),"4th",IF(AND(Rates!$N$108<='Universal Credit Table'!W62,'Universal Credit Table'!W62<Rates!$N$109),"5th",IF(AND(Rates!$N$109<='Universal Credit Table'!W62,'Universal Credit Table'!W62<Rates!$N$110),"6th",IF(AND(Rates!$N$110<='Universal Credit Table'!W62,'Universal Credit Table'!W62<Rates!$N$111),"7th",IF(AND(Rates!$N$111<='Universal Credit Table'!W62,'Universal Credit Table'!W62<Rates!$N$112),"8th",IF(AND(Rates!$N$112<='Universal Credit Table'!W62,'Universal Credit Table'!W62<Rates!$N$113),"9th",">9th"))))))))) -> 1st | Y62: 0 | AA62: =IF(AND('Model Setup'!$J$33=0,'Model Setup'!$O$33=0),"-",(W62-'Single Earner Tables'!AG62)/'Single Earner Tables'!AG62) -> - | AB62: =IF(AA62<>"-",AA62*'Single Earner Tables'!AG62,"-") -> - | AC62: 0.9126668166 | AE62: =IF($D62<Rates!$N$16,Rates!$N$13,(Rates!$N$13-(0.5*($D62-Rates!$N$16)))) -> 241.0684932 | AF62: =IF('Model Setup'!$F$30="Single",0,IF('Model Setup'!$K$30="Not Married",0,IF(D62>=Rates!$N$17,0,IF(I62<(Rates!$N$13-Rates!$N$14),Rates!$N$14,Rates!$N$13-I62)))) -> 23.97260274 | AG62: -242.0410959 | AK62: =IF($I62>Rates!$N$16,(Rates!$N$13-(0.5*($I62-Rates!$N$16))),IF((AF62>0),Rates!$N$13-AF62,Rates!$N$13)) -> 217.0958904 | AL62: -217.0958904 | AM62: =IF($AL62<=0,0,IF($AL62<=Rates!$N$22,$AL62,Rates!$N$20-IF($AK62>=0,$AK62,0))) -> 0 | AN62: =IF($AL62<=Rates!$N$22,0,IF(($AL62-$AM62)<=Rates!$N$23,('Universal Credit Table'!$AL62-$AM62),Rates!$N$23)) -> 0 | AO62: 0
A63: 1251.428571 | C63: 1251.428571 | D63: 24 | E63: =(IF($AG63<=0,0,IF($AG63<=Rates!$N$22,$AG63,Rates!$N$20-IF($AE63>=0,$AE63,0))))*Rates!$N$24+(IF($AG63<=Rates!$N$22,0,IF(($AG63-$AH63)<=Rates!$N$23,('Universal Credit Table'!$AG63-$AH63),Rates!$N$23)))*Rates!$N$25+(IF(($AG63-($AH63+$AI63))>0,($AG63-($AH63+$AI63)),0))*Rates!$N$26 -> 0 | F63: =IF($D63<Rates!$N$32,0,Rates!$N$34*(MIN($D63,Rates!$N$33)-Rates!$N$32)+Rates!$N$35*(MAX($D63,Rates!$N$33)-Rates!$N$33)) -> 0 | G63: 24 | H63: 0 | I63: =IF('Model Setup'!$J$33=0,'Model Setup'!$O$33,IF(((D63/'Model Setup'!$F$33)*'Model Setup'!$J$33)>=0,((D63/'Model Setup'!$F$33)*'Model Setup'!$J$33),0)) -> 0 | J63: =(IF($AL63<=0,0,IF($AL63<=Rates!$N$22,$AL63,Rates!$N$20-IF($AK63>=0,$AK63,0))))*Rates!$N$24+(IF($AL63<=Rates!$N$22,0,IF(($AL63-$AM63)<=Rates!$N$23,('Universal Credit Table'!$AL63-$AM63),Rates!$N$23)))*Rates!$N$25+(IF(($AL63-($AM63+$AN63))>0,($AL63-($AM63+$AN63)),0))*Rates!$N$26 -> 0 | K63: =IF($I63<Rates!$N$32,0,Rates!$N$34*(MIN($I63,Rates!$N$33)-Rates!$N$32)+Rates!$N$35*(MAX($I63,Rates!$N$33)-Rates!$N$33)) -> 0 | L63: 0 | M63: 0 | N63: 0 | O63: 24 | P63: 24 | Q63: =IF(D63<Rates!$U$82,$E$27,($E$27-(D63-Rates!$U$82)/(100/365*7)/100*$E$27)) -> 35 | R63: =0.75*IF(P63<$P$18,$K$18,$K$18-($P63-$P$18)*Rates!$U$73) -> 25.5 | S63: =IF('Model Setup'!$F$35=0,$O$27-(P63*Rates!$J$87),IF(AND($K$27>0,P63>Rates!$K$83),$O$27-((P63-Rates!$K$83)*Rates!$J$87),IF(AND($K$27>0,P63<Rates!$K$83),$O$27,IF(AND($K$27=0,P63>Rates!$K$77),$O$27-((P63-Rates!$K$77)*Rates!$J$87),$O$27)))) -> 352.9592308 | T63: =SUMIF($P63:$S63,">0")-$S$27+IF(O63<Rates!$U$96,$T$27,0) -> 424.3592308 | U63: =SUMIF($P63:$S63,">0")-$S$27+IF(P63<Rates!$U$96,$T$27,0) -> 424.3592308 | V63: =IF(U63<Rates!$F$105,"1st",IF(AND(Rates!$F$105<='Universal Credit Table'!U63,'Universal Credit Table'!U63<Rates!$F$106),"2nd",IF(AND(Rates!$F$106<='Universal Credit Table'!U63,'Universal Credit Table'!U63<Rates!$F$107),"3rd",IF(AND(Rates!$F$107<='Universal Credit Table'!U63,'Universal Credit Table'!U63<Rates!$F$108),"4th",IF(AND(Rates!$F$108<='Universal Credit Table'!U63,'Universal Credit Table'!U63<Rates!$F$109),"5th",IF(AND(Rates!$F$109<='Universal Credit Table'!U63,'Universal Credit Table'!U63<Rates!$F$110),"6th",IF(AND(Rates!$F$110<='Universal Credit Table'!U63,'Universal Credit Table'!U63<Rates!$F$111),"7th",IF(AND(Rates!$F$111<='Universal Credit Table'!U63,'Universal Credit Table'!U63<Rates!$F$112),"8th",IF(AND(Rates!$F$112<='Universal Credit Table'!U63,'Universal Credit Table'!U63<Rates!$F$113),"9th",">9th"))))))))) -> 2nd | W63: =U63-$R$27-$Q$27-'Model Setup'!$F$37 -> 264.3592308 | X63: =IF(W63<Rates!$N$105,"1st",IF(AND(Rates!$N$105<='Universal Credit Table'!W63,'Universal Credit Table'!W63<Rates!$N$106),"2nd",IF(AND(Rates!$N$106<='Universal Credit Table'!W63,'Universal Credit Table'!W63<Rates!$N$107),"3rd",IF(AND(Rates!$N$107<='Universal Credit Table'!W63,'Universal Credit Table'!W63<Rates!$N$108),"4th",IF(AND(Rates!$N$108<='Universal Credit Table'!W63,'Universal Credit Table'!W63<Rates!$N$109),"5th",IF(AND(Rates!$N$109<='Universal Credit Table'!W63,'Universal Credit Table'!W63<Rates!$N$110),"6th",IF(AND(Rates!$N$110<='Universal Credit Table'!W63,'Universal Credit Table'!W63<Rates!$N$111),"7th",IF(AND(Rates!$N$111<='Universal Credit Table'!W63,'Universal Credit Table'!W63<Rates!$N$112),"8th",IF(AND(Rates!$N$112<='Universal Credit Table'!W63,'Universal Credit Table'!W63<Rates!$N$113),"9th",">9th"))))))))) -> 1st | Y63: 0 | AA63: =IF(AND('Model Setup'!$J$33=0,'Model Setup'!$O$33=0),"-",(W63-'Single Earner Tables'!AG63)/'Single Earner Tables'!AG63) -> - | AB63: =IF(AA63<>"-",AA63*'Single Earner Tables'!AG63,"-") -> - | AC63: 0.9092144431 | AE63: =IF($D63<Rates!$N$16,Rates!$N$13,(Rates!$N$13-(0.5*($D63-Rates!$N$16)))) -> 241.0684932 | AF63: =IF('Model Setup'!$F$30="Single",0,IF('Model Setup'!$K$30="Not Married",0,IF(D63>=Rates!$N$17,0,IF(I63<(Rates!$N$13-Rates!$N$14),Rates!$N$14,Rates!$N$13-I63)))) -> 23.97260274 | AG63: -241.0410959 | AK63: =IF($I63>Rates!$N$16,(Rates!$N$13-(0.5*($I63-Rates!$N$16))),IF((AF63>0),Rates!$N$13-AF63,Rates!$N$13)) -> 217.0958904 | AL63: -217.0958904 | AM63: =IF($AL63<=0,0,IF($AL63<=Rates!$N$22,$AL63,Rates!$N$20-IF($AK63>=0,$AK63,0))) -> 0 | AN63: =IF($AL63<=Rates!$N$22,0,IF(($AL63-$AM63)<=Rates!$N$23,('Universal Credit Table'!$AL63-$AM63),Rates!$N$23)) -> 0 | AO63: 0
A64: 1303.571429 | C64: 1303.571429 | D64: 25 | E64: =(IF($AG64<=0,0,IF($AG64<=Rates!$N$22,$AG64,Rates!$N$20-IF($AE64>=0,$AE64,0))))*Rates!$N$24+(IF($AG64<=Rates!$N$22,0,IF(($AG64-$AH64)<=Rates!$N$23,('Universal Credit Table'!$AG64-$AH64),Rates!$N$23)))*Rates!$N$25+(IF(($AG64-($AH64+$AI64))>0,($AG64-($AH64+$AI64)),0))*Rates!$N$26 -> 0 | F64: =IF($D64<Rates!$N$32,0,Rates!$N$34*(MIN($D64,Rates!$N$33)-Rates!$N$32)+Rates!$N$35*(MAX($D64,Rates!$N$33)-Rates!$N$33)) -> 0 | G64: 25 | H64: 0 | I64: =IF('Model Setup'!$J$33=0,'Model Setup'!$O$33,IF(((D64/'Model Setup'!$F$33)*'Model Setup'!$J$33)>=0,((D64/'Model Setup'!$F$33)*'Model Setup'!$J$33),0)) -> 0 | J64: =(IF($AL64<=0,0,IF($AL64<=Rates!$N$22,$AL64,Rates!$N$20-IF($AK64>=0,$AK64,0))))*Rates!$N$24+(IF($AL64<=Rates!$N$22,0,IF(($AL64-$AM64)<=Rates!$N$23,('Universal Credit Table'!$AL64-$AM64),Rates!$N$23)))*Rates!$N$25+(IF(($AL64-($AM64+$AN64))>0,($AL64-($AM64+$AN64)),0))*Rates!$N$26 -> 0 | K64: =IF($I64<Rates!$N$32,0,Rates!$N$34*(MIN($I64,Rates!$N$33)-Rates!$N$32)+Rates!$N$35*(MAX($I64,Rates!$N$33)-Rates!$N$33)) -> 0 | L64: 0 | M64: 0 | N64: 0 | O64: 25 | P64: 25 | Q64: =IF(D64<Rates!$U$82,$E$27,($E$27-(D64-Rates!$U$82)/(100/365*7)/100*$E$27)) -> 35 | R64: =0.75*IF(P64<$P$18,$K$18,$K$18-($P64-$P$18)*Rates!$U$73) -> 25.5 | S64: =IF('Model Setup'!$F$35=0,$O$27-(P64*Rates!$J$87),IF(AND($K$27>0,P64>Rates!$K$83),$O$27-((P64-Rates!$K$83)*Rates!$J$87),IF(AND($K$27>0,P64<Rates!$K$83),$O$27,IF(AND($K$27=0,P64>Rates!$K$77),$O$27-((P64-Rates!$K$77)*Rates!$J$87),$O$27)))) -> 352.9592308 | T64: =SUMIF($P64:$S64,">0")-$S$27+IF(O64<Rates!$U$96,$T$27,0) -> 425.3592308 | U64: =SUMIF($P64:$S64,">0")-$S$27+IF(P64<Rates!$U$96,$T$27,0) -> 425.3592308 | V64: =IF(U64<Rates!$F$105,"1st",IF(AND(Rates!$F$105<='Universal Credit Table'!U64,'Universal Credit Table'!U64<Rates!$F$106),"2nd",IF(AND(Rates!$F$106<='Universal Credit Table'!U64,'Universal Credit Table'!U64<Rates!$F$107),"3rd",IF(AND(Rates!$F$107<='Universal Credit Table'!U64,'Universal Credit Table'!U64<Rates!$F$108),"4th",IF(AND(Rates!$F$108<='Universal Credit Table'!U64,'Universal Credit Table'!U64<Rates!$F$109),"5th",IF(AND(Rates!$F$109<='Universal Credit Table'!U64,'Universal Credit Table'!U64<Rates!$F$110),"6th",IF(AND(Rates!$F$110<='Universal Credit Table'!U64,'Universal Credit Table'!U64<Rates!$F$111),"7th",IF(AND(Rates!$F$111<='Universal Credit Table'!U64,'Universal Credit Table'!U64<Rates!$F$112),"8th",IF(AND(Rates!$F$112<='Universal Credit Table'!U64,'Universal Credit Table'!U64<Rates!$F$113),"9th",">9th"))))))))) -> 2nd | W64: =U64-$R$27-$Q$27-'Model Setup'!$F$37 -> 265.3592308 | X64: =IF(W64<Rates!$N$105,"1st",IF(AND(Rates!$N$105<='Universal Credit Table'!W64,'Universal Credit Table'!W64<Rates!$N$106),"2nd",IF(AND(Rates!$N$106<='Universal Credit Table'!W64,'Universal Credit Table'!W64<Rates!$N$107),"3rd",IF(AND(Rates!$N$107<='Universal Credit Table'!W64,'Universal Credit Table'!W64<Rates!$N$108),"4th",IF(AND(Rates!$N$108<='Universal Credit Table'!W64,'Universal Credit Table'!W64<Rates!$N$109),"5th",IF(AND(Rates!$N$109<='Universal Credit Table'!W64,'Universal Credit Table'!W64<Rates!$N$110),"6th",IF(AND(Rates!$N$110<='Universal Credit Table'!W64,'Universal Credit Table'!W64<Rates!$N$111),"7th",IF(AND(Rates!$N$111<='Universal Credit Table'!W64,'Universal Credit Table'!W64<Rates!$N$112),"8th",IF(AND(Rates!$N$112<='Universal Credit Table'!W64,'Universal Credit Table'!W64<Rates!$N$113),"9th",">9th"))))))))) -> 1st | Y64: 0 | AA64: =IF(AND('Model Setup'!$J$33=0,'Model Setup'!$O$33=0),"-",(W64-'Single Earner Tables'!AG64)/'Single Earner Tables'!AG64) -> - | AB64: =IF(AA64<>"-",AA64*'Single Earner Tables'!AG64,"-") -> - | AC64: 0.9057880899 | AE64: =IF($D64<Rates!$N$16,Rates!$N$13,(Rates!$N$13-(0.5*($D64-Rates!$N$16)))) -> 241.0684932 | AF64: =IF('Model Setup'!$F$30="Single",0,IF('Model Setup'!$K$30="Not Married",0,IF(D64>=Rates!$N$17,0,IF(I64<(Rates!$N$13-Rates!$N$14),Rates!$N$14,Rates!$N$13-I64)))) -> 23.97260274 | AG64: -240.0410959 | AK64: =IF($I64>Rates!$N$16,(Rates!$N$13-(0.5*($I64-Rates!$N$16))),IF((AF64>0),Rates!$N$13-AF64,Rates!$N$13)) -> 217.0958904 | AL64: -217.0958904 | AM64: =IF($AL64<=0,0,IF($AL64<=Rates!$N$22,$AL64,Rates!$N$20-IF($AK64>=0,$AK64,0))) -> 0 | AN64: =IF($AL64<=Rates!$N$22,0,IF(($AL64-$AM64)<=Rates!$N$23,('Universal Credit Table'!$AL64-$AM64),Rates!$N$23)) -> 0 | AO64: 0
A65: 1355.714286 | C65: 1355.714286 | D65: 26 | E65: =(IF($AG65<=0,0,IF($AG65<=Rates!$N$22,$AG65,Rates!$N$20-IF($AE65>=0,$AE65,0))))*Rates!$N$24+(IF($AG65<=Rates!$N$22,0,IF(($AG65-$AH65)<=Rates!$N$23,('Universal Credit Table'!$AG65-$AH65),Rates!$N$23)))*Rates!$N$25+(IF(($AG65-($AH65+$AI65))>0,($AG65-($AH65+$AI65)),0))*Rates!$N$26 -> 0 | F65: =IF($D65<Rates!$N$32,0,Rates!$N$34*(MIN($D65,Rates!$N$33)-Rates!$N$32)+Rates!$N$35*(MAX($D65,Rates!$N$33)-Rates!$N$33)) -> 0 | G65: 26 | H65: 0 | I65: =IF('Model Setup'!$J$33=0,'Model Setup'!$O$33,IF(((D65/'Model Setup'!$F$33)*'Model Setup'!$J$33)>=0,((D65/'Model Setup'!$F$33)*'Model Setup'!$J$33),0)) -> 0 | J65: =(IF($AL65<=0,0,IF($AL65<=Rates!$N$22,$AL65,Rates!$N$20-IF($AK65>=0,$AK65,0))))*Rates!$N$24+(IF($AL65<=Rates!$N$22,0,IF(($AL65-$AM65)<=Rates!$N$23,('Universal Credit Table'!$AL65-$AM65),Rates!$N$23)))*Rates!$N$25+(IF(($AL65-($AM65+$AN65))>0,($AL65-($AM65+$AN65)),0))*Rates!$N$26 -> 0 | K65: =IF($I65<Rates!$N$32,0,Rates!$N$34*(MIN($I65,Rates!$N$33)-Rates!$N$32)+Rates!$N$35*(MAX($I65,Rates!$N$33)-Rates!$N$33)) -> 0 | L65: 0 | M65: 0 | N65: 0 | O65: 26 | P65: 26 | Q65: =IF(D65<Rates!$U$82,$E$27,($E$27-(D65-Rates!$U$82)/(100/365*7)/100*$E$27)) -> 35 | R65: =0.75*IF(P65<$P$18,$K$18,$K$18-($P65-$P$18)*Rates!$U$73) -> 25.5 | S65: =IF('Model Setup'!$F$35=0,$O$27-(P65*Rates!$J$87),IF(AND($K$27>0,P65>Rates!$K$83),$O$27-((P65-Rates!$K$83)*Rates!$J$87),IF(AND($K$27>0,P65<Rates!$K$83),$O$27,IF(AND($K$27=0,P65>Rates!$K$77),$O$27-((P65-Rates!$K$77)*Rates!$J$87),$O$27)))) -> 352.9592308 | T65: =SUMIF($P65:$S65,">0")-$S$27+IF(O65<Rates!$U$96,$T$27,0) -> 426.3592308 | U65: =SUMIF($P65:$S65,">0")-$S$27+IF(P65<Rates!$U$96,$T$27,0) -> 426.3592308 | V65: =IF(U65<Rates!$F$105,"1st",IF(AND(Rates!$F$105<='Universal Credit Table'!U65,'Universal Credit Table'!U65<Rates!$F$106),"2nd",IF(AND(Rates!$F$106<='Universal Credit Table'!U65,'Universal Credit Table'!U65<Rates!$F$107),"3rd",IF(AND(Rates!$F$107<='Universal Credit Table'!U65,'Universal Credit Table'!U65<Rates!$F$108),"4th",IF(AND(Rates!$F$108<='Universal Credit Table'!U65,'Universal Credit Table'!U65<Rates!$F$109),"5th",IF(AND(Rates!$F$109<='Universal Credit Table'!U65,'Universal Credit Table'!U65<Rates!$F$110),"6th",IF(AND(Rates!$F$110<='Universal Credit Table'!U65,'Universal Credit Table'!U65<Rates!$F$111),"7th",IF(AND(Rates!$F$111<='Universal Credit Table'!U65,'Universal Credit Table'!U65<Rates!$F$112),"8th",IF(AND(Rates!$F$112<='Universal Credit Table'!U65,'Universal Credit Table'!U65<Rates!$F$113),"9th",">9th"))))))))) -> 2nd | W65: =U65-$R$27-$Q$27-'Model Setup'!$F$37 -> 266.3592308 | X65: =IF(W65<Rates!$N$105,"1st",IF(AND(Rates!$N$105<='Universal Credit Table'!W65,'Universal Credit Table'!W65<Rates!$N$106),"2nd",IF(AND(Rates!$N$106<='Universal Credit Table'!W65,'Universal Credit Table'!W65<Rates!$N$107),"3rd",IF(AND(Rates!$N$107<='Universal Credit Table'!W65,'Universal Credit Table'!W65<Rates!$N$108),"4th",IF(AND(Rates!$N$108<='Universal Credit Table'!W65,'Universal Credit Table'!W65<Rates!$N$109),"5th",IF(AND(Rates!$N$109<='Universal Credit Table'!W65,'Universal Credit Table'!W65<Rates!$N$110),"6th",IF(AND(Rates!$N$110<='Universal Credit Table'!W65,'Universal Credit Table'!W65<Rates!$N$111),"7th",IF(AND(Rates!$N$111<='Universal Credit Table'!W65,'Universal Credit Table'!W65<Rates!$N$112),"8th",IF(AND(Rates!$N$112<='Universal Credit Table'!W65,'Universal Credit Table'!W65<Rates!$N$113),"9th",">9th"))))))))) -> 1st | Y65: 0 | AA65: =IF(AND('Model Setup'!$J$33=0,'Model Setup'!$O$33=0),"-",(W65-'Single Earner Tables'!AG65)/'Single Earner Tables'!AG65) -> - | AB65: =IF(AA65<>"-",AA65*'Single Earner Tables'!AG65,"-") -> - | AC65: 0.902387464 | AE65: =IF($D65<Rates!$N$16,Rates!$N$13,(Rates!$N$13-(0.5*($D65-Rates!$N$16)))) -> 241.0684932 | AF65: =IF('Model Setup'!$F$30="Single",0,IF('Model Setup'!$K$30="Not Married",0,IF(D65>=Rates!$N$17,0,IF(I65<(Rates!$N$13-Rates!$N$14),Rates!$N$14,Rates!$N$13-I65)))) -> 23.97260274 | AG65: -239.0410959 | AK65: =IF($I65>Rates!$N$16,(Rates!$N$13-(0.5*($I65-Rates!$N$16))),IF((AF65>0),Rates!$N$13-AF65,Rates!$N$13)) -> 217.0958904 | AL65: -217.0958904 | AM65: =IF($AL65<=0,0,IF($AL65<=Rates!$N$22,$AL65,Rates!$N$20-IF($AK65>=0,$AK65,0))) -> 0 | AN65: =IF($AL65<=Rates!$N$22,0,IF(($AL65-$AM65)<=Rates!$N$23,('Universal Credit Table'!$AL65-$AM65),Rates!$N$23)) -> 0 | AO65: 0
A66: 1407.857143 | C66: 1407.857143 | D66: 27 | E66: =(IF($AG66<=0,0,IF($AG66<=Rates!$N$22,$AG66,Rates!$N$20-IF($AE66>=0,$AE66,0))))*Rates!$N$24+(IF($AG66<=Rates!$N$22,0,IF(($AG66-$AH66)<=Rates!$N$23,('Universal Credit Table'!$AG66-$AH66),Rates!$N$23)))*Rates!$N$25+(IF(($AG66-($AH66+$AI66))>0,($AG66-($AH66+$AI66)),0))*Rates!$N$26 -> 0 | F66: =IF($D66<Rates!$N$32,0,Rates!$N$34*(MIN($D66,Rates!$N$33)-Rates!$N$32)+Rates!$N$35*(MAX($D66,Rates!$N$33)-Rates!$N$33)) -> 0 | G66: 27 | H66: 0 | I66: =IF('Model Setup'!$J$33=0,'Model Setup'!$O$33,IF(((D66/'Model Setup'!$F$33)*'Model Setup'!$J$33)>=0,((D66/'Model Setup'!$F$33)*'Model Setup'!$J$33),0)) -> 0 | J66: =(IF($AL66<=0,0,IF($AL66<=Rates!$N$22,$AL66,Rates!$N$20-IF($AK66>=0,$AK66,0))))*Rates!$N$24+(IF($AL66<=Rates!$N$22,0,IF(($AL66-$AM66)<=Rates!$N$23,('Universal Credit Table'!$AL66-$AM66),Rates!$N$23)))*Rates!$N$25+(IF(($AL66-($AM66+$AN66))>0,($AL66-($AM66+$AN66)),0))*Rates!$N$26 -> 0 | K66: =IF($I66<Rates!$N$32,0,Rates!$N$34*(MIN($I66,Rates!$N$33)-Rates!$N$32)+Rates!$N$35*(MAX($I66,Rates!$N$33)-Rates!$N$33)) -> 0 | L66: 0 | M66: 0 | N66: 0 | O66: 27 | P66: 27 | Q66: =IF(D66<Rates!$U$82,$E$27,($E$27-(D66-Rates!$U$82)/(100/365*7)/100*$E$27)) -> 35 | R66: =0.75*IF(P66<$P$18,$K$18,$K$18-($P66-$P$18)*Rates!$U$73) -> 25.5 | S66: =IF('Model Setup'!$F$35=0,$O$27-(P66*Rates!$J$87),IF(AND($K$27>0,P66>Rates!$K$83),$O$27-((P66-Rates!$K$83)*Rates!$J$87),IF(AND($K$27>0,P66<Rates!$K$83),$O$27,IF(AND($K$27=0,P66>Rates!$K$77),$O$27-((P66-Rates!$K$77)*Rates!$J$87),$O$27)))) -> 352.9592308 | T66: =SUMIF($P66:$S66,">0")-$S$27+IF(O66<Rates!$U$96,$T$27,0) -> 427.3592308 | U66: =SUMIF($P66:$S66,">0")-$S$27+IF(P66<Rates!$U$96,$T$27,0) -> 427.3592308 | V66: =IF(U66<Rates!$F$105,"1st",IF(AND(Rates!$F$105<='Universal Credit Table'!U66,'Universal Credit Table'!U66<Rates!$F$106),"2nd",IF(AND(Rates!$F$106<='Universal Credit Table'!U66,'Universal Credit Table'!U66<Rates!$F$107),"3rd",IF(AND(Rates!$F$107<='Universal Credit Table'!U66,'Universal Credit Table'!U66<Rates!$F$108),"4th",IF(AND(Rates!$F$108<='Universal Credit Table'!U66,'Universal Credit Table'!U66<Rates!$F$109),"5th",IF(AND(Rates!$F$109<='Universal Credit Table'!U66,'Universal Credit Table'!U66<Rates!$F$110),"6th",IF(AND(Rates!$F$110<='Universal Credit Table'!U66,'Universal Credit Table'!U66<Rates!$F$111),"7th",IF(AND(Rates!$F$111<='Universal Credit Table'!U66,'Universal Credit Table'!U66<Rates!$F$112),"8th",IF(AND(Rates!$F$112<='Universal Credit Table'!U66,'Universal Credit Table'!U66<Rates!$F$113),"9th",">9th"))))))))) -> 2nd | W66: =U66-$R$27-$Q$27-'Model Setup'!$F$37 -> 267.3592308 | X66: =IF(W66<Rates!$N$105,"1st",IF(AND(Rates!$N$105<='Universal Credit Table'!W66,'Universal Credit Table'!W66<Rates!$N$106),"2nd",IF(AND(Rates!$N$106<='Universal Credit Table'!W66,'Universal Credit Table'!W66<Rates!$N$107),"3rd",IF(AND(Rates!$N$107<='Universal Credit Table'!W66,'Universal Credit Table'!W66<Rates!$N$108),"4th",IF(AND(Rates!$N$108<='Universal Credit Table'!W66,'Universal Credit Table'!W66<Rates!$N$109),"5th",IF(AND(Rates!$N$109<='Universal Credit Table'!W66,'Universal Credit Table'!W66<Rates!$N$110),"6th",IF(AND(Rates!$N$110<='Universal Credit Table'!W66,'Universal Credit Table'!W66<Rates!$N$111),"7th",IF(AND(Rates!$N$111<='Universal Credit Table'!W66,'Universal Credit Table'!W66<Rates!$N$112),"8th",IF(AND(Rates!$N$112<='Universal Credit Table'!W66,'Universal Credit Table'!W66<Rates!$N$113),"9th",">9th"))))))))) -> 1st | Y66: 0 | AA66: =IF(AND('Model Setup'!$J$33=0,'Model Setup'!$O$33=0),"-",(W66-'Single Earner Tables'!AG66)/'Single Earner Tables'!AG66) -> - | AB66: =IF(AA66<>"-",AA66*'Single Earner Tables'!AG66,"-") -> - | AC66: 0.8990122768 | AE66: =IF($D66<Rates!$N$16,Rates!$N$13,(Rates!$N$13-(0.5*($D66-Rates!$N$16)))) -> 241.0684932 | AF66: =IF('Model Setup'!$F$30="Single",0,IF('Model Setup'!$K$30="Not Married",0,IF(D66>=Rates!$N$17,0,IF(I66<(Rates!$N$13-Rates!$N$14),Rates!$N$14,Rates!$N$13-I66)))) -> 23.97260274 | AG66: -238.0410959 | AK66: =IF($I66>Rates!$N$16,(Rates!$N$13-(0.5*($I66-Rates!$N$16))),IF((AF66>0),Rates!$N$13-AF66,Rates!$N$13)) -> 217.0958904 | AL66: -217.0958904 | AM66: =IF($AL66<=0,0,IF($AL66<=Rates!$N$22,$AL66,Rates!$N$20-IF($AK66>=0,$AK66,0))) -> 0 | AN66: =IF($AL66<=Rates!$N$22,0,IF(($AL66-$AM66)<=Rates!$N$23,('Universal Credit Table'!$AL66-$AM66),Rates!$N$23)) -> 0 | AO66: 0
A67: 1460 | C67: 1460 | D67: 28 | E67: =(IF($AG67<=0,0,IF($AG67<=Rates!$N$22,$AG67,Rates!$N$20-IF($AE67>=0,$AE67,0))))*Rates!$N$24+(IF($AG67<=Rates!$N$22,0,IF(($AG67-$AH67)<=Rates!$N$23,('Universal Credit Table'!$AG67-$AH67),Rates!$N$23)))*Rates!$N$25+(IF(($AG67-($AH67+$AI67))>0,($AG67-($AH67+$AI67)),0))*Rates!$N$26 -> 0 | F67: =IF($D67<Rates!$N$32,0,Rates!$N$34*(MIN($D67,Rates!$N$33)-Rates!$N$32)+Rates!$N$35*(MAX($D67,Rates!$N$33)-Rates!$N$33)) -> 0 | G67: 28 | H67: 0 | I67: =IF('Model Setup'!$J$33=0,'Model Setup'!$O$33,IF(((D67/'Model Setup'!$F$33)*'Model Setup'!$J$33)>=0,((D67/'Model Setup'!$F$33)*'Model Setup'!$J$33),0)) -> 0 | J67: =(IF($AL67<=0,0,IF($AL67<=Rates!$N$22,$AL67,Rates!$N$20-IF($AK67>=0,$AK67,0))))*Rates!$N$24+(IF($AL67<=Rates!$N$22,0,IF(($AL67-$AM67)<=Rates!$N$23,('Universal Credit Table'!$AL67-$AM67),Rates!$N$23)))*Rates!$N$25+(IF(($AL67-($AM67+$AN67))>0,($AL67-($AM67+$AN67)),0))*Rates!$N$26 -> 0 | K67: =IF($I67<Rates!$N$32,0,Rates!$N$34*(MIN($I67,Rates!$N$33)-Rates!$N$32)+Rates!$N$35*(MAX($I67,Rates!$N$33)-Rates!$N$33)) -> 0 | L67: 0 | M67: 0 | N67: 0 | O67: 28 | P67: 28 | Q67: =IF(D67<Rates!$U$82,$E$27,($E$27-(D67-Rates!$U$82)/(100/365*7)/100*$E$27)) -> 35 | R67: =0.75*IF(P67<$P$18,$K$18,$K$18-($P67-$P$18)*Rates!$U$73) -> 25.5 | S67: =IF('Model Setup'!$F$35=0,$O$27-(P67*Rates!$J$87),IF(AND($K$27>0,P67>Rates!$K$83),$O$27-((P67-Rates!$K$83)*Rates!$J$87),IF(AND($K$27>0,P67<Rates!$K$83),$O$27,IF(AND($K$27=0,P67>Rates!$K$77),$O$27-((P67-Rates!$K$77)*Rates!$J$87),$O$27)))) -> 352.9592308 | T67: =SUMIF($P67:$S67,">0")-$S$27+IF(O67<Rates!$U$96,$T$27,0) -> 428.3592308 | U67: =SUMIF($P67:$S67,">0")-$S$27+IF(P67<Rates!$U$96,$T$27,0) -> 428.3592308 | V67: =IF(U67<Rates!$F$105,"1st",IF(AND(Rates!$F$105<='Universal Credit Table'!U67,'Universal Credit Table'!U67<Rates!$F$106),"2nd",IF(AND(Rates!$F$106<='Universal Credit Table'!U67,'Universal Credit Table'!U67<Rates!$F$107),"3rd",IF(AND(Rates!$F$107<='Universal Credit Table'!U67,'Universal Credit Table'!U67<Rates!$F$108),"4th",IF(AND(Rates!$F$108<='Universal Credit Table'!U67,'Universal Credit Table'!U67<Rates!$F$109),"5th",IF(AND(Rates!$F$109<='Universal Credit Table'!U67,'Universal Credit Table'!U67<Rates!$F$110),"6th",IF(AND(Rates!$F$110<='Universal Credit Table'!U67,'Universal Credit Table'!U67<Rates!$F$111),"7th",IF(AND(Rates!$F$111<='Universal Credit Table'!U67,'Universal Credit Table'!U67<Rates!$F$112),"8th",IF(AND(Rates!$F$112<='Universal Credit Table'!U67,'Universal Credit Table'!U67<Rates!$F$113),"9th",">9th"))))))))) -> 2nd | W67: =U67-$R$27-$Q$27-'Model Setup'!$F$37 -> 268.3592308 | X67: =IF(W67<Rates!$N$105,"1st",IF(AND(Rates!$N$105<='Universal Credit Table'!W67,'Universal Credit Table'!W67<Rates!$N$106),"2nd",IF(AND(Rates!$N$106<='Universal Credit Table'!W67,'Universal Credit Table'!W67<Rates!$N$107),"3rd",IF(AND(Rates!$N$107<='Universal Credit Table'!W67,'Universal Credit Table'!W67<Rates!$N$108),"4th",IF(AND(Rates!$N$108<='Universal Credit Table'!W67,'Universal Credit Table'!W67<Rates!$N$109),"5th",IF(AND(Rates!$N$109<='Universal Credit Table'!W67,'Universal Credit Table'!W67<Rates!$N$110),"6th",IF(AND(Rates!$N$110<='Universal Credit Table'!W67,'Universal Credit Table'!W67<Rates!$N$111),"7th",IF(AND(Rates!$N$111<='Universal Credit Table'!W67,'Universal Credit Table'!W67<Rates!$N$112),"8th",IF(AND(Rates!$N$112<='Universal Credit Table'!W67,'Universal Credit Table'!W67<Rates!$N$113),"9th",">9th"))))))))) -> 2nd | Y67: 0 | AA67: =IF(AND('Model Setup'!$J$33=0,'Model Setup'!$O$33=0),"-",(W67-'Single Earner Tables'!AG67)/'Single Earner Tables'!AG67) -> - | AB67: =IF(AA67<>"-",AA67*'Single Earner Tables'!AG67,"-") -> - | AC67: 0.8956622438 | AE67: =IF($D67<Rates!$N$16,Rates!$N$13,(Rates!$N$13-(0.5*($D67-Rates!$N$16)))) -> 241.0684932 | AF67: =IF('Model Setup'!$F$30="Single",0,IF('Model Setup'!$K$30="Not Married",0,IF(D67>=Rates!$N$17,0,IF(I67<(Rates!$N$13-Rates!$N$14),Rates!$N$14,Rates!$N$13-I67)))) -> 23.97260274 | AG67: -237.0410959 | AK67: =IF($I67>Rates!$N$16,(Rates!$N$13-(0.5*($I67-Rates!$N$16))),IF((AF67>0),Rates!$N$13-AF67,Rates!$N$13)) -> 217.0958904 | AL67: -217.0958904 | AM67: =IF($AL67<=0,0,IF($AL67<=Rates!$N$22,$AL67,Rates!$N$20-IF($AK67>=0,$AK67,0))) -> 0 | AN67: =IF($AL67<=Rates!$N$22,0,IF(($AL67-$AM67)<=Rates!$N$23,('Universal Credit Table'!$AL67-$AM67),Rates!$N$23)) -> 0 | AO67: 0
A68: 1512.142857 | C68: 1512.142857 | D68: 29 | E68: =(IF($AG68<=0,0,IF($AG68<=Rates!$N$22,$AG68,Rates!$N$20-IF($AE68>=0,$AE68,0))))*Rates!$N$24+(IF($AG68<=Rates!$N$22,0,IF(($AG68-$AH68)<=Rates!$N$23,('Universal Credit Table'!$AG68-$AH68),Rates!$N$23)))*Rates!$N$25+(IF(($AG68-($AH68+$AI68))>0,($AG68-($AH68+$AI68)),0))*Rates!$N$26 -> 0 | F68: =IF($D68<Rates!$N$32,0,Rates!$N$34*(MIN($D68,Rates!$N$33)-Rates!$N$32)+Rates!$N$35*(MAX($D68,Rates!$N$33)-Rates!$N$33)) -> 0 | G68: 29 | H68: 0 | I68: =IF('Model Setup'!$J$33=0,'Model Setup'!$O$33,IF(((D68/'Model Setup'!$F$33)*'Model Setup'!$J$33)>=0,((D68/'Model Setup'!$F$33)*'Model Setup'!$J$33),0)) -> 0 | J68: =(IF($AL68<=0,0,IF($AL68<=Rates!$N$22,$AL68,Rates!$N$20-IF($AK68>=0,$AK68,0))))*Rates!$N$24+(IF($AL68<=Rates!$N$22,0,IF(($AL68-$AM68)<=Rates!$N$23,('Universal Credit Table'!$AL68-$AM68),Rates!$N$23)))*Rates!$N$25+(IF(($AL68-($AM68+$AN68))>0,($AL68-($AM68+$AN68)),0))*Rates!$N$26 -> 0 | K68: =IF($I68<Rates!$N$32,0,Rates!$N$34*(MIN($I68,Rates!$N$33)-Rates!$N$32)+Rates!$N$35*(MAX($I68,Rates!$N$33)-Rates!$N$33)) -> 0 | L68: 0 | M68: 0 | N68: 0 | O68: 29 | P68: 29 | Q68: =IF(D68<Rates!$U$82,$E$27,($E$27-(D68-Rates!$U$82)/(100/365*7)/100*$E$27)) -> 35 | R68: =0.75*IF(P68<$P$18,$K$18,$K$18-($P68-$P$18)*Rates!$U$73) -> 25.5 | S68: =IF('Model Setup'!$F$35=0,$O$27-(P68*Rates!$J$87),IF(AND($K$27>0,P68>Rates!$K$83),$O$27-((P68-Rates!$K$83)*Rates!$J$87),IF(AND($K$27>0,P68<Rates!$K$83),$O$27,IF(AND($K$27=0,P68>Rates!$K$77),$O$27-((P68-Rates!$K$77)*Rates!$J$87),$O$27)))) -> 352.9592308 | T68: =SUMIF($P68:$S68,">0")-$S$27+IF(O68<Rates!$U$96,$T$27,0) -> 429.3592308 | U68: =SUMIF($P68:$S68,">0")-$S$27+IF(P68<Rates!$U$96,$T$27,0) -> 429.3592308 | V68: =IF(U68<Rates!$F$105,"1st",IF(AND(Rates!$F$105<='Universal Credit Table'!U68,'Universal Credit Table'!U68<Rates!$F$106),"2nd",IF(AND(Rates!$F$106<='Universal Credit Table'!U68,'Universal Credit Table'!U68<Rates!$F$107),"3rd",IF(AND(Rates!$F$107<='Universal Credit Table'!U68,'Universal Credit Table'!U68<Rates!$F$108),"4th",IF(AND(Rates!$F$108<='Universal Credit Table'!U68,'Universal Credit Table'!U68<Rates!$F$109),"5th",IF(AND(Rates!$F$109<='Universal Credit Table'!U68,'Universal Credit Table'!U68<Rates!$F$110),"6th",IF(AND(Rates!$F$110<='Universal Credit Table'!U68,'Universal Credit Table'!U68<Rates!$F$111),"7th",IF(AND(Rates!$F$111<='Universal Credit Table'!U68,'Universal Credit Table'!U68<Rates!$F$112),"8th",IF(AND(Rates!$F$112<='Universal Credit Table'!U68,'Universal Credit Table'!U68<Rates!$F$113),"9th",">9th"))))))))) -> 2nd | W68: =U68-$R$27-$Q$27-'Model Setup'!$F$37 -> 269.3592308 | X68: =IF(W68<Rates!$N$105,"1st",IF(AND(Rates!$N$105<='Universal Credit Table'!W68,'Universal Credit Table'!W68<Rates!$N$106),"2nd",IF(AND(Rates!$N$106<='Universal Credit Table'!W68,'Universal Credit Table'!W68<Rates!$N$107),"3rd",IF(AND(Rates!$N$107<='Universal Credit Table'!W68,'Universal Credit Table'!W68<Rates!$N$108),"4th",IF(AND(Rates!$N$108<='Universal Credit Table'!W68,'Universal Credit Table'!W68<Rates!$N$109),"5th",IF(AND(Rates!$N$109<='Universal Credit Table'!W68,'Universal Credit Table'!W68<Rates!$N$110),"6th",IF(AND(Rates!$N$110<='Universal Credit Table'!W68,'Universal Credit Table'!W68<Rates!$N$111),"7th",IF(AND(Rates!$N$111<='Universal Credit Table'!W68,'Universal Credit Table'!W68<Rates!$N$112),"8th",IF(AND(Rates!$N$112<='Universal Credit Table'!W68,'Universal Credit Table'!W68<Rates!$N$113),"9th",">9th"))))))))) -> 2nd | Y68: 0 | AA68: =IF(AND('Model Setup'!$J$33=0,'Model Setup'!$O$33=0),"-",(W68-'Single Earner Tables'!AG68)/'Single Earner Tables'!AG68) -> - | AB68: =IF(AA68<>"-",AA68*'Single Earner Tables'!AG68,"-") -> - | AC68: 0.8923370849 | AE68: =IF($D68<Rates!$N$16,Rates!$N$13,(Rates!$N$13-(0.5*($D68-Rates!$N$16)))) -> 241.0684932 | AF68: =IF('Model Setup'!$F$30="Single",0,IF('Model Setup'!$K$30="Not Married",0,IF(D68>=Rates!$N$17,0,IF(I68<(Rates!$N$13-Rates!$N$14),Rates!$N$14,Rates!$N$13-I68)))) -> 23.97260274 | AG68: -236.0410959 | AK68: =IF($I68>Rates!$N$16,(Rates!$N$13-(0.5*($I68-Rates!$N$16))),IF((AF68>0),Rates!$N$13-AF68,Rates!$N$13)) -> 217.0958904 | AL68: -217.0958904 | AM68: =IF($AL68<=0,0,IF($AL68<=Rates!$N$22,$AL68,Rates!$N$20-IF($AK68>=0,$AK68,0))) -> 0 | AN68: =IF($AL68<=Rates!$N$22,0,IF(($AL68-$AM68)<=Rates!$N$23,('Universal Credit Table'!$AL68-$AM68),Rates!$N$23)) -> 0 | AO68: 0
A69: 1564.285714 | C69: 1564.285714 | D69: 30 | E69: =(IF($AG69<=0,0,IF($AG69<=Rates!$N$22,$AG69,Rates!$N$20-IF($AE69>=0,$AE69,0))))*Rates!$N$24+(IF($AG69<=Rates!$N$22,0,IF(($AG69-$AH69)<=Rates!$N$23,('Universal Credit Table'!$AG69-$AH69),Rates!$N$23)))*Rates!$N$25+(IF(($AG69-($AH69+$AI69))>0,($AG69-($AH69+$AI69)),0))*Rates!$N$26 -> 0 | F69: =IF($D69<Rates!$N$32,0,Rates!$N$34*(MIN($D69,Rates!$N$33)-Rates!$N$32)+Rates!$N$35*(MAX($D69,Rates!$N$33)-Rates!$N$33)) -> 0 | G69: 30 | H69: 0 | I69: =IF('Model Setup'!$J$33=0,'Model Setup'!$O$33,IF(((D69/'Model Setup'!$F$33)*'Model Setup'!$J$33)>=0,((D69/'Model Setup'!$F$33)*'Model Setup'!$J$33),0)) -> 0 | J69: =(IF($AL69<=0,0,IF($AL69<=Rates!$N$22,$AL69,Rates!$N$20-IF($AK69>=0,$AK69,0))))*Rates!$N$24+(IF($AL69<=Rates!$N$22,0,IF(($AL69-$AM69)<=Rates!$N$23,('Universal Credit Table'!$AL69-$AM69),Rates!$N$23)))*Rates!$N$25+(IF(($AL69-($AM69+$AN69))>0,($AL69-($AM69+$AN69)),0))*Rates!$N$26 -> 0 | K69: =IF($I69<Rates!$N$32,0,Rates!$N$34*(MIN($I69,Rates!$N$33)-Rates!$N$32)+Rates!$N$35*(MAX($I69,Rates!$N$33)-Rates!$N$33)) -> 0 | L69: 0 | M69: 0 | N69: 0 | O69: 30 | P69: 30 | Q69: =IF(D69<Rates!$U$82,$E$27,($E$27-(D69-Rates!$U$82)/(100/365*7)/100*$E$27)) -> 35 | R69: =0.75*IF(P69<$P$18,$K$18,$K$18-($P69-$P$18)*Rates!$U$73) -> 25.5 | S69: =IF('Model Setup'!$F$35=0,$O$27-(P69*Rates!$J$87),IF(AND($K$27>0,P69>Rates!$K$83),$O$27-((P69-Rates!$K$83)*Rates!$J$87),IF(AND($K$27>0,P69<Rates!$K$83),$O$27,IF(AND($K$27=0,P69>Rates!$K$77),$O$27-((P69-Rates!$K$77)*Rates!$J$87),$O$27)))) -> 352.9592308 | T69: =SUMIF($P69:$S69,">0")-$S$27+IF(O69<Rates!$U$96,$T$27,0) -> 430.3592308 | U69: =SUMIF($P69:$S69,">0")-$S$27+IF(P69<Rates!$U$96,$T$27,0) -> 430.3592308 | V69: =IF(U69<Rates!$F$105,"1st",IF(AND(Rates!$F$105<='Universal Credit Table'!U69,'Universal Credit Table'!U69<Rates!$F$106),"2nd",IF(AND(Rates!$F$106<='Universal Credit Table'!U69,'Universal Credit Table'!U69<Rates!$F$107),"3rd",IF(AND(Rates!$F$107<='Universal Credit Table'!U69,'Universal Credit Table'!U69<Rates!$F$108),"4th",IF(AND(Rates!$F$108<='Universal Credit Table'!U69,'Universal Credit Table'!U69<Rates!$F$109),"5th",IF(AND(Rates!$F$109<='Universal Credit Table'!U69,'Universal Credit Table'!U69<Rates!$F$110),"6th",IF(AND(Rates!$F$110<='Universal Credit Table'!U69,'Universal Credit Table'!U69<Rates!$F$111),"7th",IF(AND(Rates!$F$111<='Universal Credit Table'!U69,'Universal Credit Table'!U69<Rates!$F$112),"8th",IF(AND(Rates!$F$112<='Universal Credit Table'!U69,'Universal Credit Table'!U69<Rates!$F$113),"9th",">9th"))))))))) -> 2nd | W69: =U69-$R$27-$Q$27-'Model Setup'!$F$37 -> 270.3592308 | X69: =IF(W69<Rates!$N$105,"1st",IF(AND(Rates!$N$105<='Universal Credit Table'!W69,'Universal Credit Table'!W69<Rates!$N$106),"2nd",IF(AND(Rates!$N$106<='Universal Credit Table'!W69,'Universal Credit Table'!W69<Rates!$N$107),"3rd",IF(AND(Rates!$N$107<='Universal Credit Table'!W69,'Universal Credit Table'!W69<Rates!$N$108),"4th",IF(AND(Rates!$N$108<='Universal Credit Table'!W69,'Universal Credit Table'!W69<Rates!$N$109),"5th",IF(AND(Rates!$N$109<='Universal Credit Table'!W69,'Universal Credit Table'!W69<Rates!$N$110),"6th",IF(AND(Rates!$N$110<='Universal Credit Table'!W69,'Universal Credit Table'!W69<Rates!$N$111),"7th",IF(AND(Rates!$N$111<='Universal Credit Table'!W69,'Universal Credit Table'!W69<Rates!$N$112),"8th",IF(AND(Rates!$N$112<='Universal Credit Table'!W69,'Universal Credit Table'!W69<Rates!$N$113),"9th",">9th"))))))))) -> 2nd | Y69: 0 | AA69: =IF(AND('Model Setup'!$J$33=0,'Model Setup'!$O$33=0),"-",(W69-'Single Earner Tables'!AG69)/'Single Earner Tables'!AG69) -> - | AB69: =IF(AA69<>"-",AA69*'Single Earner Tables'!AG69,"-") -> - | AC69: 0.8890365241 | AE69: =IF($D69<Rates!$N$16,Rates!$N$13,(Rates!$N$13-(0.5*($D69-Rates!$N$16)))) -> 241.0684932 | AF69: =IF('Model Setup'!$F$30="Single",0,IF('Model Setup'!$K$30="Not Married",0,IF(D69>=Rates!$N$17,0,IF(I69<(Rates!$N$13-Rates!$N$14),Rates!$N$14,Rates!$N$13-I69)))) -> 23.97260274 | AG69: -235.0410959 | AK69: =IF($I69>Rates!$N$16,(Rates!$N$13-(0.5*($I69-Rates!$N$16))),IF((AF69>0),Rates!$N$13-AF69,Rates!$N$13)) -> 217.0958904 | AL69: -217.0958904 | AM69: =IF($AL69<=0,0,IF($AL69<=Rates!$N$22,$AL69,Rates!$N$20-IF($AK69>=0,$AK69,0))) -> 0 | AN69: =IF($AL69<=Rates!$N$22,0,IF(($AL69-$AM69)<=Rates!$N$23,('Universal Credit Table'!$AL69-$AM69),Rates!$N$23)) -> 0 | AO69: 0
A70: 1616.428571 | C70: 1616.428571 | D70: 31 | E70: =(IF($AG70<=0,0,IF($AG70<=Rates!$N$22,$AG70,Rates!$N$20-IF($AE70>=0,$AE70,0))))*Rates!$N$24+(IF($AG70<=Rates!$N$22,0,IF(($AG70-$AH70)<=Rates!$N$23,('Universal Credit Table'!$AG70-$AH70),Rates!$N$23)))*Rates!$N$25+(IF(($AG70-($AH70+$AI70))>0,($AG70-($AH70+$AI70)),0))*Rates!$N$26 -> 0 | F70: =IF($D70<Rates!$N$32,0,Rates!$N$34*(MIN($D70,Rates!$N$33)-Rates!$N$32)+Rates!$N$35*(MAX($D70,Rates!$N$33)-Rates!$N$33)) -> 0 | G70: 31 | H70: 0 | I70: =IF('Model Setup'!$J$33=0,'Model Setup'!$O$33,IF(((D70/'Model Setup'!$F$33)*'Model Setup'!$J$33)>=0,((D70/'Model Setup'!$F$33)*'Model Setup'!$J$33),0)) -> 0 | J70: =(IF($AL70<=0,0,IF($AL70<=Rates!$N$22,$AL70,Rates!$N$20-IF($AK70>=0,$AK70,0))))*Rates!$N$24+(IF($AL70<=Rates!$N$22,0,IF(($AL70-$AM70)<=Rates!$N$23,('Universal Credit Table'!$AL70-$AM70),Rates!$N$23)))*Rates!$N$25+(IF(($AL70-($AM70+$AN70))>0,($AL70-($AM70+$AN70)),0))*Rates!$N$26 -> 0 | K70: =IF($I70<Rates!$N$32,0,Rates!$N$34*(MIN($I70,Rates!$N$33)-Rates!$N$32)+Rates!$N$35*(MAX($I70,Rates!$N$33)-Rates!$N$33)) -> 0 | L70: 0 | M70: 0 | N70: 0 | O70: 31 | P70: 31 | Q70: =IF(D70<Rates!$U$82,$E$27,($E$27-(D70-Rates!$U$82)/(100/365*7)/100*$E$27)) -> 35 | R70: =0.75*IF(P70<$P$18,$K$18,$K$18-($P70-$P$18)*Rates!$U$73) -> 25.5 | S70: =IF('Model Setup'!$F$35=0,$O$27-(P70*Rates!$J$87),IF(AND($K$27>0,P70>Rates!$K$83),$O$27-((P70-Rates!$K$83)*Rates!$J$87),IF(AND($K$27>0,P70<Rates!$K$83),$O$27,IF(AND($K$27=0,P70>Rates!$K$77),$O$27-((P70-Rates!$K$77)*Rates!$J$87),$O$27)))) -> 352.9592308 | T70: =SUMIF($P70:$S70,">0")-$S$27+IF(O70<Rates!$U$96,$T$27,0) -> 431.3592308 | U70: =SUMIF($P70:$S70,">0")-$S$27+IF(P70<Rates!$U$96,$T$27,0) -> 431.3592308 | V70: =IF(U70<Rates!$F$105,"1st",IF(AND(Rates!$F$105<='Universal Credit Table'!U70,'Universal Credit Table'!U70<Rates!$F$106),"2nd",IF(AND(Rates!$F$106<='Universal Credit Table'!U70,'Universal Credit Table'!U70<Rates!$F$107),"3rd",IF(AND(Rates!$F$107<='Universal Credit Table'!U70,'Universal Credit Table'!U70<Rates!$F$108),"4th",IF(AND(Rates!$F$108<='Universal Credit Table'!U70,'Universal Credit Table'!U70<Rates!$F$109),"5th",IF(AND(Rates!$F$109<='Universal Credit Table'!U70,'Universal Credit Table'!U70<Rates!$F$110),"6th",IF(AND(Rates!$F$110<='Universal Credit Table'!U70,'Universal Credit Table'!U70<Rates!$F$111),"7th",IF(AND(Rates!$F$111<='Universal Credit Table'!U70,'Universal Credit Table'!U70<Rates!$F$112),"8th",IF(AND(Rates!$F$112<='Universal Credit Table'!U70,'Universal Credit Table'!U70<Rates!$F$113),"9th",">9th"))))))))) -> 2nd | W70: =U70-$R$27-$Q$27-'Model Setup'!$F$37 -> 271.3592308 | X70: =IF(W70<Rates!$N$105,"1st",IF(AND(Rates!$N$105<='Universal Credit Table'!W70,'Universal Credit Table'!W70<Rates!$N$106),"2nd",IF(AND(Rates!$N$106<='Universal Credit Table'!W70,'Universal Credit Table'!W70<Rates!$N$107),"3rd",IF(AND(Rates!$N$107<='Universal Credit Table'!W70,'Universal Credit Table'!W70<Rates!$N$108),"4th",IF(AND(Rates!$N$108<='Universal Credit Table'!W70,'Universal Credit Table'!W70<Rates!$N$109),"5th",IF(AND(Rates!$N$109<='Universal Credit Table'!W70,'Universal Credit Table'!W70<Rates!$N$110),"6th",IF(AND(Rates!$N$110<='Universal Credit Table'!W70,'Universal Credit Table'!W70<Rates!$N$111),"7th",IF(AND(Rates!$N$111<='Universal Credit Table'!W70,'Universal Credit Table'!W70<Rates!$N$112),"8th",IF(AND(Rates!$N$112<='Universal Credit Table'!W70,'Universal Credit Table'!W70<Rates!$N$113),"9th",">9th"))))))))) -> 2nd | Y70: 0 | AA70: =IF(AND('Model Setup'!$J$33=0,'Model Setup'!$O$33=0),"-",(W70-'Single Earner Tables'!AG70)/'Single Earner Tables'!AG70) -> - | AB70: =IF(AA70<>"-",AA70*'Single Earner Tables'!AG70,"-") -> - | AC70: 0.8857602894 | AE70: =IF($D70<Rates!$N$16,Rates!$N$13,(Rates!$N$13-(0.5*($D70-Rates!$N$16)))) -> 241.0684932 | AF70: =IF('Model Setup'!$F$30="Single",0,IF('Model Setup'!$K$30="Not Married",0,IF(D70>=Rates!$N$17,0,IF(I70<(Rates!$N$13-Rates!$N$14),Rates!$N$14,Rates!$N$13-I70)))) -> 23.97260274 | AG70: -234.0410959 | AK70: =IF($I70>Rates!$N$16,(Rates!$N$13-(0.5*($I70-Rates!$N$16))),IF((AF70>0),Rates!$N$13-AF70,Rates!$N$13)) -> 217.0958904 | AL70: -217.0958904 | AM70: =IF($AL70<=0,0,IF($AL70<=Rates!$N$22,$AL70,Rates!$N$20-IF($AK70>=0,$AK70,0))) -> 0 | AN70: =IF($AL70<=Rates!$N$22,0,IF(($AL70-$AM70)<=Rates!$N$23,('Universal Credit Table'!$AL70-$AM70),Rates!$N$23)) -> 0 | AO70: 0
A71: 1668.571429 | C71: 1668.571429 | D71: 32 | E71: =(IF($AG71<=0,0,IF($AG71<=Rates!$N$22,$AG71,Rates!$N$20-IF($AE71>=0,$AE71,0))))*Rates!$N$24+(IF($AG71<=Rates!$N$22,0,IF(($AG71-$AH71)<=Rates!$N$23,('Universal Credit Table'!$AG71-$AH71),Rates!$N$23)))*Rates!$N$25+(IF(($AG71-($AH71+$AI71))>0,($AG71-($AH71+$AI71)),0))*Rates!$N$26 -> 0 | F71: =IF($D71<Rates!$N$32,0,Rates!$N$34*(MIN($D71,Rates!$N$33)-Rates!$N$32)+Rates!$N$35*(MAX($D71,Rates!$N$33)-Rates!$N$33)) -> 0 | G71: 32 | H71: 0 | I71: =IF('Model Setup'!$J$33=0,'Model Setup'!$O$33,IF(((D71/'Model Setup'!$F$33)*'Model Setup'!$J$33)>=0,((D71/'Model Setup'!$F$33)*'Model Setup'!$J$33),0)) -> 0 | J71: =(IF($AL71<=0,0,IF($AL71<=Rates!$N$22,$AL71,Rates!$N$20-IF($AK71>=0,$AK71,0))))*Rates!$N$24+(IF($AL71<=Rates!$N$22,0,IF(($AL71-$AM71)<=Rates!$N$23,('Universal Credit Table'!$AL71-$AM71),Rates!$N$23)))*Rates!$N$25+(IF(($AL71-($AM71+$AN71))>0,($AL71-($AM71+$AN71)),0))*Rates!$N$26 -> 0 | K71: =IF($I71<Rates!$N$32,0,Rates!$N$34*(MIN($I71,Rates!$N$33)-Rates!$N$32)+Rates!$N$35*(MAX($I71,Rates!$N$33)-Rates!$N$33)) -> 0 | L71: 0 | M71: 0 | N71: 0 | O71: 32 | P71: 32 | Q71: =IF(D71<Rates!$U$82,$E$27,($E$27-(D71-Rates!$U$82)/(100/365*7)/100*$E$27)) -> 35 | R71: =0.75*IF(P71<$P$18,$K$18,$K$18-($P71-$P$18)*Rates!$U$73) -> 25.5 | S71: =IF('Model Setup'!$F$35=0,$O$27-(P71*Rates!$J$87),IF(AND($K$27>0,P71>Rates!$K$83),$O$27-((P71-Rates!$K$83)*Rates!$J$87),IF(AND($K$27>0,P71<Rates!$K$83),$O$27,IF(AND($K$27=0,P71>Rates!$K$77),$O$27-((P71-Rates!$K$77)*Rates!$J$87),$O$27)))) -> 352.9592308 | T71: =SUMIF($P71:$S71,">0")-$S$27+IF(O71<Rates!$U$96,$T$27,0) -> 432.3592308 | U71: =SUMIF($P71:$S71,">0")-$S$27+IF(P71<Rates!$U$96,$T$27,0) -> 432.3592308 | V71: =IF(U71<Rates!$F$105,"1st",IF(AND(Rates!$F$105<='Universal Credit Table'!U71,'Universal Credit Table'!U71<Rates!$F$106),"2nd",IF(AND(Rates!$F$106<='Universal Credit Table'!U71,'Universal Credit Table'!U71<Rates!$F$107),"3rd",IF(AND(Rates!$F$107<='Universal Credit Table'!U71,'Universal Credit Table'!U71<Rates!$F$108),"4th",IF(AND(Rates!$F$108<='Universal Credit Table'!U71,'Universal Credit Table'!U71<Rates!$F$109),"5th",IF(AND(Rates!$F$109<='Universal Credit Table'!U71,'Universal Credit Table'!U71<Rates!$F$110),"6th",IF(AND(Rates!$F$110<='Universal Credit Table'!U71,'Universal Credit Table'!U71<Rates!$F$111),"7th",IF(AND(Rates!$F$111<='Universal Credit Table'!U71,'Universal Credit Table'!U71<Rates!$F$112),"8th",IF(AND(Rates!$F$112<='Universal Credit Table'!U71,'Universal Credit Table'!U71<Rates!$F$113),"9th",">9th"))))))))) -> 2nd | W71: =U71-$R$27-$Q$27-'Model Setup'!$F$37 -> 272.3592308 | X71: =IF(W71<Rates!$N$105,"1st",IF(AND(Rates!$N$105<='Universal Credit Table'!W71,'Universal Credit Table'!W71<Rates!$N$106),"2nd",IF(AND(Rates!$N$106<='Universal Credit Table'!W71,'Universal Credit Table'!W71<Rates!$N$107),"3rd",IF(AND(Rates!$N$107<='Universal Credit Table'!W71,'Universal Credit Table'!W71<Rates!$N$108),"4th",IF(AND(Rates!$N$108<='Universal Credit Table'!W71,'Universal Credit Table'!W71<Rates!$N$109),"5th",IF(AND(Rates!$N$109<='Universal Credit Table'!W71,'Universal Credit Table'!W71<Rates!$N$110),"6th",IF(AND(Rates!$N$110<='Universal Credit Table'!W71,'Universal Credit Table'!W71<Rates!$N$111),"7th",IF(AND(Rates!$N$111<='Universal Credit Table'!W71,'Universal Credit Table'!W71<Rates!$N$112),"8th",IF(AND(Rates!$N$112<='Universal Credit Table'!W71,'Universal Credit Table'!W71<Rates!$N$113),"9th",">9th"))))))))) -> 2nd | Y71: 0 | AA71: =IF(AND('Model Setup'!$J$33=0,'Model Setup'!$O$33=0),"-",(W71-'Single Earner Tables'!AG71)/'Single Earner Tables'!AG71) -> - | AB71: =IF(AA71<>"-",AA71*'Single Earner Tables'!AG71,"-") -> - | AC71: 0.8825081129 | AE71: =IF($D71<Rates!$N$16,Rates!$N$13,(Rates!$N$13-(0.5*($D71-Rates!$N$16)))) -> 241.0684932 | AF71: =IF('Model Setup'!$F$30="Single",0,IF('Model Setup'!$K$30="Not Married",0,IF(D71>=Rates!$N$17,0,IF(I71<(Rates!$N$13-Rates!$N$14),Rates!$N$14,Rates!$N$13-I71)))) -> 23.97260274 | AG71: -233.0410959 | AK71: =IF($I71>Rates!$N$16,(Rates!$N$13-(0.5*($I71-Rates!$N$16))),IF((AF71>0),Rates!$N$13-AF71,Rates!$N$13)) -> 217.0958904 | AL71: -217.0958904 | AM71: =IF($AL71<=0,0,IF($AL71<=Rates!$N$22,$AL71,Rates!$N$20-IF($AK71>=0,$AK71,0))) -> 0 | AN71: =IF($AL71<=Rates!$N$22,0,IF(($AL71-$AM71)<=Rates!$N$23,('Universal Credit Table'!$AL71-$AM71),Rates!$N$23)) -> 0 | AO71: 0
A72: =(O72)/7*365 -> 1720.714286 | C72: 1720.714286 | D72: 33 | E72: =(IF($AG72<=0,0,IF($AG72<=Rates!$N$22,$AG72,Rates!$N$20-IF($AE72>=0,$AE72,0))))*Rates!$N$24+(IF($AG72<=Rates!$N$22,0,IF(($AG72-$AH72)<=Rates!$N$23,('Universal Credit Table'!$AG72-$AH72),Rates!$N$23)))*Rates!$N$25+(IF(($AG72-($AH72+$AI72))>0,($AG72-($AH72+$AI72)),0))*Rates!$N$26 -> 0 | F72: =IF($D72<Rates!$N$32,0,Rates!$N$34*(MIN($D72,Rates!$N$33)-Rates!$N$32)+Rates!$N$35*(MAX($D72,Rates!$N$33)-Rates!$N$33)) -> 0 | G72: =SUM(D72-E72-F72) -> 33 | H72: 0 | I72: =IF('Model Setup'!$J$33=0,'Model Setup'!$O$33,IF(((D72/'Model Setup'!$F$33)*'Model Setup'!$J$33)>=0,((D72/'Model Setup'!$F$33)*'Model Setup'!$J$33),0)) -> 0 | J72: =(IF($AL72<=0,0,IF($AL72<=Rates!$N$22,$AL72,Rates!$N$20-IF($AK72>=0,$AK72,0))))*Rates!$N$24+(IF($AL72<=Rates!$N$22,0,IF(($AL72-$AM72)<=Rates!$N$23,('Universal Credit Table'!$AL72-$AM72),Rates!$N$23)))*Rates!$N$25+(IF(($AL72-($AM72+$AN72))>0,($AL72-($AM72+$AN72)),0))*Rates!$N$26 -> 0 | K72: =IF($I72<Rates!$N$32,0,Rates!$N$34*(MIN($I72,Rates!$N$33)-Rates!$N$32)+Rates!$N$35*(MAX($I72,Rates!$N$33)-Rates!$N$33)) -> 0 | L72: =SUM(I72-J72-K72) -> 0 | M72: 0 | N72: =(E72+J72)/7*365 -> 0 | O72: =D72+I72 -> 33 | P72: =SUM(G72+L72) -> 33 | Q72: =IF(D72<Rates!$U$82,$E$27,($E$27-(D72-Rates!$U$82)/(100/365*7)/100*$E$27)) -> 35 | R72: =0.75*IF(P72<$P$18,$K$18,$K$18-($P72-$P$18)*Rates!$U$73) -> 25.5 | S72: =IF('Model Setup'!$F$35=0,$O$27-(P72*Rates!$J$87),IF(AND($K$27>0,P72>Rates!$K$83),$O$27-((P72-Rates!$K$83)*Rates!$J$87),IF(AND($K$27>0,P72<Rates!$K$83),$O$27,IF(AND($K$27=0,P72>Rates!$K$77),$O$27-((P72-Rates!$K$77)*Rates!$J$87),$O$27)))) -> 352.9592308 | T72: =SUMIF($P72:$S72,">0")-$S$27+IF(O72<Rates!$U$96,$T$27,0) -> 433.3592308 | U72: =SUMIF($P72:$S72,">0")-$S$27+IF(P72<Rates!$U$96,$T$27,0) -> 433.3592308 | V72: =IF(U72<Rates!$F$105,"1st",IF(AND(Rates!$F$105<='Universal Credit Table'!U72,'Universal Credit Table'!U72<Rates!$F$106),"2nd",IF(AND(Rates!$F$106<='Universal Credit Table'!U72,'Universal Credit Table'!U72<Rates!$F$107),"3rd",IF(AND(Rates!$F$107<='Universal Credit Table'!U72,'Universal Credit Table'!U72<Rates!$F$108),"4th",IF(AND(Rates!$F$108<='Universal Credit Table'!U72,'Universal Credit Table'!U72<Rates!$F$109),"5th",IF(AND(Rates!$F$109<='Universal Credit Table'!U72,'Universal Credit Table'!U72<Rates!$F$110),"6th",IF(AND(Rates!$F$110<='Universal Credit Table'!U72,'Universal Credit Table'!U72<Rates!$F$111),"7th",IF(AND(Rates!$F$111<='Universal Credit Table'!U72,'Universal Credit Table'!U72<Rates!$F$112),"8th",IF(AND(Rates!$F$112<='Universal Credit Table'!U72,'Universal Credit Table'!U72<Rates!$F$113),"9th",">9th"))))))))) -> 2nd | W72: =U72-$R$27-$Q$27-'Model Setup'!$F$37 -> 273.3592308 | X72: =IF(W72<Rates!$N$105,"1st",IF(AND(Rates!$N$105<='Universal Credit Table'!W72,'Universal Credit Table'!W72<Rates!$N$106),"2nd",IF(AND(Rates!$N$106<='Universal Credit Table'!W72,'Universal Credit Table'!W72<Rates!$N$107),"3rd",IF(AND(Rates!$N$107<='Universal Credit Table'!W72,'Universal Credit Table'!W72<Rates!$N$108),"4th",IF(AND(Rates!$N$108<='Universal Credit Table'!W72,'Universal Credit Table'!W72<Rates!$N$109),"5th",IF(AND(Rates!$N$109<='Universal Credit Table'!W72,'Universal Credit Table'!W72<Rates!$N$110),"6th",IF(AND(Rates!$N$110<='Universal Credit Table'!W72,'Universal Credit Table'!W72<Rates!$N$111),"7th",IF(AND(Rates!$N$111<='Universal Credit Table'!W72,'Universal Credit Table'!W72<Rates!$N$112),"8th",IF(AND(Rates!$N$112<='Universal Credit Table'!W72,'Universal Credit Table'!W72<Rates!$N$113),"9th",">9th"))))))))) -> 2nd | Y72: =((($D73+$I73)-($D72+$I72))-$T73+$T72)/(($D73+$I73)-($D72+$I72)) -> 0 | AA72: =IF(AND('Model Setup'!$J$33=0,'Model Setup'!$O$33=0),"-",(W72-'Single Earner Tables'!AG72)/'Single Earner Tables'!AG72) -> - | AB72: =IF(AA72<>"-",AA72*'Single Earner Tables'!AG72,"-") -> - | AC72: 0.8792797305 | AE72: =IF($D72<Rates!$N$16,Rates!$N$13,(Rates!$N$13-(0.5*($D72-Rates!$N$16)))) -> 241.0684932 | AF72: =IF('Model Setup'!$F$30="Single",0,IF('Model Setup'!$K$30="Not Married",0,IF(D72>=Rates!$N$17,0,IF(I72<(Rates!$N$13-Rates!$N$14),Rates!$N$14,Rates!$N$13-I72)))) -> 23.97260274 | AG72: =D72-SUMIF(AE72:AF72,">=0") -> -232.0410959 | AK72: =IF($I72>Rates!$N$16,(Rates!$N$13-(0.5*($I72-Rates!$N$16))),IF((AF72>0),Rates!$N$13-AF72,Rates!$N$13)) -> 217.0958904 | AL72: =SUM(I72-AK72) -> -217.0958904 | AM72: =IF($AL72<=0,0,IF($AL72<=Rates!$N$22,$AL72,Rates!$N$20-IF($AK72>=0,$AK72,0))) -> 0 | AN72: =IF($AL72<=Rates!$N$22,0,IF(($AL72-$AM72)<=Rates!$N$23,('Universal Credit Table'!$AL72-$AM72),Rates!$N$23)) -> 0 | AO72: 0
A73: 1772.857143 | C73: 1772.857143 | D73: 34 | E73: =(IF($AG73<=0,0,IF($AG73<=Rates!$N$22,$AG73,Rates!$N$20-IF($AE73>=0,$AE73,0))))*Rates!$N$24+(IF($AG73<=Rates!$N$22,0,IF(($AG73-$AH73)<=Rates!$N$23,('Universal Credit Table'!$AG73-$AH73),Rates!$N$23)))*Rates!$N$25+(IF(($AG73-($AH73+$AI73))>0,($AG73-($AH73+$AI73)),0))*Rates!$N$26 -> 0 | F73: =IF($D73<Rates!$N$32,0,Rates!$N$34*(MIN($D73,Rates!$N$33)-Rates!$N$32)+Rates!$N$35*(MAX($D73,Rates!$N$33)-Rates!$N$33)) -> 0 | G73: 34 | H73: 0 | I73: =IF('Model Setup'!$J$33=0,'Model Setup'!$O$33,IF(((D73/'Model Setup'!$F$33)*'Model Setup'!$J$33)>=0,((D73/'Model Setup'!$F$33)*'Model Setup'!$J$33),0)) -> 0 | J73: =(IF($AL73<=0,0,IF($AL73<=Rates!$N$22,$AL73,Rates!$N$20-IF($AK73>=0,$AK73,0))))*Rates!$N$24+(IF($AL73<=Rates!$N$22,0,IF(($AL73-$AM73)<=Rates!$N$23,('Universal Credit Table'!$AL73-$AM73),Rates!$N$23)))*Rates!$N$25+(IF(($AL73-($AM73+$AN73))>0,($AL73-($AM73+$AN73)),0))*Rates!$N$26 -> 0 | K73: =IF($I73<Rates!$N$32,0,Rates!$N$34*(MIN($I73,Rates!$N$33)-Rates!$N$32)+Rates!$N$35*(MAX($I73,Rates!$N$33)-Rates!$N$33)) -> 0 | L73: 0 | M73: 0 | N73: 0 | O73: 34 | P73: 34 | Q73: =IF(D73<Rates!$U$82,$E$27,($E$27-(D73-Rates!$U$82)/(100/365*7)/100*$E$27)) -> 35 | R73: =0.75*IF(P73<$P$18,$K$18,$K$18-($P73-$P$18)*Rates!$U$73) -> 25.5 | S73: =IF('Model Setup'!$F$35=0,$O$27-(P73*Rates!$J$87),IF(AND($K$27>0,P73>Rates!$K$83),$O$27-((P73-Rates!$K$83)*Rates!$J$87),IF(AND($K$27>0,P73<Rates!$K$83),$O$27,IF(AND($K$27=0,P73>Rates!$K$77),$O$27-((P73-Rates!$K$77)*Rates!$J$87),$O$27)))) -> 352.9592308 | T73: =SUMIF($P73:$S73,">0")-$S$27+IF(O73<Rates!$U$96,$T$27,0) -> 434.3592308 | U73: =SUMIF($P73:$S73,">0")-$S$27+IF(P73<Rates!$U$96,$T$27,0) -> 434.3592308 | V73: =IF(U73<Rates!$F$105,"1st",IF(AND(Rates!$F$105<='Universal Credit Table'!U73,'Universal Credit Table'!U73<Rates!$F$106),"2nd",IF(AND(Rates!$F$106<='Universal Credit Table'!U73,'Universal Credit Table'!U73<Rates!$F$107),"3rd",IF(AND(Rates!$F$107<='Universal Credit Table'!U73,'Universal Credit Table'!U73<Rates!$F$108),"4th",IF(AND(Rates!$F$108<='Universal Credit Table'!U73,'Universal Credit Table'!U73<Rates!$F$109),"5th",IF(AND(Rates!$F$109<='Universal Credit Table'!U73,'Universal Credit Table'!U73<Rates!$F$110),"6th",IF(AND(Rates!$F$110<='Universal Credit Table'!U73,'Universal Credit Table'!U73<Rates!$F$111),"7th",IF(AND(Rates!$F$111<='Universal Credit Table'!U73,'Universal Credit Table'!U73<Rates!$F$112),"8th",IF(AND(Rates!$F$112<='Universal Credit Table'!U73,'Universal Credit Table'!U73<Rates!$F$113),"9th",">9th"))))))))) -> 2nd | W73: =U73-$R$27-$Q$27-'Model Setup'!$F$37 -> 274.3592308 | X73: =IF(W73<Rates!$N$105,"1st",IF(AND(Rates!$N$105<='Universal Credit Table'!W73,'Universal Credit Table'!W73<Rates!$N$106),"2nd",IF(AND(Rates!$N$106<='Universal Credit Table'!W73,'Universal Credit Table'!W73<Rates!$N$107),"3rd",IF(AND(Rates!$N$107<='Universal Credit Table'!W73,'Universal Credit Table'!W73<Rates!$N$108),"4th",IF(AND(Rates!$N$108<='Universal Credit Table'!W73,'Universal Credit Table'!W73<Rates!$N$109),"5th",IF(AND(Rates!$N$109<='Universal Credit Table'!W73,'Universal Credit Table'!W73<Rates!$N$110),"6th",IF(AND(Rates!$N$110<='Universal Credit Table'!W73,'Universal Credit Table'!W73<Rates!$N$111),"7th",IF(AND(Rates!$N$111<='Universal Credit Table'!W73,'Universal Credit Table'!W73<Rates!$N$112),"8th",IF(AND(Rates!$N$112<='Universal Credit Table'!W73,'Universal Credit Table'!W73<Rates!$N$113),"9th",">9th"))))))))) -> 2nd | Y73: 0 | AA73: =IF(AND('Model Setup'!$J$33=0,'Model Setup'!$O$33=0),"-",(W73-'Single Earner Tables'!AG73)/'Single Earner Tables'!AG73) -> - | AB73: =IF(AA73<>"-",AA73*'Single Earner Tables'!AG73,"-") -> - | AC73: 0.8760748822 | AE73: =IF($D73<Rates!$N$16,Rates!$N$13,(Rates!$N$13-(0.5*($D73-Rates!$N$16)))) -> 241.0684932 | AF73: =IF('Model Setup'!$F$30="Single",0,IF('Model Setup'!$K$30="Not Married",0,IF(D73>=Rates!$N$17,0,IF(I73<(Rates!$N$13-Rates!$N$14),Rates!$N$14,Rates!$N$13-I73)))) -> 23.97260274 | AG73: -231.0410959 | AK73: =IF($I73>Rates!$N$16,(Rates!$N$13-(0.5*($I73-Rates!$N$16))),IF((AF73>0),Rates!$N$13-AF73,Rates!$N$13)) -> 217.0958904 | AL73: -217.0958904 | AM73: =IF($AL73<=0,0,IF($AL73<=Rates!$N$22,$AL73,Rates!$N$20-IF($AK73>=0,$AK73,0))) -> 0 | AN73: =IF($AL73<=Rates!$N$22,0,IF(($AL73-$AM73)<=Rates!$N$23,('Universal Credit Table'!$AL73-$AM73),Rates!$N$23)) -> 0 | AO73: 0
A74: 1825 | C74: 1825 | D74: 35 | E74: =(IF($AG74<=0,0,IF($AG74<=Rates!$N$22,$AG74,Rates!$N$20-IF($AE74>=0,$AE74,0))))*Rates!$N$24+(IF($AG74<=Rates!$N$22,0,IF(($AG74-$AH74)<=Rates!$N$23,('Universal Credit Table'!$AG74-$AH74),Rates!$N$23)))*Rates!$N$25+(IF(($AG74-($AH74+$AI74))>0,($AG74-($AH74+$AI74)),0))*Rates!$N$26 -> 0 | F74: =IF($D74<Rates!$N$32,0,Rates!$N$34*(MIN($D74,Rates!$N$33)-Rates!$N$32)+Rates!$N$35*(MAX($D74,Rates!$N$33)-Rates!$N$33)) -> 0 | G74: 35 | H74: 0 | I74: =IF('Model Setup'!$J$33=0,'Model Setup'!$O$33,IF(((D74/'Model Setup'!$F$33)*'Model Setup'!$J$33)>=0,((D74/'Model Setup'!$F$33)*'Model Setup'!$J$33),0)) -> 0 | J74: =(IF($AL74<=0,0,IF($AL74<=Rates!$N$22,$AL74,Rates!$N$20-IF($AK74>=0,$AK74,0))))*Rates!$N$24+(IF($AL74<=Rates!$N$22,0,IF(($AL74-$AM74)<=Rates!$N$23,('Universal Credit Table'!$AL74-$AM74),Rates!$N$23)))*Rates!$N$25+(IF(($AL74-($AM74+$AN74))>0,($AL74-($AM74+$AN74)),0))*Rates!$N$26 -> 0 | K74: =IF($I74<Rates!$N$32,0,Rates!$N$34*(MIN($I74,Rates!$N$33)-Rates!$N$32)+Rates!$N$35*(MAX($I74,Rates!$N$33)-Rates!$N$33)) -> 0 | L74: 0 | M74: 0 | N74: 0 | O74: 35 | P74: 35 | Q74: =IF(D74<Rates!$U$82,$E$27,($E$27-(D74-Rates!$U$82)/(100/365*7)/100*$E$27)) -> 35 | R74: =0.75*IF(P74<$P$18,$K$18,$K$18-($P74-$P$18)*Rates!$U$73) -> 25.5 | S74: =IF('Model Setup'!$F$35=0,$O$27-(P74*Rates!$J$87),IF(AND($K$27>0,P74>Rates!$K$83),$O$27-((P74-Rates!$K$83)*Rates!$J$87),IF(AND($K$27>0,P74<Rates!$K$83),$O$27,IF(AND($K$27=0,P74>Rates!$K$77),$O$27-((P74-Rates!$K$77)*Rates!$J$87),$O$27)))) -> 352.9592308 | T74: =SUMIF($P74:$S74,">0")-$S$27+IF(O74<Rates!$U$96,$T$27,0) -> 435.3592308 | U74: =SUMIF($P74:$S74,">0")-$S$27+IF(P74<Rates!$U$96,$T$27,0) -> 435.3592308 | V74: =IF(U74<Rates!$F$105,"1st",IF(AND(Rates!$F$105<='Universal Credit Table'!U74,'Universal Credit Table'!U74<Rates!$F$106),"2nd",IF(AND(Rates!$F$106<='Universal Credit Table'!U74,'Universal Credit Table'!U74<Rates!$F$107),"3rd",IF(AND(Rates!$F$107<='Universal Credit Table'!U74,'Universal Credit Table'!U74<Rates!$F$108),"4th",IF(AND(Rates!$F$108<='Universal Credit Table'!U74,'Universal Credit Table'!U74<Rates!$F$109),"5th",IF(AND(Rates!$F$109<='Universal Credit Table'!U74,'Universal Credit Table'!U74<Rates!$F$110),"6th",IF(AND(Rates!$F$110<='Universal Credit Table'!U74,'Universal Credit Table'!U74<Rates!$F$111),"7th",IF(AND(Rates!$F$111<='Universal Credit Table'!U74,'Universal Credit Table'!U74<Rates!$F$112),"8th",IF(AND(Rates!$F$112<='Universal Credit Table'!U74,'Universal Credit Table'!U74<Rates!$F$113),"9th",">9th"))))))))) -> 2nd | W74: =U74-$R$27-$Q$27-'Model Setup'!$F$37 -> 275.3592308 | X74: =IF(W74<Rates!$N$105,"1st",IF(AND(Rates!$N$105<='Universal Credit Table'!W74,'Universal Credit Table'!W74<Rates!$N$106),"2nd",IF(AND(Rates!$N$106<='Universal Credit Table'!W74,'Universal Credit Table'!W74<Rates!$N$107),"3rd",IF(AND(Rates!$N$107<='Universal Credit Table'!W74,'Universal Credit Table'!W74<Rates!$N$108),"4th",IF(AND(Rates!$N$108<='Universal Credit Table'!W74,'Universal Credit Table'!W74<Rates!$N$109),"5th",IF(AND(Rates!$N$109<='Universal Credit Table'!W74,'Universal Credit Table'!W74<Rates!$N$110),"6th",IF(AND(Rates!$N$110<='Universal Credit Table'!W74,'Universal Credit Table'!W74<Rates!$N$111),"7th",IF(AND(Rates!$N$111<='Universal Credit Table'!W74,'Universal Credit Table'!W74<Rates!$N$112),"8th",IF(AND(Rates!$N$112<='Universal Credit Table'!W74,'Universal Credit Table'!W74<Rates!$N$113),"9th",">9th"))))))))) -> 2nd | Y74: 0 | AA74: =IF(AND('Model Setup'!$J$33=0,'Model Setup'!$O$33=0),"-",(W74-'Single Earner Tables'!AG74)/'Single Earner Tables'!AG74) -> - | AB74: =IF(AA74<>"-",AA74*'Single Earner Tables'!AG74,"-") -> - | AC74: 0.8728933114 | AE74: =IF($D74<Rates!$N$16,Rates!$N$13,(Rates!$N$13-(0.5*($D74-Rates!$N$16)))) -> 241.0684932 | AF74: =IF('Model Setup'!$F$30="Single",0,IF('Model Setup'!$K$30="Not Married",0,IF(D74>=Rates!$N$17,0,IF(I74<(Rates!$N$13-Rates!$N$14),Rates!$N$14,Rates!$N$13-I74)))) -> 23.97260274 | AG74: -230.0410959 | AK74: =IF($I74>Rates!$N$16,(Rates!$N$13-(0.5*($I74-Rates!$N$16))),IF((AF74>0),Rates!$N$13-AF74,Rates!$N$13)) -> 217.0958904 | AL74: -217.0958904 | AM74: =IF($AL74<=0,0,IF($AL74<=Rates!$N$22,$AL74,Rates!$N$20-IF($AK74>=0,$AK74,0))) -> 0 | AN74: =IF($AL74<=Rates!$N$22,0,IF(($AL74-$AM74)<=Rates!$N$23,('Universal Credit Table'!$AL74-$AM74),Rates!$N$23)) -> 0 | AO74: 0
A75: 1877.142857 | C75: 1877.142857 | D75: 36 | E75: =(IF($AG75<=0,0,IF($AG75<=Rates!$N$22,$AG75,Rates!$N$20-IF($AE75>=0,$AE75,0))))*Rates!$N$24+(IF($AG75<=Rates!$N$22,0,IF(($AG75-$AH75)<=Rates!$N$23,('Universal Credit Table'!$AG75-$AH75),Rates!$N$23)))*Rates!$N$25+(IF(($AG75-($AH75+$AI75))>0,($AG75-($AH75+$AI75)),0))*Rates!$N$26 -> 0 | F75: =IF($D75<Rates!$N$32,0,Rates!$N$34*(MIN($D75,Rates!$N$33)-Rates!$N$32)+Rates!$N$35*(MAX($D75,Rates!$N$33)-Rates!$N$33)) -> 0 | G75: 36 | H75: 0 | I75: =IF('Model Setup'!$J$33=0,'Model Setup'!$O$33,IF(((D75/'Model Setup'!$F$33)*'Model Setup'!$J$33)>=0,((D75/'Model Setup'!$F$33)*'Model Setup'!$J$33),0)) -> 0 | J75: =(IF($AL75<=0,0,IF($AL75<=Rates!$N$22,$AL75,Rates!$N$20-IF($AK75>=0,$AK75,0))))*Rates!$N$24+(IF($AL75<=Rates!$N$22,0,IF(($AL75-$AM75)<=Rates!$N$23,('Universal Credit Table'!$AL75-$AM75),Rates!$N$23)))*Rates!$N$25+(IF(($AL75-($AM75+$AN75))>0,($AL75-($AM75+$AN75)),0))*Rates!$N$26 -> 0 | K75: =IF($I75<Rates!$N$32,0,Rates!$N$34*(MIN($I75,Rates!$N$33)-Rates!$N$32)+Rates!$N$35*(MAX($I75,Rates!$N$33)-Rates!$N$33)) -> 0 | L75: 0 | M75: 0 | N75: 0 | O75: 36 | P75: 36 | Q75: =IF(D75<Rates!$U$82,$E$27,($E$27-(D75-Rates!$U$82)/(100/365*7)/100*$E$27)) -> 35 | R75: =0.75*IF(P75<$P$18,$K$18,$K$18-($P75-$P$18)*Rates!$U$73) -> 25.5 | S75: =IF('Model Setup'!$F$35=0,$O$27-(P75*Rates!$J$87),IF(AND($K$27>0,P75>Rates!$K$83),$O$27-((P75-Rates!$K$83)*Rates!$J$87),IF(AND($K$27>0,P75<Rates!$K$83),$O$27,IF(AND($K$27=0,P75>Rates!$K$77),$O$27-((P75-Rates!$K$77)*Rates!$J$87),$O$27)))) -> 352.9592308 | T75: =SUMIF($P75:$S75,">0")-$S$27+IF(O75<Rates!$U$96,$T$27,0) -> 436.3592308 | U75: =SUMIF($P75:$S75,">0")-$S$27+IF(P75<Rates!$U$96,$T$27,0) -> 436.3592308 | V75: =IF(U75<Rates!$F$105,"1st",IF(AND(Rates!$F$105<='Universal Credit Table'!U75,'Universal Credit Table'!U75<Rates!$F$106),"2nd",IF(AND(Rates!$F$106<='Universal Credit Table'!U75,'Universal Credit Table'!U75<Rates!$F$107),"3rd",IF(AND(Rates!$F$107<='Universal Credit Table'!U75,'Universal Credit Table'!U75<Rates!$F$108),"4th",IF(AND(Rates!$F$108<='Universal Credit Table'!U75,'Universal Credit Table'!U75<Rates!$F$109),"5th",IF(AND(Rates!$F$109<='Universal Credit Table'!U75,'Universal Credit Table'!U75<Rates!$F$110),"6th",IF(AND(Rates!$F$110<='Universal Credit Table'!U75,'Universal Credit Table'!U75<Rates!$F$111),"7th",IF(AND(Rates!$F$111<='Universal Credit Table'!U75,'Universal Credit Table'!U75<Rates!$F$112),"8th",IF(AND(Rates!$F$112<='Universal Credit Table'!U75,'Universal Credit Table'!U75<Rates!$F$113),"9th",">9th"))))))))) -> 2nd | W75: =U75-$R$27-$Q$27-'Model Setup'!$F$37 -> 276.3592308 | X75: =IF(W75<Rates!$N$105,"1st",IF(AND(Rates!$N$105<='Universal Credit Table'!W75,'Universal Credit Table'!W75<Rates!$N$106),"2nd",IF(AND(Rates!$N$106<='Universal Credit Table'!W75,'Universal Credit Table'!W75<Rates!$N$107),"3rd",IF(AND(Rates!$N$107<='Universal Credit Table'!W75,'Universal Credit Table'!W75<Rates!$N$108),"4th",IF(AND(Rates!$N$108<='Universal Credit Table'!W75,'Universal Credit Table'!W75<Rates!$N$109),"5th",IF(AND(Rates!$N$109<='Universal Credit Table'!W75,'Universal Credit Table'!W75<Rates!$N$110),"6th",IF(AND(Rates!$N$110<='Universal Credit Table'!W75,'Universal Credit Table'!W75<Rates!$N$111),"7th",IF(AND(Rates!$N$111<='Universal Credit Table'!W75,'Universal Credit Table'!W75<Rates!$N$112),"8th",IF(AND(Rates!$N$112<='Universal Credit Table'!W75,'Universal Credit Table'!W75<Rates!$N$113),"9th",">9th"))))))))) -> 2nd | Y75: 0 | AA75: =IF(AND('Model Setup'!$J$33=0,'Model Setup'!$O$33=0),"-",(W75-'Single Earner Tables'!AG75)/'Single Earner Tables'!AG75) -> - | AB75: =IF(AA75<>"-",AA75*'Single Earner Tables'!AG75,"-") -> - | AC75: 0.8697347655 | AE75: =IF($D75<Rates!$N$16,Rates!$N$13,(Rates!$N$13-(0.5*($D75-Rates!$N$16)))) -> 241.0684932 | AF75: =IF('Model Setup'!$F$30="Single",0,IF('Model Setup'!$K$30="Not Married",0,IF(D75>=Rates!$N$17,0,IF(I75<(Rates!$N$13-Rates!$N$14),Rates!$N$14,Rates!$N$13-I75)))) -> 23.97260274 | AG75: -229.0410959 | AK75: =IF($I75>Rates!$N$16,(Rates!$N$13-(0.5*($I75-Rates!$N$16))),IF((AF75>0),Rates!$N$13-AF75,Rates!$N$13)) -> 217.0958904 | AL75: -217.0958904 | AM75: =IF($AL75<=0,0,IF($AL75<=Rates!$N$22,$AL75,Rates!$N$20-IF($AK75>=0,$AK75,0))) -> 0 | AN75: =IF($AL75<=Rates!$N$22,0,IF(($AL75-$AM75)<=Rates!$N$23,('Universal Credit Table'!$AL75-$AM75),Rates!$N$23)) -> 0 | AO75: 0
A76: 1929.285714 | C76: 1929.285714 | D76: 37 | E76: =(IF($AG76<=0,0,IF($AG76<=Rates!$N$22,$AG76,Rates!$N$20-IF($AE76>=0,$AE76,0))))*Rates!$N$24+(IF($AG76<=Rates!$N$22,0,IF(($AG76-$AH76)<=Rates!$N$23,('Universal Credit Table'!$AG76-$AH76),Rates!$N$23)))*Rates!$N$25+(IF(($AG76-($AH76+$AI76))>0,($AG76-($AH76+$AI76)),0))*Rates!$N$26 -> 0 | F76: =IF($D76<Rates!$N$32,0,Rates!$N$34*(MIN($D76,Rates!$N$33)-Rates!$N$32)+Rates!$N$35*(MAX($D76,Rates!$N$33)-Rates!$N$33)) -> 0 | G76: 37 | H76: 0 | I76: =IF('Model Setup'!$J$33=0,'Model Setup'!$O$33,IF(((D76/'Model Setup'!$F$33)*'Model Setup'!$J$33)>=0,((D76/'Model Setup'!$F$33)*'Model Setup'!$J$33),0)) -> 0 | J76: =(IF($AL76<=0,0,IF($AL76<=Rates!$N$22,$AL76,Rates!$N$20-IF($AK76>=0,$AK76,0))))*Rates!$N$24+(IF($AL76<=Rates!$N$22,0,IF(($AL76-$AM76)<=Rates!$N$23,('Universal Credit Table'!$AL76-$AM76),Rates!$N$23)))*Rates!$N$25+(IF(($AL76-($AM76+$AN76))>0,($AL76-($AM76+$AN76)),0))*Rates!$N$26 -> 0 | K76: =IF($I76<Rates!$N$32,0,Rates!$N$34*(MIN($I76,Rates!$N$33)-Rates!$N$32)+Rates!$N$35*(MAX($I76,Rates!$N$33)-Rates!$N$33)) -> 0 | L76: 0 | M76: 0 | N76: 0 | O76: 37 | P76: 37 | Q76: =IF(D76<Rates!$U$82,$E$27,($E$27-(D76-Rates!$U$82)/(100/365*7)/100*$E$27)) -> 35 | R76: =0.75*IF(P76<$P$18,$K$18,$K$18-($P76-$P$18)*Rates!$U$73) -> 25.5 | S76: =IF('Model Setup'!$F$35=0,$O$27-(P76*Rates!$J$87),IF(AND($K$27>0,P76>Rates!$K$83),$O$27-((P76-Rates!$K$83)*Rates!$J$87),IF(AND($K$27>0,P76<Rates!$K$83),$O$27,IF(AND($K$27=0,P76>Rates!$K$77),$O$27-((P76-Rates!$K$77)*Rates!$J$87),$O$27)))) -> 352.9592308 | T76: =SUMIF($P76:$S76,">0")-$S$27+IF(O76<Rates!$U$96,$T$27,0) -> 437.3592308 | U76: =SUMIF($P76:$S76,">0")-$S$27+IF(P76<Rates!$U$96,$T$27,0) -> 437.3592308 | V76: =IF(U76<Rates!$F$105,"1st",IF(AND(Rates!$F$105<='Universal Credit Table'!U76,'Universal Credit Table'!U76<Rates!$F$106),"2nd",IF(AND(Rates!$F$106<='Universal Credit Table'!U76,'Universal Credit Table'!U76<Rates!$F$107),"3rd",IF(AND(Rates!$F$107<='Universal Credit Table'!U76,'Universal Credit Table'!U76<Rates!$F$108),"4th",IF(AND(Rates!$F$108<='Universal Credit Table'!U76,'Universal Credit Table'!U76<Rates!$F$109),"5th",IF(AND(Rates!$F$109<='Universal Credit Table'!U76,'Universal Credit Table'!U76<Rates!$F$110),"6th",IF(AND(Rates!$F$110<='Universal Credit Table'!U76,'Universal Credit Table'!U76<Rates!$F$111),"7th",IF(AND(Rates!$F$111<='Universal Credit Table'!U76,'Universal Credit Table'!U76<Rates!$F$112),"8th",IF(AND(Rates!$F$112<='Universal Credit Table'!U76,'Universal Credit Table'!U76<Rates!$F$113),"9th",">9th"))))))))) -> 2nd | W76: =U76-$R$27-$Q$27-'Model Setup'!$F$37 -> 277.3592308 | X76: =IF(W76<Rates!$N$105,"1st",IF(AND(Rates!$N$105<='Universal Credit Table'!W76,'Universal Credit Table'!W76<Rates!$N$106),"2nd",IF(AND(Rates!$N$106<='Universal Credit Table'!W76,'Universal Credit Table'!W76<Rates!$N$107),"3rd",IF(AND(Rates!$N$107<='Universal Credit Table'!W76,'Universal Credit Table'!W76<Rates!$N$108),"4th",IF(AND(Rates!$N$108<='Universal Credit Table'!W76,'Universal Credit Table'!W76<Rates!$N$109),"5th",IF(AND(Rates!$N$109<='Universal Credit Table'!W76,'Universal Credit Table'!W76<Rates!$N$110),"6th",IF(AND(Rates!$N$110<='Universal Credit Table'!W76,'Universal Credit Table'!W76<Rates!$N$111),"7th",IF(AND(Rates!$N$111<='Universal Credit Table'!W76,'Universal Credit Table'!W76<Rates!$N$112),"8th",IF(AND(Rates!$N$112<='Universal Credit Table'!W76,'Universal Credit Table'!W76<Rates!$N$113),"9th",">9th"))))))))) -> 2nd | Y76: 0 | AA76: =IF(AND('Model Setup'!$J$33=0,'Model Setup'!$O$33=0),"-",(W76-'Single Earner Tables'!AG76)/'Single Earner Tables'!AG76) -> - | AB76: =IF(AA76<>"-",AA76*'Single Earner Tables'!AG76,"-") -> - | AC76: 0.8665989955 | AE76: =IF($D76<Rates!$N$16,Rates!$N$13,(Rates!$N$13-(0.5*($D76-Rates!$N$16)))) -> 241.0684932 | AF76: =IF('Model Setup'!$F$30="Single",0,IF('Model Setup'!$K$30="Not Married",0,IF(D76>=Rates!$N$17,0,IF(I76<(Rates!$N$13-Rates!$N$14),Rates!$N$14,Rates!$N$13-I76)))) -> 23.97260274 | AG76: -228.0410959 | AK76: =IF($I76>Rates!$N$16,(Rates!$N$13-(0.5*($I76-Rates!$N$16))),IF((AF76>0),Rates!$N$13-AF76,Rates!$N$13)) -> 217.0958904 | AL76: -217.0958904 | AM76: =IF($AL76<=0,0,IF($AL76<=Rates!$N$22,$AL76,Rates!$N$20-IF($AK76>=0,$AK76,0))) -> 0 | AN76: =IF($AL76<=Rates!$N$22,0,IF(($AL76-$AM76)<=Rates!$N$23,('Universal Credit Table'!$AL76-$AM76),Rates!$N$23)) -> 0 | AO76: 0
A77: 1981.428571 | C77: 1981.428571 | D77: 38 | E77: =(IF($AG77<=0,0,IF($AG77<=Rates!$N$22,$AG77,Rates!$N$20-IF($AE77>=0,$AE77,0))))*Rates!$N$24+(IF($AG77<=Rates!$N$22,0,IF(($AG77-$AH77)<=Rates!$N$23,('Universal Credit Table'!$AG77-$AH77),Rates!$N$23)))*Rates!$N$25+(IF(($AG77-($AH77+$AI77))>0,($AG77-($AH77+$AI77)),0))*Rates!$N$26 -> 0 | F77: =IF($D77<Rates!$N$32,0,Rates!$N$34*(MIN($D77,Rates!$N$33)-Rates!$N$32)+Rates!$N$35*(MAX($D77,Rates!$N$33)-Rates!$N$33)) -> 0 | G77: 38 | H77: 0 | I77: =IF('Model Setup'!$J$33=0,'Model Setup'!$O$33,IF(((D77/'Model Setup'!$F$33)*'Model Setup'!$J$33)>=0,((D77/'Model Setup'!$F$33)*'Model Setup'!$J$33),0)) -> 0 | J77: =(IF($AL77<=0,0,IF($AL77<=Rates!$N$22,$AL77,Rates!$N$20-IF($AK77>=0,$AK77,0))))*Rates!$N$24+(IF($AL77<=Rates!$N$22,0,IF(($AL77-$AM77)<=Rates!$N$23,('Universal Credit Table'!$AL77-$AM77),Rates!$N$23)))*Rates!$N$25+(IF(($AL77-($AM77+$AN77))>0,($AL77-($AM77+$AN77)),0))*Rates!$N$26 -> 0 | K77: =IF($I77<Rates!$N$32,0,Rates!$N$34*(MIN($I77,Rates!$N$33)-Rates!$N$32)+Rates!$N$35*(MAX($I77,Rates!$N$33)-Rates!$N$33)) -> 0 | L77: 0 | M77: 0 | N77: 0 | O77: 38 | P77: 38 | Q77: =IF(D77<Rates!$U$82,$E$27,($E$27-(D77-Rates!$U$82)/(100/365*7)/100*$E$27)) -> 35 | R77: =0.75*IF(P77<$P$18,$K$18,$K$18-($P77-$P$18)*Rates!$U$73) -> 25.5 | S77: =IF('Model Setup'!$F$35=0,$O$27-(P77*Rates!$J$87),IF(AND($K$27>0,P77>Rates!$K$83),$O$27-((P77-Rates!$K$83)*Rates!$J$87),IF(AND($K$27>0,P77<Rates!$K$83),$O$27,IF(AND($K$27=0,P77>Rates!$K$77),$O$27-((P77-Rates!$K$77)*Rates!$J$87),$O$27)))) -> 352.9592308 | T77: =SUMIF($P77:$S77,">0")-$S$27+IF(O77<Rates!$U$96,$T$27,0) -> 438.3592308 | U77: =SUMIF($P77:$S77,">0")-$S$27+IF(P77<Rates!$U$96,$T$27,0) -> 438.3592308 | V77: =IF(U77<Rates!$F$105,"1st",IF(AND(Rates!$F$105<='Universal Credit Table'!U77,'Universal Credit Table'!U77<Rates!$F$106),"2nd",IF(AND(Rates!$F$106<='Universal Credit Table'!U77,'Universal Credit Table'!U77<Rates!$F$107),"3rd",IF(AND(Rates!$F$107<='Universal Credit Table'!U77,'Universal Credit Table'!U77<Rates!$F$108),"4th",IF(AND(Rates!$F$108<='Universal Credit Table'!U77,'Universal Credit Table'!U77<Rates!$F$109),"5th",IF(AND(Rates!$F$109<='Universal Credit Table'!U77,'Universal Credit Table'!U77<Rates!$F$110),"6th",IF(AND(Rates!$F$110<='Universal Credit Table'!U77,'Universal Credit Table'!U77<Rates!$F$111),"7th",IF(AND(Rates!$F$111<='Universal Credit Table'!U77,'Universal Credit Table'!U77<Rates!$F$112),"8th",IF(AND(Rates!$F$112<='Universal Credit Table'!U77,'Universal Credit Table'!U77<Rates!$F$113),"9th",">9th"))))))))) -> 2nd | W77: =U77-$R$27-$Q$27-'Model Setup'!$F$37 -> 278.3592308 | X77: =IF(W77<Rates!$N$105,"1st",IF(AND(Rates!$N$105<='Universal Credit Table'!W77,'Universal Credit Table'!W77<Rates!$N$106),"2nd",IF(AND(Rates!$N$106<='Universal Credit Table'!W77,'Universal Credit Table'!W77<Rates!$N$107),"3rd",IF(AND(Rates!$N$107<='Universal Credit Table'!W77,'Universal Credit Table'!W77<Rates!$N$108),"4th",IF(AND(Rates!$N$108<='Universal Credit Table'!W77,'Universal Credit Table'!W77<Rates!$N$109),"5th",IF(AND(Rates!$N$109<='Universal Credit Table'!W77,'Universal Credit Table'!W77<Rates!$N$110),"6th",IF(AND(Rates!$N$110<='Universal Credit Table'!W77,'Universal Credit Table'!W77<Rates!$N$111),"7th",IF(AND(Rates!$N$111<='Universal Credit Table'!W77,'Universal Credit Table'!W77<Rates!$N$112),"8th",IF(AND(Rates!$N$112<='Universal Credit Table'!W77,'Universal Credit Table'!W77<Rates!$N$113),"9th",">9th"))))))))) -> 2nd | Y77: 0 | AA77: =IF(AND('Model Setup'!$J$33=0,'Model Setup'!$O$33=0),"-",(W77-'Single Earner Tables'!AG77)/'Single Earner Tables'!AG77) -> - | AB77: =IF(AA77<>"-",AA77*'Single Earner Tables'!AG77,"-") -> - | AC77: 0.8634857558 | AE77: =IF($D77<Rates!$N$16,Rates!$N$13,(Rates!$N$13-(0.5*($D77-Rates!$N$16)))) -> 241.0684932 | AF77: =IF('Model Setup'!$F$30="Single",0,IF('Model Setup'!$K$30="Not Married",0,IF(D77>=Rates!$N$17,0,IF(I77<(Rates!$N$13-Rates!$N$14),Rates!$N$14,Rates!$N$13-I77)))) -> 23.97260274 | AG77: -227.0410959 | AK77: =IF($I77>Rates!$N$16,(Rates!$N$13-(0.5*($I77-Rates!$N$16))),IF((AF77>0),Rates!$N$13-AF77,Rates!$N$13)) -> 217.0958904 | AL77: -217.0958904 | AM77: =IF($AL77<=0,0,IF($AL77<=Rates!$N$22,$AL77,Rates!$N$20-IF($AK77>=0,$AK77,0))) -> 0 | AN77: =IF($AL77<=Rates!$N$22,0,IF(($AL77-$AM77)<=Rates!$N$23,('Universal Credit Table'!$AL77-$AM77),Rates!$N$23)) -> 0 | AO77: 0
A78: 2033.571429 | C78: 2033.571429 | D78: 39 | E78: =(IF($AG78<=0,0,IF($AG78<=Rates!$N$22,$AG78,Rates!$N$20-IF($AE78>=0,$AE78,0))))*Rates!$N$24+(IF($AG78<=Rates!$N$22,0,IF(($AG78-$AH78)<=Rates!$N$23,('Universal Credit Table'!$AG78-$AH78),Rates!$N$23)))*Rates!$N$25+(IF(($AG78-($AH78+$AI78))>0,($AG78-($AH78+$AI78)),0))*Rates!$N$26 -> 0 | F78: =IF($D78<Rates!$N$32,0,Rates!$N$34*(MIN($D78,Rates!$N$33)-Rates!$N$32)+Rates!$N$35*(MAX($D78,Rates!$N$33)-Rates!$N$33)) -> 0 | G78: 39 | H78: 0 | I78: =IF('Model Setup'!$J$33=0,'Model Setup'!$O$33,IF(((D78/'Model Setup'!$F$33)*'Model Setup'!$J$33)>=0,((D78/'Model Setup'!$F$33)*'Model Setup'!$J$33),0)) -> 0 | J78: =(IF($AL78<=0,0,IF($AL78<=Rates!$N$22,$AL78,Rates!$N$20-IF($AK78>=0,$AK78,0))))*Rates!$N$24+(IF($AL78<=Rates!$N$22,0,IF(($AL78-$AM78)<=Rates!$N$23,('Universal Credit Table'!$AL78-$AM78),Rates!$N$23)))*Rates!$N$25+(IF(($AL78-($AM78+$AN78))>0,($AL78-($AM78+$AN78)),0))*Rates!$N$26 -> 0 | K78: =IF($I78<Rates!$N$32,0,Rates!$N$34*(MIN($I78,Rates!$N$33)-Rates!$N$32)+Rates!$N$35*(MAX($I78,Rates!$N$33)-Rates!$N$33)) -> 0 | L78: 0 | M78: 0 | N78: 0 | O78: 39 | P78: 39 | Q78: =IF(D78<Rates!$U$82,$E$27,($E$27-(D78-Rates!$U$82)/(100/365*7)/100*$E$27)) -> 35 | R78: =0.75*IF(P78<$P$18,$K$18,$K$18-($P78-$P$18)*Rates!$U$73) -> 25.5 | S78: =IF('Model Setup'!$F$35=0,$O$27-(P78*Rates!$J$87),IF(AND($K$27>0,P78>Rates!$K$83),$O$27-((P78-Rates!$K$83)*Rates!$J$87),IF(AND($K$27>0,P78<Rates!$K$83),$O$27,IF(AND($K$27=0,P78>Rates!$K$77),$O$27-((P78-Rates!$K$77)*Rates!$J$87),$O$27)))) -> 352.9592308 | T78: =SUMIF($P78:$S78,">0")-$S$27+IF(O78<Rates!$U$96,$T$27,0) -> 439.3592308 | U78: =SUMIF($P78:$S78,">0")-$S$27+IF(P78<Rates!$U$96,$T$27,0) -> 439.3592308 | V78: =IF(U78<Rates!$F$105,"1st",IF(AND(Rates!$F$105<='Universal Credit Table'!U78,'Universal Credit Table'!U78<Rates!$F$106),"2nd",IF(AND(Rates!$F$106<='Universal Credit Table'!U78,'Universal Credit Table'!U78<Rates!$F$107),"3rd",IF(AND(Rates!$F$107<='Universal Credit Table'!U78,'Universal Credit Table'!U78<Rates!$F$108),"4th",IF(AND(Rates!$F$108<='Universal Credit Table'!U78,'Universal Credit Table'!U78<Rates!$F$109),"5th",IF(AND(Rates!$F$109<='Universal Credit Table'!U78,'Universal Credit Table'!U78<Rates!$F$110),"6th",IF(AND(Rates!$F$110<='Universal Credit Table'!U78,'Universal Credit Table'!U78<Rates!$F$111),"7th",IF(AND(Rates!$F$111<='Universal Credit Table'!U78,'Universal Credit Table'!U78<Rates!$F$112),"8th",IF(AND(Rates!$F$112<='Universal Credit Table'!U78,'Universal Credit Table'!U78<Rates!$F$113),"9th",">9th"))))))))) -> 2nd | W78: =U78-$R$27-$Q$27-'Model Setup'!$F$37 -> 279.3592308 | X78: =IF(W78<Rates!$N$105,"1st",IF(AND(Rates!$N$105<='Universal Credit Table'!W78,'Universal Credit Table'!W78<Rates!$N$106),"2nd",IF(AND(Rates!$N$106<='Universal Credit Table'!W78,'Universal Credit Table'!W78<Rates!$N$107),"3rd",IF(AND(Rates!$N$107<='Universal Credit Table'!W78,'Universal Credit Table'!W78<Rates!$N$108),"4th",IF(AND(Rates!$N$108<='Universal Credit Table'!W78,'Universal Credit Table'!W78<Rates!$N$109),"5th",IF(AND(Rates!$N$109<='Universal Credit Table'!W78,'Universal Credit Table'!W78<Rates!$N$110),"6th",IF(AND(Rates!$N$110<='Universal Credit Table'!W78,'Universal Credit Table'!W78<Rates!$N$111),"7th",IF(AND(Rates!$N$111<='Universal Credit Table'!W78,'Universal Credit Table'!W78<Rates!$N$112),"8th",IF(AND(Rates!$N$112<='Universal Credit Table'!W78,'Universal Credit Table'!W78<Rates!$N$113),"9th",">9th"))))))))) -> 2nd | Y78: 0 | AA78: =IF(AND('Model Setup'!$J$33=0,'Model Setup'!$O$33=0),"-",(W78-'Single Earner Tables'!AG78)/'Single Earner Tables'!AG78) -> - | AB78: =IF(AA78<>"-",AA78*'Single Earner Tables'!AG78,"-") -> - | AC78: 0.8603948046 | AE78: =IF($D78<Rates!$N$16,Rates!$N$13,(Rates!$N$13-(0.5*($D78-Rates!$N$16)))) -> 241.0684932 | AF78: =IF('Model Setup'!$F$30="Single",0,IF('Model Setup'!$K$30="Not Married",0,IF(D78>=Rates!$N$17,0,IF(I78<(Rates!$N$13-Rates!$N$14),Rates!$N$14,Rates!$N$13-I78)))) -> 23.97260274 | AG78: -226.0410959 | AK78: =IF($I78>Rates!$N$16,(Rates!$N$13-(0.5*($I78-Rates!$N$16))),IF((AF78>0),Rates!$N$13-AF78,Rates!$N$13)) -> 217.0958904 | AL78: -217.0958904 | AM78: =IF($AL78<=0,0,IF($AL78<=Rates!$N$22,$AL78,Rates!$N$20-IF($AK78>=0,$AK78,0))) -> 0 | AN78: =IF($AL78<=Rates!$N$22,0,IF(($AL78-$AM78)<=Rates!$N$23,('Universal Credit Table'!$AL78-$AM78),Rates!$N$23)) -> 0 | AO78: 0
A79: 2085.714286 | C79: 2085.714286 | D79: 40 | E79: =(IF($AG79<=0,0,IF($AG79<=Rates!$N$22,$AG79,Rates!$N$20-IF($AE79>=0,$AE79,0))))*Rates!$N$24+(IF($AG79<=Rates!$N$22,0,IF(($AG79-$AH79)<=Rates!$N$23,('Universal Credit Table'!$AG79-$AH79),Rates!$N$23)))*Rates!$N$25+(IF(($AG79-($AH79+$AI79))>0,($AG79-($AH79+$AI79)),0))*Rates!$N$26 -> 0 | F79: =IF($D79<Rates!$N$32,0,Rates!$N$34*(MIN($D79,Rates!$N$33)-Rates!$N$32)+Rates!$N$35*(MAX($D79,Rates!$N$33)-Rates!$N$33)) -> 0 | G79: 40 | H79: 0 | I79: =IF('Model Setup'!$J$33=0,'Model Setup'!$O$33,IF(((D79/'Model Setup'!$F$33)*'Model Setup'!$J$33)>=0,((D79/'Model Setup'!$F$33)*'Model Setup'!$J$33),0)) -> 0 | J79: =(IF($AL79<=0,0,IF($AL79<=Rates!$N$22,$AL79,Rates!$N$20-IF($AK79>=0,$AK79,0))))*Rates!$N$24+(IF($AL79<=Rates!$N$22,0,IF(($AL79-$AM79)<=Rates!$N$23,('Universal Credit Table'!$AL79-$AM79),Rates!$N$23)))*Rates!$N$25+(IF(($AL79-($AM79+$AN79))>0,($AL79-($AM79+$AN79)),0))*Rates!$N$26 -> 0 | K79: =IF($I79<Rates!$N$32,0,Rates!$N$34*(MIN($I79,Rates!$N$33)-Rates!$N$32)+Rates!$N$35*(MAX($I79,Rates!$N$33)-Rates!$N$33)) -> 0 | L79: 0 | M79: 0 | N79: 0 | O79: 40 | P79: 40 | Q79: =IF(D79<Rates!$U$82,$E$27,($E$27-(D79-Rates!$U$82)/(100/365*7)/100*$E$27)) -> 35 | R79: =0.75*IF(P79<$P$18,$K$18,$K$18-($P79-$P$18)*Rates!$U$73) -> 25.5 | S79: =IF('Model Setup'!$F$35=0,$O$27-(P79*Rates!$J$87),IF(AND($K$27>0,P79>Rates!$K$83),$O$27-((P79-Rates!$K$83)*Rates!$J$87),IF(AND($K$27>0,P79<Rates!$K$83),$O$27,IF(AND($K$27=0,P79>Rates!$K$77),$O$27-((P79-Rates!$K$77)*Rates!$J$87),$O$27)))) -> 352.9592308 | T79: =SUMIF($P79:$S79,">0")-$S$27+IF(O79<Rates!$U$96,$T$27,0) -> 440.3592308 | U79: =SUMIF($P79:$S79,">0")-$S$27+IF(P79<Rates!$U$96,$T$27,0) -> 440.3592308 | V79: =IF(U79<Rates!$F$105,"1st",IF(AND(Rates!$F$105<='Universal Credit Table'!U79,'Universal Credit Table'!U79<Rates!$F$106),"2nd",IF(AND(Rates!$F$106<='Universal Credit Table'!U79,'Universal Credit Table'!U79<Rates!$F$107),"3rd",IF(AND(Rates!$F$107<='Universal Credit Table'!U79,'Universal Credit Table'!U79<Rates!$F$108),"4th",IF(AND(Rates!$F$108<='Universal Credit Table'!U79,'Universal Credit Table'!U79<Rates!$F$109),"5th",IF(AND(Rates!$F$109<='Universal Credit Table'!U79,'Universal Credit Table'!U79<Rates!$F$110),"6th",IF(AND(Rates!$F$110<='Universal Credit Table'!U79,'Universal Credit Table'!U79<Rates!$F$111),"7th",IF(AND(Rates!$F$111<='Universal Credit Table'!U79,'Universal Credit Table'!U79<Rates!$F$112),"8th",IF(AND(Rates!$F$112<='Universal Credit Table'!U79,'Universal Credit Table'!U79<Rates!$F$113),"9th",">9th"))))))))) -> 2nd | W79: =U79-$R$27-$Q$27-'Model Setup'!$F$37 -> 280.3592308 | X79: =IF(W79<Rates!$N$105,"1st",IF(AND(Rates!$N$105<='Universal Credit Table'!W79,'Universal Credit Table'!W79<Rates!$N$106),"2nd",IF(AND(Rates!$N$106<='Universal Credit Table'!W79,'Universal Credit Table'!W79<Rates!$N$107),"3rd",IF(AND(Rates!$N$107<='Universal Credit Table'!W79,'Universal Credit Table'!W79<Rates!$N$108),"4th",IF(AND(Rates!$N$108<='Universal Credit Table'!W79,'Universal Credit Table'!W79<Rates!$N$109),"5th",IF(AND(Rates!$N$109<='Universal Credit Table'!W79,'Universal Credit Table'!W79<Rates!$N$110),"6th",IF(AND(Rates!$N$110<='Universal Credit Table'!W79,'Universal Credit Table'!W79<Rates!$N$111),"7th",IF(AND(Rates!$N$111<='Universal Credit Table'!W79,'Universal Credit Table'!W79<Rates!$N$112),"8th",IF(AND(Rates!$N$112<='Universal Credit Table'!W79,'Universal Credit Table'!W79<Rates!$N$113),"9th",">9th"))))))))) -> 2nd | Y79: 0 | AA79: =IF(AND('Model Setup'!$J$33=0,'Model Setup'!$O$33=0),"-",(W79-'Single Earner Tables'!AG79)/'Single Earner Tables'!AG79) -> - | AB79: =IF(AA79<>"-",AA79*'Single Earner Tables'!AG79,"-") -> - | AC79: 0.8573259033 | AE79: =IF($D79<Rates!$N$16,Rates!$N$13,(Rates!$N$13-(0.5*($D79-Rates!$N$16)))) -> 241.0684932 | AF79: =IF('Model Setup'!$F$30="Single",0,IF('Model Setup'!$K$30="Not Married",0,IF(D79>=Rates!$N$17,0,IF(I79<(Rates!$N$13-Rates!$N$14),Rates!$N$14,Rates!$N$13-I79)))) -> 23.97260274 | AG79: -225.0410959 | AK79: =IF($I79>Rates!$N$16,(Rates!$N$13-(0.5*($I79-Rates!$N$16))),IF((AF79>0),Rates!$N$13-AF79,Rates!$N$13)) -> 217.0958904 | AL79: -217.0958904 | AM79: =IF($AL79<=0,0,IF($AL79<=Rates!$N$22,$AL79,Rates!$N$20-IF($AK79>=0,$AK79,0))) -> 0 | AN79: =IF($AL79<=Rates!$N$22,0,IF(($AL79-$AM79)<=Rates!$N$23,('Universal Credit Table'!$AL79-$AM79),Rates!$N$23)) -> 0 | AO79: 0
A80: 2137.857143 | C80: 2137.857143 | D80: 41 | E80: =(IF($AG80<=0,0,IF($AG80<=Rates!$N$22,$AG80,Rates!$N$20-IF($AE80>=0,$AE80,0))))*Rates!$N$24+(IF($AG80<=Rates!$N$22,0,IF(($AG80-$AH80)<=Rates!$N$23,('Universal Credit Table'!$AG80-$AH80),Rates!$N$23)))*Rates!$N$25+(IF(($AG80-($AH80+$AI80))>0,($AG80-($AH80+$AI80)),0))*Rates!$N$26 -> 0 | F80: =IF($D80<Rates!$N$32,0,Rates!$N$34*(MIN($D80,Rates!$N$33)-Rates!$N$32)+Rates!$N$35*(MAX($D80,Rates!$N$33)-Rates!$N$33)) -> 0 | G80: 41 | H80: 0 | I80: =IF('Model Setup'!$J$33=0,'Model Setup'!$O$33,IF(((D80/'Model Setup'!$F$33)*'Model Setup'!$J$33)>=0,((D80/'Model Setup'!$F$33)*'Model Setup'!$J$33),0)) -> 0 | J80: =(IF($AL80<=0,0,IF($AL80<=Rates!$N$22,$AL80,Rates!$N$20-IF($AK80>=0,$AK80,0))))*Rates!$N$24+(IF($AL80<=Rates!$N$22,0,IF(($AL80-$AM80)<=Rates!$N$23,('Universal Credit Table'!$AL80-$AM80),Rates!$N$23)))*Rates!$N$25+(IF(($AL80-($AM80+$AN80))>0,($AL80-($AM80+$AN80)),0))*Rates!$N$26 -> 0 | K80: =IF($I80<Rates!$N$32,0,Rates!$N$34*(MIN($I80,Rates!$N$33)-Rates!$N$32)+Rates!$N$35*(MAX($I80,Rates!$N$33)-Rates!$N$33)) -> 0 | L80: 0 | M80: 0 | N80: 0 | O80: 41 | P80: 41 | Q80: =IF(D80<Rates!$U$82,$E$27,($E$27-(D80-Rates!$U$82)/(100/365*7)/100*$E$27)) -> 35 | R80: =0.75*IF(P80<$P$18,$K$18,$K$18-($P80-$P$18)*Rates!$U$73) -> 25.5 | S80: =IF('Model Setup'!$F$35=0,$O$27-(P80*Rates!$J$87),IF(AND($K$27>0,P80>Rates!$K$83),$O$27-((P80-Rates!$K$83)*Rates!$J$87),IF(AND($K$27>0,P80<Rates!$K$83),$O$27,IF(AND($K$27=0,P80>Rates!$K$77),$O$27-((P80-Rates!$K$77)*Rates!$J$87),$O$27)))) -> 352.9592308 | T80: =SUMIF($P80:$S80,">0")-$S$27+IF(O80<Rates!$U$96,$T$27,0) -> 441.3592308 | U80: =SUMIF($P80:$S80,">0")-$S$27+IF(P80<Rates!$U$96,$T$27,0) -> 441.3592308 | V80: =IF(U80<Rates!$F$105,"1st",IF(AND(Rates!$F$105<='Universal Credit Table'!U80,'Universal Credit Table'!U80<Rates!$F$106),"2nd",IF(AND(Rates!$F$106<='Universal Credit Table'!U80,'Universal Credit Table'!U80<Rates!$F$107),"3rd",IF(AND(Rates!$F$107<='Universal Credit Table'!U80,'Universal Credit Table'!U80<Rates!$F$108),"4th",IF(AND(Rates!$F$108<='Universal Credit Table'!U80,'Universal Credit Table'!U80<Rates!$F$109),"5th",IF(AND(Rates!$F$109<='Universal Credit Table'!U80,'Universal Credit Table'!U80<Rates!$F$110),"6th",IF(AND(Rates!$F$110<='Universal Credit Table'!U80,'Universal Credit Table'!U80<Rates!$F$111),"7th",IF(AND(Rates!$F$111<='Universal Credit Table'!U80,'Universal Credit Table'!U80<Rates!$F$112),"8th",IF(AND(Rates!$F$112<='Universal Credit Table'!U80,'Universal Credit Table'!U80<Rates!$F$113),"9th",">9th"))))))))) -> 2nd | W80: =U80-$R$27-$Q$27-'Model Setup'!$F$37 -> 281.3592308 | X80: =IF(W80<Rates!$N$105,"1st",IF(AND(Rates!$N$105<='Universal Credit Table'!W80,'Universal Credit Table'!W80<Rates!$N$106),"2nd",IF(AND(Rates!$N$106<='Universal Credit Table'!W80,'Universal Credit Table'!W80<Rates!$N$107),"3rd",IF(AND(Rates!$N$107<='Universal Credit Table'!W80,'Universal Credit Table'!W80<Rates!$N$108),"4th",IF(AND(Rates!$N$108<='Universal Credit Table'!W80,'Universal Credit Table'!W80<Rates!$N$109),"5th",IF(AND(Rates!$N$109<='Universal Credit Table'!W80,'Universal Credit Table'!W80<Rates!$N$110),"6th",IF(AND(Rates!$N$110<='Universal Credit Table'!W80,'Universal Credit Table'!W80<Rates!$N$111),"7th",IF(AND(Rates!$N$111<='Universal Credit Table'!W80,'Universal Credit Table'!W80<Rates!$N$112),"8th",IF(AND(Rates!$N$112<='Universal Credit Table'!W80,'Universal Credit Table'!W80<Rates!$N$113),"9th",">9th"))))))))) -> 2nd | Y80: 0 | AA80: =IF(AND('Model Setup'!$J$33=0,'Model Setup'!$O$33=0),"-",(W80-'Single Earner Tables'!AG80)/'Single Earner Tables'!AG80) -> - | AB80: =IF(AA80<>"-",AA80*'Single Earner Tables'!AG80,"-") -> - | AC80: 0.8542788168 | AE80: =IF($D80<Rates!$N$16,Rates!$N$13,(Rates!$N$13-(0.5*($D80-Rates!$N$16)))) -> 241.0684932 | AF80: =IF('Model Setup'!$F$30="Single",0,IF('Model Setup'!$K$30="Not Married",0,IF(D80>=Rates!$N$17,0,IF(I80<(Rates!$N$13-Rates!$N$14),Rates!$N$14,Rates!$N$13-I80)))) -> 23.97260274 | AG80: -224.0410959 | AK80: =IF($I80>Rates!$N$16,(Rates!$N$13-(0.5*($I80-Rates!$N$16))),IF((AF80>0),Rates!$N$13-AF80,Rates!$N$13)) -> 217.0958904 | AL80: -217.0958904 | AM80: =IF($AL80<=0,0,IF($AL80<=Rates!$N$22,$AL80,Rates!$N$20-IF($AK80>=0,$AK80,0))) -> 0 | AN80: =IF($AL80<=Rates!$N$22,0,IF(($AL80-$AM80)<=Rates!$N$23,('Universal Credit Table'!$AL80-$AM80),Rates!$N$23)) -> 0 | AO80: 0
A81: 2190 | C81: 2190 | D81: 42 | E81: =(IF($AG81<=0,0,IF($AG81<=Rates!$N$22,$AG81,Rates!$N$20-IF($AE81>=0,$AE81,0))))*Rates!$N$24+(IF($AG81<=Rates!$N$22,0,IF(($AG81-$AH81)<=Rates!$N$23,('Universal Credit Table'!$AG81-$AH81),Rates!$N$23)))*Rates!$N$25+(IF(($AG81-($AH81+$AI81))>0,($AG81-($AH81+$AI81)),0))*Rates!$N$26 -> 0 | F81: =IF($D81<Rates!$N$32,0,Rates!$N$34*(MIN($D81,Rates!$N$33)-Rates!$N$32)+Rates!$N$35*(MAX($D81,Rates!$N$33)-Rates!$N$33)) -> 0 | G81: 42 | H81: 0 | I81: =IF('Model Setup'!$J$33=0,'Model Setup'!$O$33,IF(((D81/'Model Setup'!$F$33)*'Model Setup'!$J$33)>=0,((D81/'Model Setup'!$F$33)*'Model Setup'!$J$33),0)) -> 0 | J81: =(IF($AL81<=0,0,IF($AL81<=Rates!$N$22,$AL81,Rates!$N$20-IF($AK81>=0,$AK81,0))))*Rates!$N$24+(IF($AL81<=Rates!$N$22,0,IF(($AL81-$AM81)<=Rates!$N$23,('Universal Credit Table'!$AL81-$AM81),Rates!$N$23)))*Rates!$N$25+(IF(($AL81-($AM81+$AN81))>0,($AL81-($AM81+$AN81)),0))*Rates!$N$26 -> 0 | K81: =IF($I81<Rates!$N$32,0,Rates!$N$34*(MIN($I81,Rates!$N$33)-Rates!$N$32)+Rates!$N$35*(MAX($I81,Rates!$N$33)-Rates!$N$33)) -> 0 | L81: 0 | M81: 0 | N81: 0 | O81: 42 | P81: 42 | Q81: =IF(D81<Rates!$U$82,$E$27,($E$27-(D81-Rates!$U$82)/(100/365*7)/100*$E$27)) -> 35 | R81: =0.75*IF(P81<$P$18,$K$18,$K$18-($P81-$P$18)*Rates!$U$73) -> 25.5 | S81: =IF('Model Setup'!$F$35=0,$O$27-(P81*Rates!$J$87),IF(AND($K$27>0,P81>Rates!$K$83),$O$27-((P81-Rates!$K$83)*Rates!$J$87),IF(AND($K$27>0,P81<Rates!$K$83),$O$27,IF(AND($K$27=0,P81>Rates!$K$77),$O$27-((P81-Rates!$K$77)*Rates!$J$87),$O$27)))) -> 352.9592308 | T81: =SUMIF($P81:$S81,">0")-$S$27+IF(O81<Rates!$U$96,$T$27,0) -> 442.3592308 | U81: =SUMIF($P81:$S81,">0")-$S$27+IF(P81<Rates!$U$96,$T$27,0) -> 442.3592308 | V81: =IF(U81<Rates!$F$105,"1st",IF(AND(Rates!$F$105<='Universal Credit Table'!U81,'Universal Credit Table'!U81<Rates!$F$106),"2nd",IF(AND(Rates!$F$106<='Universal Credit Table'!U81,'Universal Credit Table'!U81<Rates!$F$107),"3rd",IF(AND(Rates!$F$107<='Universal Credit Table'!U81,'Universal Credit Table'!U81<Rates!$F$108),"4th",IF(AND(Rates!$F$108<='Universal Credit Table'!U81,'Universal Credit Table'!U81<Rates!$F$109),"5th",IF(AND(Rates!$F$109<='Universal Credit Table'!U81,'Universal Credit Table'!U81<Rates!$F$110),"6th",IF(AND(Rates!$F$110<='Universal Credit Table'!U81,'Universal Credit Table'!U81<Rates!$F$111),"7th",IF(AND(Rates!$F$111<='Universal Credit Table'!U81,'Universal Credit Table'!U81<Rates!$F$112),"8th",IF(AND(Rates!$F$112<='Universal Credit Table'!U81,'Universal Credit Table'!U81<Rates!$F$113),"9th",">9th"))))))))) -> 2nd | W81: =U81-$R$27-$Q$27-'Model Setup'!$F$37 -> 282.3592308 | X81: =IF(W81<Rates!$N$105,"1st",IF(AND(Rates!$N$105<='Universal Credit Table'!W81,'Universal Credit Table'!W81<Rates!$N$106),"2nd",IF(AND(Rates!$N$106<='Universal Credit Table'!W81,'Universal Credit Table'!W81<Rates!$N$107),"3rd",IF(AND(Rates!$N$107<='Universal Credit Table'!W81,'Universal Credit Table'!W81<Rates!$N$108),"4th",IF(AND(Rates!$N$108<='Universal Credit Table'!W81,'Universal Credit Table'!W81<Rates!$N$109),"5th",IF(AND(Rates!$N$109<='Universal Credit Table'!W81,'Universal Credit Table'!W81<Rates!$N$110),"6th",IF(AND(Rates!$N$110<='Universal Credit Table'!W81,'Universal Credit Table'!W81<Rates!$N$111),"7th",IF(AND(Rates!$N$111<='Universal Credit Table'!W81,'Universal Credit Table'!W81<Rates!$N$112),"8th",IF(AND(Rates!$N$112<='Universal Credit Table'!W81,'Universal Credit Table'!W81<Rates!$N$113),"9th",">9th"))))))))) -> 2nd | Y81: 0 | AA81: =IF(AND('Model Setup'!$J$33=0,'Model Setup'!$O$33=0),"-",(W81-'Single Earner Tables'!AG81)/'Single Earner Tables'!AG81) -> - | AB81: =IF(AA81<>"-",AA81*'Single Earner Tables'!AG81,"-") -> - | AC81: 0.8512533134 | AE81: =IF($D81<Rates!$N$16,Rates!$N$13,(Rates!$N$13-(0.5*($D81-Rates!$N$16)))) -> 241.0684932 | AF81: =IF('Model Setup'!$F$30="Single",0,IF('Model Setup'!$K$30="Not Married",0,IF(D81>=Rates!$N$17,0,IF(I81<(Rates!$N$13-Rates!$N$14),Rates!$N$14,Rates!$N$13-I81)))) -> 23.97260274 | AG81: -223.0410959 | AK81: =IF($I81>Rates!$N$16,(Rates!$N$13-(0.5*($I81-Rates!$N$16))),IF((AF81>0),Rates!$N$13-AF81,Rates!$N$13)) -> 217.0958904 | AL81: -217.0958904 | AM81: =IF($AL81<=0,0,IF($AL81<=Rates!$N$22,$AL81,Rates!$N$20-IF($AK81>=0,$AK81,0))) -> 0 | AN81: =IF($AL81<=Rates!$N$22,0,IF(($AL81-$AM81)<=Rates!$N$23,('Universal Credit Table'!$AL81-$AM81),Rates!$N$23)) -> 0 | AO81: 0
A82: 2242.142857 | C82: 2242.142857 | D82: 43 | E82: =(IF($AG82<=0,0,IF($AG82<=Rates!$N$22,$AG82,Rates!$N$20-IF($AE82>=0,$AE82,0))))*Rates!$N$24+(IF($AG82<=Rates!$N$22,0,IF(($AG82-$AH82)<=Rates!$N$23,('Universal Credit Table'!$AG82-$AH82),Rates!$N$23)))*Rates!$N$25+(IF(($AG82-($AH82+$AI82))>0,($AG82-($AH82+$AI82)),0))*Rates!$N$26 -> 0 | F82: =IF($D82<Rates!$N$32,0,Rates!$N$34*(MIN($D82,Rates!$N$33)-Rates!$N$32)+Rates!$N$35*(MAX($D82,Rates!$N$33)-Rates!$N$33)) -> 0 | G82: 43 | H82: 0 | I82: =IF('Model Setup'!$J$33=0,'Model Setup'!$O$33,IF(((D82/'Model Setup'!$F$33)*'Model Setup'!$J$33)>=0,((D82/'Model Setup'!$F$33)*'Model Setup'!$J$33),0)) -> 0 | J82: =(IF($AL82<=0,0,IF($AL82<=Rates!$N$22,$AL82,Rates!$N$20-IF($AK82>=0,$AK82,0))))*Rates!$N$24+(IF($AL82<=Rates!$N$22,0,IF(($AL82-$AM82)<=Rates!$N$23,('Universal Credit Table'!$AL82-$AM82),Rates!$N$23)))*Rates!$N$25+(IF(($AL82-($AM82+$AN82))>0,($AL82-($AM82+$AN82)),0))*Rates!$N$26 -> 0 | K82: =IF($I82<Rates!$N$32,0,Rates!$N$34*(MIN($I82,Rates!$N$33)-Rates!$N$32)+Rates!$N$35*(MAX($I82,Rates!$N$33)-Rates!$N$33)) -> 0 | L82: 0 | M82: 0 | N82: 0 | O82: 43 | P82: 43 | Q82: =IF(D82<Rates!$U$82,$E$27,($E$27-(D82-Rates!$U$82)/(100/365*7)/100*$E$27)) -> 35 | R82: =0.75*IF(P82<$P$18,$K$18,$K$18-($P82-$P$18)*Rates!$U$73) -> 25.5 | S82: =IF('Model Setup'!$F$35=0,$O$27-(P82*Rates!$J$87),IF(AND($K$27>0,P82>Rates!$K$83),$O$27-((P82-Rates!$K$83)*Rates!$J$87),IF(AND($K$27>0,P82<Rates!$K$83),$O$27,IF(AND($K$27=0,P82>Rates!$K$77),$O$27-((P82-Rates!$K$77)*Rates!$J$87),$O$27)))) -> 352.9592308 | T82: =SUMIF($P82:$S82,">0")-$S$27+IF(O82<Rates!$U$96,$T$27,0) -> 443.3592308 | U82: =SUMIF($P82:$S82,">0")-$S$27+IF(P82<Rates!$U$96,$T$27,0) -> 443.3592308 | V82: =IF(U82<Rates!$F$105,"1st",IF(AND(Rates!$F$105<='Universal Credit Table'!U82,'Universal Credit Table'!U82<Rates!$F$106),"2nd",IF(AND(Rates!$F$106<='Universal Credit Table'!U82,'Universal Credit Table'!U82<Rates!$F$107),"3rd",IF(AND(Rates!$F$107<='Universal Credit Table'!U82,'Universal Credit Table'!U82<Rates!$F$108),"4th",IF(AND(Rates!$F$108<='Universal Credit Table'!U82,'Universal Credit Table'!U82<Rates!$F$109),"5th",IF(AND(Rates!$F$109<='Universal Credit Table'!U82,'Universal Credit Table'!U82<Rates!$F$110),"6th",IF(AND(Rates!$F$110<='Universal Credit Table'!U82,'Universal Credit Table'!U82<Rates!$F$111),"7th",IF(AND(Rates!$F$111<='Universal Credit Table'!U82,'Universal Credit Table'!U82<Rates!$F$112),"8th",IF(AND(Rates!$F$112<='Universal Credit Table'!U82,'Universal Credit Table'!U82<Rates!$F$113),"9th",">9th"))))))))) -> 2nd | W82: =U82-$R$27-$Q$27-'Model Setup'!$F$37 -> 283.3592308 | X82: =IF(W82<Rates!$N$105,"1st",IF(AND(Rates!$N$105<='Universal Credit Table'!W82,'Universal Credit Table'!W82<Rates!$N$106),"2nd",IF(AND(Rates!$N$106<='Universal Credit Table'!W82,'Universal Credit Table'!W82<Rates!$N$107),"3rd",IF(AND(Rates!$N$107<='Universal Credit Table'!W82,'Universal Credit Table'!W82<Rates!$N$108),"4th",IF(AND(Rates!$N$108<='Universal Credit Table'!W82,'Universal Credit Table'!W82<Rates!$N$109),"5th",IF(AND(Rates!$N$109<='Universal Credit Table'!W82,'Universal Credit Table'!W82<Rates!$N$110),"6th",IF(AND(Rates!$N$110<='Universal Credit Table'!W82,'Universal Credit Table'!W82<Rates!$N$111),"7th",IF(AND(Rates!$N$111<='Universal Credit Table'!W82,'Universal Credit Table'!W82<Rates!$N$112),"8th",IF(AND(Rates!$N$112<='Universal Credit Table'!W82,'Universal Credit Table'!W82<Rates!$N$113),"9th",">9th"))))))))) -> 2nd | Y82: 0 | AA82: =IF(AND('Model Setup'!$J$33=0,'Model Setup'!$O$33=0),"-",(W82-'Single Earner Tables'!AG82)/'Single Earner Tables'!AG82) -> - | AB82: =IF(AA82<>"-",AA82*'Single Earner Tables'!AG82,"-") -> - | AC82: 0.8482491646 | AE82: =IF($D82<Rates!$N$16,Rates!$N$13,(Rates!$N$13-(0.5*($D82-Rates!$N$16)))) -> 241.0684932 | AF82: =IF('Model Setup'!$F$30="Single",0,IF('Model Setup'!$K$30="Not Married",0,IF(D82>=Rates!$N$17,0,IF(I82<(Rates!$N$13-Rates!$N$14),Rates!$N$14,Rates!$N$13-I82)))) -> 23.97260274 | AG82: -222.0410959 | AK82: =IF($I82>Rates!$N$16,(Rates!$N$13-(0.5*($I82-Rates!$N$16))),IF((AF82>0),Rates!$N$13-AF82,Rates!$N$13)) -> 217.0958904 | AL82: -217.0958904 | AM82: =IF($AL82<=0,0,IF($AL82<=Rates!$N$22,$AL82,Rates!$N$20-IF($AK82>=0,$AK82,0))) -> 0 | AN82: =IF($AL82<=Rates!$N$22,0,IF(($AL82-$AM82)<=Rates!$N$23,('Universal Credit Table'!$AL82-$AM82),Rates!$N$23)) -> 0 | AO82: 0
A83: 2294.285714 | C83: 2294.285714 | D83: 44 | E83: =(IF($AG83<=0,0,IF($AG83<=Rates!$N$22,$AG83,Rates!$N$20-IF($AE83>=0,$AE83,0))))*Rates!$N$24+(IF($AG83<=Rates!$N$22,0,IF(($AG83-$AH83)<=Rates!$N$23,('Universal Credit Table'!$AG83-$AH83),Rates!$N$23)))*Rates!$N$25+(IF(($AG83-($AH83+$AI83))>0,($AG83-($AH83+$AI83)),0))*Rates!$N$26 -> 0 | F83: =IF($D83<Rates!$N$32,0,Rates!$N$34*(MIN($D83,Rates!$N$33)-Rates!$N$32)+Rates!$N$35*(MAX($D83,Rates!$N$33)-Rates!$N$33)) -> 0 | G83: 44 | H83: 0 | I83: =IF('Model Setup'!$J$33=0,'Model Setup'!$O$33,IF(((D83/'Model Setup'!$F$33)*'Model Setup'!$J$33)>=0,((D83/'Model Setup'!$F$33)*'Model Setup'!$J$33),0)) -> 0 | J83: =(IF($AL83<=0,0,IF($AL83<=Rates!$N$22,$AL83,Rates!$N$20-IF($AK83>=0,$AK83,0))))*Rates!$N$24+(IF($AL83<=Rates!$N$22,0,IF(($AL83-$AM83)<=Rates!$N$23,('Universal Credit Table'!$AL83-$AM83),Rates!$N$23)))*Rates!$N$25+(IF(($AL83-($AM83+$AN83))>0,($AL83-($AM83+$AN83)),0))*Rates!$N$26 -> 0 | K83: =IF($I83<Rates!$N$32,0,Rates!$N$34*(MIN($I83,Rates!$N$33)-Rates!$N$32)+Rates!$N$35*(MAX($I83,Rates!$N$33)-Rates!$N$33)) -> 0 | L83: 0 | M83: 0 | N83: 0 | O83: 44 | P83: 44 | Q83: =IF(D83<Rates!$U$82,$E$27,($E$27-(D83-Rates!$U$82)/(100/365*7)/100*$E$27)) -> 35 | R83: =0.75*IF(P83<$P$18,$K$18,$K$18-($P83-$P$18)*Rates!$U$73) -> 25.5 | S83: =IF('Model Setup'!$F$35=0,$O$27-(P83*Rates!$J$87),IF(AND($K$27>0,P83>Rates!$K$83),$O$27-((P83-Rates!$K$83)*Rates!$J$87),IF(AND($K$27>0,P83<Rates!$K$83),$O$27,IF(AND($K$27=0,P83>Rates!$K$77),$O$27-((P83-Rates!$K$77)*Rates!$J$87),$O$27)))) -> 352.9592308 | T83: =SUMIF($P83:$S83,">0")-$S$27+IF(O83<Rates!$U$96,$T$27,0) -> 444.3592308 | U83: =SUMIF($P83:$S83,">0")-$S$27+IF(P83<Rates!$U$96,$T$27,0) -> 444.3592308 | V83: =IF(U83<Rates!$F$105,"1st",IF(AND(Rates!$F$105<='Universal Credit Table'!U83,'Universal Credit Table'!U83<Rates!$F$106),"2nd",IF(AND(Rates!$F$106<='Universal Credit Table'!U83,'Universal Credit Table'!U83<Rates!$F$107),"3rd",IF(AND(Rates!$F$107<='Universal Credit Table'!U83,'Universal Credit Table'!U83<Rates!$F$108),"4th",IF(AND(Rates!$F$108<='Universal Credit Table'!U83,'Universal Credit Table'!U83<Rates!$F$109),"5th",IF(AND(Rates!$F$109<='Universal Credit Table'!U83,'Universal Credit Table'!U83<Rates!$F$110),"6th",IF(AND(Rates!$F$110<='Universal Credit Table'!U83,'Universal Credit Table'!U83<Rates!$F$111),"7th",IF(AND(Rates!$F$111<='Universal Credit Table'!U83,'Universal Credit Table'!U83<Rates!$F$112),"8th",IF(AND(Rates!$F$112<='Universal Credit Table'!U83,'Universal Credit Table'!U83<Rates!$F$113),"9th",">9th"))))))))) -> 2nd | W83: =U83-$R$27-$Q$27-'Model Setup'!$F$37 -> 284.3592308 | X83: =IF(W83<Rates!$N$105,"1st",IF(AND(Rates!$N$105<='Universal Credit Table'!W83,'Universal Credit Table'!W83<Rates!$N$106),"2nd",IF(AND(Rates!$N$106<='Universal Credit Table'!W83,'Universal Credit Table'!W83<Rates!$N$107),"3rd",IF(AND(Rates!$N$107<='Universal Credit Table'!W83,'Universal Credit Table'!W83<Rates!$N$108),"4th",IF(AND(Rates!$N$108<='Universal Credit Table'!W83,'Universal Credit Table'!W83<Rates!$N$109),"5th",IF(AND(Rates!$N$109<='Universal Credit Table'!W83,'Universal Credit Table'!W83<Rates!$N$110),"6th",IF(AND(Rates!$N$110<='Universal Credit Table'!W83,'Universal Credit Table'!W83<Rates!$N$111),"7th",IF(AND(Rates!$N$111<='Universal Credit Table'!W83,'Universal Credit Table'!W83<Rates!$N$112),"8th",IF(AND(Rates!$N$112<='Universal Credit Table'!W83,'Universal Credit Table'!W83<Rates!$N$113),"9th",">9th"))))))))) -> 2nd | Y83: 0 | AA83: =IF(AND('Model Setup'!$J$33=0,'Model Setup'!$O$33=0),"-",(W83-'Single Earner Tables'!AG83)/'Single Earner Tables'!AG83) -> - | AB83: =IF(AA83<>"-",AA83*'Single Earner Tables'!AG83,"-") -> - | AC83: 0.8452661449 | AE83: =IF($D83<Rates!$N$16,Rates!$N$13,(Rates!$N$13-(0.5*($D83-Rates!$N$16)))) -> 241.0684932 | AF83: =IF('Model Setup'!$F$30="Single",0,IF('Model Setup'!$K$30="Not Married",0,IF(D83>=Rates!$N$17,0,IF(I83<(Rates!$N$13-Rates!$N$14),Rates!$N$14,Rates!$N$13-I83)))) -> 23.97260274 | AG83: -221.0410959 | AK83: =IF($I83>Rates!$N$16,(Rates!$N$13-(0.5*($I83-Rates!$N$16))),IF((AF83>0),Rates!$N$13-AF83,Rates!$N$13)) -> 217.0958904 | AL83: -217.0958904 | AM83: =IF($AL83<=0,0,IF($AL83<=Rates!$N$22,$AL83,Rates!$N$20-IF($AK83>=0,$AK83,0))) -> 0 | AN83: =IF($AL83<=Rates!$N$22,0,IF(($AL83-$AM83)<=Rates!$N$23,('Universal Credit Table'!$AL83-$AM83),Rates!$N$23)) -> 0 | AO83: 0
A84: 2346.428571 | C84: 2346.428571 | D84: 45 | E84: =(IF($AG84<=0,0,IF($AG84<=Rates!$N$22,$AG84,Rates!$N$20-IF($AE84>=0,$AE84,0))))*Rates!$N$24+(IF($AG84<=Rates!$N$22,0,IF(($AG84-$AH84)<=Rates!$N$23,('Universal Credit Table'!$AG84-$AH84),Rates!$N$23)))*Rates!$N$25+(IF(($AG84-($AH84+$AI84))>0,($AG84-($AH84+$AI84)),0))*Rates!$N$26 -> 0 | F84: =IF($D84<Rates!$N$32,0,Rates!$N$34*(MIN($D84,Rates!$N$33)-Rates!$N$32)+Rates!$N$35*(MAX($D84,Rates!$N$33)-Rates!$N$33)) -> 0 | G84: 45 | H84: 0 | I84: =IF('Model Setup'!$J$33=0,'Model Setup'!$O$33,IF(((D84/'Model Setup'!$F$33)*'Model Setup'!$J$33)>=0,((D84/'Model Setup'!$F$33)*'Model Setup'!$J$33),0)) -> 0 | J84: =(IF($AL84<=0,0,IF($AL84<=Rates!$N$22,$AL84,Rates!$N$20-IF($AK84>=0,$AK84,0))))*Rates!$N$24+(IF($AL84<=Rates!$N$22,0,IF(($AL84-$AM84)<=Rates!$N$23,('Universal Credit Table'!$AL84-$AM84),Rates!$N$23)))*Rates!$N$25+(IF(($AL84-($AM84+$AN84))>0,($AL84-($AM84+$AN84)),0))*Rates!$N$26 -> 0 | K84: =IF($I84<Rates!$N$32,0,Rates!$N$34*(MIN($I84,Rates!$N$33)-Rates!$N$32)+Rates!$N$35*(MAX($I84,Rates!$N$33)-Rates!$N$33)) -> 0 | L84: 0 | M84: 0 | N84: 0 | O84: 45 | P84: 45 | Q84: =IF(D84<Rates!$U$82,$E$27,($E$27-(D84-Rates!$U$82)/(100/365*7)/100*$E$27)) -> 35 | R84: =0.75*IF(P84<$P$18,$K$18,$K$18-($P84-$P$18)*Rates!$U$73) -> 25.5 | S84: =IF('Model Setup'!$F$35=0,$O$27-(P84*Rates!$J$87),IF(AND($K$27>0,P84>Rates!$K$83),$O$27-((P84-Rates!$K$83)*Rates!$J$87),IF(AND($K$27>0,P84<Rates!$K$83),$O$27,IF(AND($K$27=0,P84>Rates!$K$77),$O$27-((P84-Rates!$K$77)*Rates!$J$87),$O$27)))) -> 352.9592308 | T84: =SUMIF($P84:$S84,">0")-$S$27+IF(O84<Rates!$U$96,$T$27,0) -> 445.3592308 | U84: =SUMIF($P84:$S84,">0")-$S$27+IF(P84<Rates!$U$96,$T$27,0) -> 445.3592308 | V84: =IF(U84<Rates!$F$105,"1st",IF(AND(Rates!$F$105<='Universal Credit Table'!U84,'Universal Credit Table'!U84<Rates!$F$106),"2nd",IF(AND(Rates!$F$106<='Universal Credit Table'!U84,'Universal Credit Table'!U84<Rates!$F$107),"3rd",IF(AND(Rates!$F$107<='Universal Credit Table'!U84,'Universal Credit Table'!U84<Rates!$F$108),"4th",IF(AND(Rates!$F$108<='Universal Credit Table'!U84,'Universal Credit Table'!U84<Rates!$F$109),"5th",IF(AND(Rates!$F$109<='Universal Credit Table'!U84,'Universal Credit Table'!U84<Rates!$F$110),"6th",IF(AND(Rates!$F$110<='Universal Credit Table'!U84,'Universal Credit Table'!U84<Rates!$F$111),"7th",IF(AND(Rates!$F$111<='Universal Credit Table'!U84,'Universal Credit Table'!U84<Rates!$F$112),"8th",IF(AND(Rates!$F$112<='Universal Credit Table'!U84,'Universal Credit Table'!U84<Rates!$F$113),"9th",">9th"))))))))) -> 2nd | W84: =U84-$R$27-$Q$27-'Model Setup'!$F$37 -> 285.3592308 | X84: =IF(W84<Rates!$N$105,"1st",IF(AND(Rates!$N$105<='Universal Credit Table'!W84,'Universal Credit Table'!W84<Rates!$N$106),"2nd",IF(AND(Rates!$N$106<='Universal Credit Table'!W84,'Universal Credit Table'!W84<Rates!$N$107),"3rd",IF(AND(Rates!$N$107<='Universal Credit Table'!W84,'Universal Credit Table'!W84<Rates!$N$108),"4th",IF(AND(Rates!$N$108<='Universal Credit Table'!W84,'Universal Credit Table'!W84<Rates!$N$109),"5th",IF(AND(Rates!$N$109<='Universal Credit Table'!W84,'Universal Credit Table'!W84<Rates!$N$110),"6th",IF(AND(Rates!$N$110<='Universal Credit Table'!W84,'Universal Credit Table'!W84<Rates!$N$111),"7th",IF(AND(Rates!$N$111<='Universal Credit Table'!W84,'Universal Credit Table'!W84<Rates!$N$112),"8th",IF(AND(Rates!$N$112<='Universal Credit Table'!W84,'Universal Credit Table'!W84<Rates!$N$113),"9th",">9th"))))))))) -> 2nd | Y84: 0 | AA84: =IF(AND('Model Setup'!$J$33=0,'Model Setup'!$O$33=0),"-",(W84-'Single Earner Tables'!AG84)/'Single Earner Tables'!AG84) -> - | AB84: =IF(AA84<>"-",AA84*'Single Earner Tables'!AG84,"-") -> - | AC84: 0.8423040324 | AE84: =IF($D84<Rates!$N$16,Rates!$N$13,(Rates!$N$13-(0.5*($D84-Rates!$N$16)))) -> 241.0684932 | AF84: =IF('Model Setup'!$F$30="Single",0,IF('Model Setup'!$K$30="Not Married",0,IF(D84>=Rates!$N$17,0,IF(I84<(Rates!$N$13-Rates!$N$14),Rates!$N$14,Rates!$N$13-I84)))) -> 23.97260274 | AG84: -220.0410959 | AK84: =IF($I84>Rates!$N$16,(Rates!$N$13-(0.5*($I84-Rates!$N$16))),IF((AF84>0),Rates!$N$13-AF84,Rates!$N$13)) -> 217.0958904 | AL84: -217.0958904 | AM84: =IF($AL84<=0,0,IF($AL84<=Rates!$N$22,$AL84,Rates!$N$20-IF($AK84>=0,$AK84,0))) -> 0 | AN84: =IF($AL84<=Rates!$N$22,0,IF(($AL84-$AM84)<=Rates!$N$23,('Universal Credit Table'!$AL84-$AM84),Rates!$N$23)) -> 0 | AO84: 0
A85: 2398.571429 | C85: 2398.571429 | D85: 46 | E85: =(IF($AG85<=0,0,IF($AG85<=Rates!$N$22,$AG85,Rates!$N$20-IF($AE85>=0,$AE85,0))))*Rates!$N$24+(IF($AG85<=Rates!$N$22,0,IF(($AG85-$AH85)<=Rates!$N$23,('Universal Credit Table'!$AG85-$AH85),Rates!$N$23)))*Rates!$N$25+(IF(($AG85-($AH85+$AI85))>0,($AG85-($AH85+$AI85)),0))*Rates!$N$26 -> 0 | F85: =IF($D85<Rates!$N$32,0,Rates!$N$34*(MIN($D85,Rates!$N$33)-Rates!$N$32)+Rates!$N$35*(MAX($D85,Rates!$N$33)-Rates!$N$33)) -> 0 | G85: 46 | H85: 0 | I85: =IF('Model Setup'!$J$33=0,'Model Setup'!$O$33,IF(((D85/'Model Setup'!$F$33)*'Model Setup'!$J$33)>=0,((D85/'Model Setup'!$F$33)*'Model Setup'!$J$33),0)) -> 0 | J85: =(IF($AL85<=0,0,IF($AL85<=Rates!$N$22,$AL85,Rates!$N$20-IF($AK85>=0,$AK85,0))))*Rates!$N$24+(IF($AL85<=Rates!$N$22,0,IF(($AL85-$AM85)<=Rates!$N$23,('Universal Credit Table'!$AL85-$AM85),Rates!$N$23)))*Rates!$N$25+(IF(($AL85-($AM85+$AN85))>0,($AL85-($AM85+$AN85)),0))*Rates!$N$26 -> 0 | K85: =IF($I85<Rates!$N$32,0,Rates!$N$34*(MIN($I85,Rates!$N$33)-Rates!$N$32)+Rates!$N$35*(MAX($I85,Rates!$N$33)-Rates!$N$33)) -> 0 | L85: 0 | M85: 0 | N85: 0 | O85: 46 | P85: 46 | Q85: =IF(D85<Rates!$U$82,$E$27,($E$27-(D85-Rates!$U$82)/(100/365*7)/100*$E$27)) -> 35 | R85: =0.75*IF(P85<$P$18,$K$18,$K$18-($P85-$P$18)*Rates!$U$73) -> 25.5 | S85: =IF('Model Setup'!$F$35=0,$O$27-(P85*Rates!$J$87),IF(AND($K$27>0,P85>Rates!$K$83),$O$27-((P85-Rates!$K$83)*Rates!$J$87),IF(AND($K$27>0,P85<Rates!$K$83),$O$27,IF(AND($K$27=0,P85>Rates!$K$77),$O$27-((P85-Rates!$K$77)*Rates!$J$87),$O$27)))) -> 352.9592308 | T85: =SUMIF($P85:$S85,">0")-$S$27+IF(O85<Rates!$U$96,$T$27,0) -> 446.3592308 | U85: =SUMIF($P85:$S85,">0")-$S$27+IF(P85<Rates!$U$96,$T$27,0) -> 446.3592308 | V85: =IF(U85<Rates!$F$105,"1st",IF(AND(Rates!$F$105<='Universal Credit Table'!U85,'Universal Credit Table'!U85<Rates!$F$106),"2nd",IF(AND(Rates!$F$106<='Universal Credit Table'!U85,'Universal Credit Table'!U85<Rates!$F$107),"3rd",IF(AND(Rates!$F$107<='Universal Credit Table'!U85,'Universal Credit Table'!U85<Rates!$F$108),"4th",IF(AND(Rates!$F$108<='Universal Credit Table'!U85,'Universal Credit Table'!U85<Rates!$F$109),"5th",IF(AND(Rates!$F$109<='Universal Credit Table'!U85,'Universal Credit Table'!U85<Rates!$F$110),"6th",IF(AND(Rates!$F$110<='Universal Credit Table'!U85,'Universal Credit Table'!U85<Rates!$F$111),"7th",IF(AND(Rates!$F$111<='Universal Credit Table'!U85,'Universal Credit Table'!U85<Rates!$F$112),"8th",IF(AND(Rates!$F$112<='Universal Credit Table'!U85,'Universal Credit Table'!U85<Rates!$F$113),"9th",">9th"))))))))) -> 2nd | W85: =U85-$R$27-$Q$27-'Model Setup'!$F$37 -> 286.3592308 | X85: =IF(W85<Rates!$N$105,"1st",IF(AND(Rates!$N$105<='Universal Credit Table'!W85,'Universal Credit Table'!W85<Rates!$N$106),"2nd",IF(AND(Rates!$N$106<='Universal Credit Table'!W85,'Universal Credit Table'!W85<Rates!$N$107),"3rd",IF(AND(Rates!$N$107<='Universal Credit Table'!W85,'Universal Credit Table'!W85<Rates!$N$108),"4th",IF(AND(Rates!$N$108<='Universal Credit Table'!W85,'Universal Credit Table'!W85<Rates!$N$109),"5th",IF(AND(Rates!$N$109<='Universal Credit Table'!W85,'Universal Credit Table'!W85<Rates!$N$110),"6th",IF(AND(Rates!$N$110<='Universal Credit Table'!W85,'Universal Credit Table'!W85<Rates!$N$111),"7th",IF(AND(Rates!$N$111<='Universal Credit Table'!W85,'Universal Credit Table'!W85<Rates!$N$112),"8th",IF(AND(Rates!$N$112<='Universal Credit Table'!W85,'Universal Credit Table'!W85<Rates!$N$113),"9th",">9th"))))))))) -> 2nd | Y85: 0 | AA85: =IF(AND('Model Setup'!$J$33=0,'Model Setup'!$O$33=0),"-",(W85-'Single Earner Tables'!AG85)/'Single Earner Tables'!AG85) -> - | AB85: =IF(AA85<>"-",AA85*'Single Earner Tables'!AG85,"-") -> - | AC85: 0.839362608 | AE85: =IF($D85<Rates!$N$16,Rates!$N$13,(Rates!$N$13-(0.5*($D85-Rates!$N$16)))) -> 241.0684932 | AF85: =IF('Model Setup'!$F$30="Single",0,IF('Model Setup'!$K$30="Not Married",0,IF(D85>=Rates!$N$17,0,IF(I85<(Rates!$N$13-Rates!$N$14),Rates!$N$14,Rates!$N$13-I85)))) -> 23.97260274 | AG85: -219.0410959 | AK85: =IF($I85>Rates!$N$16,(Rates!$N$13-(0.5*($I85-Rates!$N$16))),IF((AF85>0),Rates!$N$13-AF85,Rates!$N$13)) -> 217.0958904 | AL85: -217.0958904 | AM85: =IF($AL85<=0,0,IF($AL85<=Rates!$N$22,$AL85,Rates!$N$20-IF($AK85>=0,$AK85,0))) -> 0 | AN85: =IF($AL85<=Rates!$N$22,0,IF(($AL85-$AM85)<=Rates!$N$23,('Universal Credit Table'!$AL85-$AM85),Rates!$N$23)) -> 0 | AO85: 0
A86: 2450.714286 | C86: 2450.714286 | D86: 47 | E86: =(IF($AG86<=0,0,IF($AG86<=Rates!$N$22,$AG86,Rates!$N$20-IF($AE86>=0,$AE86,0))))*Rates!$N$24+(IF($AG86<=Rates!$N$22,0,IF(($AG86-$AH86)<=Rates!$N$23,('Universal Credit Table'!$AG86-$AH86),Rates!$N$23)))*Rates!$N$25+(IF(($AG86-($AH86+$AI86))>0,($AG86-($AH86+$AI86)),0))*Rates!$N$26 -> 0 | F86: =IF($D86<Rates!$N$32,0,Rates!$N$34*(MIN($D86,Rates!$N$33)-Rates!$N$32)+Rates!$N$35*(MAX($D86,Rates!$N$33)-Rates!$N$33)) -> 0 | G86: 47 | H86: 0 | I86: =IF('Model Setup'!$J$33=0,'Model Setup'!$O$33,IF(((D86/'Model Setup'!$F$33)*'Model Setup'!$J$33)>=0,((D86/'Model Setup'!$F$33)*'Model Setup'!$J$33),0)) -> 0 | J86: =(IF($AL86<=0,0,IF($AL86<=Rates!$N$22,$AL86,Rates!$N$20-IF($AK86>=0,$AK86,0))))*Rates!$N$24+(IF($AL86<=Rates!$N$22,0,IF(($AL86-$AM86)<=Rates!$N$23,('Universal Credit Table'!$AL86-$AM86),Rates!$N$23)))*Rates!$N$25+(IF(($AL86-($AM86+$AN86))>0,($AL86-($AM86+$AN86)),0))*Rates!$N$26 -> 0 | K86: =IF($I86<Rates!$N$32,0,Rates!$N$34*(MIN($I86,Rates!$N$33)-Rates!$N$32)+Rates!$N$35*(MAX($I86,Rates!$N$33)-Rates!$N$33)) -> 0 | L86: 0 | M86: 0 | N86: 0 | O86: 47 | P86: 47 | Q86: =IF(D86<Rates!$U$82,$E$27,($E$27-(D86-Rates!$U$82)/(100/365*7)/100*$E$27)) -> 35 | R86: =0.75*IF(P86<$P$18,$K$18,$K$18-($P86-$P$18)*Rates!$U$73) -> 25.5 | S86: =IF('Model Setup'!$F$35=0,$O$27-(P86*Rates!$J$87),IF(AND($K$27>0,P86>Rates!$K$83),$O$27-((P86-Rates!$K$83)*Rates!$J$87),IF(AND($K$27>0,P86<Rates!$K$83),$O$27,IF(AND($K$27=0,P86>Rates!$K$77),$O$27-((P86-Rates!$K$77)*Rates!$J$87),$O$27)))) -> 352.9592308 | T86: =SUMIF($P86:$S86,">0")-$S$27+IF(O86<Rates!$U$96,$T$27,0) -> 447.3592308 | U86: =SUMIF($P86:$S86,">0")-$S$27+IF(P86<Rates!$U$96,$T$27,0) -> 447.3592308 | V86: =IF(U86<Rates!$F$105,"1st",IF(AND(Rates!$F$105<='Universal Credit Table'!U86,'Universal Credit Table'!U86<Rates!$F$106),"2nd",IF(AND(Rates!$F$106<='Universal Credit Table'!U86,'Universal Credit Table'!U86<Rates!$F$107),"3rd",IF(AND(Rates!$F$107<='Universal Credit Table'!U86,'Universal Credit Table'!U86<Rates!$F$108),"4th",IF(AND(Rates!$F$108<='Universal Credit Table'!U86,'Universal Credit Table'!U86<Rates!$F$109),"5th",IF(AND(Rates!$F$109<='Universal Credit Table'!U86,'Universal Credit Table'!U86<Rates!$F$110),"6th",IF(AND(Rates!$F$110<='Universal Credit Table'!U86,'Universal Credit Table'!U86<Rates!$F$111),"7th",IF(AND(Rates!$F$111<='Universal Credit Table'!U86,'Universal Credit Table'!U86<Rates!$F$112),"8th",IF(AND(Rates!$F$112<='Universal Credit Table'!U86,'Universal Credit Table'!U86<Rates!$F$113),"9th",">9th"))))))))) -> 2nd | W86: =U86-$R$27-$Q$27-'Model Setup'!$F$37 -> 287.3592308 | X86: =IF(W86<Rates!$N$105,"1st",IF(AND(Rates!$N$105<='Universal Credit Table'!W86,'Universal Credit Table'!W86<Rates!$N$106),"2nd",IF(AND(Rates!$N$106<='Universal Credit Table'!W86,'Universal Credit Table'!W86<Rates!$N$107),"3rd",IF(AND(Rates!$N$107<='Universal Credit Table'!W86,'Universal Credit Table'!W86<Rates!$N$108),"4th",IF(AND(Rates!$N$108<='Universal Credit Table'!W86,'Universal Credit Table'!W86<Rates!$N$109),"5th",IF(AND(Rates!$N$109<='Universal Credit Table'!W86,'Universal Credit Table'!W86<Rates!$N$110),"6th",IF(AND(Rates!$N$110<='Universal Credit Table'!W86,'Universal Credit Table'!W86<Rates!$N$111),"7th",IF(AND(Rates!$N$111<='Universal Credit Table'!W86,'Universal Credit Table'!W86<Rates!$N$112),"8th",IF(AND(Rates!$N$112<='Universal Credit Table'!W86,'Universal Credit Table'!W86<Rates!$N$113),"9th",">9th"))))))))) -> 2nd | Y86: 0 | AA86: =IF(AND('Model Setup'!$J$33=0,'Model Setup'!$O$33=0),"-",(W86-'Single Earner Tables'!AG86)/'Single Earner Tables'!AG86) -> - | AB86: =IF(AA86<>"-",AA86*'Single Earner Tables'!AG86,"-") -> - | AC86: 0.8364416557 | AE86: =IF($D86<Rates!$N$16,Rates!$N$13,(Rates!$N$13-(0.5*($D86-Rates!$N$16)))) -> 241.0684932 | AF86: =IF('Model Setup'!$F$30="Single",0,IF('Model Setup'!$K$30="Not Married",0,IF(D86>=Rates!$N$17,0,IF(I86<(Rates!$N$13-Rates!$N$14),Rates!$N$14,Rates!$N$13-I86)))) -> 23.97260274 | AG86: -218.0410959 | AK86: =IF($I86>Rates!$N$16,(Rates!$N$13-(0.5*($I86-Rates!$N$16))),IF((AF86>0),Rates!$N$13-AF86,Rates!$N$13)) -> 217.0958904 | AL86: -217.0958904 | AM86: =IF($AL86<=0,0,IF($AL86<=Rates!$N$22,$AL86,Rates!$N$20-IF($AK86>=0,$AK86,0))) -> 0 | AN86: =IF($AL86<=Rates!$N$22,0,IF(($AL86-$AM86)<=Rates!$N$23,('Universal Credit Table'!$AL86-$AM86),Rates!$N$23)) -> 0 | AO86: 0
A87: 2502.857143 | C87: 2502.857143 | D87: 48 | E87: =(IF($AG87<=0,0,IF($AG87<=Rates!$N$22,$AG87,Rates!$N$20-IF($AE87>=0,$AE87,0))))*Rates!$N$24+(IF($AG87<=Rates!$N$22,0,IF(($AG87-$AH87)<=Rates!$N$23,('Universal Credit Table'!$AG87-$AH87),Rates!$N$23)))*Rates!$N$25+(IF(($AG87-($AH87+$AI87))>0,($AG87-($AH87+$AI87)),0))*Rates!$N$26 -> 0 | F87: =IF($D87<Rates!$N$32,0,Rates!$N$34*(MIN($D87,Rates!$N$33)-Rates!$N$32)+Rates!$N$35*(MAX($D87,Rates!$N$33)-Rates!$N$33)) -> 0 | G87: 48 | H87: 0 | I87: =IF('Model Setup'!$J$33=0,'Model Setup'!$O$33,IF(((D87/'Model Setup'!$F$33)*'Model Setup'!$J$33)>=0,((D87/'Model Setup'!$F$33)*'Model Setup'!$J$33),0)) -> 0 | J87: =(IF($AL87<=0,0,IF($AL87<=Rates!$N$22,$AL87,Rates!$N$20-IF($AK87>=0,$AK87,0))))*Rates!$N$24+(IF($AL87<=Rates!$N$22,0,IF(($AL87-$AM87)<=Rates!$N$23,('Universal Credit Table'!$AL87-$AM87),Rates!$N$23)))*Rates!$N$25+(IF(($AL87-($AM87+$AN87))>0,($AL87-($AM87+$AN87)),0))*Rates!$N$26 -> 0 | K87: =IF($I87<Rates!$N$32,0,Rates!$N$34*(MIN($I87,Rates!$N$33)-Rates!$N$32)+Rates!$N$35*(MAX($I87,Rates!$N$33)-Rates!$N$33)) -> 0 | L87: 0 | M87: 0 | N87: 0 | O87: 48 | P87: 48 | Q87: =IF(D87<Rates!$U$82,$E$27,($E$27-(D87-Rates!$U$82)/(100/365*7)/100*$E$27)) -> 35 | R87: =0.75*IF(P87<$P$18,$K$18,$K$18-($P87-$P$18)*Rates!$U$73) -> 25.5 | S87: =IF('Model Setup'!$F$35=0,$O$27-(P87*Rates!$J$87),IF(AND($K$27>0,P87>Rates!$K$83),$O$27-((P87-Rates!$K$83)*Rates!$J$87),IF(AND($K$27>0,P87<Rates!$K$83),$O$27,IF(AND($K$27=0,P87>Rates!$K$77),$O$27-((P87-Rates!$K$77)*Rates!$J$87),$O$27)))) -> 352.9592308 | T87: =SUMIF($P87:$S87,">0")-$S$27+IF(O87<Rates!$U$96,$T$27,0) -> 448.3592308 | U87: =SUMIF($P87:$S87,">0")-$S$27+IF(P87<Rates!$U$96,$T$27,0) -> 448.3592308 | V87: =IF(U87<Rates!$F$105,"1st",IF(AND(Rates!$F$105<='Universal Credit Table'!U87,'Universal Credit Table'!U87<Rates!$F$106),"2nd",IF(AND(Rates!$F$106<='Universal Credit Table'!U87,'Universal Credit Table'!U87<Rates!$F$107),"3rd",IF(AND(Rates!$F$107<='Universal Credit Table'!U87,'Universal Credit Table'!U87<Rates!$F$108),"4th",IF(AND(Rates!$F$108<='Universal Credit Table'!U87,'Universal Credit Table'!U87<Rates!$F$109),"5th",IF(AND(Rates!$F$109<='Universal Credit Table'!U87,'Universal Credit Table'!U87<Rates!$F$110),"6th",IF(AND(Rates!$F$110<='Universal Credit Table'!U87,'Universal Credit Table'!U87<Rates!$F$111),"7th",IF(AND(Rates!$F$111<='Universal Credit Table'!U87,'Universal Credit Table'!U87<Rates!$F$112),"8th",IF(AND(Rates!$F$112<='Universal Credit Table'!U87,'Universal Credit Table'!U87<Rates!$F$113),"9th",">9th"))))))))) -> 2nd | W87: =U87-$R$27-$Q$27-'Model Setup'!$F$37 -> 288.3592308 | X87: =IF(W87<Rates!$N$105,"1st",IF(AND(Rates!$N$105<='Universal Credit Table'!W87,'Universal Credit Table'!W87<Rates!$N$106),"2nd",IF(AND(Rates!$N$106<='Universal Credit Table'!W87,'Universal Credit Table'!W87<Rates!$N$107),"3rd",IF(AND(Rates!$N$107<='Universal Credit Table'!W87,'Universal Credit Table'!W87<Rates!$N$108),"4th",IF(AND(Rates!$N$108<='Universal Credit Table'!W87,'Universal Credit Table'!W87<Rates!$N$109),"5th",IF(AND(Rates!$N$109<='Universal Credit Table'!W87,'Universal Credit Table'!W87<Rates!$N$110),"6th",IF(AND(Rates!$N$110<='Universal Credit Table'!W87,'Universal Credit Table'!W87<Rates!$N$111),"7th",IF(AND(Rates!$N$111<='Universal Credit Table'!W87,'Universal Credit Table'!W87<Rates!$N$112),"8th",IF(AND(Rates!$N$112<='Universal Credit Table'!W87,'Universal Credit Table'!W87<Rates!$N$113),"9th",">9th"))))))))) -> 2nd | Y87: 0 | AA87: =IF(AND('Model Setup'!$J$33=0,'Model Setup'!$O$33=0),"-",(W87-'Single Earner Tables'!AG87)/'Single Earner Tables'!AG87) -> - | AB87: =IF(AA87<>"-",AA87*'Single Earner Tables'!AG87,"-") -> - | AC87: 0.8335409625 | AE87: =IF($D87<Rates!$N$16,Rates!$N$13,(Rates!$N$13-(0.5*($D87-Rates!$N$16)))) -> 241.0684932 | AF87: =IF('Model Setup'!$F$30="Single",0,IF('Model Setup'!$K$30="Not Married",0,IF(D87>=Rates!$N$17,0,IF(I87<(Rates!$N$13-Rates!$N$14),Rates!$N$14,Rates!$N$13-I87)))) -> 23.97260274 | AG87: -217.0410959 | AK87: =IF($I87>Rates!$N$16,(Rates!$N$13-(0.5*($I87-Rates!$N$16))),IF((AF87>0),Rates!$N$13-AF87,Rates!$N$13)) -> 217.0958904 | AL87: -217.0958904 | AM87: =IF($AL87<=0,0,IF($AL87<=Rates!$N$22,$AL87,Rates!$N$20-IF($AK87>=0,$AK87,0))) -> 0 | AN87: =IF($AL87<=Rates!$N$22,0,IF(($AL87-$AM87)<=Rates!$N$23,('Universal Credit Table'!$AL87-$AM87),Rates!$N$23)) -> 0 | AO87: 0
A88: 2555 | C88: 2555 | D88: 49 | E88: =(IF($AG88<=0,0,IF($AG88<=Rates!$N$22,$AG88,Rates!$N$20-IF($AE88>=0,$AE88,0))))*Rates!$N$24+(IF($AG88<=Rates!$N$22,0,IF(($AG88-$AH88)<=Rates!$N$23,('Universal Credit Table'!$AG88-$AH88),Rates!$N$23)))*Rates!$N$25+(IF(($AG88-($AH88+$AI88))>0,($AG88-($AH88+$AI88)),0))*Rates!$N$26 -> 0 | F88: =IF($D88<Rates!$N$32,0,Rates!$N$34*(MIN($D88,Rates!$N$33)-Rates!$N$32)+Rates!$N$35*(MAX($D88,Rates!$N$33)-Rates!$N$33)) -> 0 | G88: 49 | H88: 0 | I88: =IF('Model Setup'!$J$33=0,'Model Setup'!$O$33,IF(((D88/'Model Setup'!$F$33)*'Model Setup'!$J$33)>=0,((D88/'Model Setup'!$F$33)*'Model Setup'!$J$33),0)) -> 0 | J88: =(IF($AL88<=0,0,IF($AL88<=Rates!$N$22,$AL88,Rates!$N$20-IF($AK88>=0,$AK88,0))))*Rates!$N$24+(IF($AL88<=Rates!$N$22,0,IF(($AL88-$AM88)<=Rates!$N$23,('Universal Credit Table'!$AL88-$AM88),Rates!$N$23)))*Rates!$N$25+(IF(($AL88-($AM88+$AN88))>0,($AL88-($AM88+$AN88)),0))*Rates!$N$26 -> 0 | K88: =IF($I88<Rates!$N$32,0,Rates!$N$34*(MIN($I88,Rates!$N$33)-Rates!$N$32)+Rates!$N$35*(MAX($I88,Rates!$N$33)-Rates!$N$33)) -> 0 | L88: 0 | M88: 0 | N88: 0 | O88: 49 | P88: 49 | Q88: =IF(D88<Rates!$U$82,$E$27,($E$27-(D88-Rates!$U$82)/(100/365*7)/100*$E$27)) -> 35 | R88: =0.75*IF(P88<$P$18,$K$18,$K$18-($P88-$P$18)*Rates!$U$73) -> 25.5 | S88: =IF('Model Setup'!$F$35=0,$O$27-(P88*Rates!$J$87),IF(AND($K$27>0,P88>Rates!$K$83),$O$27-((P88-Rates!$K$83)*Rates!$J$87),IF(AND($K$27>0,P88<Rates!$K$83),$O$27,IF(AND($K$27=0,P88>Rates!$K$77),$O$27-((P88-Rates!$K$77)*Rates!$J$87),$O$27)))) -> 352.9592308 | T88: =SUMIF($P88:$S88,">0")-$S$27+IF(O88<Rates!$U$96,$T$27,0) -> 449.3592308 | U88: =SUMIF($P88:$S88,">0")-$S$27+IF(P88<Rates!$U$96,$T$27,0) -> 449.3592308 | V88: =IF(U88<Rates!$F$105,"1st",IF(AND(Rates!$F$105<='Universal Credit Table'!U88,'Universal Credit Table'!U88<Rates!$F$106),"2nd",IF(AND(Rates!$F$106<='Universal Credit Table'!U88,'Universal Credit Table'!U88<Rates!$F$107),"3rd",IF(AND(Rates!$F$107<='Universal Credit Table'!U88,'Universal Credit Table'!U88<Rates!$F$108),"4th",IF(AND(Rates!$F$108<='Universal Credit Table'!U88,'Universal Credit Table'!U88<Rates!$F$109),"5th",IF(AND(Rates!$F$109<='Universal Credit Table'!U88,'Universal Credit Table'!U88<Rates!$F$110),"6th",IF(AND(Rates!$F$110<='Universal Credit Table'!U88,'Universal Credit Table'!U88<Rates!$F$111),"7th",IF(AND(Rates!$F$111<='Universal Credit Table'!U88,'Universal Credit Table'!U88<Rates!$F$112),"8th",IF(AND(Rates!$F$112<='Universal Credit Table'!U88,'Universal Credit Table'!U88<Rates!$F$113),"9th",">9th"))))))))) -> 2nd | W88: =U88-$R$27-$Q$27-'Model Setup'!$F$37 -> 289.3592308 | X88: =IF(W88<Rates!$N$105,"1st",IF(AND(Rates!$N$105<='Universal Credit Table'!W88,'Universal Credit Table'!W88<Rates!$N$106),"2nd",IF(AND(Rates!$N$106<='Universal Credit Table'!W88,'Universal Credit Table'!W88<Rates!$N$107),"3rd",IF(AND(Rates!$N$107<='Universal Credit Table'!W88,'Universal Credit Table'!W88<Rates!$N$108),"4th",IF(AND(Rates!$N$108<='Universal Credit Table'!W88,'Universal Credit Table'!W88<Rates!$N$109),"5th",IF(AND(Rates!$N$109<='Universal Credit Table'!W88,'Universal Credit Table'!W88<Rates!$N$110),"6th",IF(AND(Rates!$N$110<='Universal Credit Table'!W88,'Universal Credit Table'!W88<Rates!$N$111),"7th",IF(AND(Rates!$N$111<='Universal Credit Table'!W88,'Universal Credit Table'!W88<Rates!$N$112),"8th",IF(AND(Rates!$N$112<='Universal Credit Table'!W88,'Universal Credit Table'!W88<Rates!$N$113),"9th",">9th"))))))))) -> 2nd | Y88: 0 | AA88: =IF(AND('Model Setup'!$J$33=0,'Model Setup'!$O$33=0),"-",(W88-'Single Earner Tables'!AG88)/'Single Earner Tables'!AG88) -> - | AB88: =IF(AA88<>"-",AA88*'Single Earner Tables'!AG88,"-") -> - | AC88: 0.8306603184 | AE88: =IF($D88<Rates!$N$16,Rates!$N$13,(Rates!$N$13-(0.5*($D88-Rates!$N$16)))) -> 241.0684932 | AF88: =IF('Model Setup'!$F$30="Single",0,IF('Model Setup'!$K$30="Not Married",0,IF(D88>=Rates!$N$17,0,IF(I88<(Rates!$N$13-Rates!$N$14),Rates!$N$14,Rates!$N$13-I88)))) -> 23.97260274 | AG88: -216.0410959 | AK88: =IF($I88>Rates!$N$16,(Rates!$N$13-(0.5*($I88-Rates!$N$16))),IF((AF88>0),Rates!$N$13-AF88,Rates!$N$13)) -> 217.0958904 | AL88: -217.0958904 | AM88: =IF($AL88<=0,0,IF($AL88<=Rates!$N$22,$AL88,Rates!$N$20-IF($AK88>=0,$AK88,0))) -> 0 | AN88: =IF($AL88<=Rates!$N$22,0,IF(($AL88-$AM88)<=Rates!$N$23,('Universal Credit Table'!$AL88-$AM88),Rates!$N$23)) -> 0 | AO88: 0
